Workbook

Sheet Overview
B1: PRA Disclosure Statement
C2: PRA Disclosure Statement - The 1115 PMDA application offers a source of high quality and timely data to improve the Center for Medicaid & CHIP Services (CMCS) ability to monitor demonstrations for the achievement of desired outcomes and projected cost savings. The states will upload and submit their budget neutrality workbook to CMCS via PMDA. Eventually PMDA will also be integrated into the Medicaid and CHIP Program (MACPro) System, which currently allows CMS and states to collaborate online to process State Plan Amendments (SPA), 1915 waivers, Quality Measures reports, advance planning documents, and other initiatives. The goal of the PMDA application is to: Collect programmatic quality and other performance metrics, related reports and other information associated with selected 1115 demonstrations; Validate and track performance-based incentive payments for 1115 demonstrations that include them; Provide electronic reports that support CMCS oversight, monitoring and evaluation of 1115 demonstration performance, particularly on quality and other performance metrics, and on related incentive payments (if any); Produce analytic files to support demonstration evaluation. An agency may not conduct or sponsor, and a person is not required to respond to, a collection of information unless it displays a currently valid Office of Management and Budget (OMB) control number. The OMB control number for this project is 0938-1148 CMS-10398 #56. Public burden for all of the collection of information requirements under this control number is estimated to take about 7.5 hours per response. Send comments regarding this burden estimate or any other aspect of this collection of information, including suggestions for reducing this burden, to CMS, 7500 Security Boulevard, Attn: Paperwork Reduction Act Reports Clearance Officer, Mail Stop C4-26-05, Baltimore, Maryland 21244-1850.
C4: Budget neutrality is a Federal policy that governs the Federal expenditures for1115 demonstrations. It is assured by placing an upper limit on the amount of Federal Financial Participation (FFP) the state can receive during the demonstration. The upper limit represents what the state could have received in the absence of the 1115 demonstration. The Budget Neutrality workbook will assist in collecting standardized data in order to determine financial performance for the demonstration in terms of budget neutrality. The workbook has two major groups of tabs: the first group collects and calculates Without Waiver (WOW) numbers, and the second group calculates With Waiver (WW) numbers. Data is collected per each demonstration Medicaid Eligibility Group (MEG), by demonstration year (DY). A Medicaid section 1115 demonstration is considered budget neutral if the Federal title XIX match, or funding received by the state (i.e., “with waiver” expenditures) do not exceed what the state would have (or could have) received without the demonstration (i.e., “without waiver” expenditures). The workbook provides the ability to evaluate any variance between WW and WOW calculations. The workbook consists of 15 tabs which contain different types of data and calculations. The following color schema is applied to the tabs:
B5: Blue | C5: Information populated in the Budget Neutrality workbook template based on the demonstration’s approved STC
B6: Red | C6: Information populated by states on a quarterly basis or per the reporting requirements defined in the STC
B7: Green | C7: Information automatically populated based on the input from other worksheets
B9: Note: Overview and Dropdowns tabs are read-only, no data entry is required. The Dropdowns tab displays the values used to build the dropdowns menus thoroughout the workbook,
B10: including the list of active waivers for the demonstration.
B12: Data Entry | C12: Within the tabs where a State User populates information (C Report, Total Adjustments, WW Spending Projected, MemMon Actual, MemMon Projected, and Summary TC tabs), yellow highlighted cells denote where data entry may be needed (depending on DY being updated).
B14: Pre-populated values in the downloaded Budget Neutrality workbook template
C15: The original workbook entries are based on the STCs and other demonstration approval documentation. These entries are made on the DY Def, MEG Def, WOW PMPM & Agg, Program Spending Limits, and Summary TC tab (Phase-Down Percentage and Cumulative Target Percentage fields). The MEG Def tab defines MEGs as Medicaid populations (core demonstration populations), Hypothetical populations (when a demonstration has separate budget neutrality agreements) and Tracking Only populations (for example, "pass-through" populations). The MEG Def tab also defines how expenditure numbers are calculated for a MEG (Per Capita vs. Aggregate) and the applicable scenarios (WOW, WW, or both). Also, the tab contains indicators defining MEG characteristics such as expenditure caps or applicability of savings phase-down calculations.
B17: Calculating With Waiver (WW) numbers
C18: WW numbers for each active DY of a demonstration are calculated based on a combination of actual WW expenditures, projected future expenditures, and any adjustments entered by a State User. The actual WW expenditures are copied from the Schedule C of the MBES CMS-64 report to the workbook (C Report tab). These numbers are automatically transferred to the C Report Grouper tab, where waiver expenditures are grouped by MEGs. The numbers are also transferred to the WW Spending Actual tab, which factors in adjustments entered on the Total Adjustments tab to calculate total actual WW expenditures. The WW Spending Total tab displays the actual WW expenditures plus future projected expenditures (transferred from the WW Spending Projected tab). Finally, the total WW actual and projected numbers are transferred to the Summary TC (Total Computable) tab (into the With-Waiver Total Expenditures section).
B20: Calculating Without Waiver (WOW) numbers
C21: WOW numbers can be obtained either one of two ways: using Aggregate or Per Capita calculations. If total projected expenditures for a MEG is known and the expenditure calculation type is defined as 'Aggregate' on the MEG Def tab, the total projected expenditure amount is entered for each active DY. However, if the expenditure calculation type is defined as 'Per Capita', total projected expenditures are derived by multiplying per member per month (PMPM) costs by the actual number of member months. Both Aggregate and PMPM numbers are populated on the WOW PMPM & Agg tab. The number of actual member months (number of beneficiaries times the number of months enrolled) are entered by a State User on the MemMon Actual tab for each DY. On the MemMon Projected tab, State User enters projected numbers. The totals for actual and projected member months are calculated on the MemMon Total tab. WOW aggregate, PMPM and member month data is then moved to the the Without-Waiver Total Expenditures section of the Summary TC tab, where final calculations are performed. Based on information from all tabs, the WW and WOW numbers are compared to determine the budget neutrality status of the demonstration.
B23: Below are the definitions for the tabs of the workbook which require data entries from State User.
B25: On top of the C Report tab, enter data in the following highlighted cells:
C27: ‘Data Pulled On:’ - enter the date the source file used to enter data on this tab was pulled
C28: ‘For the Time Period Through :’ - enter the date through which the source file data was pulled
C29: Reporting DY' - enter the Demonstration Year (DY) for which data is being reported. Entered DY value must align with DYs from the DY Def tab.
C30: Reporting Quarter' - enter a number of the quarter (values 1 through 4) for which data is being reported.
C32: Notes:
C33: - Dates must be entered in the following format: mm/dd/yyyy
C34: - Reporting DY and Reporting Quarter entries affect which portion of the 'Medicaid Aggregate' and 'Medicaid Aggregate - WOW only' amounts for a DY will be calculated as Actuals, and which will be calculated as Projected
C35: - Entry for each of these four fields is required for the workbook submission. If any field is not populated, you will receive an error and the document will not be uploaded to the system.
B37: State User enters information on the following tabs:
B39: C Report Tab
C41: Open Schedule C of the CMS 64 Expenditure Report. Under your state, locate expenditure data for the specific demonstration. From this location on the CMS 64 Expenditure Report, copy expenditure data cells for all DYs (active and non-active). On the C Report tab, paste the data into the correct cell/row. Repeat the copy and paste process for MAP Waivers section (Total Computable and Federal Share) and ADM Waivers section (if applicable). Verify that the pasted numbers are correctly aligned with the Waiver Name values.
B43: Total Adjustments tab
C45: When adjustments are relevant for a demonstration, enter the actual numbers of total contributions to the reported expenditures, per each MEG, for the reporting quarter. Add new reported adjustments to any existing numbers for previous quarters for the reported DY. Note: Any adjustments that reduce expenditures must be entered as negative numbers (for example, -$10,000).
B47: WW Spending Projected tab
C49: Enter projected annual expenditures for each MEG for the active DYs of a demonstration. For each reporting quarter, update the projected numbers so they reflect only future quarter projections. Please see the example for the MemMon Projected tab.
B51: MemMonth Actual tab
C53: For each MEG, calculate the actual number of member months for the reported quarter and add this number to the previously entered number for the same DY. For example, for Q3 reporting period, add Q3 member months to the existing number for the same MEG and DY and enter the result into the same cell.
B56: MemMonth Projected tab
C58: For each MEG, enter projected (future) annual member months for all active DYs of the demonstration. Adjust future DY numbers as needed. For the current DY, enter only the number that reflects future quarters. For example, for Q3 reporting, only enter the projected number for Q4. There should be no projected numbers for completed (actual) DYs.
B60: Summary TC tab
C61: In the Net Variance section, for each DY, enter estimated numbers in row '1115A Dual Demonstration Savings (state preliminary estimate)'.
C62: In the next row, '1115A Dual Demonstration Savings (OACT certified)' enter certified numbers.
C63: Both estimated and certified numbers must be negative, as dual demonstration savings numbers reduce the Net Variance amount.

Sheet DY Def
A3: Demonstration Years Definitions
A5: DY | B5: 1 | C5: 2 | D5: 3 | E5: 4 | F5: 5 | G5: 6 | H5: 7 | I5: 8 | J5: 9 | K5: 10 | L5: 11 | M5: 12 | N5: 13 | O5: 14 | P5: 15 | Q5: 16 | R5: 17 | S5: 18 | T5: 19 | U5: 20 | V5: 21 | W5: 22 | X5: 23 | Y5: 24 | Z5: 25 | AA5: 26 | AB5: 27 | AC5: 28 | AD5: 29 | AE5: 30
A6: Start Date | B6: 2018-07-01 | C6: 2019-07-01 | D6: 2020-07-01 | E6: 2021-07-01 | F6: 2022-07-01 | G6: 2022-10-01 | H6: 2023-10-01 | I6: 2024-10-01 | J6: 2025-10-01 | K6: 2026-10-01
A7: End Date | B7: 2019-06-30 | C7: 2020-06-30 | D7: 2021-06-30 | E7: 2022-06-30 | F7: 2022-09-30 | G7: 2023-09-30 | H7: 2024-09-30 | I7: 2025-09-30 | J7: 2026-09-30 | K7: 2027-09-30

Sheet MEG Def
H1: Enter any general comments / notes:
B3: MEG Definitions
B5: MEG Name | C5: MEG Description | E5: WOW | F5: WW | G5: Per Capita or Aggregate | H5: Savings Phase-Down | I5: Expenditures Subject to Cap? | J5: Hypothetical Populations Included in Calculations? | K5: Start DY | L5: Start Date | M5: End DY | N5: End Date
B6: Medicaid Per Capita
J7: N/A | L7: =IF(K7<>"",(LOOKUP(K7,'DY Def'!$A$5:$AE$5,'DY Def'!$A$6:$AE$6)),"") ->  | N7: =IF(M7<>"",(LOOKUP(M7,'DY Def'!$A$5:$AE$5,'DY Def'!$A$7:$AE$7)),"") -> 
J8: N/A | L8: =IF(K8<>"",(LOOKUP(K8,'DY Def'!$A$5:$AE$5,'DY Def'!$A$6:$AE$6)),"") ->  | N8: =IF(M8<>"",(LOOKUP(M8,'DY Def'!$A$5:$AE$5,'DY Def'!$A$7:$AE$7)),"") -> 
J9: N/A | L9: =IF(K9<>"",(LOOKUP(K9,'DY Def'!$A$5:$AE$5,'DY Def'!$A$6:$AE$6)),"") ->  | N9: =IF(M9<>"",(LOOKUP(M9,'DY Def'!$A$5:$AE$5,'DY Def'!$A$7:$AE$7)),"") -> 
J10: N/A | L10: =IF(K10<>"",(LOOKUP(K10,'DY Def'!$A$5:$AE$5,'DY Def'!$A$6:$AE$6)),"") ->  | N10: =IF(M10<>"",(LOOKUP(M10,'DY Def'!$A$5:$AE$5,'DY Def'!$A$7:$AE$7)),"") -> 
J11: N/A | L11: =IF(K11<>"",(LOOKUP(K11,'DY Def'!$A$5:$AE$5,'DY Def'!$A$6:$AE$6)),"") ->  | N11: =IF(M11<>"",(LOOKUP(M11,'DY Def'!$A$5:$AE$5,'DY Def'!$A$7:$AE$7)),"") -> 
B13: Medicaid Per Capita - WOW only
H14: N/A | J14: N/A | L14: =IF(K14<>"",(LOOKUP(K14,'DY Def'!$A$5:$AE$5,'DY Def'!$A$6:$AE$6)),"") ->  | N14: =IF(M14<>"",(LOOKUP(M14,'DY Def'!$A$5:$AE$5,'DY Def'!$A$7:$AE$7)),"") -> 
H15: N/A | J15: N/A | L15: =IF(K15<>"",(LOOKUP(K15,'DY Def'!$A$5:$AE$5,'DY Def'!$A$6:$AE$6)),"") ->  | N15: =IF(M15<>"",(LOOKUP(M15,'DY Def'!$A$5:$AE$5,'DY Def'!$A$7:$AE$7)),"") -> 
H16: N/A | J16: N/A | L16: =IF(K16<>"",(LOOKUP(K16,'DY Def'!$A$5:$AE$5,'DY Def'!$A$6:$AE$6)),"") ->  | N16: =IF(M16<>"",(LOOKUP(M16,'DY Def'!$A$5:$AE$5,'DY Def'!$A$7:$AE$7)),"") -> 
H17: N/A | J17: N/A | L17: =IF(K17<>"",(LOOKUP(K17,'DY Def'!$A$5:$AE$5,'DY Def'!$A$6:$AE$6)),"") ->  | N17: =IF(M17<>"",(LOOKUP(M17,'DY Def'!$A$5:$AE$5,'DY Def'!$A$7:$AE$7)),"") -> 
H18: N/A | J18: N/A | L18: =IF(K18<>"",(LOOKUP(K18,'DY Def'!$A$5:$AE$5,'DY Def'!$A$6:$AE$6)),"") ->  | N18: =IF(M18<>"",(LOOKUP(M18,'DY Def'!$A$5:$AE$5,'DY Def'!$A$7:$AE$7)),"") -> 
B20: Medicaid Aggregate
H21: N/A | J21: N/A | L21: =IF(K21<>"",(LOOKUP(K21,'DY Def'!$A$5:$AE$5,'DY Def'!$A$6:$AE$6)),"") ->  | N21: =IF(M21<>"",(LOOKUP(M21,'DY Def'!$A$5:$AE$5,'DY Def'!$A$7:$AE$7)),"") -> 
H22: N/A | J22: N/A | L22: =IF(K22<>"",(LOOKUP(K22,'DY Def'!$A$5:$AE$5,'DY Def'!$A$6:$AE$6)),"") ->  | N22: =IF(M22<>"",(LOOKUP(M22,'DY Def'!$A$5:$AE$5,'DY Def'!$A$7:$AE$7)),"") -> 
H23: N/A | J23: N/A | L23: =IF(K23<>"",(LOOKUP(K23,'DY Def'!$A$5:$AE$5,'DY Def'!$A$6:$AE$6)),"") ->  | N23: =IF(M23<>"",(LOOKUP(M23,'DY Def'!$A$5:$AE$5,'DY Def'!$A$7:$AE$7)),"") -> 
H24: N/A | J24: N/A | L24: =IF(K24<>"",(LOOKUP(K24,'DY Def'!$A$5:$AE$5,'DY Def'!$A$6:$AE$6)),"") ->  | N24: =IF(M24<>"",(LOOKUP(M24,'DY Def'!$A$5:$AE$5,'DY Def'!$A$7:$AE$7)),"") -> 
H25: N/A | J25: N/A | L25: =IF(K25<>"",(LOOKUP(K25,'DY Def'!$A$5:$AE$5,'DY Def'!$A$6:$AE$6)),"") ->  | N25: =IF(M25<>"",(LOOKUP(M25,'DY Def'!$A$5:$AE$5,'DY Def'!$A$7:$AE$7)),"") -> 
B27: Medicaid Aggregate - WOW only
H28: N/A | J28: N/A | L28: =IF(K28<>"",(LOOKUP(K28,'DY Def'!$A$5:$AE$5,'DY Def'!$A$6:$AE$6)),"") ->  | N28: =IF(M28<>"",(LOOKUP(M28,'DY Def'!$A$5:$AE$5,'DY Def'!$A$7:$AE$7)),"") -> 
H29: N/A | J29: N/A | L29: =IF(K29<>"",(LOOKUP(K29,'DY Def'!$A$5:$AE$5,'DY Def'!$A$6:$AE$6)),"") ->  | N29: =IF(M29<>"",(LOOKUP(M29,'DY Def'!$A$5:$AE$5,'DY Def'!$A$7:$AE$7)),"") -> 
H30: N/A | J30: N/A | L30: =IF(K30<>"",(LOOKUP(K30,'DY Def'!$A$5:$AE$5,'DY Def'!$A$6:$AE$6)),"") ->  | N30: =IF(M30<>"",(LOOKUP(M30,'DY Def'!$A$5:$AE$5,'DY Def'!$A$7:$AE$7)),"") -> 
H31: N/A | J31: N/A | L31: =IF(K31<>"",(LOOKUP(K31,'DY Def'!$A$5:$AE$5,'DY Def'!$A$6:$AE$6)),"") ->  | N31: =IF(M31<>"",(LOOKUP(M31,'DY Def'!$A$5:$AE$5,'DY Def'!$A$7:$AE$7)),"") -> 
H32: N/A | J32: N/A | L32: =IF(K32<>"",(LOOKUP(K32,'DY Def'!$A$5:$AE$5,'DY Def'!$A$6:$AE$6)),"") ->  | N32: =IF(M32<>"",(LOOKUP(M32,'DY Def'!$A$5:$AE$5,'DY Def'!$A$7:$AE$7)),"") -> 
B34: Medicaid Aggregate - WW only
H35: N/A | J35: N/A | L35: =IF(K35<>"",(LOOKUP(K35,'DY Def'!$A$5:$AE$5,'DY Def'!$A$6:$AE$6)),"") ->  | N35: =IF(M35<>"",(LOOKUP(M35,'DY Def'!$A$5:$AE$5,'DY Def'!$A$7:$AE$7)),"") -> 
H36: N/A | J36: N/A | L36: =IF(K36<>"",(LOOKUP(K36,'DY Def'!$A$5:$AE$5,'DY Def'!$A$6:$AE$6)),"") ->  | N36: =IF(M36<>"",(LOOKUP(M36,'DY Def'!$A$5:$AE$5,'DY Def'!$A$7:$AE$7)),"") -> 
H37: N/A | J37: N/A | L37: =IF(K37<>"",(LOOKUP(K37,'DY Def'!$A$5:$AE$5,'DY Def'!$A$6:$AE$6)),"") ->  | N37: =IF(M37<>"",(LOOKUP(M37,'DY Def'!$A$5:$AE$5,'DY Def'!$A$7:$AE$7)),"") -> 
H38: N/A | J38: N/A | L38: =IF(K38<>"",(LOOKUP(K38,'DY Def'!$A$5:$AE$5,'DY Def'!$A$6:$AE$6)),"") ->  | N38: =IF(M38<>"",(LOOKUP(M38,'DY Def'!$A$5:$AE$5,'DY Def'!$A$7:$AE$7)),"") -> 
H39: N/A | J39: N/A | L39: =IF(K39<>"",(LOOKUP(K39,'DY Def'!$A$5:$AE$5,'DY Def'!$A$6:$AE$6)),"") ->  | N39: =IF(M39<>"",(LOOKUP(M39,'DY Def'!$A$5:$AE$5,'DY Def'!$A$7:$AE$7)),"") -> 
B41: Hypothetical 1 Per Capita | J41: Hypothetical Test 1
A42: 1 | B42: SUD IMD TANF | C42: Expenditures for individuals who are inpatients in an IMD under terms of the demonstration for any day during the month. | E42: Yes | F42: Yes | G42: Per Capita | H42: N/A | I42: No | J42: Yes | K42: 1 | L42: =IF(K42<>"",(LOOKUP(K42,'DY Def'!$A$5:$AE$5,'DY Def'!$A$6:$AE$6)),"") -> 2018-07-01 | M42: 10 | N42: =IF(M42<>"",(LOOKUP(M42,'DY Def'!$A$5:$AE$5,'DY Def'!$A$7:$AE$7)),"") -> 2027-09-30
A43: 2 | B43: SUD IMD SSI Duals – NFCE | C43: Expenditures for individuals who are nursing facility eligible and inpatients in an IMD under terms of the demonstration for any day during the month. | E43: Yes | F43: Yes | G43: Per Capita | H43: N/A | I43: No | J43: Yes | K43: 6 | L43: =IF(K43<>"",(LOOKUP(K43,'DY Def'!$A$5:$AE$5,'DY Def'!$A$6:$AE$6)),"") -> 2022-10-01 | M43: 10 | N43: =IF(M43<>"",(LOOKUP(M43,'DY Def'!$A$5:$AE$5,'DY Def'!$A$7:$AE$7)),"") -> 2027-09-30
A44: 3 | B44: SUD IMD SSI Duals – NFI | C44: Expenditures for an indivduals who are not nursing facility eligible but are inpatients in an IMD under terms of the demonstration for any day during the month. | E44: Yes | F44: Yes | G44: Per Capita | H44: N/A | I44: No | J44: Yes | K44: 6 | L44: =IF(K44<>"",(LOOKUP(K44,'DY Def'!$A$5:$AE$5,'DY Def'!$A$6:$AE$6)),"") -> 2022-10-01 | M44: 10 | N44: =IF(M44<>"",(LOOKUP(M44,'DY Def'!$A$5:$AE$5,'DY Def'!$A$7:$AE$7)),"") -> 2027-09-30
A45: 4 | B45: SUD IMD SSI NON-Duals | C45: Expenditures for individuals who are inpatients in IMDs under terms of the demonstration for any day during the month. | E45: Yes | F45: Yes | G45: Per Capita | H45: N/A | I45: No | J45: Yes | K45: 1 | L45: =IF(K45<>"",(LOOKUP(K45,'DY Def'!$A$5:$AE$5,'DY Def'!$A$6:$AE$6)),"") -> 2018-07-01 | M45: 10 | N45: =IF(M45<>"",(LOOKUP(M45,'DY Def'!$A$5:$AE$5,'DY Def'!$A$7:$AE$7)),"") -> 2027-09-30
A46: 5 | B46: SUD IMD HCE | C46: Expenditures for individuals who are inpatiens in IMDs under terms of the demonstration for any day during the month. | E46: Yes | F46: Yes | G46: Per Capita | H46: N/A | I46: No | J46: Yes | K46: 1 | L46: =IF(K46<>"",(LOOKUP(K46,'DY Def'!$A$5:$AE$5,'DY Def'!$A$6:$AE$6)),"") -> 2018-07-01 | M46: 10 | N46: =IF(M46<>"",(LOOKUP(M46,'DY Def'!$A$5:$AE$5,'DY Def'!$A$7:$AE$7)),"") -> 2027-09-30
B47: Hypothetical 1 Aggregate
H48: N/A | L48: =IF(K48<>"",(LOOKUP(K48,'DY Def'!$A$5:$AE$5,'DY Def'!$A$6:$AE$6)),"") ->  | N48: =IF(M48<>"",(LOOKUP(M48,'DY Def'!$A$5:$AE$5,'DY Def'!$A$7:$AE$7)),"") -> 
H49: N/A | L49: =IF(K49<>"",(LOOKUP(K49,'DY Def'!$A$5:$AE$5,'DY Def'!$A$6:$AE$6)),"") ->  | N49: =IF(M49<>"",(LOOKUP(M49,'DY Def'!$A$5:$AE$5,'DY Def'!$A$7:$AE$7)),"") -> 
H50: N/A | L50: =IF(K50<>"",(LOOKUP(K50,'DY Def'!$A$5:$AE$5,'DY Def'!$A$6:$AE$6)),"") ->  | N50: =IF(M50<>"",(LOOKUP(M50,'DY Def'!$A$5:$AE$5,'DY Def'!$A$7:$AE$7)),"") -> 
B52: Hypothetical 2 Per Capita | J52: Hypothetical Test 2
H53: N/A | L53: =IF(K53<>"",(LOOKUP(K53,'DY Def'!$A$5:$AE$5,'DY Def'!$A$6:$AE$6)),"") ->  | N53: =IF(M53<>"",(LOOKUP(M53,'DY Def'!$A$5:$AE$5,'DY Def'!$A$7:$AE$7)),"") -> 
H54: N/A | L54: =IF(K54<>"",(LOOKUP(K54,'DY Def'!$A$5:$AE$5,'DY Def'!$A$6:$AE$6)),"") ->  | N54: =IF(M54<>"",(LOOKUP(M54,'DY Def'!$A$5:$AE$5,'DY Def'!$A$7:$AE$7)),"") -> 
H55: N/A | L55: =IF(K55<>"",(LOOKUP(K55,'DY Def'!$A$5:$AE$5,'DY Def'!$A$6:$AE$6)),"") ->  | N55: =IF(M55<>"",(LOOKUP(M55,'DY Def'!$A$5:$AE$5,'DY Def'!$A$7:$AE$7)),"") -> 
B57: Hypothetical 2 Aggregate
H58: N/A | L58: =IF(K58<>"",(LOOKUP(K58,'DY Def'!$A$5:$AE$5,'DY Def'!$A$6:$AE$6)),"") ->  | N58: =IF(M58<>"",(LOOKUP(M58,'DY Def'!$A$5:$AE$5,'DY Def'!$A$7:$AE$7)),"") -> 
H59: N/A | L59: =IF(K59<>"",(LOOKUP(K59,'DY Def'!$A$5:$AE$5,'DY Def'!$A$6:$AE$6)),"") ->  | N59: =IF(M59<>"",(LOOKUP(M59,'DY Def'!$A$5:$AE$5,'DY Def'!$A$7:$AE$7)),"") -> 
H60: N/A | L60: =IF(K60<>"",(LOOKUP(K60,'DY Def'!$A$5:$AE$5,'DY Def'!$A$6:$AE$6)),"") ->  | N60: =IF(M60<>"",(LOOKUP(M60,'DY Def'!$A$5:$AE$5,'DY Def'!$A$7:$AE$7)),"") -> 
N61: =IF(M61<>"",(LOOKUP(M61,'DY Def'!$A$5:$AE$5,'DY Def'!$A$7:$AE$7)),"") -> 
B62: Tracking Only | N62: =IF(M62<>"",(LOOKUP(M62,'DY Def'!$A$5:$AE$5,'DY Def'!$A$7:$AE$7)),"") -> 
N63: =IF(M63<>"",(LOOKUP(M63,'DY Def'!$A$5:$AE$5,'DY Def'!$A$7:$AE$7)),"") -> 
N64: =IF(M64<>"",(LOOKUP(M64,'DY Def'!$A$5:$AE$5,'DY Def'!$A$7:$AE$7)),"") -> 
N65: =IF(M65<>"",(LOOKUP(M65,'DY Def'!$A$5:$AE$5,'DY Def'!$A$7:$AE$7)),"") -> 
N66: =IF(M66<>"",(LOOKUP(M66,'DY Def'!$A$5:$AE$5,'DY Def'!$A$7:$AE$7)),"") -> 
N67: =IF(M67<>"",(LOOKUP(M67,'DY Def'!$A$5:$AE$5,'DY Def'!$A$7:$AE$7)),"") -> 
N68: =IF(M68<>"",(LOOKUP(M68,'DY Def'!$A$5:$AE$5,'DY Def'!$A$7:$AE$7)),"") -> 
N69: =IF(M69<>"",(LOOKUP(M69,'DY Def'!$A$5:$AE$5,'DY Def'!$A$7:$AE$7)),"") -> 
N70: =IF(M70<>"",(LOOKUP(M70,'DY Def'!$A$5:$AE$5,'DY Def'!$A$7:$AE$7)),"") -> 
N71: =IF(M71<>"",(LOOKUP(M71,'DY Def'!$A$5:$AE$5,'DY Def'!$A$7:$AE$7)),"") -> 
N72: =IF(M72<>"",(LOOKUP(M72,'DY Def'!$A$5:$AE$5,'DY Def'!$A$7:$AE$7)),"") -> 
N73: =IF(M73<>"",(LOOKUP(M73,'DY Def'!$A$5:$AE$5,'DY Def'!$A$7:$AE$7)),"") -> 
N74: =IF(M74<>"",(LOOKUP(M74,'DY Def'!$A$5:$AE$5,'DY Def'!$A$7:$AE$7)),"") -> 
N75: =IF(M75<>"",(LOOKUP(M75,'DY Def'!$A$5:$AE$5,'DY Def'!$A$7:$AE$7)),"") -> 
N76: =IF(M76<>"",(LOOKUP(M76,'DY Def'!$A$5:$AE$5,'DY Def'!$A$7:$AE$7)),"") -> 
N77: =IF(M77<>"",(LOOKUP(M77,'DY Def'!$A$5:$AE$5,'DY Def'!$A$7:$AE$7)),"") -> 
N78: =IF(M78<>"",(LOOKUP(M78,'DY Def'!$A$5:$AE$5,'DY Def'!$A$7:$AE$7)),"") -> 
N79: =IF(M79<>"",(LOOKUP(M79,'DY Def'!$A$5:$AE$5,'DY Def'!$A$7:$AE$7)),"") -> 
N80: =IF(M80<>"",(LOOKUP(M80,'DY Def'!$A$5:$AE$5,'DY Def'!$A$7:$AE$7)),"") -> 
N81: =IF(M81<>"",(LOOKUP(M81,'DY Def'!$A$5:$AE$5,'DY Def'!$A$7:$AE$7)),"") -> 
N82: =IF(M82<>"",(LOOKUP(M82,'DY Def'!$A$5:$AE$5,'DY Def'!$A$7:$AE$7)),"") -> 
N83: =IF(M83<>"",(LOOKUP(M83,'DY Def'!$A$5:$AE$5,'DY Def'!$A$7:$AE$7)),"") -> 
N84: =IF(M84<>"",(LOOKUP(M84,'DY Def'!$A$5:$AE$5,'DY Def'!$A$7:$AE$7)),"") -> 
N85: =IF(M85<>"",(LOOKUP(M85,'DY Def'!$A$5:$AE$5,'DY Def'!$A$7:$AE$7)),"") -> 
N86: =IF(M86<>"",(LOOKUP(M86,'DY Def'!$A$5:$AE$5,'DY Def'!$A$7:$AE$7)),"") -> 
N87: =IF(M87<>"",(LOOKUP(M87,'DY Def'!$A$5:$AE$5,'DY Def'!$A$7:$AE$7)),"") -> 
N88: =IF(M88<>"",(LOOKUP(M88,'DY Def'!$A$5:$AE$5,'DY Def'!$A$7:$AE$7)),"") -> 
N89: =IF(M89<>"",(LOOKUP(M89,'DY Def'!$A$5:$AE$5,'DY Def'!$A$7:$AE$7)),"") -> 
N90: =IF(M90<>"",(LOOKUP(M90,'DY Def'!$A$5:$AE$5,'DY Def'!$A$7:$AE$7)),"") -> 
N91: =IF(M91<>"",(LOOKUP(M91,'DY Def'!$A$5:$AE$5,'DY Def'!$A$7:$AE$7)),"") -> 
N92: =IF(M92<>"",(LOOKUP(M92,'DY Def'!$A$5:$AE$5,'DY Def'!$A$7:$AE$7)),"") -> 
N93: =IF(M93<>"",(LOOKUP(M93,'DY Def'!$A$5:$AE$5,'DY Def'!$A$7:$AE$7)),"") -> 
N94: =IF(M94<>"",(LOOKUP(M94,'DY Def'!$A$5:$AE$5,'DY Def'!$A$7:$AE$7)),"") -> 
N95: =IF(M95<>"",(LOOKUP(M95,'DY Def'!$A$5:$AE$5,'DY Def'!$A$7:$AE$7)),"") -> 
N96: =IF(M96<>"",(LOOKUP(M96,'DY Def'!$A$5:$AE$5,'DY Def'!$A$7:$AE$7)),"") -> 
N97: =IF(M97<>"",(LOOKUP(M97,'DY Def'!$A$5:$AE$5,'DY Def'!$A$7:$AE$7)),"") -> 
N98: =IF(M98<>"",(LOOKUP(M98,'DY Def'!$A$5:$AE$5,'DY Def'!$A$7:$AE$7)),"") -> 
L102: =IF(K102<>"",(LOOKUP(K102,'DY Def'!$A$5:$AE$5,'DY Def'!$A$6:$AE$6)),"") -> 

Sheet WOW PMPM & Agg
B3: WOW PMPMs and Aggregates
D6: DEMONSTRATION YEARS (DY)
D7: ='[1]DY Def'!B$5 -> 1 | E7: ='[1]DY Def'!C$5 -> 2 | F7: ='[1]DY Def'!D$5 -> 3 | G7: ='[1]DY Def'!E$5 -> 4 | H7: ='[1]DY Def'!F$5 -> 5 | I7: ='[1]DY Def'!G$5 -> 6 | J7: ='[1]DY Def'!H$5 -> 7 | K7: ='[1]DY Def'!I$5 -> 8 | L7: ='[1]DY Def'!J$5 -> 9 | M7: ='[1]DY Def'!K$5 -> 10 | N7: ='[1]DY Def'!L$5 -> 11 | O7: ='[1]DY Def'!M$5 -> 12 | P7: ='[1]DY Def'!N$5 -> 13 | Q7: ='[1]DY Def'!O$5 -> 14 | R7: ='[1]DY Def'!P$5 -> 15 | S7: ='[1]DY Def'!Q$5 -> 16 | T7: ='[1]DY Def'!R$5 -> 17 | U7: ='[1]DY Def'!S$5 -> 18 | V7: ='[1]DY Def'!T$5 -> 19 | W7: ='[1]DY Def'!U$5 -> 20 | X7: ='[1]DY Def'!V$5 -> 21 | Y7: ='[1]DY Def'!W$5 -> 22 | Z7: ='[1]DY Def'!X$5 -> 23 | AA7: ='[1]DY Def'!Y$5 -> 24 | AB7: ='[1]DY Def'!Z$5 -> 25 | AC7: ='DY Def'!AA$5 -> 26 | AD7: ='DY Def'!AB$5 -> 27 | AE7: ='DY Def'!AC$5 -> 28 | AF7: ='DY Def'!AD$5 -> 29 | AG7: ='DY Def'!AE$5 -> 30
B9: Medicaid Per Capita
B10: =IFERROR(VLOOKUP(C10,'MEG Def'!$A$7:$B$12,2),"") -> 
B11: =IFERROR(VLOOKUP(C11,'MEG Def'!$A$7:$B$12,2),"") -> 
B12: =IFERROR(VLOOKUP(C12,'MEG Def'!$A$7:$B$12,2),"") -> 
B13: =IFERROR(VLOOKUP(C13,'MEG Def'!$A$7:$B$12,2),"") -> 
B14: =IFERROR(VLOOKUP(C14,'MEG Def'!$A$7:$B$12,2),"") -> 
B16: Medicaid Per Capita - WOW only
B17: =IFERROR(VLOOKUP(C17,'MEG Def'!$A$14:$B$19,2),0) -> 0
B18: =IFERROR(VLOOKUP(C18,'MEG Def'!$A$14:$B$19,2),0) -> 0
B19: =IFERROR(VLOOKUP(C19,'MEG Def'!$A$14:$B$19,2),0) -> 0
B20: =IFERROR(VLOOKUP(C20,'MEG Def'!$A$14:$B$19,2),0) -> 0
B21: =IFERROR(VLOOKUP(C21,'MEG Def'!$A$14:$B$19,2),0) -> 0
B23: Medicaid Aggregate
B24: =IFERROR(VLOOKUP(C24,'MEG Def'!$A$21:$B$26,2),"") -> 
B25: =IFERROR(VLOOKUP(C25,'MEG Def'!$A$21:$B$26,2),"") -> 
B26: =IFERROR(VLOOKUP(C26,'MEG Def'!$A$21:$B$26,2),"") -> 
B27: =IFERROR(VLOOKUP(C27,'MEG Def'!$A$21:$B$26,2),"") -> 
B28: =IFERROR(VLOOKUP(C28,'MEG Def'!$A$21:$B$26,2),"") -> 
B30: Medicaid Aggregate - WOW only
B31: =IFERROR(VLOOKUP(C31,'MEG Def'!$A$28:$B$33,2),0) -> 0
B32: =IFERROR(VLOOKUP(C32,'MEG Def'!$A$28:$B$33,2),0) -> 0
B33: =IFERROR(VLOOKUP(C33,'MEG Def'!$A$28:$B$33,2),0) -> 0
B34: =IFERROR(VLOOKUP(C34,'MEG Def'!$A$28:$B$33,2),0) -> 0
B35: =IFERROR(VLOOKUP(C35,'MEG Def'!$A$28:$B$33,2),0) -> 0
D38: DEMONSTRATION YEARS (DY)
D39: ='[1]DY Def'!B$5 -> 1 | E39: ='[1]DY Def'!C$5 -> 2 | F39: ='[1]DY Def'!D$5 -> 3 | G39: ='[1]DY Def'!E$5 -> 4 | H39: ='[1]DY Def'!F$5 -> 5 | I39: ='[1]DY Def'!G$5 -> 6 | J39: ='[1]DY Def'!H$5 -> 7 | K39: ='[1]DY Def'!I$5 -> 8 | L39: ='[1]DY Def'!J$5 -> 9 | M39: ='[1]DY Def'!K$5 -> 10 | N39: ='[1]DY Def'!L$5 -> 11 | O39: ='[1]DY Def'!M$5 -> 12 | P39: ='[1]DY Def'!N$5 -> 13 | Q39: ='[1]DY Def'!O$5 -> 14 | R39: ='[1]DY Def'!P$5 -> 15 | S39: ='[1]DY Def'!Q$5 -> 16 | T39: ='[1]DY Def'!R$5 -> 17 | U39: ='[1]DY Def'!S$5 -> 18 | V39: ='[1]DY Def'!T$5 -> 19 | W39: ='[1]DY Def'!U$5 -> 20 | X39: ='[1]DY Def'!V$5 -> 21 | Y39: ='[1]DY Def'!W$5 -> 22 | Z39: ='[1]DY Def'!X$5 -> 23 | AA39: ='[1]DY Def'!Y$5 -> 24 | AB39: ='[1]DY Def'!Z$5 -> 25 | AC39: ='DY Def'!AA$5 -> 26 | AD39: ='DY Def'!AB$5 -> 27 | AE39: ='DY Def'!AC$5 -> 28 | AF39: ='DY Def'!AD$5 -> 29 | AG39: ='DY Def'!AE$5 -> 30
B41: Hypothetical 1 Per Capita
B42: =IFERROR(VLOOKUP(C42,'MEG Def'!$A$42:$B$46,2),0) -> SUD IMD TANF | C42: 1 | D42: 520.37 | E42: 545.35 | F42: 571.53 | G42: 598.96 | H42: 672.71 | I42: 611.81 | J42: 646.07 | K42: 682.25 | L42: 720.46 | M42: 760.8
B43: =IFERROR(VLOOKUP(C43,'MEG Def'!$A$42:$B$46,2),0) -> SUD IMD SSI Duals – NFCE | C43: 2 | D43: 252.46 | E43: 264.58 | F43: 227.28 | G43: 290.59 | H43: 304.54 | I43: 6405.94 | J43: 6764.67 | K43: 7143.49 | L43: 7543.53 | M43: 7965.97
B44: =IFERROR(VLOOKUP(C44,'MEG Def'!$A$42:$B$46,2),0) -> SUD IMD SSI Duals – NFI | C44: 3 | D44: 2024.02 | E44: 2121.17 | F44: 2222.99 | G44: 2329.69 | H44: 2441.52 | I44: 244.77 | J44: 258.48 | K44: 272.95 | L44: 288.24 | M44: 304.38
B45: =IFERROR(VLOOKUP(C45,'MEG Def'!$A$42:$B$46,2),0) -> SUD IMD SSI NON-Duals | C45: 4 | D45: 741.38 | E45: 776.97 | F45: 814.26 | G45: 853.34 | H45: 894.3 | I45: 2379.66 | J45: 2512.92 | K45: 2653.64 | L45: 2802.25 | M45: 2959.17
B46: =IFERROR(VLOOKUP(C46,'MEG Def'!$A$42:$B$46,2),0) -> SUD IMD HCE | C46: 5 | I46: 871.65 | J46: 920.46 | K46: 972.01 | L46: 1026.44 | M46: 1083.92
B48: Hypothetical 1 Aggregate
B49: =IFERROR(VLOOKUP(C49,'MEG Def'!$A$48:$B$51,2),0) -> 0
B50: =IFERROR(VLOOKUP(C50,'MEG Def'!$A$48:$B$51,2),0) -> 0
B51: =IFERROR(VLOOKUP(C51,'MEG Def'!$A$48:$B$51,2),0) -> 0
D54: DEMONSTRATION YEARS (DY)
D55: ='[1]DY Def'!B$5 -> 1 | E55: ='[1]DY Def'!C$5 -> 2 | F55: ='[1]DY Def'!D$5 -> 3 | G55: ='[1]DY Def'!E$5 -> 4 | H55: ='[1]DY Def'!F$5 -> 5 | I55: ='[1]DY Def'!G$5 -> 6 | J55: ='[1]DY Def'!H$5 -> 7 | K55: ='[1]DY Def'!I$5 -> 8 | L55: ='[1]DY Def'!J$5 -> 9 | M55: ='[1]DY Def'!K$5 -> 10 | N55: ='[1]DY Def'!L$5 -> 11 | O55: ='[1]DY Def'!M$5 -> 12 | P55: ='[1]DY Def'!N$5 -> 13 | Q55: ='[1]DY Def'!O$5 -> 14 | R55: ='[1]DY Def'!P$5 -> 15 | S55: ='[1]DY Def'!Q$5 -> 16 | T55: ='[1]DY Def'!R$5 -> 17 | U55: ='[1]DY Def'!S$5 -> 18 | V55: ='[1]DY Def'!T$5 -> 19 | W55: ='[1]DY Def'!U$5 -> 20 | X55: ='[1]DY Def'!V$5 -> 21 | Y55: ='[1]DY Def'!W$5 -> 22 | Z55: ='[1]DY Def'!X$5 -> 23 | AA55: ='[1]DY Def'!Y$5 -> 24 | AB55: ='[1]DY Def'!Z$5 -> 25 | AC55: ='DY Def'!AA$5 -> 26 | AD55: ='DY Def'!AB$5 -> 27 | AE55: ='DY Def'!AC$5 -> 28 | AF55: ='DY Def'!AD$5 -> 29 | AG55: ='DY Def'!AE$5 -> 30
B57: Hypothetical 2 Per Capita
B58: =IFERROR(VLOOKUP(C58,'MEG Def'!$A$53:$B$56,2),0) -> 0
B59: =IFERROR(VLOOKUP(C59,'MEG Def'!$A$53:$B$56,2),0) -> 0
B60: =IFERROR(VLOOKUP(C60,'MEG Def'!$A$53:$B$56,2),0) -> 0
B62: Hypothetical 2 Aggregate
B63: =IFERROR(VLOOKUP(C63,'MEG Def'!$A$58:$B$61,2),0) -> 0
B64: =IFERROR(VLOOKUP(C64,'MEG Def'!$A$58:$B$61,2),0) -> 0
B65: =IFERROR(VLOOKUP(C65,'MEG Def'!$A$58:$B$61,2),0) -> 0

Sheet Program Spending Limits
B3: Program Spending Limits
C6: Cap Amounts per Demonstration Year | AG6: TOTAL
B7: Program Name and Associated MEGs | C7: ='DY Def'!B$5 -> 1 | D7: ='DY Def'!C$5 -> 2 | E7: ='DY Def'!D$5 -> 3 | F7: ='DY Def'!E$5 -> 4 | G7: ='DY Def'!F$5 -> 5 | H7: ='DY Def'!G$5 -> 6 | I7: ='DY Def'!H$5 -> 7 | J7: ='DY Def'!I$5 -> 8 | K7: ='DY Def'!J$5 -> 9 | L7: ='DY Def'!K$5 -> 10 | M7: ='DY Def'!L$5 -> 11 | N7: ='DY Def'!M$5 -> 12 | O7: ='DY Def'!N$5 -> 13 | P7: ='DY Def'!O$5 -> 14 | Q7: ='DY Def'!P$5 -> 15 | R7: ='DY Def'!Q$5 -> 16 | S7: ='DY Def'!R$5 -> 17 | T7: ='DY Def'!S$5 -> 18 | U7: ='DY Def'!T$5 -> 19 | V7: ='DY Def'!U$5 -> 20 | W7: ='DY Def'!V$5 -> 21 | X7: ='DY Def'!W$5 -> 22 | Y7: ='DY Def'!X$5 -> 23 | Z7: ='DY Def'!Y$5 -> 24 | AA7: ='DY Def'!Z$5 -> 25 | AB7: ='DY Def'!AA$5 -> 26 | AC7: ='DY Def'!AB$5 -> 27 | AD7: ='DY Def'!AC$5 -> 28 | AE7: ='DY Def'!AD$5 -> 29 | AF7: ='DY Def'!AE$5 -> 30
B8: Spending Cap | AG8: =SUM(C8:AF8) -> 0
AG10: =SUM(C10:AF10) -> 0
B11: Expenditures Subject to Cap
C13: =SUMIF('WW Spending Actual'!$B$10:$B$51,'Program Spending Limits'!$B13,'WW Spending Actual'!D$10:D$51) -> 0 | D13: =SUMIF('WW Spending Actual'!$B$10:$B$51,'Program Spending Limits'!$B13,'WW Spending Actual'!E$10:E$51) -> 0 | E13: =SUMIF('WW Spending Actual'!$B$10:$B$51,'Program Spending Limits'!$B13,'WW Spending Actual'!F$10:F$51) -> 0 | F13: =SUMIF('WW Spending Actual'!$B$10:$B$51,'Program Spending Limits'!$B13,'WW Spending Actual'!G$10:G$51) -> 0 | G13: =SUMIF('WW Spending Actual'!$B$10:$B$51,'Program Spending Limits'!$B13,'WW Spending Actual'!H$10:H$51) -> 0 | H13: =SUMIF('WW Spending Actual'!$B$10:$B$51,'Program Spending Limits'!$B13,'WW Spending Actual'!I$10:I$51) -> 0 | I13: =SUMIF('WW Spending Actual'!$B$10:$B$51,'Program Spending Limits'!$B13,'WW Spending Actual'!J$10:J$51) -> 0 | J13: =SUMIF('WW Spending Actual'!$B$10:$B$51,'Program Spending Limits'!$B13,'WW Spending Actual'!K$10:K$51) -> 0 | K13: =SUMIF('WW Spending Actual'!$B$10:$B$51,'Program Spending Limits'!$B13,'WW Spending Actual'!L$10:L$51) -> 0 | L13: =SUMIF('WW Spending Actual'!$B$10:$B$51,'Program Spending Limits'!$B13,'WW Spending Actual'!M$10:M$51) -> 0 | M13: =SUMIF('WW Spending Actual'!$B$10:$B$51,'Program Spending Limits'!$B13,'WW Spending Actual'!N$10:N$51) -> 0 | N13: =SUMIF('WW Spending Actual'!$B$10:$B$51,'Program Spending Limits'!$B13,'WW Spending Actual'!O$10:O$51) -> 0 | O13: =SUMIF('WW Spending Actual'!$B$10:$B$51,'Program Spending Limits'!$B13,'WW Spending Actual'!P$10:P$51) -> 0 | P13: =SUMIF('WW Spending Actual'!$B$10:$B$51,'Program Spending Limits'!$B13,'WW Spending Actual'!Q$10:Q$51) -> 0 | Q13: =SUMIF('WW Spending Actual'!$B$10:$B$51,'Program Spending Limits'!$B13,'WW Spending Actual'!R$10:R$51) -> 0 | R13: =SUMIF('WW Spending Actual'!$B$10:$B$51,'Program Spending Limits'!$B13,'WW Spending Actual'!S$10:S$51) -> 0 | S13: =SUMIF('WW Spending Actual'!$B$10:$B$51,'Program Spending Limits'!$B13,'WW Spending Actual'!T$10:T$51) -> 0 | T13: =SUMIF('WW Spending Actual'!$B$10:$B$51,'Program Spending Limits'!$B13,'WW Spending Actual'!U$10:U$51) -> 0 | U13: =SUMIF('WW Spending Actual'!$B$10:$B$51,'Program Spending Limits'!$B13,'WW Spending Actual'!V$10:V$51) -> 0 | V13: =SUMIF('WW Spending Actual'!$B$10:$B$51,'Program Spending Limits'!$B13,'WW Spending Actual'!W$10:W$51) -> 0 | W13: =SUMIF('WW Spending Actual'!$B$10:$B$51,'Program Spending Limits'!$B13,'WW Spending Actual'!X$10:X$51) -> 0 | X13: =SUMIF('WW Spending Actual'!$B$10:$B$51,'Program Spending Limits'!$B13,'WW Spending Actual'!Y$10:Y$51) -> 0 | Y13: =SUMIF('WW Spending Actual'!$B$10:$B$51,'Program Spending Limits'!$B13,'WW Spending Actual'!Z$10:Z$51) -> 0 | Z13: =SUMIF('WW Spending Actual'!$B$10:$B$51,'Program Spending Limits'!$B13,'WW Spending Actual'!AA$10:AA$51) -> 0 | AA13: =SUMIF('WW Spending Actual'!$B$10:$B$51,'Program Spending Limits'!$B13,'WW Spending Actual'!AB$10:AB$51) -> 0 | AB13: =SUMIF('WW Spending Actual'!$B$10:$B$51,'Program Spending Limits'!$B13,'WW Spending Actual'!AC$10:AC$51) -> 0 | AC13: =SUMIF('WW Spending Actual'!$B$10:$B$51,'Program Spending Limits'!$B13,'WW Spending Actual'!AD$10:AD$51) -> 0 | AD13: =SUMIF('WW Spending Actual'!$B$10:$B$51,'Program Spending Limits'!$B13,'WW Spending Actual'!AE$10:AE$51) -> 0 | AE13: =SUMIF('WW Spending Actual'!$B$10:$B$51,'Program Spending Limits'!$B13,'WW Spending Actual'!AF$10:AF$51) -> 0 | AF13: =SUMIF('WW Spending Actual'!$B$10:$B$51,'Program Spending Limits'!$B13,'WW Spending Actual'!AG$10:AG$51) -> 0
C14: =SUMIF('WW Spending Actual'!$B$10:$B$51,'Program Spending Limits'!$B14,'WW Spending Actual'!D$10:D$51) -> 0 | D14: =SUMIF('WW Spending Actual'!$B$10:$B$51,'Program Spending Limits'!$B14,'WW Spending Actual'!E$10:E$51) -> 0 | E14: =SUMIF('WW Spending Actual'!$B$10:$B$51,'Program Spending Limits'!$B14,'WW Spending Actual'!F$10:F$51) -> 0 | F14: =SUMIF('WW Spending Actual'!$B$10:$B$51,'Program Spending Limits'!$B14,'WW Spending Actual'!G$10:G$51) -> 0 | G14: =SUMIF('WW Spending Actual'!$B$10:$B$51,'Program Spending Limits'!$B14,'WW Spending Actual'!H$10:H$51) -> 0 | H14: =SUMIF('WW Spending Actual'!$B$10:$B$51,'Program Spending Limits'!$B14,'WW Spending Actual'!I$10:I$51) -> 0 | I14: =SUMIF('WW Spending Actual'!$B$10:$B$51,'Program Spending Limits'!$B14,'WW Spending Actual'!J$10:J$51) -> 0 | J14: =SUMIF('WW Spending Actual'!$B$10:$B$51,'Program Spending Limits'!$B14,'WW Spending Actual'!K$10:K$51) -> 0 | K14: =SUMIF('WW Spending Actual'!$B$10:$B$51,'Program Spending Limits'!$B14,'WW Spending Actual'!L$10:L$51) -> 0 | L14: =SUMIF('WW Spending Actual'!$B$10:$B$51,'Program Spending Limits'!$B14,'WW Spending Actual'!M$10:M$51) -> 0 | M14: =SUMIF('WW Spending Actual'!$B$10:$B$51,'Program Spending Limits'!$B14,'WW Spending Actual'!N$10:N$51) -> 0 | N14: =SUMIF('WW Spending Actual'!$B$10:$B$51,'Program Spending Limits'!$B14,'WW Spending Actual'!O$10:O$51) -> 0 | O14: =SUMIF('WW Spending Actual'!$B$10:$B$51,'Program Spending Limits'!$B14,'WW Spending Actual'!P$10:P$51) -> 0 | P14: =SUMIF('WW Spending Actual'!$B$10:$B$51,'Program Spending Limits'!$B14,'WW Spending Actual'!Q$10:Q$51) -> 0 | Q14: =SUMIF('WW Spending Actual'!$B$10:$B$51,'Program Spending Limits'!$B14,'WW Spending Actual'!R$10:R$51) -> 0 | R14: =SUMIF('WW Spending Actual'!$B$10:$B$51,'Program Spending Limits'!$B14,'WW Spending Actual'!S$10:S$51) -> 0 | S14: =SUMIF('WW Spending Actual'!$B$10:$B$51,'Program Spending Limits'!$B14,'WW Spending Actual'!T$10:T$51) -> 0 | T14: =SUMIF('WW Spending Actual'!$B$10:$B$51,'Program Spending Limits'!$B14,'WW Spending Actual'!U$10:U$51) -> 0 | U14: =SUMIF('WW Spending Actual'!$B$10:$B$51,'Program Spending Limits'!$B14,'WW Spending Actual'!V$10:V$51) -> 0 | V14: =SUMIF('WW Spending Actual'!$B$10:$B$51,'Program Spending Limits'!$B14,'WW Spending Actual'!W$10:W$51) -> 0 | W14: =SUMIF('WW Spending Actual'!$B$10:$B$51,'Program Spending Limits'!$B14,'WW Spending Actual'!X$10:X$51) -> 0 | X14: =SUMIF('WW Spending Actual'!$B$10:$B$51,'Program Spending Limits'!$B14,'WW Spending Actual'!Y$10:Y$51) -> 0 | Y14: =SUMIF('WW Spending Actual'!$B$10:$B$51,'Program Spending Limits'!$B14,'WW Spending Actual'!Z$10:Z$51) -> 0 | Z14: =SUMIF('WW Spending Actual'!$B$10:$B$51,'Program Spending Limits'!$B14,'WW Spending Actual'!AA$10:AA$51) -> 0 | AA14: =SUMIF('WW Spending Actual'!$B$10:$B$51,'Program Spending Limits'!$B14,'WW Spending Actual'!AB$10:AB$51) -> 0
B15: Variance | C15: =C10-C13 -> 0 | D15: =D10-D13 -> 0 | E15: 0 | F15: 0 | G15: 0 | H15: 0 | I15: 0 | J15: 0 | K15: 0 | L15: 0 | M15: 0 | N15: 0 | O15: 0 | P15: 0 | Q15: 0 | R15: 0 | S15: 0 | T15: 0 | U15: 0 | V15: 0 | W15: 0 | X15: 0 | Y15: 0 | Z15: 0 | AA15: 0 | AB15: 0 | AC15: 0 | AD15: 0 | AE15: 0 | AF15: 0 | AG15: =SUM(C15:AF15) -> 0
B16: Over or Under | C16: =IF(C15<0,"Over",".") -> . | D16: . | E16: . | F16: . | G16: . | H16: . | I16: . | J16: . | K16: . | L16: . | M16: . | N16: . | O16: . | P16: . | Q16: . | R16: . | S16: . | T16: . | U16: . | V16: . | W16: . | X16: . | Y16: . | Z16: . | AA16: . | AB16: . | AC16: . | AD16: . | AE16: . | AF16: . | AG16: =IF(AG15<0,"Over",".") -> .

Sheet C Report
G2: Data Pulled On: | H2: 2023-10-11 | J2: Reporting DY | K2: 6
G3: For the Time Period Through: | H3: 2023-09-30 | J3: Reporting Quarter | K3: 4
A5: Paste all information related to the demonstration from Schedule C of the CMS 64 Waiver Expenditure Report.
A6: 1. On the Schedule C Report, locate rows relevant to all expenditures for a specific demonstration.
A7: 2. Complete two rounds of copy/paste starting from the cell in column A (Waiver Name).
A8: · MAP Waivers/ Total Computable section – into cell A100
A9: · MAP Waivers/ Federal Share section – into cell A200
A10: 3. If ADM waivers are applicable to the demonstration, complete two more rounds of copy/paste starting
A11: from the cell in column A (Waiver Name).
A12: · ADM Waivers/ Total Computable section – cell A300
A13: · ADM Waivers/ Federal Share section – cell A400
A97: MAP Waivers
A99: Total Computable
A100: Waiver Name | B100: A | C100: 1 | D100: 2 | E100: 3 | F100: 4 | G100: 5 | H100: 6 | I100: 7 | J100: 8 | K100: 9 | L100: 10 | M100: 11 | N100: 12 | O100: 13 | P100: 14 | Q100: 15 | R100: 16 | S100: 17 | T100: 18 | U100: 19 | V100: 20 | W100: 21 | X100: 22 | Y100: 23 | Z100: 24 | AA100: 25 | AB100: 26 | AC100: 27 | AD100: 28 | AE100: 29 | AF100: 30 | AG100: Total | AH100: Total Less Non-Adds
A101: Former Foster Care Youth / SUD IMD TANF | B101: 0 | C101: 1580 | D101: 248175 | E101: 0 | F101: 0 | G101: 0 | H101: 0 | I101: 0 | J101: 0 | K101: 0 | L101: 0 | M101: 0 | N101: 0 | O101: 0 | P101: 0 | Q101: 0 | R101: 0 | S101: 0 | T101: 0 | U101: 0 | V101: 0 | W101: 0 | X101: 0 | Y101: 0 | Z101: 0 | AA101: 0 | AB101: 0 | AC101: 0 | AD101: 0 | AE101: 0 | AF101: 0 | AG101: 249755 | AH101: 249755
A102: Former Foster Care Youth/ SUD IMD SSI Duals | B102: 0 | C102: -95389 | D102: 62504 | E102: 0 | F102: 0 | G102: 0 | H102: 0 | I102: 0 | J102: 0 | K102: 0 | L102: 0 | M102: 0 | N102: 0 | O102: 0 | P102: 0 | Q102: 0 | R102: 0 | S102: 0 | T102: 0 | U102: 0 | V102: 0 | W102: 0 | X102: 0 | Y102: 0 | Z102: 0 | AA102: 0 | AB102: 0 | AC102: 0 | AD102: 0 | AE102: 0 | AF102: 0 | AG102: -32885 | AH102: -32885
A103: Former Foster Care Youth/ SUD IMD SSI Non-Duals | B103: 0 | C103: 1849 | D103: 621496 | E103: 0 | F103: 0 | G103: 0 | H103: 0 | I103: 0 | J103: 0 | K103: 0 | L103: 0 | M103: 0 | N103: 0 | O103: 0 | P103: 0 | Q103: 0 | R103: 0 | S103: 0 | T103: 0 | U103: 0 | V103: 0 | W103: 0 | X103: 0 | Y103: 0 | Z103: 0 | AA103: 0 | AB103: 0 | AC103: 0 | AD103: 0 | AE103: 0 | AF103: 0 | AG103: 623345 | AH103: 623345
A104: SUD IMD HCE | B104: 0 | C104: 5273657 | D104: 64607175 | E104: 36591764 | F104: 38416814 | G104: 8492294 | H104: 27239297 | I104: 0 | J104: 0 | K104: 0 | L104: 0 | M104: 0 | N104: 0 | O104: 0 | P104: 0 | Q104: 0 | R104: 0 | S104: 0 | T104: 0 | U104: 0 | V104: 0 | W104: 0 | X104: 0 | Y104: 0 | Z104: 0 | AA104: 0 | AB104: 0 | AC104: 0 | AD104: 0 | AE104: 0 | AF104: 0 | AG104: 154239087 | AH104: 154239087
A105: SUD IMD SSI Duals | B105: 0 | C105: 324105 | D105: 1556926 | E105: 1919416 | F105: 2315226 | G105: 554237 | H105: 4118 | I105: 0 | J105: 0 | K105: 0 | L105: 0 | M105: 0 | N105: 0 | O105: 0 | P105: 0 | Q105: 0 | R105: 0 | S105: 0 | T105: 0 | U105: 0 | V105: 0 | W105: 0 | X105: 0 | Y105: 0 | Z105: 0 | AA105: 0 | AB105: 0 | AC105: 0 | AD105: 0 | AE105: 0 | AF105: 0 | AG105: 6429053 | AH105: 6429053
A106: SUD IMD SSI Duals - NFCE | B106: 0 | C106: 0 | D106: 0 | E106: 0 | F106: 0 | G106: 0 | H106: 1088126 | I106: 0 | J106: 0 | K106: 0 | L106: 0 | M106: 0 | N106: 0 | O106: 0 | P106: 0 | Q106: 0 | R106: 0 | S106: 0 | T106: 0 | U106: 0 | V106: 0 | W106: 0 | X106: 0 | Y106: 0 | Z106: 0 | AA106: 0 | AB106: 0 | AC106: 0 | AD106: 0 | AE106: 0 | AF106: 0 | AG106: 24742 | AH106: 24742
A107: SUD IMD SSI Duals - NFI | B107: 0 | C107: 0 | D107: 0 | E107: 0 | F107: 0 | G107: 0 | H107: 666724 | I107: 0 | J107: 0 | K107: 0 | L107: 0 | M107: 0 | N107: 0 | O107: 0 | P107: 0 | Q107: 0 | R107: 0 | S107: 0 | T107: 0 | U107: 0 | V107: 0 | W107: 0 | X107: 0 | Y107: 0 | Z107: 0 | AA107: 0 | AB107: 0 | AC107: 0 | AD107: 0 | AE107: 0 | AF107: 0 | AG107: 34730 | AH107: 34730
A108: SUD IMD SSI Non-Duals | B108: 0 | C108: 5368743 | D108: 24344293 | E108: 15919919 | F108: 16708470 | G108: 3538611 | H108: 12088353 | I108: 0 | J108: 0 | K108: 0 | L108: 0 | M108: 0 | N108: 0 | O108: 0 | P108: 0 | Q108: 0 | R108: 0 | S108: 0 | T108: 0 | U108: 0 | V108: 0 | W108: 0 | X108: 0 | Y108: 0 | Z108: 0 | AA108: 0 | AB108: 0 | AC108: 0 | AD108: 0 | AE108: 0 | AF108: 0 | AG108: 65449228 | AH108: 65449228
A109: SUD IMD TANF | B109: 0 | C109: 1250975 | D109: 5936439 | E109: 3755678 | F109: 3719558 | G109: 796459 | H109: 2403466 | I109: 0 | J109: 0 | K109: 0 | L109: 0 | M109: 0 | N109: 0 | O109: 0 | P109: 0 | Q109: 0 | R109: 0 | S109: 0 | T109: 0 | U109: 0 | V109: 0 | W109: 0 | X109: 0 | Y109: 0 | Z109: 0 | AA109: 0 | AB109: 0 | AC109: 0 | AD109: 0 | AE109: 0 | AF109: 0 | AG109: 15580663 | AH109: 15580663
A110: Total | B110: =SUM(B101:B109) -> 0 | C110: 12125520 | D110: 97377008 | E110: 58186777 | F110: 61160068 | G110: 13381601 | H110: 43490084 | I110: 0 | J110: 0 | K110: 0 | L110: 0 | M110: 0 | N110: 0 | O110: 0 | P110: 0 | Q110: 0 | R110: 0 | S110: 0 | T110: 0 | U110: 0 | V110: 0 | W110: 0 | X110: 0 | Y110: 0 | Z110: 0 | AA110: 0 | AB110: 0 | AC110: 0 | AD110: 0 | AE110: 0 | AF110: 0 | AG110: 242597718 | AH110: 242597718
A199: Federal Share
A200: Waiver Name | B200: A | C200: 1 | D200: 2 | E200: 3 | F200: 4 | G200: 5 | H200: 6 | I200: 7 | J200: 8 | K200: 9 | L200: 10 | M200: 11 | N200: 12 | O200: 13 | P200: 14 | Q200: 15 | R200: 16 | S200: 17 | T200: 18 | U200: 19 | V200: 20 | W200: 21 | X200: 22 | Y200: 23 | Z200: 24 | AA200: 25 | AB200: 26 | AC200: 27 | AD200: 28 | AE200: 29 | AF200: 30 | AG200: Total | AH200: Total Less Non-Adds
A201: Former Foster Care Youth / SUD IMD TANF | B201: 0 | C201: 825 | D201: 144506 | E201: 0 | F201: 0 | G201: 0 | H201: 0 | I201: 0 | J201: 0 | K201: 0 | L201: 0 | M201: 0 | N201: 0 | O201: 0 | P201: 0 | Q201: 0 | R201: 0 | S201: 0 | T201: 0 | U201: 0 | V201: 0 | W201: 0 | X201: 0 | Y201: 0 | Z201: 0 | AA201: 0 | AB201: 0 | AC201: 0 | AD201: 0 | AE201: 0 | AF201: 0 | AG201: 145331 | AH201: 145331
A202: Former Foster Care Youth/ SUD IMD SSI Duals | B202: 0 | C202: -49841 | D202: 36512 | E202: 0 | F202: 0 | G202: 0 | H202: 0 | I202: 0 | J202: 0 | K202: 0 | L202: 0 | M202: 0 | N202: 0 | O202: 0 | P202: 0 | Q202: 0 | R202: 0 | S202: 0 | T202: 0 | U202: 0 | V202: 0 | W202: 0 | X202: 0 | Y202: 0 | Z202: 0 | AA202: 0 | AB202: 0 | AC202: 0 | AD202: 0 | AE202: 0 | AF202: 0 | AG202: -13329 | AH202: -13329
A203: Former Foster Care Youth/ SUD IMD SSI Non-Duals | B203: 0 | C203: 966 | D203: 362283 | E203: 0 | F203: 0 | G203: 0 | H203: 0 | I203: 0 | J203: 0 | K203: 0 | L203: 0 | M203: 0 | N203: 0 | O203: 0 | P203: 0 | Q203: 0 | R203: 0 | S203: 0 | T203: 0 | U203: 0 | V203: 0 | W203: 0 | X203: 0 | Y203: 0 | Z203: 0 | AA203: 0 | AB203: 0 | AC203: 0 | AD203: 0 | AE203: 0 | AF203: 0 | AG203: 363249 | AH203: 363249
A204: SUD IMD HCE | B204: 0 | C204: 4917856 | D204: 59601589 | E204: 32932592 | F204: 34575134 | G204: 7643066 | H204: 24515372 | I204: 0 | J204: 0 | K204: 0 | L204: 0 | M204: 0 | N204: 0 | O204: 0 | P204: 0 | Q204: 0 | R204: 0 | S204: 0 | T204: 0 | U204: 0 | V204: 0 | W204: 0 | X204: 0 | Y204: 0 | Z204: 0 | AA204: 0 | AB204: 0 | AC204: 0 | AD204: 0 | AE204: 0 | AF204: 0 | AG204: 140441881 | AH204: 140441881
A205: SUD IMD SSI Duals | B205: 0 | C205: 169025 | D205: 868259 | E205: 1121089 | F205: 1360945 | G205: 325146 | H205: 2347 | I205: 0 | J205: 0 | K205: 0 | L205: 0 | M205: 0 | N205: 0 | O205: 0 | P205: 0 | Q205: 0 | R205: 0 | S205: 0 | T205: 0 | U205: 0 | V205: 0 | W205: 0 | X205: 0 | Y205: 0 | Z205: 0 | AA205: 0 | AB205: 0 | AC205: 0 | AD205: 0 | AE205: 0 | AF205: 0 | AG205: 3703129 | AH205: 3703129
A206: SUD IMD SSI Duals - NFCE | B206: 0 | C206: 0 | D206: 0 | E206: 0 | F206: 0 | G206: 0 | H206: 622542 | I206: 0 | J206: 0 | K206: 0 | L206: 0 | M206: 0 | N206: 0 | O206: 0 | P206: 0 | Q206: 0 | R206: 0 | S206: 0 | T206: 0 | U206: 0 | V206: 0 | W206: 0 | X206: 0 | Y206: 0 | Z206: 0 | AA206: 0 | AB206: 0 | AC206: 0 | AD206: 0 | AE206: 0 | AF206: 0 | AG206: 14400 | AH206: 14400
A207: SUD IMD SSI Duals - NFI | B207: 0 | C207: 0 | D207: 0 | E207: 0 | F207: 0 | G207: 0 | H207: 381665 | I207: 0 | J207: 0 | K207: 0 | L207: 0 | M207: 0 | N207: 0 | O207: 0 | P207: 0 | Q207: 0 | R207: 0 | S207: 0 | T207: 0 | U207: 0 | V207: 0 | W207: 0 | X207: 0 | Y207: 0 | Z207: 0 | AA207: 0 | AB207: 0 | AC207: 0 | AD207: 0 | AE207: 0 | AF207: 0 | AG207: 20213 | AH207: 20213
A208: SUD IMD SSI Non-Duals | B208: 0 | C208: 2803541 | D208: 13173189 | E208: 9298536 | F208: 9821889 | G208: 2075954 | H208: 6915193 | I208: 0 | J208: 0 | K208: 0 | L208: 0 | M208: 0 | N208: 0 | O208: 0 | P208: 0 | Q208: 0 | R208: 0 | S208: 0 | T208: 0 | U208: 0 | V208: 0 | W208: 0 | X208: 0 | Y208: 0 | Z208: 0 | AA208: 0 | AB208: 0 | AC208: 0 | AD208: 0 | AE208: 0 | AF208: 0 | AG208: 36919639 | AH208: 36919639
A209: SUD IMD TANF | B209: 0 | C209: 653050 | D209: 3196797 | E209: 2193616 | F209: 2186930 | G209: 467277 | H209: 1377024 | I209: 0 | J209: 0 | K209: 0 | L209: 0 | M209: 0 | N209: 0 | O209: 0 | P209: 0 | Q209: 0 | R209: 0 | S209: 0 | T209: 0 | U209: 0 | V209: 0 | W209: 0 | X209: 0 | Y209: 0 | Z209: 0 | AA209: 0 | AB209: 0 | AC209: 0 | AD209: 0 | AE209: 0 | AF209: 0 | AG209: 8768156 | AH209: 8768156
A210: Total | B210: =SUM(B201:B209) -> 0 | C210: 8495422 | D210: 77383135 | E210: 45545833 | F210: 47944898 | G210: 10511443 | H210: 33814143 | I210: 0 | J210: 0 | K210: 0 | L210: 0 | M210: 0 | N210: 0 | O210: 0 | P210: 0 | Q210: 0 | R210: 0 | S210: 0 | T210: 0 | U210: 0 | V210: 0 | W210: 0 | X210: 0 | Y210: 0 | Z210: 0 | AA210: 0 | AB210: 0 | AC210: 0 | AD210: 0 | AE210: 0 | AF210: 0 | AG210: =SUM(AG201:AG209) -> 190362669 | AH210: 190362669
A297: ADM Waivers
A299: Total Computable
A300: Waiver Name | B300: A | C300: 1 | D300: 2 | E300: 3 | F300: 4 | G300: 5 | H300: 6 | I300: 7 | J300: 8 | K300: 9 | L300: 10 | M300: 11 | N300: 12 | O300: 13 | P300: 14 | Q300: 15 | R300: 16 | S300: 17 | T300: 18 | U300: 19 | V300: 20 | W300: 21 | X300: 22 | Y300: 23 | Z300: 24 | AA300: 25 | AB300: 26 | AC300: 27 | AD300: 28 | AE300: 29 | AF300: 30 | AG300: Total | AH300: Total Less Non-Adds
A301: SUD IMD HCE | B301: 0 | C301: 141246 | D301: 154756 | E301: 151758 | F301: 254205 | G301: 36063 | H301: 0 | I301: 0 | J301: 0 | K301: 0 | L301: 0 | M301: 0 | N301: 0 | O301: 0 | P301: 0 | Q301: 0 | R301: 0 | S301: 0 | T301: 0 | U301: 0 | V301: 0 | W301: 0 | X301: 0 | Y301: 0 | Z301: 0 | AA301: 0 | AB301: 0 | AC301: 0 | AD301: 0 | AE301: 0 | AF301: 0 | AG301: 738028 | AH301: 738028
A302: SUD IMD SSI Duals | B302: 0 | C302: 1985 | D302: 5131 | E302: 8148 | F302: 15558 | G302: 1794 | H302: 0 | I302: 0 | J302: 0 | K302: 0 | L302: 0 | M302: 0 | N302: 0 | O302: 0 | P302: 0 | Q302: 0 | R302: 0 | S302: 0 | T302: 0 | U302: 0 | V302: 0 | W302: 0 | X302: 0 | Y302: 0 | Z302: 0 | AA302: 0 | AB302: 0 | AC302: 0 | AD302: 0 | AE302: 0 | AF302: 0 | AG302: 32616 | AH302: 32616
A303: SUD IMD SSI Non-Duals | B303: 0 | C303: 61438 | D303: 67009 | E303: 66141 | F303: 120278 | G303: 13265 | H303: 0 | I303: 0 | J303: 0 | K303: 0 | L303: 0 | M303: 0 | N303: 0 | O303: 0 | P303: 0 | Q303: 0 | R303: 0 | S303: 0 | T303: 0 | U303: 0 | V303: 0 | W303: 0 | X303: 0 | Y303: 0 | Z303: 0 | AA303: 0 | AB303: 0 | AC303: 0 | AD303: 0 | AE303: 0 | AF303: 0 | AG303: 328131 | AH303: 328131
A304: SUD IMD TANF | B304: 0 | C304: 15888 | D304: 15562 | E304: 15485 | F304: 24186 | G304: 3492 | H304: 0 | I304: 0 | J304: 0 | K304: 0 | L304: 0 | M304: 0 | N304: 0 | O304: 0 | P304: 0 | Q304: 0 | R304: 0 | S304: 0 | T304: 0 | U304: 0 | V304: 0 | W304: 0 | X304: 0 | Y304: 0 | Z304: 0 | AA304: 0 | AB304: 0 | AC304: 0 | AD304: 0 | AE304: 0 | AF304: 0 | AG304: 74613 | AH304: 74613
A305: Total | B305: =SUM(B301:B304) -> 0 | C305: 220557 | D305: 242458 | E305: 241532 | F305: 414227 | G305: 54614 | H305: 0 | I305: 0 | J305: 0 | K305: 0 | L305: 0 | M305: 0 | N305: 0 | O305: 0 | P305: 0 | Q305: 0 | R305: 0 | S305: 0 | T305: 0 | U305: 0 | V305: 0 | W305: 0 | X305: 0 | Y305: 0 | Z305: 0 | AA305: 0 | AB305: 0 | AC305: 0 | AD305: 0 | AE305: 0 | AF305: 0 | AG305: 1173388 | AH305: 1173388
A399: Federal Share
A400: Waiver Name | B400: A | C400: 1 | D400: 2 | E400: 3 | F400: 4 | G400: 5 | H400: 6 | I400: 7 | J400: 8 | K400: 9 | L400: 10 | M400: 11 | N400: 12 | O400: 13 | P400: 14 | Q400: 15 | R400: 16 | S400: 17 | T400: 18 | U400: 19 | V400: 20 | W400: 21 | X400: 22 | Y400: 23 | Z400: 24 | AA400: 25 | AB400: 26 | AC400: 27 | AD400: 28 | AE400: 29 | AF400: 30 | AG400: Total | AH400: Total Less Non-Adds
A401: SUD IMD HCE | B401: 0 | C401: 70623 | D401: 77379 | E401: 75880 | F401: 127103 | G401: 18032 | H401: 0 | I401: 0 | J401: 0 | K401: 0 | L401: 0 | M401: 0 | N401: 0 | O401: 0 | P401: 0 | Q401: 0 | R401: 0 | S401: 0 | T401: 0 | U401: 0 | V401: 0 | W401: 0 | X401: 0 | Y401: 0 | Z401: 0 | AA401: 0 | AB401: 0 | AC401: 0 | AD401: 0 | AE401: 0 | AF401: 0 | AG401: 369017 | AH401: 369017
A402: SUD IMD SSI Duals | B402: 0 | C402: 993 | D402: 2566 | E402: 4074 | F402: 7780 | G402: 897 | H402: 0 | I402: 0 | J402: 0 | K402: 0 | L402: 0 | M402: 0 | N402: 0 | O402: 0 | P402: 0 | Q402: 0 | R402: 0 | S402: 0 | T402: 0 | U402: 0 | V402: 0 | W402: 0 | X402: 0 | Y402: 0 | Z402: 0 | AA402: 0 | AB402: 0 | AC402: 0 | AD402: 0 | AE402: 0 | AF402: 0 | AG402: 16310 | AH402: 16310
A403: SUD IMD SSI Non-Duals | B403: 0 | C403: 30719 | D403: 33505 | E403: 33072 | F403: 60140 | G403: 6633 | H403: 0 | I403: 0 | J403: 0 | K403: 0 | L403: 0 | M403: 0 | N403: 0 | O403: 0 | P403: 0 | Q403: 0 | R403: 0 | S403: 0 | T403: 0 | U403: 0 | V403: 0 | W403: 0 | X403: 0 | Y403: 0 | Z403: 0 | AA403: 0 | AB403: 0 | AC403: 0 | AD403: 0 | AE403: 0 | AF403: 0 | AG403: 164069 | AH403: 164069
A404: SUD IMD TANF | B404: 0 | C404: 7944 | D404: 7782 | E404: 7744 | F404: 12095 | G404: 1746 | H404: 0 | I404: 0 | J404: 0 | K404: 0 | L404: 0 | M404: 0 | N404: 0 | O404: 0 | P404: 0 | Q404: 0 | R404: 0 | S404: 0 | T404: 0 | U404: 0 | V404: 0 | W404: 0 | X404: 0 | Y404: 0 | Z404: 0 | AA404: 0 | AB404: 0 | AC404: 0 | AD404: 0 | AE404: 0 | AF404: 0 | AG404: 37311 | AH404: 37311
A405: Total | B405: =SUM(B401:B404) -> 0 | C405: 110279 | D405: 121232 | E405: 120770 | F405: 207118 | G405: 27308 | H405: 0 | I405: 0 | J405: 0 | K405: 0 | L405: 0 | M405: 0 | N405: 0 | O405: 0 | P405: 0 | Q405: 0 | R405: 0 | S405: 0 | T405: 0 | U405: 0 | V405: 0 | W405: 0 | X405: 0 | Y405: 0 | Z405: 0 | AA405: 0 | AB405: 0 | AC405: 0 | AD405: 0 | AE405: 0 | AF405: 0 | AG405: 586707 | AH405: 586707

Sheet C Report Grouper
B3: C Report Grouper
D4: MAP Waivers Only
B6: Total Computable
B7: MEG Names | D7: C Report Waiver Names | E7: DEMONSTRATION YEARS (DY)
E8: ='DY Def'!B$5 -> 1 | F8: ='DY Def'!C$5 -> 2 | G8: ='DY Def'!D$5 -> 3 | H8: ='DY Def'!E$5 -> 4 | I8: ='DY Def'!F$5 -> 5 | J8: ='DY Def'!G$5 -> 6 | K8: ='DY Def'!H$5 -> 7 | L8: ='DY Def'!I$5 -> 8 | M8: ='DY Def'!J$5 -> 9 | N8: ='DY Def'!K$5 -> 10 | O8: ='DY Def'!L$5 -> 11 | P8: ='DY Def'!M$5 -> 12 | Q8: ='DY Def'!N$5 -> 13 | R8: ='DY Def'!O$5 -> 14 | S8: ='DY Def'!P$5 -> 15 | T8: ='DY Def'!Q$5 -> 16 | U8: ='DY Def'!R$5 -> 17 | V8: ='DY Def'!S$5 -> 18 | W8: ='DY Def'!T$5 -> 19 | X8: ='DY Def'!U$5 -> 20 | Y8: ='DY Def'!V$5 -> 21 | Z8: ='DY Def'!W$5 -> 22 | AA8: ='DY Def'!X$5 -> 23 | AB8: ='DY Def'!Y$5 -> 24 | AC8: ='DY Def'!Z$5 -> 25 | AD8: ='DY Def'!AA$5 -> 26 | AE8: ='DY Def'!AB$5 -> 27 | AF8: ='DY Def'!AC$5 -> 28 | AG8: ='DY Def'!AD$5 -> 29 | AH8: ='DY Def'!AE$5 -> 30
B9: Medicaid Per Capita
B10: =IFERROR(VLOOKUP(C10,'MEG Def'!$A$7:$B$12,2),"") ->  | E10: =IF($D$4="MAP+ADM Waivers",SUMIF('C Report'!$A$100:$A$199,'C Report Grouper'!$D10,'C Report'!C$100:C$199)+SUMIF('C Report'!$A$300:$A$399,'C Report Grouper'!$D10,'C Report'!C$300:C$399),SUMIF('C Report'!$A$100:$A$199,'C Report Grouper'!$D10,'C Report'!C$100:C$199)) -> 0 | F10: =IF($D$4="MAP+ADM Waivers",SUMIF('C Report'!$A$100:$A$199,'C Report Grouper'!$D10,'C Report'!D$100:D$199)+SUMIF('C Report'!$A$300:$A$399,'C Report Grouper'!$D10,'C Report'!D$300:D$399),SUMIF('C Report'!$A$100:$A$199,'C Report Grouper'!$D10,'C Report'!D$100:D$199)) -> 0 | G10: =IF($D$4="MAP+ADM Waivers",SUMIF('C Report'!$A$100:$A$199,'C Report Grouper'!$D10,'C Report'!E$100:E$199)+SUMIF('C Report'!$A$300:$A$399,'C Report Grouper'!$D10,'C Report'!E$300:E$399),SUMIF('C Report'!$A$100:$A$199,'C Report Grouper'!$D10,'C Report'!E$100:E$199)) -> 0 | H10: =IF($D$4="MAP+ADM Waivers",SUMIF('C Report'!$A$100:$A$199,'C Report Grouper'!$D10,'C Report'!F$100:F$199)+SUMIF('C Report'!$A$300:$A$399,'C Report Grouper'!$D10,'C Report'!F$300:F$399),SUMIF('C Report'!$A$100:$A$199,'C Report Grouper'!$D10,'C Report'!F$100:F$199)) -> 0 | I10: =IF($D$4="MAP+ADM Waivers",SUMIF('C Report'!$A$100:$A$199,'C Report Grouper'!$D10,'C Report'!G$100:G$199)+SUMIF('C Report'!$A$300:$A$399,'C Report Grouper'!$D10,'C Report'!G$300:G$399),SUMIF('C Report'!$A$100:$A$199,'C Report Grouper'!$D10,'C Report'!G$100:G$199)) -> 0 | J10: =IF($D$4="MAP+ADM Waivers",SUMIF('C Report'!$A$100:$A$199,'C Report Grouper'!$D10,'C Report'!H$100:H$199)+SUMIF('C Report'!$A$300:$A$399,'C Report Grouper'!$D10,'C Report'!H$300:H$399),SUMIF('C Report'!$A$100:$A$199,'C Report Grouper'!$D10,'C Report'!H$100:H$199)) -> 0 | K10: =IF($D$4="MAP+ADM Waivers",SUMIF('C Report'!$A$100:$A$199,'C Report Grouper'!$D10,'C Report'!I$100:I$199)+SUMIF('C Report'!$A$300:$A$399,'C Report Grouper'!$D10,'C Report'!I$300:I$399),SUMIF('C Report'!$A$100:$A$199,'C Report Grouper'!$D10,'C Report'!I$100:I$199)) -> 0 | L10: =IF($D$4="MAP+ADM Waivers",SUMIF('C Report'!$A$100:$A$199,'C Report Grouper'!$D10,'C Report'!J$100:J$199)+SUMIF('C Report'!$A$300:$A$399,'C Report Grouper'!$D10,'C Report'!J$300:J$399),SUMIF('C Report'!$A$100:$A$199,'C Report Grouper'!$D10,'C Report'!J$100:J$199)) -> 0 | M10: =IF($D$4="MAP+ADM Waivers",SUMIF('C Report'!$A$100:$A$199,'C Report Grouper'!$D10,'C Report'!K$100:K$199)+SUMIF('C Report'!$A$300:$A$399,'C Report Grouper'!$D10,'C Report'!K$300:K$399),SUMIF('C Report'!$A$100:$A$199,'C Report Grouper'!$D10,'C Report'!K$100:K$199)) -> 0 | N10: =IF($D$4="MAP+ADM Waivers",SUMIF('C Report'!$A$100:$A$199,'C Report Grouper'!$D10,'C Report'!L$100:L$199)+SUMIF('C Report'!$A$300:$A$399,'C Report Grouper'!$D10,'C Report'!L$300:L$399),SUMIF('C Report'!$A$100:$A$199,'C Report Grouper'!$D10,'C Report'!L$100:L$199)) -> 0 | O10: =IF($D$4="MAP+ADM Waivers",SUMIF('C Report'!$A$100:$A$199,'C Report Grouper'!$D10,'C Report'!M$100:M$199)+SUMIF('C Report'!$A$300:$A$399,'C Report Grouper'!$D10,'C Report'!M$300:M$399),SUMIF('C Report'!$A$100:$A$199,'C Report Grouper'!$D10,'C Report'!M$100:M$199)) -> 0 | P10: =IF($D$4="MAP+ADM Waivers",SUMIF('C Report'!$A$100:$A$199,'C Report Grouper'!$D10,'C Report'!N$100:N$199)+SUMIF('C Report'!$A$300:$A$399,'C Report Grouper'!$D10,'C Report'!N$300:N$399),SUMIF('C Report'!$A$100:$A$199,'C Report Grouper'!$D10,'C Report'!N$100:N$199)) -> 0 | Q10: =IF($D$4="MAP+ADM Waivers",SUMIF('C Report'!$A$100:$A$199,'C Report Grouper'!$D10,'C Report'!O$100:O$199)+SUMIF('C Report'!$A$300:$A$399,'C Report Grouper'!$D10,'C Report'!O$300:O$399),SUMIF('C Report'!$A$100:$A$199,'C Report Grouper'!$D10,'C Report'!O$100:O$199)) -> 0 | R10: =IF($D$4="MAP+ADM Waivers",SUMIF('C Report'!$A$100:$A$199,'C Report Grouper'!$D10,'C Report'!P$100:P$199)+SUMIF('C Report'!$A$300:$A$399,'C Report Grouper'!$D10,'C Report'!P$300:P$399),SUMIF('C Report'!$A$100:$A$199,'C Report Grouper'!$D10,'C Report'!P$100:P$199)) -> 0 | S10: =IF($D$4="MAP+ADM Waivers",SUMIF('C Report'!$A$100:$A$199,'C Report Grouper'!$D10,'C Report'!Q$100:Q$199)+SUMIF('C Report'!$A$300:$A$399,'C Report Grouper'!$D10,'C Report'!Q$300:Q$399),SUMIF('C Report'!$A$100:$A$199,'C Report Grouper'!$D10,'C Report'!Q$100:Q$199)) -> 0 | T10: =IF($D$4="MAP+ADM Waivers",SUMIF('C Report'!$A$100:$A$199,'C Report Grouper'!$D10,'C Report'!R$100:R$199)+SUMIF('C Report'!$A$300:$A$399,'C Report Grouper'!$D10,'C Report'!R$300:R$399),SUMIF('C Report'!$A$100:$A$199,'C Report Grouper'!$D10,'C Report'!R$100:R$199)) -> 0 | U10: =IF($D$4="MAP+ADM Waivers",SUMIF('C Report'!$A$100:$A$199,'C Report Grouper'!$D10,'C Report'!S$100:S$199)+SUMIF('C Report'!$A$300:$A$399,'C Report Grouper'!$D10,'C Report'!S$300:S$399),SUMIF('C Report'!$A$100:$A$199,'C Report Grouper'!$D10,'C Report'!S$100:S$199)) -> 0 | V10: =IF($D$4="MAP+ADM Waivers",SUMIF('C Report'!$A$100:$A$199,'C Report Grouper'!$D10,'C Report'!T$100:T$199)+SUMIF('C Report'!$A$300:$A$399,'C Report Grouper'!$D10,'C Report'!T$300:T$399),SUMIF('C Report'!$A$100:$A$199,'C Report Grouper'!$D10,'C Report'!T$100:T$199)) -> 0 | W10: =IF($D$4="MAP+ADM Waivers",SUMIF('C Report'!$A$100:$A$199,'C Report Grouper'!$D10,'C Report'!U$100:U$199)+SUMIF('C Report'!$A$300:$A$399,'C Report Grouper'!$D10,'C Report'!U$300:U$399),SUMIF('C Report'!$A$100:$A$199,'C Report Grouper'!$D10,'C Report'!U$100:U$199)) -> 0 | X10: =IF($D$4="MAP+ADM Waivers",SUMIF('C Report'!$A$100:$A$199,'C Report Grouper'!$D10,'C Report'!V$100:V$199)+SUMIF('C Report'!$A$300:$A$399,'C Report Grouper'!$D10,'C Report'!V$300:V$399),SUMIF('C Report'!$A$100:$A$199,'C Report Grouper'!$D10,'C Report'!V$100:V$199)) -> 0 | Y10: =IF($D$4="MAP+ADM Waivers",SUMIF('C Report'!$A$100:$A$199,'C Report Grouper'!$D10,'C Report'!W$100:W$199)+SUMIF('C Report'!$A$300:$A$399,'C Report Grouper'!$D10,'C Report'!W$300:W$399),SUMIF('C Report'!$A$100:$A$199,'C Report Grouper'!$D10,'C Report'!W$100:W$199)) -> 0 | Z10: =IF($D$4="MAP+ADM Waivers",SUMIF('C Report'!$A$100:$A$199,'C Report Grouper'!$D10,'C Report'!X$100:X$199)+SUMIF('C Report'!$A$300:$A$399,'C Report Grouper'!$D10,'C Report'!X$300:X$399),SUMIF('C Report'!$A$100:$A$199,'C Report Grouper'!$D10,'C Report'!X$100:X$199)) -> 0 | AA10: =IF($D$4="MAP+ADM Waivers",SUMIF('C Report'!$A$100:$A$199,'C Report Grouper'!$D10,'C Report'!Y$100:Y$199)+SUMIF('C Report'!$A$300:$A$399,'C Report Grouper'!$D10,'C Report'!Y$300:Y$399),SUMIF('C Report'!$A$100:$A$199,'C Report Grouper'!$D10,'C Report'!Y$100:Y$199)) -> 0 | AB10: =IF($D$4="MAP+ADM Waivers",SUMIF('C Report'!$A$100:$A$199,'C Report Grouper'!$D10,'C Report'!Z$100:Z$199)+SUMIF('C Report'!$A$300:$A$399,'C Report Grouper'!$D10,'C Report'!Z$300:Z$399),SUMIF('C Report'!$A$100:$A$199,'C Report Grouper'!$D10,'C Report'!Z$100:Z$199)) -> 0 | AC10: =IF($D$4="MAP+ADM Waivers",SUMIF('C Report'!$A$100:$A$199,'C Report Grouper'!$D10,'C Report'!AA$100:AA$199)+SUMIF('C Report'!$A$300:$A$399,'C Report Grouper'!$D10,'C Report'!AA$300:AA$399),SUMIF('C Report'!$A$100:$A$199,'C Report Grouper'!$D10,'C Report'!AA$100:AA$199)) -> 0 | AD10: =IF($D$4="MAP+ADM Waivers",SUMIF('C Report'!$A$100:$A$199,'C Report Grouper'!$D10,'C Report'!AB$100:AB$199)+SUMIF('C Report'!$A$300:$A$399,'C Report Grouper'!$D10,'C Report'!AB$300:AB$399),SUMIF('C Report'!$A$100:$A$199,'C Report Grouper'!$D10,'C Report'!AB$100:AB$199)) -> 0 | AE10: =IF($D$4="MAP+ADM Waivers",SUMIF('C Report'!$A$100:$A$199,'C Report Grouper'!$D10,'C Report'!AC$100:AC$199)+SUMIF('C Report'!$A$300:$A$399,'C Report Grouper'!$D10,'C Report'!AC$300:AC$399),SUMIF('C Report'!$A$100:$A$199,'C Report Grouper'!$D10,'C Report'!AC$100:AC$199)) -> 0 | AF10: =IF($D$4="MAP+ADM Waivers",SUMIF('C Report'!$A$100:$A$199,'C Report Grouper'!$D10,'C Report'!AD$100:AD$199)+SUMIF('C Report'!$A$300:$A$399,'C Report Grouper'!$D10,'C Report'!AD$300:AD$399),SUMIF('C Report'!$A$100:$A$199,'C Report Grouper'!$D10,'C Report'!AD$100:AD$199)) -> 0 | AG10: =IF($D$4="MAP+ADM Waivers",SUMIF('C Report'!$A$100:$A$199,'C Report Grouper'!$D10,'C Report'!AE$100:AE$199)+SUMIF('C Report'!$A$300:$A$399,'C Report Grouper'!$D10,'C Report'!AE$300:AE$399),SUMIF('C Report'!$A$100:$A$199,'C Report Grouper'!$D10,'C Report'!AE$100:AE$199)) -> 0 | AH10: =IF($D$4="MAP+ADM Waivers",SUMIF('C Report'!$A$100:$A$199,'C Report Grouper'!$D10,'C Report'!AF$100:AF$199)+SUMIF('C Report'!$A$300:$A$399,'C Report Grouper'!$D10,'C Report'!AF$300:AF$399),SUMIF('C Report'!$A$100:$A$199,'C Report Grouper'!$D10,'C Report'!AF$100:AF$199)) -> 0
B11: =IFERROR(VLOOKUP(C11,'MEG Def'!$A$7:$B$12,2),"") ->  | E11: =IF($D$4="MAP+ADM Waivers",SUMIF('C Report'!$A$100:$A$199,'C Report Grouper'!$D11,'C Report'!C$100:C$199)+SUMIF('C Report'!$A$300:$A$399,'C Report Grouper'!$D11,'C Report'!C$300:C$399),SUMIF('C Report'!$A$100:$A$199,'C Report Grouper'!$D11,'C Report'!C$100:C$199)) -> 0 | F11: =IF($D$4="MAP+ADM Waivers",SUMIF('C Report'!$A$100:$A$199,'C Report Grouper'!$D11,'C Report'!D$100:D$199)+SUMIF('C Report'!$A$300:$A$399,'C Report Grouper'!$D11,'C Report'!D$300:D$399),SUMIF('C Report'!$A$100:$A$199,'C Report Grouper'!$D11,'C Report'!D$100:D$199)) -> 0 | G11: =IF($D$4="MAP+ADM Waivers",SUMIF('C Report'!$A$100:$A$199,'C Report Grouper'!$D11,'C Report'!E$100:E$199)+SUMIF('C Report'!$A$300:$A$399,'C Report Grouper'!$D11,'C Report'!E$300:E$399),SUMIF('C Report'!$A$100:$A$199,'C Report Grouper'!$D11,'C Report'!E$100:E$199)) -> 0 | H11: =IF($D$4="MAP+ADM Waivers",SUMIF('C Report'!$A$100:$A$199,'C Report Grouper'!$D11,'C Report'!F$100:F$199)+SUMIF('C Report'!$A$300:$A$399,'C Report Grouper'!$D11,'C Report'!F$300:F$399),SUMIF('C Report'!$A$100:$A$199,'C Report Grouper'!$D11,'C Report'!F$100:F$199)) -> 0 | I11: =IF($D$4="MAP+ADM Waivers",SUMIF('C Report'!$A$100:$A$199,'C Report Grouper'!$D11,'C Report'!G$100:G$199)+SUMIF('C Report'!$A$300:$A$399,'C Report Grouper'!$D11,'C Report'!G$300:G$399),SUMIF('C Report'!$A$100:$A$199,'C Report Grouper'!$D11,'C Report'!G$100:G$199)) -> 0 | J11: =IF($D$4="MAP+ADM Waivers",SUMIF('C Report'!$A$100:$A$199,'C Report Grouper'!$D11,'C Report'!H$100:H$199)+SUMIF('C Report'!$A$300:$A$399,'C Report Grouper'!$D11,'C Report'!H$300:H$399),SUMIF('C Report'!$A$100:$A$199,'C Report Grouper'!$D11,'C Report'!H$100:H$199)) -> 0 | K11: =IF($D$4="MAP+ADM Waivers",SUMIF('C Report'!$A$100:$A$199,'C Report Grouper'!$D11,'C Report'!I$100:I$199)+SUMIF('C Report'!$A$300:$A$399,'C Report Grouper'!$D11,'C Report'!I$300:I$399),SUMIF('C Report'!$A$100:$A$199,'C Report Grouper'!$D11,'C Report'!I$100:I$199)) -> 0 | L11: =IF($D$4="MAP+ADM Waivers",SUMIF('C Report'!$A$100:$A$199,'C Report Grouper'!$D11,'C Report'!J$100:J$199)+SUMIF('C Report'!$A$300:$A$399,'C Report Grouper'!$D11,'C Report'!J$300:J$399),SUMIF('C Report'!$A$100:$A$199,'C Report Grouper'!$D11,'C Report'!J$100:J$199)) -> 0 | M11: =IF($D$4="MAP+ADM Waivers",SUMIF('C Report'!$A$100:$A$199,'C Report Grouper'!$D11,'C Report'!K$100:K$199)+SUMIF('C Report'!$A$300:$A$399,'C Report Grouper'!$D11,'C Report'!K$300:K$399),SUMIF('C Report'!$A$100:$A$199,'C Report Grouper'!$D11,'C Report'!K$100:K$199)) -> 0 | N11: =IF($D$4="MAP+ADM Waivers",SUMIF('C Report'!$A$100:$A$199,'C Report Grouper'!$D11,'C Report'!L$100:L$199)+SUMIF('C Report'!$A$300:$A$399,'C Report Grouper'!$D11,'C Report'!L$300:L$399),SUMIF('C Report'!$A$100:$A$199,'C Report Grouper'!$D11,'C Report'!L$100:L$199)) -> 0 | O11: =IF($D$4="MAP+ADM Waivers",SUMIF('C Report'!$A$100:$A$199,'C Report Grouper'!$D11,'C Report'!M$100:M$199)+SUMIF('C Report'!$A$300:$A$399,'C Report Grouper'!$D11,'C Report'!M$300:M$399),SUMIF('C Report'!$A$100:$A$199,'C Report Grouper'!$D11,'C Report'!M$100:M$199)) -> 0 | P11: =IF($D$4="MAP+ADM Waivers",SUMIF('C Report'!$A$100:$A$199,'C Report Grouper'!$D11,'C Report'!N$100:N$199)+SUMIF('C Report'!$A$300:$A$399,'C Report Grouper'!$D11,'C Report'!N$300:N$399),SUMIF('C Report'!$A$100:$A$199,'C Report Grouper'!$D11,'C Report'!N$100:N$199)) -> 0 | Q11: =IF($D$4="MAP+ADM Waivers",SUMIF('C Report'!$A$100:$A$199,'C Report Grouper'!$D11,'C Report'!O$100:O$199)+SUMIF('C Report'!$A$300:$A$399,'C Report Grouper'!$D11,'C Report'!O$300:O$399),SUMIF('C Report'!$A$100:$A$199,'C Report Grouper'!$D11,'C Report'!O$100:O$199)) -> 0 | R11: =IF($D$4="MAP+ADM Waivers",SUMIF('C Report'!$A$100:$A$199,'C Report Grouper'!$D11,'C Report'!P$100:P$199)+SUMIF('C Report'!$A$300:$A$399,'C Report Grouper'!$D11,'C Report'!P$300:P$399),SUMIF('C Report'!$A$100:$A$199,'C Report Grouper'!$D11,'C Report'!P$100:P$199)) -> 0 | S11: =IF($D$4="MAP+ADM Waivers",SUMIF('C Report'!$A$100:$A$199,'C Report Grouper'!$D11,'C Report'!Q$100:Q$199)+SUMIF('C Report'!$A$300:$A$399,'C Report Grouper'!$D11,'C Report'!Q$300:Q$399),SUMIF('C Report'!$A$100:$A$199,'C Report Grouper'!$D11,'C Report'!Q$100:Q$199)) -> 0 | T11: =IF($D$4="MAP+ADM Waivers",SUMIF('C Report'!$A$100:$A$199,'C Report Grouper'!$D11,'C Report'!R$100:R$199)+SUMIF('C Report'!$A$300:$A$399,'C Report Grouper'!$D11,'C Report'!R$300:R$399),SUMIF('C Report'!$A$100:$A$199,'C Report Grouper'!$D11,'C Report'!R$100:R$199)) -> 0 | U11: =IF($D$4="MAP+ADM Waivers",SUMIF('C Report'!$A$100:$A$199,'C Report Grouper'!$D11,'C Report'!S$100:S$199)+SUMIF('C Report'!$A$300:$A$399,'C Report Grouper'!$D11,'C Report'!S$300:S$399),SUMIF('C Report'!$A$100:$A$199,'C Report Grouper'!$D11,'C Report'!S$100:S$199)) -> 0 | V11: =IF($D$4="MAP+ADM Waivers",SUMIF('C Report'!$A$100:$A$199,'C Report Grouper'!$D11,'C Report'!T$100:T$199)+SUMIF('C Report'!$A$300:$A$399,'C Report Grouper'!$D11,'C Report'!T$300:T$399),SUMIF('C Report'!$A$100:$A$199,'C Report Grouper'!$D11,'C Report'!T$100:T$199)) -> 0 | W11: =IF($D$4="MAP+ADM Waivers",SUMIF('C Report'!$A$100:$A$199,'C Report Grouper'!$D11,'C Report'!U$100:U$199)+SUMIF('C Report'!$A$300:$A$399,'C Report Grouper'!$D11,'C Report'!U$300:U$399),SUMIF('C Report'!$A$100:$A$199,'C Report Grouper'!$D11,'C Report'!U$100:U$199)) -> 0 | X11: =IF($D$4="MAP+ADM Waivers",SUMIF('C Report'!$A$100:$A$199,'C Report Grouper'!$D11,'C Report'!V$100:V$199)+SUMIF('C Report'!$A$300:$A$399,'C Report Grouper'!$D11,'C Report'!V$300:V$399),SUMIF('C Report'!$A$100:$A$199,'C Report Grouper'!$D11,'C Report'!V$100:V$199)) -> 0 | Y11: =IF($D$4="MAP+ADM Waivers",SUMIF('C Report'!$A$100:$A$199,'C Report Grouper'!$D11,'C Report'!W$100:W$199)+SUMIF('C Report'!$A$300:$A$399,'C Report Grouper'!$D11,'C Report'!W$300:W$399),SUMIF('C Report'!$A$100:$A$199,'C Report Grouper'!$D11,'C Report'!W$100:W$199)) -> 0 | Z11: =IF($D$4="MAP+ADM Waivers",SUMIF('C Report'!$A$100:$A$199,'C Report Grouper'!$D11,'C Report'!X$100:X$199)+SUMIF('C Report'!$A$300:$A$399,'C Report Grouper'!$D11,'C Report'!X$300:X$399),SUMIF('C Report'!$A$100:$A$199,'C Report Grouper'!$D11,'C Report'!X$100:X$199)) -> 0 | AA11: =IF($D$4="MAP+ADM Waivers",SUMIF('C Report'!$A$100:$A$199,'C Report Grouper'!$D11,'C Report'!Y$100:Y$199)+SUMIF('C Report'!$A$300:$A$399,'C Report Grouper'!$D11,'C Report'!Y$300:Y$399),SUMIF('C Report'!$A$100:$A$199,'C Report Grouper'!$D11,'C Report'!Y$100:Y$199)) -> 0 | AB11: =IF($D$4="MAP+ADM Waivers",SUMIF('C Report'!$A$100:$A$199,'C Report Grouper'!$D11,'C Report'!Z$100:Z$199)+SUMIF('C Report'!$A$300:$A$399,'C Report Grouper'!$D11,'C Report'!Z$300:Z$399),SUMIF('C Report'!$A$100:$A$199,'C Report Grouper'!$D11,'C Report'!Z$100:Z$199)) -> 0 | AC11: =IF($D$4="MAP+ADM Waivers",SUMIF('C Report'!$A$100:$A$199,'C Report Grouper'!$D11,'C Report'!AA$100:AA$199)+SUMIF('C Report'!$A$300:$A$399,'C Report Grouper'!$D11,'C Report'!AA$300:AA$399),SUMIF('C Report'!$A$100:$A$199,'C Report Grouper'!$D11,'C Report'!AA$100:AA$199)) -> 0 | AD11: =IF($D$4="MAP+ADM Waivers",SUMIF('C Report'!$A$100:$A$199,'C Report Grouper'!$D11,'C Report'!AB$100:AB$199)+SUMIF('C Report'!$A$300:$A$399,'C Report Grouper'!$D11,'C Report'!AB$300:AB$399),SUMIF('C Report'!$A$100:$A$199,'C Report Grouper'!$D11,'C Report'!AB$100:AB$199)) -> 0 | AE11: =IF($D$4="MAP+ADM Waivers",SUMIF('C Report'!$A$100:$A$199,'C Report Grouper'!$D11,'C Report'!AC$100:AC$199)+SUMIF('C Report'!$A$300:$A$399,'C Report Grouper'!$D11,'C Report'!AC$300:AC$399),SUMIF('C Report'!$A$100:$A$199,'C Report Grouper'!$D11,'C Report'!AC$100:AC$199)) -> 0 | AF11: =IF($D$4="MAP+ADM Waivers",SUMIF('C Report'!$A$100:$A$199,'C Report Grouper'!$D11,'C Report'!AD$100:AD$199)+SUMIF('C Report'!$A$300:$A$399,'C Report Grouper'!$D11,'C Report'!AD$300:AD$399),SUMIF('C Report'!$A$100:$A$199,'C Report Grouper'!$D11,'C Report'!AD$100:AD$199)) -> 0 | AG11: =IF($D$4="MAP+ADM Waivers",SUMIF('C Report'!$A$100:$A$199,'C Report Grouper'!$D11,'C Report'!AE$100:AE$199)+SUMIF('C Report'!$A$300:$A$399,'C Report Grouper'!$D11,'C Report'!AE$300:AE$399),SUMIF('C Report'!$A$100:$A$199,'C Report Grouper'!$D11,'C Report'!AE$100:AE$199)) -> 0 | AH11: =IF($D$4="MAP+ADM Waivers",SUMIF('C Report'!$A$100:$A$199,'C Report Grouper'!$D11,'C Report'!AF$100:AF$199)+SUMIF('C Report'!$A$300:$A$399,'C Report Grouper'!$D11,'C Report'!AF$300:AF$399),SUMIF('C Report'!$A$100:$A$199,'C Report Grouper'!$D11,'C Report'!AF$100:AF$199)) -> 0
B12: =IFERROR(VLOOKUP(C12,'MEG Def'!$A$7:$B$12,2),"") ->  | E12: =IF($D$4="MAP+ADM Waivers",SUMIF('C Report'!$A$100:$A$199,'C Report Grouper'!$D12,'C Report'!C$100:C$199)+SUMIF('C Report'!$A$300:$A$399,'C Report Grouper'!$D12,'C Report'!C$300:C$399),SUMIF('C Report'!$A$100:$A$199,'C Report Grouper'!$D12,'C Report'!C$100:C$199)) -> 0 | F12: =IF($D$4="MAP+ADM Waivers",SUMIF('C Report'!$A$100:$A$199,'C Report Grouper'!$D12,'C Report'!D$100:D$199)+SUMIF('C Report'!$A$300:$A$399,'C Report Grouper'!$D12,'C Report'!D$300:D$399),SUMIF('C Report'!$A$100:$A$199,'C Report Grouper'!$D12,'C Report'!D$100:D$199)) -> 0 | G12: =IF($D$4="MAP+ADM Waivers",SUMIF('C Report'!$A$100:$A$199,'C Report Grouper'!$D12,'C Report'!E$100:E$199)+SUMIF('C Report'!$A$300:$A$399,'C Report Grouper'!$D12,'C Report'!E$300:E$399),SUMIF('C Report'!$A$100:$A$199,'C Report Grouper'!$D12,'C Report'!E$100:E$199)) -> 0 | H12: =IF($D$4="MAP+ADM Waivers",SUMIF('C Report'!$A$100:$A$199,'C Report Grouper'!$D12,'C Report'!F$100:F$199)+SUMIF('C Report'!$A$300:$A$399,'C Report Grouper'!$D12,'C Report'!F$300:F$399),SUMIF('C Report'!$A$100:$A$199,'C Report Grouper'!$D12,'C Report'!F$100:F$199)) -> 0 | I12: =IF($D$4="MAP+ADM Waivers",SUMIF('C Report'!$A$100:$A$199,'C Report Grouper'!$D12,'C Report'!G$100:G$199)+SUMIF('C Report'!$A$300:$A$399,'C Report Grouper'!$D12,'C Report'!G$300:G$399),SUMIF('C Report'!$A$100:$A$199,'C Report Grouper'!$D12,'C Report'!G$100:G$199)) -> 0 | J12: =IF($D$4="MAP+ADM Waivers",SUMIF('C Report'!$A$100:$A$199,'C Report Grouper'!$D12,'C Report'!H$100:H$199)+SUMIF('C Report'!$A$300:$A$399,'C Report Grouper'!$D12,'C Report'!H$300:H$399),SUMIF('C Report'!$A$100:$A$199,'C Report Grouper'!$D12,'C Report'!H$100:H$199)) -> 0 | K12: =IF($D$4="MAP+ADM Waivers",SUMIF('C Report'!$A$100:$A$199,'C Report Grouper'!$D12,'C Report'!I$100:I$199)+SUMIF('C Report'!$A$300:$A$399,'C Report Grouper'!$D12,'C Report'!I$300:I$399),SUMIF('C Report'!$A$100:$A$199,'C Report Grouper'!$D12,'C Report'!I$100:I$199)) -> 0 | L12: =IF($D$4="MAP+ADM Waivers",SUMIF('C Report'!$A$100:$A$199,'C Report Grouper'!$D12,'C Report'!J$100:J$199)+SUMIF('C Report'!$A$300:$A$399,'C Report Grouper'!$D12,'C Report'!J$300:J$399),SUMIF('C Report'!$A$100:$A$199,'C Report Grouper'!$D12,'C Report'!J$100:J$199)) -> 0 | M12: =IF($D$4="MAP+ADM Waivers",SUMIF('C Report'!$A$100:$A$199,'C Report Grouper'!$D12,'C Report'!K$100:K$199)+SUMIF('C Report'!$A$300:$A$399,'C Report Grouper'!$D12,'C Report'!K$300:K$399),SUMIF('C Report'!$A$100:$A$199,'C Report Grouper'!$D12,'C Report'!K$100:K$199)) -> 0 | N12: =IF($D$4="MAP+ADM Waivers",SUMIF('C Report'!$A$100:$A$199,'C Report Grouper'!$D12,'C Report'!L$100:L$199)+SUMIF('C Report'!$A$300:$A$399,'C Report Grouper'!$D12,'C Report'!L$300:L$399),SUMIF('C Report'!$A$100:$A$199,'C Report Grouper'!$D12,'C Report'!L$100:L$199)) -> 0 | O12: =IF($D$4="MAP+ADM Waivers",SUMIF('C Report'!$A$100:$A$199,'C Report Grouper'!$D12,'C Report'!M$100:M$199)+SUMIF('C Report'!$A$300:$A$399,'C Report Grouper'!$D12,'C Report'!M$300:M$399),SUMIF('C Report'!$A$100:$A$199,'C Report Grouper'!$D12,'C Report'!M$100:M$199)) -> 0 | P12: =IF($D$4="MAP+ADM Waivers",SUMIF('C Report'!$A$100:$A$199,'C Report Grouper'!$D12,'C Report'!N$100:N$199)+SUMIF('C Report'!$A$300:$A$399,'C Report Grouper'!$D12,'C Report'!N$300:N$399),SUMIF('C Report'!$A$100:$A$199,'C Report Grouper'!$D12,'C Report'!N$100:N$199)) -> 0 | Q12: =IF($D$4="MAP+ADM Waivers",SUMIF('C Report'!$A$100:$A$199,'C Report Grouper'!$D12,'C Report'!O$100:O$199)+SUMIF('C Report'!$A$300:$A$399,'C Report Grouper'!$D12,'C Report'!O$300:O$399),SUMIF('C Report'!$A$100:$A$199,'C Report Grouper'!$D12,'C Report'!O$100:O$199)) -> 0 | R12: =IF($D$4="MAP+ADM Waivers",SUMIF('C Report'!$A$100:$A$199,'C Report Grouper'!$D12,'C Report'!P$100:P$199)+SUMIF('C Report'!$A$300:$A$399,'C Report Grouper'!$D12,'C Report'!P$300:P$399),SUMIF('C Report'!$A$100:$A$199,'C Report Grouper'!$D12,'C Report'!P$100:P$199)) -> 0 | S12: =IF($D$4="MAP+ADM Waivers",SUMIF('C Report'!$A$100:$A$199,'C Report Grouper'!$D12,'C Report'!Q$100:Q$199)+SUMIF('C Report'!$A$300:$A$399,'C Report Grouper'!$D12,'C Report'!Q$300:Q$399),SUMIF('C Report'!$A$100:$A$199,'C Report Grouper'!$D12,'C Report'!Q$100:Q$199)) -> 0 | T12: =IF($D$4="MAP+ADM Waivers",SUMIF('C Report'!$A$100:$A$199,'C Report Grouper'!$D12,'C Report'!R$100:R$199)+SUMIF('C Report'!$A$300:$A$399,'C Report Grouper'!$D12,'C Report'!R$300:R$399),SUMIF('C Report'!$A$100:$A$199,'C Report Grouper'!$D12,'C Report'!R$100:R$199)) -> 0 | U12: =IF($D$4="MAP+ADM Waivers",SUMIF('C Report'!$A$100:$A$199,'C Report Grouper'!$D12,'C Report'!S$100:S$199)+SUMIF('C Report'!$A$300:$A$399,'C Report Grouper'!$D12,'C Report'!S$300:S$399),SUMIF('C Report'!$A$100:$A$199,'C Report Grouper'!$D12,'C Report'!S$100:S$199)) -> 0 | V12: =IF($D$4="MAP+ADM Waivers",SUMIF('C Report'!$A$100:$A$199,'C Report Grouper'!$D12,'C Report'!T$100:T$199)+SUMIF('C Report'!$A$300:$A$399,'C Report Grouper'!$D12,'C Report'!T$300:T$399),SUMIF('C Report'!$A$100:$A$199,'C Report Grouper'!$D12,'C Report'!T$100:T$199)) -> 0 | W12: =IF($D$4="MAP+ADM Waivers",SUMIF('C Report'!$A$100:$A$199,'C Report Grouper'!$D12,'C Report'!U$100:U$199)+SUMIF('C Report'!$A$300:$A$399,'C Report Grouper'!$D12,'C Report'!U$300:U$399),SUMIF('C Report'!$A$100:$A$199,'C Report Grouper'!$D12,'C Report'!U$100:U$199)) -> 0 | X12: =IF($D$4="MAP+ADM Waivers",SUMIF('C Report'!$A$100:$A$199,'C Report Grouper'!$D12,'C Report'!V$100:V$199)+SUMIF('C Report'!$A$300:$A$399,'C Report Grouper'!$D12,'C Report'!V$300:V$399),SUMIF('C Report'!$A$100:$A$199,'C Report Grouper'!$D12,'C Report'!V$100:V$199)) -> 0 | Y12: =IF($D$4="MAP+ADM Waivers",SUMIF('C Report'!$A$100:$A$199,'C Report Grouper'!$D12,'C Report'!W$100:W$199)+SUMIF('C Report'!$A$300:$A$399,'C Report Grouper'!$D12,'C Report'!W$300:W$399),SUMIF('C Report'!$A$100:$A$199,'C Report Grouper'!$D12,'C Report'!W$100:W$199)) -> 0 | Z12: =IF($D$4="MAP+ADM Waivers",SUMIF('C Report'!$A$100:$A$199,'C Report Grouper'!$D12,'C Report'!X$100:X$199)+SUMIF('C Report'!$A$300:$A$399,'C Report Grouper'!$D12,'C Report'!X$300:X$399),SUMIF('C Report'!$A$100:$A$199,'C Report Grouper'!$D12,'C Report'!X$100:X$199)) -> 0 | AA12: =IF($D$4="MAP+ADM Waivers",SUMIF('C Report'!$A$100:$A$199,'C Report Grouper'!$D12,'C Report'!Y$100:Y$199)+SUMIF('C Report'!$A$300:$A$399,'C Report Grouper'!$D12,'C Report'!Y$300:Y$399),SUMIF('C Report'!$A$100:$A$199,'C Report Grouper'!$D12,'C Report'!Y$100:Y$199)) -> 0 | AB12: =IF($D$4="MAP+ADM Waivers",SUMIF('C Report'!$A$100:$A$199,'C Report Grouper'!$D12,'C Report'!Z$100:Z$199)+SUMIF('C Report'!$A$300:$A$399,'C Report Grouper'!$D12,'C Report'!Z$300:Z$399),SUMIF('C Report'!$A$100:$A$199,'C Report Grouper'!$D12,'C Report'!Z$100:Z$199)) -> 0 | AC12: =IF($D$4="MAP+ADM Waivers",SUMIF('C Report'!$A$100:$A$199,'C Report Grouper'!$D12,'C Report'!AA$100:AA$199)+SUMIF('C Report'!$A$300:$A$399,'C Report Grouper'!$D12,'C Report'!AA$300:AA$399),SUMIF('C Report'!$A$100:$A$199,'C Report Grouper'!$D12,'C Report'!AA$100:AA$199)) -> 0 | AD12: =IF($D$4="MAP+ADM Waivers",SUMIF('C Report'!$A$100:$A$199,'C Report Grouper'!$D12,'C Report'!AB$100:AB$199)+SUMIF('C Report'!$A$300:$A$399,'C Report Grouper'!$D12,'C Report'!AB$300:AB$399),SUMIF('C Report'!$A$100:$A$199,'C Report Grouper'!$D12,'C Report'!AB$100:AB$199)) -> 0 | AE12: =IF($D$4="MAP+ADM Waivers",SUMIF('C Report'!$A$100:$A$199,'C Report Grouper'!$D12,'C Report'!AC$100:AC$199)+SUMIF('C Report'!$A$300:$A$399,'C Report Grouper'!$D12,'C Report'!AC$300:AC$399),SUMIF('C Report'!$A$100:$A$199,'C Report Grouper'!$D12,'C Report'!AC$100:AC$199)) -> 0 | AF12: =IF($D$4="MAP+ADM Waivers",SUMIF('C Report'!$A$100:$A$199,'C Report Grouper'!$D12,'C Report'!AD$100:AD$199)+SUMIF('C Report'!$A$300:$A$399,'C Report Grouper'!$D12,'C Report'!AD$300:AD$399),SUMIF('C Report'!$A$100:$A$199,'C Report Grouper'!$D12,'C Report'!AD$100:AD$199)) -> 0 | AG12: =IF($D$4="MAP+ADM Waivers",SUMIF('C Report'!$A$100:$A$199,'C Report Grouper'!$D12,'C Report'!AE$100:AE$199)+SUMIF('C Report'!$A$300:$A$399,'C Report Grouper'!$D12,'C Report'!AE$300:AE$399),SUMIF('C Report'!$A$100:$A$199,'C Report Grouper'!$D12,'C Report'!AE$100:AE$199)) -> 0 | AH12: =IF($D$4="MAP+ADM Waivers",SUMIF('C Report'!$A$100:$A$199,'C Report Grouper'!$D12,'C Report'!AF$100:AF$199)+SUMIF('C Report'!$A$300:$A$399,'C Report Grouper'!$D12,'C Report'!AF$300:AF$399),SUMIF('C Report'!$A$100:$A$199,'C Report Grouper'!$D12,'C Report'!AF$100:AF$199)) -> 0
B13: =IFERROR(VLOOKUP(C13,'MEG Def'!$A$7:$B$12,2),"") ->  | E13: =IF($D$4="MAP+ADM Waivers",SUMIF('C Report'!$A$100:$A$199,'C Report Grouper'!$D13,'C Report'!C$100:C$199)+SUMIF('C Report'!$A$300:$A$399,'C Report Grouper'!$D13,'C Report'!C$300:C$399),SUMIF('C Report'!$A$100:$A$199,'C Report Grouper'!$D13,'C Report'!C$100:C$199)) -> 0 | F13: =IF($D$4="MAP+ADM Waivers",SUMIF('C Report'!$A$100:$A$199,'C Report Grouper'!$D13,'C Report'!D$100:D$199)+SUMIF('C Report'!$A$300:$A$399,'C Report Grouper'!$D13,'C Report'!D$300:D$399),SUMIF('C Report'!$A$100:$A$199,'C Report Grouper'!$D13,'C Report'!D$100:D$199)) -> 0 | G13: =IF($D$4="MAP+ADM Waivers",SUMIF('C Report'!$A$100:$A$199,'C Report Grouper'!$D13,'C Report'!E$100:E$199)+SUMIF('C Report'!$A$300:$A$399,'C Report Grouper'!$D13,'C Report'!E$300:E$399),SUMIF('C Report'!$A$100:$A$199,'C Report Grouper'!$D13,'C Report'!E$100:E$199)) -> 0 | H13: =IF($D$4="MAP+ADM Waivers",SUMIF('C Report'!$A$100:$A$199,'C Report Grouper'!$D13,'C Report'!F$100:F$199)+SUMIF('C Report'!$A$300:$A$399,'C Report Grouper'!$D13,'C Report'!F$300:F$399),SUMIF('C Report'!$A$100:$A$199,'C Report Grouper'!$D13,'C Report'!F$100:F$199)) -> 0 | I13: =IF($D$4="MAP+ADM Waivers",SUMIF('C Report'!$A$100:$A$199,'C Report Grouper'!$D13,'C Report'!G$100:G$199)+SUMIF('C Report'!$A$300:$A$399,'C Report Grouper'!$D13,'C Report'!G$300:G$399),SUMIF('C Report'!$A$100:$A$199,'C Report Grouper'!$D13,'C Report'!G$100:G$199)) -> 0 | J13: =IF($D$4="MAP+ADM Waivers",SUMIF('C Report'!$A$100:$A$199,'C Report Grouper'!$D13,'C Report'!H$100:H$199)+SUMIF('C Report'!$A$300:$A$399,'C Report Grouper'!$D13,'C Report'!H$300:H$399),SUMIF('C Report'!$A$100:$A$199,'C Report Grouper'!$D13,'C Report'!H$100:H$199)) -> 0 | K13: =IF($D$4="MAP+ADM Waivers",SUMIF('C Report'!$A$100:$A$199,'C Report Grouper'!$D13,'C Report'!I$100:I$199)+SUMIF('C Report'!$A$300:$A$399,'C Report Grouper'!$D13,'C Report'!I$300:I$399),SUMIF('C Report'!$A$100:$A$199,'C Report Grouper'!$D13,'C Report'!I$100:I$199)) -> 0 | L13: =IF($D$4="MAP+ADM Waivers",SUMIF('C Report'!$A$100:$A$199,'C Report Grouper'!$D13,'C Report'!J$100:J$199)+SUMIF('C Report'!$A$300:$A$399,'C Report Grouper'!$D13,'C Report'!J$300:J$399),SUMIF('C Report'!$A$100:$A$199,'C Report Grouper'!$D13,'C Report'!J$100:J$199)) -> 0 | M13: =IF($D$4="MAP+ADM Waivers",SUMIF('C Report'!$A$100:$A$199,'C Report Grouper'!$D13,'C Report'!K$100:K$199)+SUMIF('C Report'!$A$300:$A$399,'C Report Grouper'!$D13,'C Report'!K$300:K$399),SUMIF('C Report'!$A$100:$A$199,'C Report Grouper'!$D13,'C Report'!K$100:K$199)) -> 0 | N13: =IF($D$4="MAP+ADM Waivers",SUMIF('C Report'!$A$100:$A$199,'C Report Grouper'!$D13,'C Report'!L$100:L$199)+SUMIF('C Report'!$A$300:$A$399,'C Report Grouper'!$D13,'C Report'!L$300:L$399),SUMIF('C Report'!$A$100:$A$199,'C Report Grouper'!$D13,'C Report'!L$100:L$199)) -> 0 | O13: =IF($D$4="MAP+ADM Waivers",SUMIF('C Report'!$A$100:$A$199,'C Report Grouper'!$D13,'C Report'!M$100:M$199)+SUMIF('C Report'!$A$300:$A$399,'C Report Grouper'!$D13,'C Report'!M$300:M$399),SUMIF('C Report'!$A$100:$A$199,'C Report Grouper'!$D13,'C Report'!M$100:M$199)) -> 0 | P13: =IF($D$4="MAP+ADM Waivers",SUMIF('C Report'!$A$100:$A$199,'C Report Grouper'!$D13,'C Report'!N$100:N$199)+SUMIF('C Report'!$A$300:$A$399,'C Report Grouper'!$D13,'C Report'!N$300:N$399),SUMIF('C Report'!$A$100:$A$199,'C Report Grouper'!$D13,'C Report'!N$100:N$199)) -> 0 | Q13: =IF($D$4="MAP+ADM Waivers",SUMIF('C Report'!$A$100:$A$199,'C Report Grouper'!$D13,'C Report'!O$100:O$199)+SUMIF('C Report'!$A$300:$A$399,'C Report Grouper'!$D13,'C Report'!O$300:O$399),SUMIF('C Report'!$A$100:$A$199,'C Report Grouper'!$D13,'C Report'!O$100:O$199)) -> 0 | R13: =IF($D$4="MAP+ADM Waivers",SUMIF('C Report'!$A$100:$A$199,'C Report Grouper'!$D13,'C Report'!P$100:P$199)+SUMIF('C Report'!$A$300:$A$399,'C Report Grouper'!$D13,'C Report'!P$300:P$399),SUMIF('C Report'!$A$100:$A$199,'C Report Grouper'!$D13,'C Report'!P$100:P$199)) -> 0 | S13: =IF($D$4="MAP+ADM Waivers",SUMIF('C Report'!$A$100:$A$199,'C Report Grouper'!$D13,'C Report'!Q$100:Q$199)+SUMIF('C Report'!$A$300:$A$399,'C Report Grouper'!$D13,'C Report'!Q$300:Q$399),SUMIF('C Report'!$A$100:$A$199,'C Report Grouper'!$D13,'C Report'!Q$100:Q$199)) -> 0 | T13: =IF($D$4="MAP+ADM Waivers",SUMIF('C Report'!$A$100:$A$199,'C Report Grouper'!$D13,'C Report'!R$100:R$199)+SUMIF('C Report'!$A$300:$A$399,'C Report Grouper'!$D13,'C Report'!R$300:R$399),SUMIF('C Report'!$A$100:$A$199,'C Report Grouper'!$D13,'C Report'!R$100:R$199)) -> 0 | U13: =IF($D$4="MAP+ADM Waivers",SUMIF('C Report'!$A$100:$A$199,'C Report Grouper'!$D13,'C Report'!S$100:S$199)+SUMIF('C Report'!$A$300:$A$399,'C Report Grouper'!$D13,'C Report'!S$300:S$399),SUMIF('C Report'!$A$100:$A$199,'C Report Grouper'!$D13,'C Report'!S$100:S$199)) -> 0 | V13: =IF($D$4="MAP+ADM Waivers",SUMIF('C Report'!$A$100:$A$199,'C Report Grouper'!$D13,'C Report'!T$100:T$199)+SUMIF('C Report'!$A$300:$A$399,'C Report Grouper'!$D13,'C Report'!T$300:T$399),SUMIF('C Report'!$A$100:$A$199,'C Report Grouper'!$D13,'C Report'!T$100:T$199)) -> 0 | W13: =IF($D$4="MAP+ADM Waivers",SUMIF('C Report'!$A$100:$A$199,'C Report Grouper'!$D13,'C Report'!U$100:U$199)+SUMIF('C Report'!$A$300:$A$399,'C Report Grouper'!$D13,'C Report'!U$300:U$399),SUMIF('C Report'!$A$100:$A$199,'C Report Grouper'!$D13,'C Report'!U$100:U$199)) -> 0 | X13: =IF($D$4="MAP+ADM Waivers",SUMIF('C Report'!$A$100:$A$199,'C Report Grouper'!$D13,'C Report'!V$100:V$199)+SUMIF('C Report'!$A$300:$A$399,'C Report Grouper'!$D13,'C Report'!V$300:V$399),SUMIF('C Report'!$A$100:$A$199,'C Report Grouper'!$D13,'C Report'!V$100:V$199)) -> 0 | Y13: =IF($D$4="MAP+ADM Waivers",SUMIF('C Report'!$A$100:$A$199,'C Report Grouper'!$D13,'C Report'!W$100:W$199)+SUMIF('C Report'!$A$300:$A$399,'C Report Grouper'!$D13,'C Report'!W$300:W$399),SUMIF('C Report'!$A$100:$A$199,'C Report Grouper'!$D13,'C Report'!W$100:W$199)) -> 0 | Z13: =IF($D$4="MAP+ADM Waivers",SUMIF('C Report'!$A$100:$A$199,'C Report Grouper'!$D13,'C Report'!X$100:X$199)+SUMIF('C Report'!$A$300:$A$399,'C Report Grouper'!$D13,'C Report'!X$300:X$399),SUMIF('C Report'!$A$100:$A$199,'C Report Grouper'!$D13,'C Report'!X$100:X$199)) -> 0 | AA13: =IF($D$4="MAP+ADM Waivers",SUMIF('C Report'!$A$100:$A$199,'C Report Grouper'!$D13,'C Report'!Y$100:Y$199)+SUMIF('C Report'!$A$300:$A$399,'C Report Grouper'!$D13,'C Report'!Y$300:Y$399),SUMIF('C Report'!$A$100:$A$199,'C Report Grouper'!$D13,'C Report'!Y$100:Y$199)) -> 0 | AB13: =IF($D$4="MAP+ADM Waivers",SUMIF('C Report'!$A$100:$A$199,'C Report Grouper'!$D13,'C Report'!Z$100:Z$199)+SUMIF('C Report'!$A$300:$A$399,'C Report Grouper'!$D13,'C Report'!Z$300:Z$399),SUMIF('C Report'!$A$100:$A$199,'C Report Grouper'!$D13,'C Report'!Z$100:Z$199)) -> 0 | AC13: =IF($D$4="MAP+ADM Waivers",SUMIF('C Report'!$A$100:$A$199,'C Report Grouper'!$D13,'C Report'!AA$100:AA$199)+SUMIF('C Report'!$A$300:$A$399,'C Report Grouper'!$D13,'C Report'!AA$300:AA$399),SUMIF('C Report'!$A$100:$A$199,'C Report Grouper'!$D13,'C Report'!AA$100:AA$199)) -> 0 | AD13: =IF($D$4="MAP+ADM Waivers",SUMIF('C Report'!$A$100:$A$199,'C Report Grouper'!$D13,'C Report'!AB$100:AB$199)+SUMIF('C Report'!$A$300:$A$399,'C Report Grouper'!$D13,'C Report'!AB$300:AB$399),SUMIF('C Report'!$A$100:$A$199,'C Report Grouper'!$D13,'C Report'!AB$100:AB$199)) -> 0 | AE13: =IF($D$4="MAP+ADM Waivers",SUMIF('C Report'!$A$100:$A$199,'C Report Grouper'!$D13,'C Report'!AC$100:AC$199)+SUMIF('C Report'!$A$300:$A$399,'C Report Grouper'!$D13,'C Report'!AC$300:AC$399),SUMIF('C Report'!$A$100:$A$199,'C Report Grouper'!$D13,'C Report'!AC$100:AC$199)) -> 0 | AF13: =IF($D$4="MAP+ADM Waivers",SUMIF('C Report'!$A$100:$A$199,'C Report Grouper'!$D13,'C Report'!AD$100:AD$199)+SUMIF('C Report'!$A$300:$A$399,'C Report Grouper'!$D13,'C Report'!AD$300:AD$399),SUMIF('C Report'!$A$100:$A$199,'C Report Grouper'!$D13,'C Report'!AD$100:AD$199)) -> 0 | AG13: =IF($D$4="MAP+ADM Waivers",SUMIF('C Report'!$A$100:$A$199,'C Report Grouper'!$D13,'C Report'!AE$100:AE$199)+SUMIF('C Report'!$A$300:$A$399,'C Report Grouper'!$D13,'C Report'!AE$300:AE$399),SUMIF('C Report'!$A$100:$A$199,'C Report Grouper'!$D13,'C Report'!AE$100:AE$199)) -> 0 | AH13: =IF($D$4="MAP+ADM Waivers",SUMIF('C Report'!$A$100:$A$199,'C Report Grouper'!$D13,'C Report'!AF$100:AF$199)+SUMIF('C Report'!$A$300:$A$399,'C Report Grouper'!$D13,'C Report'!AF$300:AF$399),SUMIF('C Report'!$A$100:$A$199,'C Report Grouper'!$D13,'C Report'!AF$100:AF$199)) -> 0
B14: =IFERROR(VLOOKUP(C14,'MEG Def'!$A$7:$B$12,2),"") ->  | E14: =IF($D$4="MAP+ADM Waivers",SUMIF('C Report'!$A$100:$A$199,'C Report Grouper'!$D14,'C Report'!C$100:C$199)+SUMIF('C Report'!$A$300:$A$399,'C Report Grouper'!$D14,'C Report'!C$300:C$399),SUMIF('C Report'!$A$100:$A$199,'C Report Grouper'!$D14,'C Report'!C$100:C$199)) -> 0 | F14: =IF($D$4="MAP+ADM Waivers",SUMIF('C Report'!$A$100:$A$199,'C Report Grouper'!$D14,'C Report'!D$100:D$199)+SUMIF('C Report'!$A$300:$A$399,'C Report Grouper'!$D14,'C Report'!D$300:D$399),SUMIF('C Report'!$A$100:$A$199,'C Report Grouper'!$D14,'C Report'!D$100:D$199)) -> 0 | G14: =IF($D$4="MAP+ADM Waivers",SUMIF('C Report'!$A$100:$A$199,'C Report Grouper'!$D14,'C Report'!E$100:E$199)+SUMIF('C Report'!$A$300:$A$399,'C Report Grouper'!$D14,'C Report'!E$300:E$399),SUMIF('C Report'!$A$100:$A$199,'C Report Grouper'!$D14,'C Report'!E$100:E$199)) -> 0 | H14: =IF($D$4="MAP+ADM Waivers",SUMIF('C Report'!$A$100:$A$199,'C Report Grouper'!$D14,'C Report'!F$100:F$199)+SUMIF('C Report'!$A$300:$A$399,'C Report Grouper'!$D14,'C Report'!F$300:F$399),SUMIF('C Report'!$A$100:$A$199,'C Report Grouper'!$D14,'C Report'!F$100:F$199)) -> 0 | I14: =IF($D$4="MAP+ADM Waivers",SUMIF('C Report'!$A$100:$A$199,'C Report Grouper'!$D14,'C Report'!G$100:G$199)+SUMIF('C Report'!$A$300:$A$399,'C Report Grouper'!$D14,'C Report'!G$300:G$399),SUMIF('C Report'!$A$100:$A$199,'C Report Grouper'!$D14,'C Report'!G$100:G$199)) -> 0 | J14: =IF($D$4="MAP+ADM Waivers",SUMIF('C Report'!$A$100:$A$199,'C Report Grouper'!$D14,'C Report'!H$100:H$199)+SUMIF('C Report'!$A$300:$A$399,'C Report Grouper'!$D14,'C Report'!H$300:H$399),SUMIF('C Report'!$A$100:$A$199,'C Report Grouper'!$D14,'C Report'!H$100:H$199)) -> 0 | K14: =IF($D$4="MAP+ADM Waivers",SUMIF('C Report'!$A$100:$A$199,'C Report Grouper'!$D14,'C Report'!I$100:I$199)+SUMIF('C Report'!$A$300:$A$399,'C Report Grouper'!$D14,'C Report'!I$300:I$399),SUMIF('C Report'!$A$100:$A$199,'C Report Grouper'!$D14,'C Report'!I$100:I$199)) -> 0 | L14: =IF($D$4="MAP+ADM Waivers",SUMIF('C Report'!$A$100:$A$199,'C Report Grouper'!$D14,'C Report'!J$100:J$199)+SUMIF('C Report'!$A$300:$A$399,'C Report Grouper'!$D14,'C Report'!J$300:J$399),SUMIF('C Report'!$A$100:$A$199,'C Report Grouper'!$D14,'C Report'!J$100:J$199)) -> 0 | M14: =IF($D$4="MAP+ADM Waivers",SUMIF('C Report'!$A$100:$A$199,'C Report Grouper'!$D14,'C Report'!K$100:K$199)+SUMIF('C Report'!$A$300:$A$399,'C Report Grouper'!$D14,'C Report'!K$300:K$399),SUMIF('C Report'!$A$100:$A$199,'C Report Grouper'!$D14,'C Report'!K$100:K$199)) -> 0 | N14: =IF($D$4="MAP+ADM Waivers",SUMIF('C Report'!$A$100:$A$199,'C Report Grouper'!$D14,'C Report'!L$100:L$199)+SUMIF('C Report'!$A$300:$A$399,'C Report Grouper'!$D14,'C Report'!L$300:L$399),SUMIF('C Report'!$A$100:$A$199,'C Report Grouper'!$D14,'C Report'!L$100:L$199)) -> 0 | O14: =IF($D$4="MAP+ADM Waivers",SUMIF('C Report'!$A$100:$A$199,'C Report Grouper'!$D14,'C Report'!M$100:M$199)+SUMIF('C Report'!$A$300:$A$399,'C Report Grouper'!$D14,'C Report'!M$300:M$399),SUMIF('C Report'!$A$100:$A$199,'C Report Grouper'!$D14,'C Report'!M$100:M$199)) -> 0 | P14: =IF($D$4="MAP+ADM Waivers",SUMIF('C Report'!$A$100:$A$199,'C Report Grouper'!$D14,'C Report'!N$100:N$199)+SUMIF('C Report'!$A$300:$A$399,'C Report Grouper'!$D14,'C Report'!N$300:N$399),SUMIF('C Report'!$A$100:$A$199,'C Report Grouper'!$D14,'C Report'!N$100:N$199)) -> 0 | Q14: =IF($D$4="MAP+ADM Waivers",SUMIF('C Report'!$A$100:$A$199,'C Report Grouper'!$D14,'C Report'!O$100:O$199)+SUMIF('C Report'!$A$300:$A$399,'C Report Grouper'!$D14,'C Report'!O$300:O$399),SUMIF('C Report'!$A$100:$A$199,'C Report Grouper'!$D14,'C Report'!O$100:O$199)) -> 0 | R14: =IF($D$4="MAP+ADM Waivers",SUMIF('C Report'!$A$100:$A$199,'C Report Grouper'!$D14,'C Report'!P$100:P$199)+SUMIF('C Report'!$A$300:$A$399,'C Report Grouper'!$D14,'C Report'!P$300:P$399),SUMIF('C Report'!$A$100:$A$199,'C Report Grouper'!$D14,'C Report'!P$100:P$199)) -> 0 | S14: =IF($D$4="MAP+ADM Waivers",SUMIF('C Report'!$A$100:$A$199,'C Report Grouper'!$D14,'C Report'!Q$100:Q$199)+SUMIF('C Report'!$A$300:$A$399,'C Report Grouper'!$D14,'C Report'!Q$300:Q$399),SUMIF('C Report'!$A$100:$A$199,'C Report Grouper'!$D14,'C Report'!Q$100:Q$199)) -> 0 | T14: =IF($D$4="MAP+ADM Waivers",SUMIF('C Report'!$A$100:$A$199,'C Report Grouper'!$D14,'C Report'!R$100:R$199)+SUMIF('C Report'!$A$300:$A$399,'C Report Grouper'!$D14,'C Report'!R$300:R$399),SUMIF('C Report'!$A$100:$A$199,'C Report Grouper'!$D14,'C Report'!R$100:R$199)) -> 0 | U14: =IF($D$4="MAP+ADM Waivers",SUMIF('C Report'!$A$100:$A$199,'C Report Grouper'!$D14,'C Report'!S$100:S$199)+SUMIF('C Report'!$A$300:$A$399,'C Report Grouper'!$D14,'C Report'!S$300:S$399),SUMIF('C Report'!$A$100:$A$199,'C Report Grouper'!$D14,'C Report'!S$100:S$199)) -> 0 | V14: =IF($D$4="MAP+ADM Waivers",SUMIF('C Report'!$A$100:$A$199,'C Report Grouper'!$D14,'C Report'!T$100:T$199)+SUMIF('C Report'!$A$300:$A$399,'C Report Grouper'!$D14,'C Report'!T$300:T$399),SUMIF('C Report'!$A$100:$A$199,'C Report Grouper'!$D14,'C Report'!T$100:T$199)) -> 0 | W14: =IF($D$4="MAP+ADM Waivers",SUMIF('C Report'!$A$100:$A$199,'C Report Grouper'!$D14,'C Report'!U$100:U$199)+SUMIF('C Report'!$A$300:$A$399,'C Report Grouper'!$D14,'C Report'!U$300:U$399),SUMIF('C Report'!$A$100:$A$199,'C Report Grouper'!$D14,'C Report'!U$100:U$199)) -> 0 | X14: =IF($D$4="MAP+ADM Waivers",SUMIF('C Report'!$A$100:$A$199,'C Report Grouper'!$D14,'C Report'!V$100:V$199)+SUMIF('C Report'!$A$300:$A$399,'C Report Grouper'!$D14,'C Report'!V$300:V$399),SUMIF('C Report'!$A$100:$A$199,'C Report Grouper'!$D14,'C Report'!V$100:V$199)) -> 0 | Y14: =IF($D$4="MAP+ADM Waivers",SUMIF('C Report'!$A$100:$A$199,'C Report Grouper'!$D14,'C Report'!W$100:W$199)+SUMIF('C Report'!$A$300:$A$399,'C Report Grouper'!$D14,'C Report'!W$300:W$399),SUMIF('C Report'!$A$100:$A$199,'C Report Grouper'!$D14,'C Report'!W$100:W$199)) -> 0 | Z14: =IF($D$4="MAP+ADM Waivers",SUMIF('C Report'!$A$100:$A$199,'C Report Grouper'!$D14,'C Report'!X$100:X$199)+SUMIF('C Report'!$A$300:$A$399,'C Report Grouper'!$D14,'C Report'!X$300:X$399),SUMIF('C Report'!$A$100:$A$199,'C Report Grouper'!$D14,'C Report'!X$100:X$199)) -> 0 | AA14: =IF($D$4="MAP+ADM Waivers",SUMIF('C Report'!$A$100:$A$199,'C Report Grouper'!$D14,'C Report'!Y$100:Y$199)+SUMIF('C Report'!$A$300:$A$399,'C Report Grouper'!$D14,'C Report'!Y$300:Y$399),SUMIF('C Report'!$A$100:$A$199,'C Report Grouper'!$D14,'C Report'!Y$100:Y$199)) -> 0 | AB14: =IF($D$4="MAP+ADM Waivers",SUMIF('C Report'!$A$100:$A$199,'C Report Grouper'!$D14,'C Report'!Z$100:Z$199)+SUMIF('C Report'!$A$300:$A$399,'C Report Grouper'!$D14,'C Report'!Z$300:Z$399),SUMIF('C Report'!$A$100:$A$199,'C Report Grouper'!$D14,'C Report'!Z$100:Z$199)) -> 0 | AC14: =IF($D$4="MAP+ADM Waivers",SUMIF('C Report'!$A$100:$A$199,'C Report Grouper'!$D14,'C Report'!AA$100:AA$199)+SUMIF('C Report'!$A$300:$A$399,'C Report Grouper'!$D14,'C Report'!AA$300:AA$399),SUMIF('C Report'!$A$100:$A$199,'C Report Grouper'!$D14,'C Report'!AA$100:AA$199)) -> 0 | AD14: =IF($D$4="MAP+ADM Waivers",SUMIF('C Report'!$A$100:$A$199,'C Report Grouper'!$D14,'C Report'!AB$100:AB$199)+SUMIF('C Report'!$A$300:$A$399,'C Report Grouper'!$D14,'C Report'!AB$300:AB$399),SUMIF('C Report'!$A$100:$A$199,'C Report Grouper'!$D14,'C Report'!AB$100:AB$199)) -> 0 | AE14: =IF($D$4="MAP+ADM Waivers",SUMIF('C Report'!$A$100:$A$199,'C Report Grouper'!$D14,'C Report'!AC$100:AC$199)+SUMIF('C Report'!$A$300:$A$399,'C Report Grouper'!$D14,'C Report'!AC$300:AC$399),SUMIF('C Report'!$A$100:$A$199,'C Report Grouper'!$D14,'C Report'!AC$100:AC$199)) -> 0 | AF14: =IF($D$4="MAP+ADM Waivers",SUMIF('C Report'!$A$100:$A$199,'C Report Grouper'!$D14,'C Report'!AD$100:AD$199)+SUMIF('C Report'!$A$300:$A$399,'C Report Grouper'!$D14,'C Report'!AD$300:AD$399),SUMIF('C Report'!$A$100:$A$199,'C Report Grouper'!$D14,'C Report'!AD$100:AD$199)) -> 0 | AG14: =IF($D$4="MAP+ADM Waivers",SUMIF('C Report'!$A$100:$A$199,'C Report Grouper'!$D14,'C Report'!AE$100:AE$199)+SUMIF('C Report'!$A$300:$A$399,'C Report Grouper'!$D14,'C Report'!AE$300:AE$399),SUMIF('C Report'!$A$100:$A$199,'C Report Grouper'!$D14,'C Report'!AE$100:AE$199)) -> 0 | AH14: =IF($D$4="MAP+ADM Waivers",SUMIF('C Report'!$A$100:$A$199,'C Report Grouper'!$D14,'C Report'!AF$100:AF$199)+SUMIF('C Report'!$A$300:$A$399,'C Report Grouper'!$D14,'C Report'!AF$300:AF$399),SUMIF('C Report'!$A$100:$A$199,'C Report Grouper'!$D14,'C Report'!AF$100:AF$199)) -> 0
E15: =IF($D$4="MAP+ADM Waivers",SUMIF('C Report'!$A$100:$A$199,'C Report Grouper'!$D15,'C Report'!C$100:C$199)+SUMIF('C Report'!$A$300:$A$399,'C Report Grouper'!$D15,'C Report'!C$300:C$399),SUMIF('C Report'!$A$100:$A$199,'C Report Grouper'!$D15,'C Report'!C$100:C$199)) -> 0 | F15: =IF($D$4="MAP+ADM Waivers",SUMIF('C Report'!$A$100:$A$199,'C Report Grouper'!$D15,'C Report'!D$100:D$199)+SUMIF('C Report'!$A$300:$A$399,'C Report Grouper'!$D15,'C Report'!D$300:D$399),SUMIF('C Report'!$A$100:$A$199,'C Report Grouper'!$D15,'C Report'!D$100:D$199)) -> 0 | G15: =IF($D$4="MAP+ADM Waivers",SUMIF('C Report'!$A$100:$A$199,'C Report Grouper'!$D15,'C Report'!E$100:E$199)+SUMIF('C Report'!$A$300:$A$399,'C Report Grouper'!$D15,'C Report'!E$300:E$399),SUMIF('C Report'!$A$100:$A$199,'C Report Grouper'!$D15,'C Report'!E$100:E$199)) -> 0 | H15: =IF($D$4="MAP+ADM Waivers",SUMIF('C Report'!$A$100:$A$199,'C Report Grouper'!$D15,'C Report'!F$100:F$199)+SUMIF('C Report'!$A$300:$A$399,'C Report Grouper'!$D15,'C Report'!F$300:F$399),SUMIF('C Report'!$A$100:$A$199,'C Report Grouper'!$D15,'C Report'!F$100:F$199)) -> 0 | I15: =IF($D$4="MAP+ADM Waivers",SUMIF('C Report'!$A$100:$A$199,'C Report Grouper'!$D15,'C Report'!G$100:G$199)+SUMIF('C Report'!$A$300:$A$399,'C Report Grouper'!$D15,'C Report'!G$300:G$399),SUMIF('C Report'!$A$100:$A$199,'C Report Grouper'!$D15,'C Report'!G$100:G$199)) -> 0 | J15: =IF($D$4="MAP+ADM Waivers",SUMIF('C Report'!$A$100:$A$199,'C Report Grouper'!$D15,'C Report'!H$100:H$199)+SUMIF('C Report'!$A$300:$A$399,'C Report Grouper'!$D15,'C Report'!H$300:H$399),SUMIF('C Report'!$A$100:$A$199,'C Report Grouper'!$D15,'C Report'!H$100:H$199)) -> 0 | K15: =IF($D$4="MAP+ADM Waivers",SUMIF('C Report'!$A$100:$A$199,'C Report Grouper'!$D15,'C Report'!I$100:I$199)+SUMIF('C Report'!$A$300:$A$399,'C Report Grouper'!$D15,'C Report'!I$300:I$399),SUMIF('C Report'!$A$100:$A$199,'C Report Grouper'!$D15,'C Report'!I$100:I$199)) -> 0 | L15: =IF($D$4="MAP+ADM Waivers",SUMIF('C Report'!$A$100:$A$199,'C Report Grouper'!$D15,'C Report'!J$100:J$199)+SUMIF('C Report'!$A$300:$A$399,'C Report Grouper'!$D15,'C Report'!J$300:J$399),SUMIF('C Report'!$A$100:$A$199,'C Report Grouper'!$D15,'C Report'!J$100:J$199)) -> 0 | M15: =IF($D$4="MAP+ADM Waivers",SUMIF('C Report'!$A$100:$A$199,'C Report Grouper'!$D15,'C Report'!K$100:K$199)+SUMIF('C Report'!$A$300:$A$399,'C Report Grouper'!$D15,'C Report'!K$300:K$399),SUMIF('C Report'!$A$100:$A$199,'C Report Grouper'!$D15,'C Report'!K$100:K$199)) -> 0 | N15: =IF($D$4="MAP+ADM Waivers",SUMIF('C Report'!$A$100:$A$199,'C Report Grouper'!$D15,'C Report'!L$100:L$199)+SUMIF('C Report'!$A$300:$A$399,'C Report Grouper'!$D15,'C Report'!L$300:L$399),SUMIF('C Report'!$A$100:$A$199,'C Report Grouper'!$D15,'C Report'!L$100:L$199)) -> 0 | O15: =IF($D$4="MAP+ADM Waivers",SUMIF('C Report'!$A$100:$A$199,'C Report Grouper'!$D15,'C Report'!M$100:M$199)+SUMIF('C Report'!$A$300:$A$399,'C Report Grouper'!$D15,'C Report'!M$300:M$399),SUMIF('C Report'!$A$100:$A$199,'C Report Grouper'!$D15,'C Report'!M$100:M$199)) -> 0 | P15: =IF($D$4="MAP+ADM Waivers",SUMIF('C Report'!$A$100:$A$199,'C Report Grouper'!$D15,'C Report'!N$100:N$199)+SUMIF('C Report'!$A$300:$A$399,'C Report Grouper'!$D15,'C Report'!N$300:N$399),SUMIF('C Report'!$A$100:$A$199,'C Report Grouper'!$D15,'C Report'!N$100:N$199)) -> 0 | Q15: =IF($D$4="MAP+ADM Waivers",SUMIF('C Report'!$A$100:$A$199,'C Report Grouper'!$D15,'C Report'!O$100:O$199)+SUMIF('C Report'!$A$300:$A$399,'C Report Grouper'!$D15,'C Report'!O$300:O$399),SUMIF('C Report'!$A$100:$A$199,'C Report Grouper'!$D15,'C Report'!O$100:O$199)) -> 0 | R15: =IF($D$4="MAP+ADM Waivers",SUMIF('C Report'!$A$100:$A$199,'C Report Grouper'!$D15,'C Report'!P$100:P$199)+SUMIF('C Report'!$A$300:$A$399,'C Report Grouper'!$D15,'C Report'!P$300:P$399),SUMIF('C Report'!$A$100:$A$199,'C Report Grouper'!$D15,'C Report'!P$100:P$199)) -> 0 | S15: =IF($D$4="MAP+ADM Waivers",SUMIF('C Report'!$A$100:$A$199,'C Report Grouper'!$D15,'C Report'!Q$100:Q$199)+SUMIF('C Report'!$A$300:$A$399,'C Report Grouper'!$D15,'C Report'!Q$300:Q$399),SUMIF('C Report'!$A$100:$A$199,'C Report Grouper'!$D15,'C Report'!Q$100:Q$199)) -> 0 | T15: =IF($D$4="MAP+ADM Waivers",SUMIF('C Report'!$A$100:$A$199,'C Report Grouper'!$D15,'C Report'!R$100:R$199)+SUMIF('C Report'!$A$300:$A$399,'C Report Grouper'!$D15,'C Report'!R$300:R$399),SUMIF('C Report'!$A$100:$A$199,'C Report Grouper'!$D15,'C Report'!R$100:R$199)) -> 0 | U15: =IF($D$4="MAP+ADM Waivers",SUMIF('C Report'!$A$100:$A$199,'C Report Grouper'!$D15,'C Report'!S$100:S$199)+SUMIF('C Report'!$A$300:$A$399,'C Report Grouper'!$D15,'C Report'!S$300:S$399),SUMIF('C Report'!$A$100:$A$199,'C Report Grouper'!$D15,'C Report'!S$100:S$199)) -> 0 | V15: =IF($D$4="MAP+ADM Waivers",SUMIF('C Report'!$A$100:$A$199,'C Report Grouper'!$D15,'C Report'!T$100:T$199)+SUMIF('C Report'!$A$300:$A$399,'C Report Grouper'!$D15,'C Report'!T$300:T$399),SUMIF('C Report'!$A$100:$A$199,'C Report Grouper'!$D15,'C Report'!T$100:T$199)) -> 0 | W15: =IF($D$4="MAP+ADM Waivers",SUMIF('C Report'!$A$100:$A$199,'C Report Grouper'!$D15,'C Report'!U$100:U$199)+SUMIF('C Report'!$A$300:$A$399,'C Report Grouper'!$D15,'C Report'!U$300:U$399),SUMIF('C Report'!$A$100:$A$199,'C Report Grouper'!$D15,'C Report'!U$100:U$199)) -> 0 | X15: =IF($D$4="MAP+ADM Waivers",SUMIF('C Report'!$A$100:$A$199,'C Report Grouper'!$D15,'C Report'!V$100:V$199)+SUMIF('C Report'!$A$300:$A$399,'C Report Grouper'!$D15,'C Report'!V$300:V$399),SUMIF('C Report'!$A$100:$A$199,'C Report Grouper'!$D15,'C Report'!V$100:V$199)) -> 0 | Y15: =IF($D$4="MAP+ADM Waivers",SUMIF('C Report'!$A$100:$A$199,'C Report Grouper'!$D15,'C Report'!W$100:W$199)+SUMIF('C Report'!$A$300:$A$399,'C Report Grouper'!$D15,'C Report'!W$300:W$399),SUMIF('C Report'!$A$100:$A$199,'C Report Grouper'!$D15,'C Report'!W$100:W$199)) -> 0 | Z15: =IF($D$4="MAP+ADM Waivers",SUMIF('C Report'!$A$100:$A$199,'C Report Grouper'!$D15,'C Report'!X$100:X$199)+SUMIF('C Report'!$A$300:$A$399,'C Report Grouper'!$D15,'C Report'!X$300:X$399),SUMIF('C Report'!$A$100:$A$199,'C Report Grouper'!$D15,'C Report'!X$100:X$199)) -> 0 | AA15: =IF($D$4="MAP+ADM Waivers",SUMIF('C Report'!$A$100:$A$199,'C Report Grouper'!$D15,'C Report'!Y$100:Y$199)+SUMIF('C Report'!$A$300:$A$399,'C Report Grouper'!$D15,'C Report'!Y$300:Y$399),SUMIF('C Report'!$A$100:$A$199,'C Report Grouper'!$D15,'C Report'!Y$100:Y$199)) -> 0 | AB15: =IF($D$4="MAP+ADM Waivers",SUMIF('C Report'!$A$100:$A$199,'C Report Grouper'!$D15,'C Report'!Z$100:Z$199)+SUMIF('C Report'!$A$300:$A$399,'C Report Grouper'!$D15,'C Report'!Z$300:Z$399),SUMIF('C Report'!$A$100:$A$199,'C Report Grouper'!$D15,'C Report'!Z$100:Z$199)) -> 0 | AC15: =IF($D$4="MAP+ADM Waivers",SUMIF('C Report'!$A$100:$A$199,'C Report Grouper'!$D15,'C Report'!AA$100:AA$199)+SUMIF('C Report'!$A$300:$A$399,'C Report Grouper'!$D15,'C Report'!AA$300:AA$399),SUMIF('C Report'!$A$100:$A$199,'C Report Grouper'!$D15,'C Report'!AA$100:AA$199)) -> 0 | AD15: =IF($D$4="MAP+ADM Waivers",SUMIF('C Report'!$A$100:$A$199,'C Report Grouper'!$D15,'C Report'!AB$100:AB$199)+SUMIF('C Report'!$A$300:$A$399,'C Report Grouper'!$D15,'C Report'!AB$300:AB$399),SUMIF('C Report'!$A$100:$A$199,'C Report Grouper'!$D15,'C Report'!AB$100:AB$199)) -> 0 | AE15: =IF($D$4="MAP+ADM Waivers",SUMIF('C Report'!$A$100:$A$199,'C Report Grouper'!$D15,'C Report'!AC$100:AC$199)+SUMIF('C Report'!$A$300:$A$399,'C Report Grouper'!$D15,'C Report'!AC$300:AC$399),SUMIF('C Report'!$A$100:$A$199,'C Report Grouper'!$D15,'C Report'!AC$100:AC$199)) -> 0 | AF15: =IF($D$4="MAP+ADM Waivers",SUMIF('C Report'!$A$100:$A$199,'C Report Grouper'!$D15,'C Report'!AD$100:AD$199)+SUMIF('C Report'!$A$300:$A$399,'C Report Grouper'!$D15,'C Report'!AD$300:AD$399),SUMIF('C Report'!$A$100:$A$199,'C Report Grouper'!$D15,'C Report'!AD$100:AD$199)) -> 0 | AG15: =IF($D$4="MAP+ADM Waivers",SUMIF('C Report'!$A$100:$A$199,'C Report Grouper'!$D15,'C Report'!AE$100:AE$199)+SUMIF('C Report'!$A$300:$A$399,'C Report Grouper'!$D15,'C Report'!AE$300:AE$399),SUMIF('C Report'!$A$100:$A$199,'C Report Grouper'!$D15,'C Report'!AE$100:AE$199)) -> 0 | AH15: =IF($D$4="MAP+ADM Waivers",SUMIF('C Report'!$A$100:$A$199,'C Report Grouper'!$D15,'C Report'!AF$100:AF$199)+SUMIF('C Report'!$A$300:$A$399,'C Report Grouper'!$D15,'C Report'!AF$300:AF$399),SUMIF('C Report'!$A$100:$A$199,'C Report Grouper'!$D15,'C Report'!AF$100:AF$199)) -> 0
B16: Medicaid Aggregate | E16: =IF($D$4="MAP+ADM Waivers",SUMIF('C Report'!$A$100:$A$199,'C Report Grouper'!$D16,'C Report'!C$100:C$199)+SUMIF('C Report'!$A$300:$A$399,'C Report Grouper'!$D16,'C Report'!C$300:C$399),SUMIF('C Report'!$A$100:$A$199,'C Report Grouper'!$D16,'C Report'!C$100:C$199)) -> 0 | F16: =IF($D$4="MAP+ADM Waivers",SUMIF('C Report'!$A$100:$A$199,'C Report Grouper'!$D16,'C Report'!D$100:D$199)+SUMIF('C Report'!$A$300:$A$399,'C Report Grouper'!$D16,'C Report'!D$300:D$399),SUMIF('C Report'!$A$100:$A$199,'C Report Grouper'!$D16,'C Report'!D$100:D$199)) -> 0 | G16: =IF($D$4="MAP+ADM Waivers",SUMIF('C Report'!$A$100:$A$199,'C Report Grouper'!$D16,'C Report'!E$100:E$199)+SUMIF('C Report'!$A$300:$A$399,'C Report Grouper'!$D16,'C Report'!E$300:E$399),SUMIF('C Report'!$A$100:$A$199,'C Report Grouper'!$D16,'C Report'!E$100:E$199)) -> 0 | H16: =IF($D$4="MAP+ADM Waivers",SUMIF('C Report'!$A$100:$A$199,'C Report Grouper'!$D16,'C Report'!F$100:F$199)+SUMIF('C Report'!$A$300:$A$399,'C Report Grouper'!$D16,'C Report'!F$300:F$399),SUMIF('C Report'!$A$100:$A$199,'C Report Grouper'!$D16,'C Report'!F$100:F$199)) -> 0 | I16: =IF($D$4="MAP+ADM Waivers",SUMIF('C Report'!$A$100:$A$199,'C Report Grouper'!$D16,'C Report'!G$100:G$199)+SUMIF('C Report'!$A$300:$A$399,'C Report Grouper'!$D16,'C Report'!G$300:G$399),SUMIF('C Report'!$A$100:$A$199,'C Report Grouper'!$D16,'C Report'!G$100:G$199)) -> 0 | J16: =IF($D$4="MAP+ADM Waivers",SUMIF('C Report'!$A$100:$A$199,'C Report Grouper'!$D16,'C Report'!H$100:H$199)+SUMIF('C Report'!$A$300:$A$399,'C Report Grouper'!$D16,'C Report'!H$300:H$399),SUMIF('C Report'!$A$100:$A$199,'C Report Grouper'!$D16,'C Report'!H$100:H$199)) -> 0 | K16: =IF($D$4="MAP+ADM Waivers",SUMIF('C Report'!$A$100:$A$199,'C Report Grouper'!$D16,'C Report'!I$100:I$199)+SUMIF('C Report'!$A$300:$A$399,'C Report Grouper'!$D16,'C Report'!I$300:I$399),SUMIF('C Report'!$A$100:$A$199,'C Report Grouper'!$D16,'C Report'!I$100:I$199)) -> 0 | L16: =IF($D$4="MAP+ADM Waivers",SUMIF('C Report'!$A$100:$A$199,'C Report Grouper'!$D16,'C Report'!J$100:J$199)+SUMIF('C Report'!$A$300:$A$399,'C Report Grouper'!$D16,'C Report'!J$300:J$399),SUMIF('C Report'!$A$100:$A$199,'C Report Grouper'!$D16,'C Report'!J$100:J$199)) -> 0 | M16: =IF($D$4="MAP+ADM Waivers",SUMIF('C Report'!$A$100:$A$199,'C Report Grouper'!$D16,'C Report'!K$100:K$199)+SUMIF('C Report'!$A$300:$A$399,'C Report Grouper'!$D16,'C Report'!K$300:K$399),SUMIF('C Report'!$A$100:$A$199,'C Report Grouper'!$D16,'C Report'!K$100:K$199)) -> 0 | N16: =IF($D$4="MAP+ADM Waivers",SUMIF('C Report'!$A$100:$A$199,'C Report Grouper'!$D16,'C Report'!L$100:L$199)+SUMIF('C Report'!$A$300:$A$399,'C Report Grouper'!$D16,'C Report'!L$300:L$399),SUMIF('C Report'!$A$100:$A$199,'C Report Grouper'!$D16,'C Report'!L$100:L$199)) -> 0 | O16: =IF($D$4="MAP+ADM Waivers",SUMIF('C Report'!$A$100:$A$199,'C Report Grouper'!$D16,'C Report'!M$100:M$199)+SUMIF('C Report'!$A$300:$A$399,'C Report Grouper'!$D16,'C Report'!M$300:M$399),SUMIF('C Report'!$A$100:$A$199,'C Report Grouper'!$D16,'C Report'!M$100:M$199)) -> 0 | P16: =IF($D$4="MAP+ADM Waivers",SUMIF('C Report'!$A$100:$A$199,'C Report Grouper'!$D16,'C Report'!N$100:N$199)+SUMIF('C Report'!$A$300:$A$399,'C Report Grouper'!$D16,'C Report'!N$300:N$399),SUMIF('C Report'!$A$100:$A$199,'C Report Grouper'!$D16,'C Report'!N$100:N$199)) -> 0 | Q16: =IF($D$4="MAP+ADM Waivers",SUMIF('C Report'!$A$100:$A$199,'C Report Grouper'!$D16,'C Report'!O$100:O$199)+SUMIF('C Report'!$A$300:$A$399,'C Report Grouper'!$D16,'C Report'!O$300:O$399),SUMIF('C Report'!$A$100:$A$199,'C Report Grouper'!$D16,'C Report'!O$100:O$199)) -> 0 | R16: =IF($D$4="MAP+ADM Waivers",SUMIF('C Report'!$A$100:$A$199,'C Report Grouper'!$D16,'C Report'!P$100:P$199)+SUMIF('C Report'!$A$300:$A$399,'C Report Grouper'!$D16,'C Report'!P$300:P$399),SUMIF('C Report'!$A$100:$A$199,'C Report Grouper'!$D16,'C Report'!P$100:P$199)) -> 0 | S16: =IF($D$4="MAP+ADM Waivers",SUMIF('C Report'!$A$100:$A$199,'C Report Grouper'!$D16,'C Report'!Q$100:Q$199)+SUMIF('C Report'!$A$300:$A$399,'C Report Grouper'!$D16,'C Report'!Q$300:Q$399),SUMIF('C Report'!$A$100:$A$199,'C Report Grouper'!$D16,'C Report'!Q$100:Q$199)) -> 0 | T16: =IF($D$4="MAP+ADM Waivers",SUMIF('C Report'!$A$100:$A$199,'C Report Grouper'!$D16,'C Report'!R$100:R$199)+SUMIF('C Report'!$A$300:$A$399,'C Report Grouper'!$D16,'C Report'!R$300:R$399),SUMIF('C Report'!$A$100:$A$199,'C Report Grouper'!$D16,'C Report'!R$100:R$199)) -> 0 | U16: =IF($D$4="MAP+ADM Waivers",SUMIF('C Report'!$A$100:$A$199,'C Report Grouper'!$D16,'C Report'!S$100:S$199)+SUMIF('C Report'!$A$300:$A$399,'C Report Grouper'!$D16,'C Report'!S$300:S$399),SUMIF('C Report'!$A$100:$A$199,'C Report Grouper'!$D16,'C Report'!S$100:S$199)) -> 0 | V16: =IF($D$4="MAP+ADM Waivers",SUMIF('C Report'!$A$100:$A$199,'C Report Grouper'!$D16,'C Report'!T$100:T$199)+SUMIF('C Report'!$A$300:$A$399,'C Report Grouper'!$D16,'C Report'!T$300:T$399),SUMIF('C Report'!$A$100:$A$199,'C Report Grouper'!$D16,'C Report'!T$100:T$199)) -> 0 | W16: =IF($D$4="MAP+ADM Waivers",SUMIF('C Report'!$A$100:$A$199,'C Report Grouper'!$D16,'C Report'!U$100:U$199)+SUMIF('C Report'!$A$300:$A$399,'C Report Grouper'!$D16,'C Report'!U$300:U$399),SUMIF('C Report'!$A$100:$A$199,'C Report Grouper'!$D16,'C Report'!U$100:U$199)) -> 0 | X16: =IF($D$4="MAP+ADM Waivers",SUMIF('C Report'!$A$100:$A$199,'C Report Grouper'!$D16,'C Report'!V$100:V$199)+SUMIF('C Report'!$A$300:$A$399,'C Report Grouper'!$D16,'C Report'!V$300:V$399),SUMIF('C Report'!$A$100:$A$199,'C Report Grouper'!$D16,'C Report'!V$100:V$199)) -> 0 | Y16: =IF($D$4="MAP+ADM Waivers",SUMIF('C Report'!$A$100:$A$199,'C Report Grouper'!$D16,'C Report'!W$100:W$199)+SUMIF('C Report'!$A$300:$A$399,'C Report Grouper'!$D16,'C Report'!W$300:W$399),SUMIF('C Report'!$A$100:$A$199,'C Report Grouper'!$D16,'C Report'!W$100:W$199)) -> 0 | Z16: =IF($D$4="MAP+ADM Waivers",SUMIF('C Report'!$A$100:$A$199,'C Report Grouper'!$D16,'C Report'!X$100:X$199)+SUMIF('C Report'!$A$300:$A$399,'C Report Grouper'!$D16,'C Report'!X$300:X$399),SUMIF('C Report'!$A$100:$A$199,'C Report Grouper'!$D16,'C Report'!X$100:X$199)) -> 0 | AA16: =IF($D$4="MAP+ADM Waivers",SUMIF('C Report'!$A$100:$A$199,'C Report Grouper'!$D16,'C Report'!Y$100:Y$199)+SUMIF('C Report'!$A$300:$A$399,'C Report Grouper'!$D16,'C Report'!Y$300:Y$399),SUMIF('C Report'!$A$100:$A$199,'C Report Grouper'!$D16,'C Report'!Y$100:Y$199)) -> 0 | AB16: =IF($D$4="MAP+ADM Waivers",SUMIF('C Report'!$A$100:$A$199,'C Report Grouper'!$D16,'C Report'!Z$100:Z$199)+SUMIF('C Report'!$A$300:$A$399,'C Report Grouper'!$D16,'C Report'!Z$300:Z$399),SUMIF('C Report'!$A$100:$A$199,'C Report Grouper'!$D16,'C Report'!Z$100:Z$199)) -> 0 | AC16: =IF($D$4="MAP+ADM Waivers",SUMIF('C Report'!$A$100:$A$199,'C Report Grouper'!$D16,'C Report'!AA$100:AA$199)+SUMIF('C Report'!$A$300:$A$399,'C Report Grouper'!$D16,'C Report'!AA$300:AA$399),SUMIF('C Report'!$A$100:$A$199,'C Report Grouper'!$D16,'C Report'!AA$100:AA$199)) -> 0 | AD16: =IF($D$4="MAP+ADM Waivers",SUMIF('C Report'!$A$100:$A$199,'C Report Grouper'!$D16,'C Report'!AB$100:AB$199)+SUMIF('C Report'!$A$300:$A$399,'C Report Grouper'!$D16,'C Report'!AB$300:AB$399),SUMIF('C Report'!$A$100:$A$199,'C Report Grouper'!$D16,'C Report'!AB$100:AB$199)) -> 0 | AE16: =IF($D$4="MAP+ADM Waivers",SUMIF('C Report'!$A$100:$A$199,'C Report Grouper'!$D16,'C Report'!AC$100:AC$199)+SUMIF('C Report'!$A$300:$A$399,'C Report Grouper'!$D16,'C Report'!AC$300:AC$399),SUMIF('C Report'!$A$100:$A$199,'C Report Grouper'!$D16,'C Report'!AC$100:AC$199)) -> 0 | AF16: =IF($D$4="MAP+ADM Waivers",SUMIF('C Report'!$A$100:$A$199,'C Report Grouper'!$D16,'C Report'!AD$100:AD$199)+SUMIF('C Report'!$A$300:$A$399,'C Report Grouper'!$D16,'C Report'!AD$300:AD$399),SUMIF('C Report'!$A$100:$A$199,'C Report Grouper'!$D16,'C Report'!AD$100:AD$199)) -> 0 | AG16: =IF($D$4="MAP+ADM Waivers",SUMIF('C Report'!$A$100:$A$199,'C Report Grouper'!$D16,'C Report'!AE$100:AE$199)+SUMIF('C Report'!$A$300:$A$399,'C Report Grouper'!$D16,'C Report'!AE$300:AE$399),SUMIF('C Report'!$A$100:$A$199,'C Report Grouper'!$D16,'C Report'!AE$100:AE$199)) -> 0 | AH16: =IF($D$4="MAP+ADM Waivers",SUMIF('C Report'!$A$100:$A$199,'C Report Grouper'!$D16,'C Report'!AF$100:AF$199)+SUMIF('C Report'!$A$300:$A$399,'C Report Grouper'!$D16,'C Report'!AF$300:AF$399),SUMIF('C Report'!$A$100:$A$199,'C Report Grouper'!$D16,'C Report'!AF$100:AF$199)) -> 0
B17: =IFERROR(VLOOKUP(C17,'MEG Def'!$A$21:$B$26,2),"") ->  | E17: =IF($D$4="MAP+ADM Waivers",SUMIF('C Report'!$A$100:$A$199,'C Report Grouper'!$D17,'C Report'!C$100:C$199)+SUMIF('C Report'!$A$300:$A$399,'C Report Grouper'!$D17,'C Report'!C$300:C$399),SUMIF('C Report'!$A$100:$A$199,'C Report Grouper'!$D17,'C Report'!C$100:C$199)) -> 0 | F17: =IF($D$4="MAP+ADM Waivers",SUMIF('C Report'!$A$100:$A$199,'C Report Grouper'!$D17,'C Report'!D$100:D$199)+SUMIF('C Report'!$A$300:$A$399,'C Report Grouper'!$D17,'C Report'!D$300:D$399),SUMIF('C Report'!$A$100:$A$199,'C Report Grouper'!$D17,'C Report'!D$100:D$199)) -> 0 | G17: =IF($D$4="MAP+ADM Waivers",SUMIF('C Report'!$A$100:$A$199,'C Report Grouper'!$D17,'C Report'!E$100:E$199)+SUMIF('C Report'!$A$300:$A$399,'C Report Grouper'!$D17,'C Report'!E$300:E$399),SUMIF('C Report'!$A$100:$A$199,'C Report Grouper'!$D17,'C Report'!E$100:E$199)) -> 0 | H17: =IF($D$4="MAP+ADM Waivers",SUMIF('C Report'!$A$100:$A$199,'C Report Grouper'!$D17,'C Report'!F$100:F$199)+SUMIF('C Report'!$A$300:$A$399,'C Report Grouper'!$D17,'C Report'!F$300:F$399),SUMIF('C Report'!$A$100:$A$199,'C Report Grouper'!$D17,'C Report'!F$100:F$199)) -> 0 | I17: =IF($D$4="MAP+ADM Waivers",SUMIF('C Report'!$A$100:$A$199,'C Report Grouper'!$D17,'C Report'!G$100:G$199)+SUMIF('C Report'!$A$300:$A$399,'C Report Grouper'!$D17,'C Report'!G$300:G$399),SUMIF('C Report'!$A$100:$A$199,'C Report Grouper'!$D17,'C Report'!G$100:G$199)) -> 0 | J17: =IF($D$4="MAP+ADM Waivers",SUMIF('C Report'!$A$100:$A$199,'C Report Grouper'!$D17,'C Report'!H$100:H$199)+SUMIF('C Report'!$A$300:$A$399,'C Report Grouper'!$D17,'C Report'!H$300:H$399),SUMIF('C Report'!$A$100:$A$199,'C Report Grouper'!$D17,'C Report'!H$100:H$199)) -> 0 | K17: =IF($D$4="MAP+ADM Waivers",SUMIF('C Report'!$A$100:$A$199,'C Report Grouper'!$D17,'C Report'!I$100:I$199)+SUMIF('C Report'!$A$300:$A$399,'C Report Grouper'!$D17,'C Report'!I$300:I$399),SUMIF('C Report'!$A$100:$A$199,'C Report Grouper'!$D17,'C Report'!I$100:I$199)) -> 0 | L17: =IF($D$4="MAP+ADM Waivers",SUMIF('C Report'!$A$100:$A$199,'C Report Grouper'!$D17,'C Report'!J$100:J$199)+SUMIF('C Report'!$A$300:$A$399,'C Report Grouper'!$D17,'C Report'!J$300:J$399),SUMIF('C Report'!$A$100:$A$199,'C Report Grouper'!$D17,'C Report'!J$100:J$199)) -> 0 | M17: =IF($D$4="MAP+ADM Waivers",SUMIF('C Report'!$A$100:$A$199,'C Report Grouper'!$D17,'C Report'!K$100:K$199)+SUMIF('C Report'!$A$300:$A$399,'C Report Grouper'!$D17,'C Report'!K$300:K$399),SUMIF('C Report'!$A$100:$A$199,'C Report Grouper'!$D17,'C Report'!K$100:K$199)) -> 0 | N17: =IF($D$4="MAP+ADM Waivers",SUMIF('C Report'!$A$100:$A$199,'C Report Grouper'!$D17,'C Report'!L$100:L$199)+SUMIF('C Report'!$A$300:$A$399,'C Report Grouper'!$D17,'C Report'!L$300:L$399),SUMIF('C Report'!$A$100:$A$199,'C Report Grouper'!$D17,'C Report'!L$100:L$199)) -> 0 | O17: =IF($D$4="MAP+ADM Waivers",SUMIF('C Report'!$A$100:$A$199,'C Report Grouper'!$D17,'C Report'!M$100:M$199)+SUMIF('C Report'!$A$300:$A$399,'C Report Grouper'!$D17,'C Report'!M$300:M$399),SUMIF('C Report'!$A$100:$A$199,'C Report Grouper'!$D17,'C Report'!M$100:M$199)) -> 0 | P17: =IF($D$4="MAP+ADM Waivers",SUMIF('C Report'!$A$100:$A$199,'C Report Grouper'!$D17,'C Report'!N$100:N$199)+SUMIF('C Report'!$A$300:$A$399,'C Report Grouper'!$D17,'C Report'!N$300:N$399),SUMIF('C Report'!$A$100:$A$199,'C Report Grouper'!$D17,'C Report'!N$100:N$199)) -> 0 | Q17: =IF($D$4="MAP+ADM Waivers",SUMIF('C Report'!$A$100:$A$199,'C Report Grouper'!$D17,'C Report'!O$100:O$199)+SUMIF('C Report'!$A$300:$A$399,'C Report Grouper'!$D17,'C Report'!O$300:O$399),SUMIF('C Report'!$A$100:$A$199,'C Report Grouper'!$D17,'C Report'!O$100:O$199)) -> 0 | R17: =IF($D$4="MAP+ADM Waivers",SUMIF('C Report'!$A$100:$A$199,'C Report Grouper'!$D17,'C Report'!P$100:P$199)+SUMIF('C Report'!$A$300:$A$399,'C Report Grouper'!$D17,'C Report'!P$300:P$399),SUMIF('C Report'!$A$100:$A$199,'C Report Grouper'!$D17,'C Report'!P$100:P$199)) -> 0 | S17: =IF($D$4="MAP+ADM Waivers",SUMIF('C Report'!$A$100:$A$199,'C Report Grouper'!$D17,'C Report'!Q$100:Q$199)+SUMIF('C Report'!$A$300:$A$399,'C Report Grouper'!$D17,'C Report'!Q$300:Q$399),SUMIF('C Report'!$A$100:$A$199,'C Report Grouper'!$D17,'C Report'!Q$100:Q$199)) -> 0 | T17: =IF($D$4="MAP+ADM Waivers",SUMIF('C Report'!$A$100:$A$199,'C Report Grouper'!$D17,'C Report'!R$100:R$199)+SUMIF('C Report'!$A$300:$A$399,'C Report Grouper'!$D17,'C Report'!R$300:R$399),SUMIF('C Report'!$A$100:$A$199,'C Report Grouper'!$D17,'C Report'!R$100:R$199)) -> 0 | U17: =IF($D$4="MAP+ADM Waivers",SUMIF('C Report'!$A$100:$A$199,'C Report Grouper'!$D17,'C Report'!S$100:S$199)+SUMIF('C Report'!$A$300:$A$399,'C Report Grouper'!$D17,'C Report'!S$300:S$399),SUMIF('C Report'!$A$100:$A$199,'C Report Grouper'!$D17,'C Report'!S$100:S$199)) -> 0 | V17: =IF($D$4="MAP+ADM Waivers",SUMIF('C Report'!$A$100:$A$199,'C Report Grouper'!$D17,'C Report'!T$100:T$199)+SUMIF('C Report'!$A$300:$A$399,'C Report Grouper'!$D17,'C Report'!T$300:T$399),SUMIF('C Report'!$A$100:$A$199,'C Report Grouper'!$D17,'C Report'!T$100:T$199)) -> 0 | W17: =IF($D$4="MAP+ADM Waivers",SUMIF('C Report'!$A$100:$A$199,'C Report Grouper'!$D17,'C Report'!U$100:U$199)+SUMIF('C Report'!$A$300:$A$399,'C Report Grouper'!$D17,'C Report'!U$300:U$399),SUMIF('C Report'!$A$100:$A$199,'C Report Grouper'!$D17,'C Report'!U$100:U$199)) -> 0 | X17: =IF($D$4="MAP+ADM Waivers",SUMIF('C Report'!$A$100:$A$199,'C Report Grouper'!$D17,'C Report'!V$100:V$199)+SUMIF('C Report'!$A$300:$A$399,'C Report Grouper'!$D17,'C Report'!V$300:V$399),SUMIF('C Report'!$A$100:$A$199,'C Report Grouper'!$D17,'C Report'!V$100:V$199)) -> 0 | Y17: =IF($D$4="MAP+ADM Waivers",SUMIF('C Report'!$A$100:$A$199,'C Report Grouper'!$D17,'C Report'!W$100:W$199)+SUMIF('C Report'!$A$300:$A$399,'C Report Grouper'!$D17,'C Report'!W$300:W$399),SUMIF('C Report'!$A$100:$A$199,'C Report Grouper'!$D17,'C Report'!W$100:W$199)) -> 0 | Z17: =IF($D$4="MAP+ADM Waivers",SUMIF('C Report'!$A$100:$A$199,'C Report Grouper'!$D17,'C Report'!X$100:X$199)+SUMIF('C Report'!$A$300:$A$399,'C Report Grouper'!$D17,'C Report'!X$300:X$399),SUMIF('C Report'!$A$100:$A$199,'C Report Grouper'!$D17,'C Report'!X$100:X$199)) -> 0 | AA17: =IF($D$4="MAP+ADM Waivers",SUMIF('C Report'!$A$100:$A$199,'C Report Grouper'!$D17,'C Report'!Y$100:Y$199)+SUMIF('C Report'!$A$300:$A$399,'C Report Grouper'!$D17,'C Report'!Y$300:Y$399),SUMIF('C Report'!$A$100:$A$199,'C Report Grouper'!$D17,'C Report'!Y$100:Y$199)) -> 0 | AB17: =IF($D$4="MAP+ADM Waivers",SUMIF('C Report'!$A$100:$A$199,'C Report Grouper'!$D17,'C Report'!Z$100:Z$199)+SUMIF('C Report'!$A$300:$A$399,'C Report Grouper'!$D17,'C Report'!Z$300:Z$399),SUMIF('C Report'!$A$100:$A$199,'C Report Grouper'!$D17,'C Report'!Z$100:Z$199)) -> 0 | AC17: =IF($D$4="MAP+ADM Waivers",SUMIF('C Report'!$A$100:$A$199,'C Report Grouper'!$D17,'C Report'!AA$100:AA$199)+SUMIF('C Report'!$A$300:$A$399,'C Report Grouper'!$D17,'C Report'!AA$300:AA$399),SUMIF('C Report'!$A$100:$A$199,'C Report Grouper'!$D17,'C Report'!AA$100:AA$199)) -> 0 | AD17: =IF($D$4="MAP+ADM Waivers",SUMIF('C Report'!$A$100:$A$199,'C Report Grouper'!$D17,'C Report'!AB$100:AB$199)+SUMIF('C Report'!$A$300:$A$399,'C Report Grouper'!$D17,'C Report'!AB$300:AB$399),SUMIF('C Report'!$A$100:$A$199,'C Report Grouper'!$D17,'C Report'!AB$100:AB$199)) -> 0 | AE17: =IF($D$4="MAP+ADM Waivers",SUMIF('C Report'!$A$100:$A$199,'C Report Grouper'!$D17,'C Report'!AC$100:AC$199)+SUMIF('C Report'!$A$300:$A$399,'C Report Grouper'!$D17,'C Report'!AC$300:AC$399),SUMIF('C Report'!$A$100:$A$199,'C Report Grouper'!$D17,'C Report'!AC$100:AC$199)) -> 0 | AF17: =IF($D$4="MAP+ADM Waivers",SUMIF('C Report'!$A$100:$A$199,'C Report Grouper'!$D17,'C Report'!AD$100:AD$199)+SUMIF('C Report'!$A$300:$A$399,'C Report Grouper'!$D17,'C Report'!AD$300:AD$399),SUMIF('C Report'!$A$100:$A$199,'C Report Grouper'!$D17,'C Report'!AD$100:AD$199)) -> 0 | AG17: =IF($D$4="MAP+ADM Waivers",SUMIF('C Report'!$A$100:$A$199,'C Report Grouper'!$D17,'C Report'!AE$100:AE$199)+SUMIF('C Report'!$A$300:$A$399,'C Report Grouper'!$D17,'C Report'!AE$300:AE$399),SUMIF('C Report'!$A$100:$A$199,'C Report Grouper'!$D17,'C Report'!AE$100:AE$199)) -> 0 | AH17: =IF($D$4="MAP+ADM Waivers",SUMIF('C Report'!$A$100:$A$199,'C Report Grouper'!$D17,'C Report'!AF$100:AF$199)+SUMIF('C Report'!$A$300:$A$399,'C Report Grouper'!$D17,'C Report'!AF$300:AF$399),SUMIF('C Report'!$A$100:$A$199,'C Report Grouper'!$D17,'C Report'!AF$100:AF$199)) -> 0
B18: =IFERROR(VLOOKUP(C18,'MEG Def'!$A$21:$B$26,2),"") ->  | E18: =IF($D$4="MAP+ADM Waivers",SUMIF('C Report'!$A$100:$A$199,'C Report Grouper'!$D18,'C Report'!C$100:C$199)+SUMIF('C Report'!$A$300:$A$399,'C Report Grouper'!$D18,'C Report'!C$300:C$399),SUMIF('C Report'!$A$100:$A$199,'C Report Grouper'!$D18,'C Report'!C$100:C$199)) -> 0 | F18: =IF($D$4="MAP+ADM Waivers",SUMIF('C Report'!$A$100:$A$199,'C Report Grouper'!$D18,'C Report'!D$100:D$199)+SUMIF('C Report'!$A$300:$A$399,'C Report Grouper'!$D18,'C Report'!D$300:D$399),SUMIF('C Report'!$A$100:$A$199,'C Report Grouper'!$D18,'C Report'!D$100:D$199)) -> 0 | G18: =IF($D$4="MAP+ADM Waivers",SUMIF('C Report'!$A$100:$A$199,'C Report Grouper'!$D18,'C Report'!E$100:E$199)+SUMIF('C Report'!$A$300:$A$399,'C Report Grouper'!$D18,'C Report'!E$300:E$399),SUMIF('C Report'!$A$100:$A$199,'C Report Grouper'!$D18,'C Report'!E$100:E$199)) -> 0 | H18: =IF($D$4="MAP+ADM Waivers",SUMIF('C Report'!$A$100:$A$199,'C Report Grouper'!$D18,'C Report'!F$100:F$199)+SUMIF('C Report'!$A$300:$A$399,'C Report Grouper'!$D18,'C Report'!F$300:F$399),SUMIF('C Report'!$A$100:$A$199,'C Report Grouper'!$D18,'C Report'!F$100:F$199)) -> 0 | I18: =IF($D$4="MAP+ADM Waivers",SUMIF('C Report'!$A$100:$A$199,'C Report Grouper'!$D18,'C Report'!G$100:G$199)+SUMIF('C Report'!$A$300:$A$399,'C Report Grouper'!$D18,'C Report'!G$300:G$399),SUMIF('C Report'!$A$100:$A$199,'C Report Grouper'!$D18,'C Report'!G$100:G$199)) -> 0 | J18: =IF($D$4="MAP+ADM Waivers",SUMIF('C Report'!$A$100:$A$199,'C Report Grouper'!$D18,'C Report'!H$100:H$199)+SUMIF('C Report'!$A$300:$A$399,'C Report Grouper'!$D18,'C Report'!H$300:H$399),SUMIF('C Report'!$A$100:$A$199,'C Report Grouper'!$D18,'C Report'!H$100:H$199)) -> 0 | K18: =IF($D$4="MAP+ADM Waivers",SUMIF('C Report'!$A$100:$A$199,'C Report Grouper'!$D18,'C Report'!I$100:I$199)+SUMIF('C Report'!$A$300:$A$399,'C Report Grouper'!$D18,'C Report'!I$300:I$399),SUMIF('C Report'!$A$100:$A$199,'C Report Grouper'!$D18,'C Report'!I$100:I$199)) -> 0 | L18: =IF($D$4="MAP+ADM Waivers",SUMIF('C Report'!$A$100:$A$199,'C Report Grouper'!$D18,'C Report'!J$100:J$199)+SUMIF('C Report'!$A$300:$A$399,'C Report Grouper'!$D18,'C Report'!J$300:J$399),SUMIF('C Report'!$A$100:$A$199,'C Report Grouper'!$D18,'C Report'!J$100:J$199)) -> 0 | M18: =IF($D$4="MAP+ADM Waivers",SUMIF('C Report'!$A$100:$A$199,'C Report Grouper'!$D18,'C Report'!K$100:K$199)+SUMIF('C Report'!$A$300:$A$399,'C Report Grouper'!$D18,'C Report'!K$300:K$399),SUMIF('C Report'!$A$100:$A$199,'C Report Grouper'!$D18,'C Report'!K$100:K$199)) -> 0 | N18: =IF($D$4="MAP+ADM Waivers",SUMIF('C Report'!$A$100:$A$199,'C Report Grouper'!$D18,'C Report'!L$100:L$199)+SUMIF('C Report'!$A$300:$A$399,'C Report Grouper'!$D18,'C Report'!L$300:L$399),SUMIF('C Report'!$A$100:$A$199,'C Report Grouper'!$D18,'C Report'!L$100:L$199)) -> 0 | O18: =IF($D$4="MAP+ADM Waivers",SUMIF('C Report'!$A$100:$A$199,'C Report Grouper'!$D18,'C Report'!M$100:M$199)+SUMIF('C Report'!$A$300:$A$399,'C Report Grouper'!$D18,'C Report'!M$300:M$399),SUMIF('C Report'!$A$100:$A$199,'C Report Grouper'!$D18,'C Report'!M$100:M$199)) -> 0 | P18: =IF($D$4="MAP+ADM Waivers",SUMIF('C Report'!$A$100:$A$199,'C Report Grouper'!$D18,'C Report'!N$100:N$199)+SUMIF('C Report'!$A$300:$A$399,'C Report Grouper'!$D18,'C Report'!N$300:N$399),SUMIF('C Report'!$A$100:$A$199,'C Report Grouper'!$D18,'C Report'!N$100:N$199)) -> 0 | Q18: =IF($D$4="MAP+ADM Waivers",SUMIF('C Report'!$A$100:$A$199,'C Report Grouper'!$D18,'C Report'!O$100:O$199)+SUMIF('C Report'!$A$300:$A$399,'C Report Grouper'!$D18,'C Report'!O$300:O$399),SUMIF('C Report'!$A$100:$A$199,'C Report Grouper'!$D18,'C Report'!O$100:O$199)) -> 0 | R18: =IF($D$4="MAP+ADM Waivers",SUMIF('C Report'!$A$100:$A$199,'C Report Grouper'!$D18,'C Report'!P$100:P$199)+SUMIF('C Report'!$A$300:$A$399,'C Report Grouper'!$D18,'C Report'!P$300:P$399),SUMIF('C Report'!$A$100:$A$199,'C Report Grouper'!$D18,'C Report'!P$100:P$199)) -> 0 | S18: =IF($D$4="MAP+ADM Waivers",SUMIF('C Report'!$A$100:$A$199,'C Report Grouper'!$D18,'C Report'!Q$100:Q$199)+SUMIF('C Report'!$A$300:$A$399,'C Report Grouper'!$D18,'C Report'!Q$300:Q$399),SUMIF('C Report'!$A$100:$A$199,'C Report Grouper'!$D18,'C Report'!Q$100:Q$199)) -> 0 | T18: =IF($D$4="MAP+ADM Waivers",SUMIF('C Report'!$A$100:$A$199,'C Report Grouper'!$D18,'C Report'!R$100:R$199)+SUMIF('C Report'!$A$300:$A$399,'C Report Grouper'!$D18,'C Report'!R$300:R$399),SUMIF('C Report'!$A$100:$A$199,'C Report Grouper'!$D18,'C Report'!R$100:R$199)) -> 0 | U18: =IF($D$4="MAP+ADM Waivers",SUMIF('C Report'!$A$100:$A$199,'C Report Grouper'!$D18,'C Report'!S$100:S$199)+SUMIF('C Report'!$A$300:$A$399,'C Report Grouper'!$D18,'C Report'!S$300:S$399),SUMIF('C Report'!$A$100:$A$199,'C Report Grouper'!$D18,'C Report'!S$100:S$199)) -> 0 | V18: =IF($D$4="MAP+ADM Waivers",SUMIF('C Report'!$A$100:$A$199,'C Report Grouper'!$D18,'C Report'!T$100:T$199)+SUMIF('C Report'!$A$300:$A$399,'C Report Grouper'!$D18,'C Report'!T$300:T$399),SUMIF('C Report'!$A$100:$A$199,'C Report Grouper'!$D18,'C Report'!T$100:T$199)) -> 0 | W18: =IF($D$4="MAP+ADM Waivers",SUMIF('C Report'!$A$100:$A$199,'C Report Grouper'!$D18,'C Report'!U$100:U$199)+SUMIF('C Report'!$A$300:$A$399,'C Report Grouper'!$D18,'C Report'!U$300:U$399),SUMIF('C Report'!$A$100:$A$199,'C Report Grouper'!$D18,'C Report'!U$100:U$199)) -> 0 | X18: =IF($D$4="MAP+ADM Waivers",SUMIF('C Report'!$A$100:$A$199,'C Report Grouper'!$D18,'C Report'!V$100:V$199)+SUMIF('C Report'!$A$300:$A$399,'C Report Grouper'!$D18,'C Report'!V$300:V$399),SUMIF('C Report'!$A$100:$A$199,'C Report Grouper'!$D18,'C Report'!V$100:V$199)) -> 0 | Y18: =IF($D$4="MAP+ADM Waivers",SUMIF('C Report'!$A$100:$A$199,'C Report Grouper'!$D18,'C Report'!W$100:W$199)+SUMIF('C Report'!$A$300:$A$399,'C Report Grouper'!$D18,'C Report'!W$300:W$399),SUMIF('C Report'!$A$100:$A$199,'C Report Grouper'!$D18,'C Report'!W$100:W$199)) -> 0 | Z18: =IF($D$4="MAP+ADM Waivers",SUMIF('C Report'!$A$100:$A$199,'C Report Grouper'!$D18,'C Report'!X$100:X$199)+SUMIF('C Report'!$A$300:$A$399,'C Report Grouper'!$D18,'C Report'!X$300:X$399),SUMIF('C Report'!$A$100:$A$199,'C Report Grouper'!$D18,'C Report'!X$100:X$199)) -> 0 | AA18: =IF($D$4="MAP+ADM Waivers",SUMIF('C Report'!$A$100:$A$199,'C Report Grouper'!$D18,'C Report'!Y$100:Y$199)+SUMIF('C Report'!$A$300:$A$399,'C Report Grouper'!$D18,'C Report'!Y$300:Y$399),SUMIF('C Report'!$A$100:$A$199,'C Report Grouper'!$D18,'C Report'!Y$100:Y$199)) -> 0 | AB18: =IF($D$4="MAP+ADM Waivers",SUMIF('C Report'!$A$100:$A$199,'C Report Grouper'!$D18,'C Report'!Z$100:Z$199)+SUMIF('C Report'!$A$300:$A$399,'C Report Grouper'!$D18,'C Report'!Z$300:Z$399),SUMIF('C Report'!$A$100:$A$199,'C Report Grouper'!$D18,'C Report'!Z$100:Z$199)) -> 0 | AC18: =IF($D$4="MAP+ADM Waivers",SUMIF('C Report'!$A$100:$A$199,'C Report Grouper'!$D18,'C Report'!AA$100:AA$199)+SUMIF('C Report'!$A$300:$A$399,'C Report Grouper'!$D18,'C Report'!AA$300:AA$399),SUMIF('C Report'!$A$100:$A$199,'C Report Grouper'!$D18,'C Report'!AA$100:AA$199)) -> 0 | AD18: =IF($D$4="MAP+ADM Waivers",SUMIF('C Report'!$A$100:$A$199,'C Report Grouper'!$D18,'C Report'!AB$100:AB$199)+SUMIF('C Report'!$A$300:$A$399,'C Report Grouper'!$D18,'C Report'!AB$300:AB$399),SUMIF('C Report'!$A$100:$A$199,'C Report Grouper'!$D18,'C Report'!AB$100:AB$199)) -> 0 | AE18: =IF($D$4="MAP+ADM Waivers",SUMIF('C Report'!$A$100:$A$199,'C Report Grouper'!$D18,'C Report'!AC$100:AC$199)+SUMIF('C Report'!$A$300:$A$399,'C Report Grouper'!$D18,'C Report'!AC$300:AC$399),SUMIF('C Report'!$A$100:$A$199,'C Report Grouper'!$D18,'C Report'!AC$100:AC$199)) -> 0 | AF18: =IF($D$4="MAP+ADM Waivers",SUMIF('C Report'!$A$100:$A$199,'C Report Grouper'!$D18,'C Report'!AD$100:AD$199)+SUMIF('C Report'!$A$300:$A$399,'C Report Grouper'!$D18,'C Report'!AD$300:AD$399),SUMIF('C Report'!$A$100:$A$199,'C Report Grouper'!$D18,'C Report'!AD$100:AD$199)) -> 0 | AG18: =IF($D$4="MAP+ADM Waivers",SUMIF('C Report'!$A$100:$A$199,'C Report Grouper'!$D18,'C Report'!AE$100:AE$199)+SUMIF('C Report'!$A$300:$A$399,'C Report Grouper'!$D18,'C Report'!AE$300:AE$399),SUMIF('C Report'!$A$100:$A$199,'C Report Grouper'!$D18,'C Report'!AE$100:AE$199)) -> 0 | AH18: =IF($D$4="MAP+ADM Waivers",SUMIF('C Report'!$A$100:$A$199,'C Report Grouper'!$D18,'C Report'!AF$100:AF$199)+SUMIF('C Report'!$A$300:$A$399,'C Report Grouper'!$D18,'C Report'!AF$300:AF$399),SUMIF('C Report'!$A$100:$A$199,'C Report Grouper'!$D18,'C Report'!AF$100:AF$199)) -> 0
B19: =IFERROR(VLOOKUP(C19,'MEG Def'!$A$21:$B$26,2),"") ->  | E19: =IF($D$4="MAP+ADM Waivers",SUMIF('C Report'!$A$100:$A$199,'C Report Grouper'!$D19,'C Report'!C$100:C$199)+SUMIF('C Report'!$A$300:$A$399,'C Report Grouper'!$D19,'C Report'!C$300:C$399),SUMIF('C Report'!$A$100:$A$199,'C Report Grouper'!$D19,'C Report'!C$100:C$199)) -> 0 | F19: =IF($D$4="MAP+ADM Waivers",SUMIF('C Report'!$A$100:$A$199,'C Report Grouper'!$D19,'C Report'!D$100:D$199)+SUMIF('C Report'!$A$300:$A$399,'C Report Grouper'!$D19,'C Report'!D$300:D$399),SUMIF('C Report'!$A$100:$A$199,'C Report Grouper'!$D19,'C Report'!D$100:D$199)) -> 0 | G19: =IF($D$4="MAP+ADM Waivers",SUMIF('C Report'!$A$100:$A$199,'C Report Grouper'!$D19,'C Report'!E$100:E$199)+SUMIF('C Report'!$A$300:$A$399,'C Report Grouper'!$D19,'C Report'!E$300:E$399),SUMIF('C Report'!$A$100:$A$199,'C Report Grouper'!$D19,'C Report'!E$100:E$199)) -> 0 | H19: =IF($D$4="MAP+ADM Waivers",SUMIF('C Report'!$A$100:$A$199,'C Report Grouper'!$D19,'C Report'!F$100:F$199)+SUMIF('C Report'!$A$300:$A$399,'C Report Grouper'!$D19,'C Report'!F$300:F$399),SUMIF('C Report'!$A$100:$A$199,'C Report Grouper'!$D19,'C Report'!F$100:F$199)) -> 0 | I19: =IF($D$4="MAP+ADM Waivers",SUMIF('C Report'!$A$100:$A$199,'C Report Grouper'!$D19,'C Report'!G$100:G$199)+SUMIF('C Report'!$A$300:$A$399,'C Report Grouper'!$D19,'C Report'!G$300:G$399),SUMIF('C Report'!$A$100:$A$199,'C Report Grouper'!$D19,'C Report'!G$100:G$199)) -> 0 | J19: =IF($D$4="MAP+ADM Waivers",SUMIF('C Report'!$A$100:$A$199,'C Report Grouper'!$D19,'C Report'!H$100:H$199)+SUMIF('C Report'!$A$300:$A$399,'C Report Grouper'!$D19,'C Report'!H$300:H$399),SUMIF('C Report'!$A$100:$A$199,'C Report Grouper'!$D19,'C Report'!H$100:H$199)) -> 0 | K19: =IF($D$4="MAP+ADM Waivers",SUMIF('C Report'!$A$100:$A$199,'C Report Grouper'!$D19,'C Report'!I$100:I$199)+SUMIF('C Report'!$A$300:$A$399,'C Report Grouper'!$D19,'C Report'!I$300:I$399),SUMIF('C Report'!$A$100:$A$199,'C Report Grouper'!$D19,'C Report'!I$100:I$199)) -> 0 | L19: =IF($D$4="MAP+ADM Waivers",SUMIF('C Report'!$A$100:$A$199,'C Report Grouper'!$D19,'C Report'!J$100:J$199)+SUMIF('C Report'!$A$300:$A$399,'C Report Grouper'!$D19,'C Report'!J$300:J$399),SUMIF('C Report'!$A$100:$A$199,'C Report Grouper'!$D19,'C Report'!J$100:J$199)) -> 0 | M19: =IF($D$4="MAP+ADM Waivers",SUMIF('C Report'!$A$100:$A$199,'C Report Grouper'!$D19,'C Report'!K$100:K$199)+SUMIF('C Report'!$A$300:$A$399,'C Report Grouper'!$D19,'C Report'!K$300:K$399),SUMIF('C Report'!$A$100:$A$199,'C Report Grouper'!$D19,'C Report'!K$100:K$199)) -> 0 | N19: =IF($D$4="MAP+ADM Waivers",SUMIF('C Report'!$A$100:$A$199,'C Report Grouper'!$D19,'C Report'!L$100:L$199)+SUMIF('C Report'!$A$300:$A$399,'C Report Grouper'!$D19,'C Report'!L$300:L$399),SUMIF('C Report'!$A$100:$A$199,'C Report Grouper'!$D19,'C Report'!L$100:L$199)) -> 0 | O19: =IF($D$4="MAP+ADM Waivers",SUMIF('C Report'!$A$100:$A$199,'C Report Grouper'!$D19,'C Report'!M$100:M$199)+SUMIF('C Report'!$A$300:$A$399,'C Report Grouper'!$D19,'C Report'!M$300:M$399),SUMIF('C Report'!$A$100:$A$199,'C Report Grouper'!$D19,'C Report'!M$100:M$199)) -> 0 | P19: =IF($D$4="MAP+ADM Waivers",SUMIF('C Report'!$A$100:$A$199,'C Report Grouper'!$D19,'C Report'!N$100:N$199)+SUMIF('C Report'!$A$300:$A$399,'C Report Grouper'!$D19,'C Report'!N$300:N$399),SUMIF('C Report'!$A$100:$A$199,'C Report Grouper'!$D19,'C Report'!N$100:N$199)) -> 0 | Q19: =IF($D$4="MAP+ADM Waivers",SUMIF('C Report'!$A$100:$A$199,'C Report Grouper'!$D19,'C Report'!O$100:O$199)+SUMIF('C Report'!$A$300:$A$399,'C Report Grouper'!$D19,'C Report'!O$300:O$399),SUMIF('C Report'!$A$100:$A$199,'C Report Grouper'!$D19,'C Report'!O$100:O$199)) -> 0 | R19: =IF($D$4="MAP+ADM Waivers",SUMIF('C Report'!$A$100:$A$199,'C Report Grouper'!$D19,'C Report'!P$100:P$199)+SUMIF('C Report'!$A$300:$A$399,'C Report Grouper'!$D19,'C Report'!P$300:P$399),SUMIF('C Report'!$A$100:$A$199,'C Report Grouper'!$D19,'C Report'!P$100:P$199)) -> 0 | S19: =IF($D$4="MAP+ADM Waivers",SUMIF('C Report'!$A$100:$A$199,'C Report Grouper'!$D19,'C Report'!Q$100:Q$199)+SUMIF('C Report'!$A$300:$A$399,'C Report Grouper'!$D19,'C Report'!Q$300:Q$399),SUMIF('C Report'!$A$100:$A$199,'C Report Grouper'!$D19,'C Report'!Q$100:Q$199)) -> 0 | T19: =IF($D$4="MAP+ADM Waivers",SUMIF('C Report'!$A$100:$A$199,'C Report Grouper'!$D19,'C Report'!R$100:R$199)+SUMIF('C Report'!$A$300:$A$399,'C Report Grouper'!$D19,'C Report'!R$300:R$399),SUMIF('C Report'!$A$100:$A$199,'C Report Grouper'!$D19,'C Report'!R$100:R$199)) -> 0 | U19: =IF($D$4="MAP+ADM Waivers",SUMIF('C Report'!$A$100:$A$199,'C Report Grouper'!$D19,'C Report'!S$100:S$199)+SUMIF('C Report'!$A$300:$A$399,'C Report Grouper'!$D19,'C Report'!S$300:S$399),SUMIF('C Report'!$A$100:$A$199,'C Report Grouper'!$D19,'C Report'!S$100:S$199)) -> 0 | V19: =IF($D$4="MAP+ADM Waivers",SUMIF('C Report'!$A$100:$A$199,'C Report Grouper'!$D19,'C Report'!T$100:T$199)+SUMIF('C Report'!$A$300:$A$399,'C Report Grouper'!$D19,'C Report'!T$300:T$399),SUMIF('C Report'!$A$100:$A$199,'C Report Grouper'!$D19,'C Report'!T$100:T$199)) -> 0 | W19: =IF($D$4="MAP+ADM Waivers",SUMIF('C Report'!$A$100:$A$199,'C Report Grouper'!$D19,'C Report'!U$100:U$199)+SUMIF('C Report'!$A$300:$A$399,'C Report Grouper'!$D19,'C Report'!U$300:U$399),SUMIF('C Report'!$A$100:$A$199,'C Report Grouper'!$D19,'C Report'!U$100:U$199)) -> 0 | X19: =IF($D$4="MAP+ADM Waivers",SUMIF('C Report'!$A$100:$A$199,'C Report Grouper'!$D19,'C Report'!V$100:V$199)+SUMIF('C Report'!$A$300:$A$399,'C Report Grouper'!$D19,'C Report'!V$300:V$399),SUMIF('C Report'!$A$100:$A$199,'C Report Grouper'!$D19,'C Report'!V$100:V$199)) -> 0 | Y19: =IF($D$4="MAP+ADM Waivers",SUMIF('C Report'!$A$100:$A$199,'C Report Grouper'!$D19,'C Report'!W$100:W$199)+SUMIF('C Report'!$A$300:$A$399,'C Report Grouper'!$D19,'C Report'!W$300:W$399),SUMIF('C Report'!$A$100:$A$199,'C Report Grouper'!$D19,'C Report'!W$100:W$199)) -> 0 | Z19: =IF($D$4="MAP+ADM Waivers",SUMIF('C Report'!$A$100:$A$199,'C Report Grouper'!$D19,'C Report'!X$100:X$199)+SUMIF('C Report'!$A$300:$A$399,'C Report Grouper'!$D19,'C Report'!X$300:X$399),SUMIF('C Report'!$A$100:$A$199,'C Report Grouper'!$D19,'C Report'!X$100:X$199)) -> 0 | AA19: =IF($D$4="MAP+ADM Waivers",SUMIF('C Report'!$A$100:$A$199,'C Report Grouper'!$D19,'C Report'!Y$100:Y$199)+SUMIF('C Report'!$A$300:$A$399,'C Report Grouper'!$D19,'C Report'!Y$300:Y$399),SUMIF('C Report'!$A$100:$A$199,'C Report Grouper'!$D19,'C Report'!Y$100:Y$199)) -> 0 | AB19: =IF($D$4="MAP+ADM Waivers",SUMIF('C Report'!$A$100:$A$199,'C Report Grouper'!$D19,'C Report'!Z$100:Z$199)+SUMIF('C Report'!$A$300:$A$399,'C Report Grouper'!$D19,'C Report'!Z$300:Z$399),SUMIF('C Report'!$A$100:$A$199,'C Report Grouper'!$D19,'C Report'!Z$100:Z$199)) -> 0 | AC19: =IF($D$4="MAP+ADM Waivers",SUMIF('C Report'!$A$100:$A$199,'C Report Grouper'!$D19,'C Report'!AA$100:AA$199)+SUMIF('C Report'!$A$300:$A$399,'C Report Grouper'!$D19,'C Report'!AA$300:AA$399),SUMIF('C Report'!$A$100:$A$199,'C Report Grouper'!$D19,'C Report'!AA$100:AA$199)) -> 0 | AD19: =IF($D$4="MAP+ADM Waivers",SUMIF('C Report'!$A$100:$A$199,'C Report Grouper'!$D19,'C Report'!AB$100:AB$199)+SUMIF('C Report'!$A$300:$A$399,'C Report Grouper'!$D19,'C Report'!AB$300:AB$399),SUMIF('C Report'!$A$100:$A$199,'C Report Grouper'!$D19,'C Report'!AB$100:AB$199)) -> 0 | AE19: =IF($D$4="MAP+ADM Waivers",SUMIF('C Report'!$A$100:$A$199,'C Report Grouper'!$D19,'C Report'!AC$100:AC$199)+SUMIF('C Report'!$A$300:$A$399,'C Report Grouper'!$D19,'C Report'!AC$300:AC$399),SUMIF('C Report'!$A$100:$A$199,'C Report Grouper'!$D19,'C Report'!AC$100:AC$199)) -> 0 | AF19: =IF($D$4="MAP+ADM Waivers",SUMIF('C Report'!$A$100:$A$199,'C Report Grouper'!$D19,'C Report'!AD$100:AD$199)+SUMIF('C Report'!$A$300:$A$399,'C Report Grouper'!$D19,'C Report'!AD$300:AD$399),SUMIF('C Report'!$A$100:$A$199,'C Report Grouper'!$D19,'C Report'!AD$100:AD$199)) -> 0 | AG19: =IF($D$4="MAP+ADM Waivers",SUMIF('C Report'!$A$100:$A$199,'C Report Grouper'!$D19,'C Report'!AE$100:AE$199)+SUMIF('C Report'!$A$300:$A$399,'C Report Grouper'!$D19,'C Report'!AE$300:AE$399),SUMIF('C Report'!$A$100:$A$199,'C Report Grouper'!$D19,'C Report'!AE$100:AE$199)) -> 0 | AH19: =IF($D$4="MAP+ADM Waivers",SUMIF('C Report'!$A$100:$A$199,'C Report Grouper'!$D19,'C Report'!AF$100:AF$199)+SUMIF('C Report'!$A$300:$A$399,'C Report Grouper'!$D19,'C Report'!AF$300:AF$399),SUMIF('C Report'!$A$100:$A$199,'C Report Grouper'!$D19,'C Report'!AF$100:AF$199)) -> 0
B20: =IFERROR(VLOOKUP(C20,'MEG Def'!$A$21:$B$26,2),"") ->  | E20: =IF($D$4="MAP+ADM Waivers",SUMIF('C Report'!$A$100:$A$199,'C Report Grouper'!$D20,'C Report'!C$100:C$199)+SUMIF('C Report'!$A$300:$A$399,'C Report Grouper'!$D20,'C Report'!C$300:C$399),SUMIF('C Report'!$A$100:$A$199,'C Report Grouper'!$D20,'C Report'!C$100:C$199)) -> 0 | F20: =IF($D$4="MAP+ADM Waivers",SUMIF('C Report'!$A$100:$A$199,'C Report Grouper'!$D20,'C Report'!D$100:D$199)+SUMIF('C Report'!$A$300:$A$399,'C Report Grouper'!$D20,'C Report'!D$300:D$399),SUMIF('C Report'!$A$100:$A$199,'C Report Grouper'!$D20,'C Report'!D$100:D$199)) -> 0 | G20: =IF($D$4="MAP+ADM Waivers",SUMIF('C Report'!$A$100:$A$199,'C Report Grouper'!$D20,'C Report'!E$100:E$199)+SUMIF('C Report'!$A$300:$A$399,'C Report Grouper'!$D20,'C Report'!E$300:E$399),SUMIF('C Report'!$A$100:$A$199,'C Report Grouper'!$D20,'C Report'!E$100:E$199)) -> 0 | H20: =IF($D$4="MAP+ADM Waivers",SUMIF('C Report'!$A$100:$A$199,'C Report Grouper'!$D20,'C Report'!F$100:F$199)+SUMIF('C Report'!$A$300:$A$399,'C Report Grouper'!$D20,'C Report'!F$300:F$399),SUMIF('C Report'!$A$100:$A$199,'C Report Grouper'!$D20,'C Report'!F$100:F$199)) -> 0 | I20: =IF($D$4="MAP+ADM Waivers",SUMIF('C Report'!$A$100:$A$199,'C Report Grouper'!$D20,'C Report'!G$100:G$199)+SUMIF('C Report'!$A$300:$A$399,'C Report Grouper'!$D20,'C Report'!G$300:G$399),SUMIF('C Report'!$A$100:$A$199,'C Report Grouper'!$D20,'C Report'!G$100:G$199)) -> 0 | J20: =IF($D$4="MAP+ADM Waivers",SUMIF('C Report'!$A$100:$A$199,'C Report Grouper'!$D20,'C Report'!H$100:H$199)+SUMIF('C Report'!$A$300:$A$399,'C Report Grouper'!$D20,'C Report'!H$300:H$399),SUMIF('C Report'!$A$100:$A$199,'C Report Grouper'!$D20,'C Report'!H$100:H$199)) -> 0 | K20: =IF($D$4="MAP+ADM Waivers",SUMIF('C Report'!$A$100:$A$199,'C Report Grouper'!$D20,'C Report'!I$100:I$199)+SUMIF('C Report'!$A$300:$A$399,'C Report Grouper'!$D20,'C Report'!I$300:I$399),SUMIF('C Report'!$A$100:$A$199,'C Report Grouper'!$D20,'C Report'!I$100:I$199)) -> 0 | L20: =IF($D$4="MAP+ADM Waivers",SUMIF('C Report'!$A$100:$A$199,'C Report Grouper'!$D20,'C Report'!J$100:J$199)+SUMIF('C Report'!$A$300:$A$399,'C Report Grouper'!$D20,'C Report'!J$300:J$399),SUMIF('C Report'!$A$100:$A$199,'C Report Grouper'!$D20,'C Report'!J$100:J$199)) -> 0 | M20: =IF($D$4="MAP+ADM Waivers",SUMIF('C Report'!$A$100:$A$199,'C Report Grouper'!$D20,'C Report'!K$100:K$199)+SUMIF('C Report'!$A$300:$A$399,'C Report Grouper'!$D20,'C Report'!K$300:K$399),SUMIF('C Report'!$A$100:$A$199,'C Report Grouper'!$D20,'C Report'!K$100:K$199)) -> 0 | N20: =IF($D$4="MAP+ADM Waivers",SUMIF('C Report'!$A$100:$A$199,'C Report Grouper'!$D20,'C Report'!L$100:L$199)+SUMIF('C Report'!$A$300:$A$399,'C Report Grouper'!$D20,'C Report'!L$300:L$399),SUMIF('C Report'!$A$100:$A$199,'C Report Grouper'!$D20,'C Report'!L$100:L$199)) -> 0 | O20: =IF($D$4="MAP+ADM Waivers",SUMIF('C Report'!$A$100:$A$199,'C Report Grouper'!$D20,'C Report'!M$100:M$199)+SUMIF('C Report'!$A$300:$A$399,'C Report Grouper'!$D20,'C Report'!M$300:M$399),SUMIF('C Report'!$A$100:$A$199,'C Report Grouper'!$D20,'C Report'!M$100:M$199)) -> 0 | P20: =IF($D$4="MAP+ADM Waivers",SUMIF('C Report'!$A$100:$A$199,'C Report Grouper'!$D20,'C Report'!N$100:N$199)+SUMIF('C Report'!$A$300:$A$399,'C Report Grouper'!$D20,'C Report'!N$300:N$399),SUMIF('C Report'!$A$100:$A$199,'C Report Grouper'!$D20,'C Report'!N$100:N$199)) -> 0 | Q20: =IF($D$4="MAP+ADM Waivers",SUMIF('C Report'!$A$100:$A$199,'C Report Grouper'!$D20,'C Report'!O$100:O$199)+SUMIF('C Report'!$A$300:$A$399,'C Report Grouper'!$D20,'C Report'!O$300:O$399),SUMIF('C Report'!$A$100:$A$199,'C Report Grouper'!$D20,'C Report'!O$100:O$199)) -> 0 | R20: =IF($D$4="MAP+ADM Waivers",SUMIF('C Report'!$A$100:$A$199,'C Report Grouper'!$D20,'C Report'!P$100:P$199)+SUMIF('C Report'!$A$300:$A$399,'C Report Grouper'!$D20,'C Report'!P$300:P$399),SUMIF('C Report'!$A$100:$A$199,'C Report Grouper'!$D20,'C Report'!P$100:P$199)) -> 0 | S20: =IF($D$4="MAP+ADM Waivers",SUMIF('C Report'!$A$100:$A$199,'C Report Grouper'!$D20,'C Report'!Q$100:Q$199)+SUMIF('C Report'!$A$300:$A$399,'C Report Grouper'!$D20,'C Report'!Q$300:Q$399),SUMIF('C Report'!$A$100:$A$199,'C Report Grouper'!$D20,'C Report'!Q$100:Q$199)) -> 0 | T20: =IF($D$4="MAP+ADM Waivers",SUMIF('C Report'!$A$100:$A$199,'C Report Grouper'!$D20,'C Report'!R$100:R$199)+SUMIF('C Report'!$A$300:$A$399,'C Report Grouper'!$D20,'C Report'!R$300:R$399),SUMIF('C Report'!$A$100:$A$199,'C Report Grouper'!$D20,'C Report'!R$100:R$199)) -> 0 | U20: =IF($D$4="MAP+ADM Waivers",SUMIF('C Report'!$A$100:$A$199,'C Report Grouper'!$D20,'C Report'!S$100:S$199)+SUMIF('C Report'!$A$300:$A$399,'C Report Grouper'!$D20,'C Report'!S$300:S$399),SUMIF('C Report'!$A$100:$A$199,'C Report Grouper'!$D20,'C Report'!S$100:S$199)) -> 0 | V20: =IF($D$4="MAP+ADM Waivers",SUMIF('C Report'!$A$100:$A$199,'C Report Grouper'!$D20,'C Report'!T$100:T$199)+SUMIF('C Report'!$A$300:$A$399,'C Report Grouper'!$D20,'C Report'!T$300:T$399),SUMIF('C Report'!$A$100:$A$199,'C Report Grouper'!$D20,'C Report'!T$100:T$199)) -> 0 | W20: =IF($D$4="MAP+ADM Waivers",SUMIF('C Report'!$A$100:$A$199,'C Report Grouper'!$D20,'C Report'!U$100:U$199)+SUMIF('C Report'!$A$300:$A$399,'C Report Grouper'!$D20,'C Report'!U$300:U$399),SUMIF('C Report'!$A$100:$A$199,'C Report Grouper'!$D20,'C Report'!U$100:U$199)) -> 0 | X20: =IF($D$4="MAP+ADM Waivers",SUMIF('C Report'!$A$100:$A$199,'C Report Grouper'!$D20,'C Report'!V$100:V$199)+SUMIF('C Report'!$A$300:$A$399,'C Report Grouper'!$D20,'C Report'!V$300:V$399),SUMIF('C Report'!$A$100:$A$199,'C Report Grouper'!$D20,'C Report'!V$100:V$199)) -> 0 | Y20: =IF($D$4="MAP+ADM Waivers",SUMIF('C Report'!$A$100:$A$199,'C Report Grouper'!$D20,'C Report'!W$100:W$199)+SUMIF('C Report'!$A$300:$A$399,'C Report Grouper'!$D20,'C Report'!W$300:W$399),SUMIF('C Report'!$A$100:$A$199,'C Report Grouper'!$D20,'C Report'!W$100:W$199)) -> 0 | Z20: =IF($D$4="MAP+ADM Waivers",SUMIF('C Report'!$A$100:$A$199,'C Report Grouper'!$D20,'C Report'!X$100:X$199)+SUMIF('C Report'!$A$300:$A$399,'C Report Grouper'!$D20,'C Report'!X$300:X$399),SUMIF('C Report'!$A$100:$A$199,'C Report Grouper'!$D20,'C Report'!X$100:X$199)) -> 0 | AA20: =IF($D$4="MAP+ADM Waivers",SUMIF('C Report'!$A$100:$A$199,'C Report Grouper'!$D20,'C Report'!Y$100:Y$199)+SUMIF('C Report'!$A$300:$A$399,'C Report Grouper'!$D20,'C Report'!Y$300:Y$399),SUMIF('C Report'!$A$100:$A$199,'C Report Grouper'!$D20,'C Report'!Y$100:Y$199)) -> 0 | AB20: =IF($D$4="MAP+ADM Waivers",SUMIF('C Report'!$A$100:$A$199,'C Report Grouper'!$D20,'C Report'!Z$100:Z$199)+SUMIF('C Report'!$A$300:$A$399,'C Report Grouper'!$D20,'C Report'!Z$300:Z$399),SUMIF('C Report'!$A$100:$A$199,'C Report Grouper'!$D20,'C Report'!Z$100:Z$199)) -> 0 | AC20: =IF($D$4="MAP+ADM Waivers",SUMIF('C Report'!$A$100:$A$199,'C Report Grouper'!$D20,'C Report'!AA$100:AA$199)+SUMIF('C Report'!$A$300:$A$399,'C Report Grouper'!$D20,'C Report'!AA$300:AA$399),SUMIF('C Report'!$A$100:$A$199,'C Report Grouper'!$D20,'C Report'!AA$100:AA$199)) -> 0 | AD20: =IF($D$4="MAP+ADM Waivers",SUMIF('C Report'!$A$100:$A$199,'C Report Grouper'!$D20,'C Report'!AB$100:AB$199)+SUMIF('C Report'!$A$300:$A$399,'C Report Grouper'!$D20,'C Report'!AB$300:AB$399),SUMIF('C Report'!$A$100:$A$199,'C Report Grouper'!$D20,'C Report'!AB$100:AB$199)) -> 0 | AE20: =IF($D$4="MAP+ADM Waivers",SUMIF('C Report'!$A$100:$A$199,'C Report Grouper'!$D20,'C Report'!AC$100:AC$199)+SUMIF('C Report'!$A$300:$A$399,'C Report Grouper'!$D20,'C Report'!AC$300:AC$399),SUMIF('C Report'!$A$100:$A$199,'C Report Grouper'!$D20,'C Report'!AC$100:AC$199)) -> 0 | AF20: =IF($D$4="MAP+ADM Waivers",SUMIF('C Report'!$A$100:$A$199,'C Report Grouper'!$D20,'C Report'!AD$100:AD$199)+SUMIF('C Report'!$A$300:$A$399,'C Report Grouper'!$D20,'C Report'!AD$300:AD$399),SUMIF('C Report'!$A$100:$A$199,'C Report Grouper'!$D20,'C Report'!AD$100:AD$199)) -> 0 | AG20: =IF($D$4="MAP+ADM Waivers",SUMIF('C Report'!$A$100:$A$199,'C Report Grouper'!$D20,'C Report'!AE$100:AE$199)+SUMIF('C Report'!$A$300:$A$399,'C Report Grouper'!$D20,'C Report'!AE$300:AE$399),SUMIF('C Report'!$A$100:$A$199,'C Report Grouper'!$D20,'C Report'!AE$100:AE$199)) -> 0 | AH20: =IF($D$4="MAP+ADM Waivers",SUMIF('C Report'!$A$100:$A$199,'C Report Grouper'!$D20,'C Report'!AF$100:AF$199)+SUMIF('C Report'!$A$300:$A$399,'C Report Grouper'!$D20,'C Report'!AF$300:AF$399),SUMIF('C Report'!$A$100:$A$199,'C Report Grouper'!$D20,'C Report'!AF$100:AF$199)) -> 0
B21: =IFERROR(VLOOKUP(C21,'MEG Def'!$A$21:$B$26,2),"") ->  | E21: =IF($D$4="MAP+ADM Waivers",SUMIF('C Report'!$A$100:$A$199,'C Report Grouper'!$D21,'C Report'!C$100:C$199)+SUMIF('C Report'!$A$300:$A$399,'C Report Grouper'!$D21,'C Report'!C$300:C$399),SUMIF('C Report'!$A$100:$A$199,'C Report Grouper'!$D21,'C Report'!C$100:C$199)) -> 0 | F21: =IF($D$4="MAP+ADM Waivers",SUMIF('C Report'!$A$100:$A$199,'C Report Grouper'!$D21,'C Report'!D$100:D$199)+SUMIF('C Report'!$A$300:$A$399,'C Report Grouper'!$D21,'C Report'!D$300:D$399),SUMIF('C Report'!$A$100:$A$199,'C Report Grouper'!$D21,'C Report'!D$100:D$199)) -> 0 | G21: =IF($D$4="MAP+ADM Waivers",SUMIF('C Report'!$A$100:$A$199,'C Report Grouper'!$D21,'C Report'!E$100:E$199)+SUMIF('C Report'!$A$300:$A$399,'C Report Grouper'!$D21,'C Report'!E$300:E$399),SUMIF('C Report'!$A$100:$A$199,'C Report Grouper'!$D21,'C Report'!E$100:E$199)) -> 0 | H21: =IF($D$4="MAP+ADM Waivers",SUMIF('C Report'!$A$100:$A$199,'C Report Grouper'!$D21,'C Report'!F$100:F$199)+SUMIF('C Report'!$A$300:$A$399,'C Report Grouper'!$D21,'C Report'!F$300:F$399),SUMIF('C Report'!$A$100:$A$199,'C Report Grouper'!$D21,'C Report'!F$100:F$199)) -> 0 | I21: =IF($D$4="MAP+ADM Waivers",SUMIF('C Report'!$A$100:$A$199,'C Report Grouper'!$D21,'C Report'!G$100:G$199)+SUMIF('C Report'!$A$300:$A$399,'C Report Grouper'!$D21,'C Report'!G$300:G$399),SUMIF('C Report'!$A$100:$A$199,'C Report Grouper'!$D21,'C Report'!G$100:G$199)) -> 0 | J21: =IF($D$4="MAP+ADM Waivers",SUMIF('C Report'!$A$100:$A$199,'C Report Grouper'!$D21,'C Report'!H$100:H$199)+SUMIF('C Report'!$A$300:$A$399,'C Report Grouper'!$D21,'C Report'!H$300:H$399),SUMIF('C Report'!$A$100:$A$199,'C Report Grouper'!$D21,'C Report'!H$100:H$199)) -> 0 | K21: =IF($D$4="MAP+ADM Waivers",SUMIF('C Report'!$A$100:$A$199,'C Report Grouper'!$D21,'C Report'!I$100:I$199)+SUMIF('C Report'!$A$300:$A$399,'C Report Grouper'!$D21,'C Report'!I$300:I$399),SUMIF('C Report'!$A$100:$A$199,'C Report Grouper'!$D21,'C Report'!I$100:I$199)) -> 0 | L21: =IF($D$4="MAP+ADM Waivers",SUMIF('C Report'!$A$100:$A$199,'C Report Grouper'!$D21,'C Report'!J$100:J$199)+SUMIF('C Report'!$A$300:$A$399,'C Report Grouper'!$D21,'C Report'!J$300:J$399),SUMIF('C Report'!$A$100:$A$199,'C Report Grouper'!$D21,'C Report'!J$100:J$199)) -> 0 | M21: =IF($D$4="MAP+ADM Waivers",SUMIF('C Report'!$A$100:$A$199,'C Report Grouper'!$D21,'C Report'!K$100:K$199)+SUMIF('C Report'!$A$300:$A$399,'C Report Grouper'!$D21,'C Report'!K$300:K$399),SUMIF('C Report'!$A$100:$A$199,'C Report Grouper'!$D21,'C Report'!K$100:K$199)) -> 0 | N21: =IF($D$4="MAP+ADM Waivers",SUMIF('C Report'!$A$100:$A$199,'C Report Grouper'!$D21,'C Report'!L$100:L$199)+SUMIF('C Report'!$A$300:$A$399,'C Report Grouper'!$D21,'C Report'!L$300:L$399),SUMIF('C Report'!$A$100:$A$199,'C Report Grouper'!$D21,'C Report'!L$100:L$199)) -> 0 | O21: =IF($D$4="MAP+ADM Waivers",SUMIF('C Report'!$A$100:$A$199,'C Report Grouper'!$D21,'C Report'!M$100:M$199)+SUMIF('C Report'!$A$300:$A$399,'C Report Grouper'!$D21,'C Report'!M$300:M$399),SUMIF('C Report'!$A$100:$A$199,'C Report Grouper'!$D21,'C Report'!M$100:M$199)) -> 0 | P21: =IF($D$4="MAP+ADM Waivers",SUMIF('C Report'!$A$100:$A$199,'C Report Grouper'!$D21,'C Report'!N$100:N$199)+SUMIF('C Report'!$A$300:$A$399,'C Report Grouper'!$D21,'C Report'!N$300:N$399),SUMIF('C Report'!$A$100:$A$199,'C Report Grouper'!$D21,'C Report'!N$100:N$199)) -> 0 | Q21: =IF($D$4="MAP+ADM Waivers",SUMIF('C Report'!$A$100:$A$199,'C Report Grouper'!$D21,'C Report'!O$100:O$199)+SUMIF('C Report'!$A$300:$A$399,'C Report Grouper'!$D21,'C Report'!O$300:O$399),SUMIF('C Report'!$A$100:$A$199,'C Report Grouper'!$D21,'C Report'!O$100:O$199)) -> 0 | R21: =IF($D$4="MAP+ADM Waivers",SUMIF('C Report'!$A$100:$A$199,'C Report Grouper'!$D21,'C Report'!P$100:P$199)+SUMIF('C Report'!$A$300:$A$399,'C Report Grouper'!$D21,'C Report'!P$300:P$399),SUMIF('C Report'!$A$100:$A$199,'C Report Grouper'!$D21,'C Report'!P$100:P$199)) -> 0 | S21: =IF($D$4="MAP+ADM Waivers",SUMIF('C Report'!$A$100:$A$199,'C Report Grouper'!$D21,'C Report'!Q$100:Q$199)+SUMIF('C Report'!$A$300:$A$399,'C Report Grouper'!$D21,'C Report'!Q$300:Q$399),SUMIF('C Report'!$A$100:$A$199,'C Report Grouper'!$D21,'C Report'!Q$100:Q$199)) -> 0 | T21: =IF($D$4="MAP+ADM Waivers",SUMIF('C Report'!$A$100:$A$199,'C Report Grouper'!$D21,'C Report'!R$100:R$199)+SUMIF('C Report'!$A$300:$A$399,'C Report Grouper'!$D21,'C Report'!R$300:R$399),SUMIF('C Report'!$A$100:$A$199,'C Report Grouper'!$D21,'C Report'!R$100:R$199)) -> 0 | U21: =IF($D$4="MAP+ADM Waivers",SUMIF('C Report'!$A$100:$A$199,'C Report Grouper'!$D21,'C Report'!S$100:S$199)+SUMIF('C Report'!$A$300:$A$399,'C Report Grouper'!$D21,'C Report'!S$300:S$399),SUMIF('C Report'!$A$100:$A$199,'C Report Grouper'!$D21,'C Report'!S$100:S$199)) -> 0 | V21: =IF($D$4="MAP+ADM Waivers",SUMIF('C Report'!$A$100:$A$199,'C Report Grouper'!$D21,'C Report'!T$100:T$199)+SUMIF('C Report'!$A$300:$A$399,'C Report Grouper'!$D21,'C Report'!T$300:T$399),SUMIF('C Report'!$A$100:$A$199,'C Report Grouper'!$D21,'C Report'!T$100:T$199)) -> 0 | W21: =IF($D$4="MAP+ADM Waivers",SUMIF('C Report'!$A$100:$A$199,'C Report Grouper'!$D21,'C Report'!U$100:U$199)+SUMIF('C Report'!$A$300:$A$399,'C Report Grouper'!$D21,'C Report'!U$300:U$399),SUMIF('C Report'!$A$100:$A$199,'C Report Grouper'!$D21,'C Report'!U$100:U$199)) -> 0 | X21: =IF($D$4="MAP+ADM Waivers",SUMIF('C Report'!$A$100:$A$199,'C Report Grouper'!$D21,'C Report'!V$100:V$199)+SUMIF('C Report'!$A$300:$A$399,'C Report Grouper'!$D21,'C Report'!V$300:V$399),SUMIF('C Report'!$A$100:$A$199,'C Report Grouper'!$D21,'C Report'!V$100:V$199)) -> 0 | Y21: =IF($D$4="MAP+ADM Waivers",SUMIF('C Report'!$A$100:$A$199,'C Report Grouper'!$D21,'C Report'!W$100:W$199)+SUMIF('C Report'!$A$300:$A$399,'C Report Grouper'!$D21,'C Report'!W$300:W$399),SUMIF('C Report'!$A$100:$A$199,'C Report Grouper'!$D21,'C Report'!W$100:W$199)) -> 0 | Z21: =IF($D$4="MAP+ADM Waivers",SUMIF('C Report'!$A$100:$A$199,'C Report Grouper'!$D21,'C Report'!X$100:X$199)+SUMIF('C Report'!$A$300:$A$399,'C Report Grouper'!$D21,'C Report'!X$300:X$399),SUMIF('C Report'!$A$100:$A$199,'C Report Grouper'!$D21,'C Report'!X$100:X$199)) -> 0 | AA21: =IF($D$4="MAP+ADM Waivers",SUMIF('C Report'!$A$100:$A$199,'C Report Grouper'!$D21,'C Report'!Y$100:Y$199)+SUMIF('C Report'!$A$300:$A$399,'C Report Grouper'!$D21,'C Report'!Y$300:Y$399),SUMIF('C Report'!$A$100:$A$199,'C Report Grouper'!$D21,'C Report'!Y$100:Y$199)) -> 0 | AB21: =IF($D$4="MAP+ADM Waivers",SUMIF('C Report'!$A$100:$A$199,'C Report Grouper'!$D21,'C Report'!Z$100:Z$199)+SUMIF('C Report'!$A$300:$A$399,'C Report Grouper'!$D21,'C Report'!Z$300:Z$399),SUMIF('C Report'!$A$100:$A$199,'C Report Grouper'!$D21,'C Report'!Z$100:Z$199)) -> 0 | AC21: =IF($D$4="MAP+ADM Waivers",SUMIF('C Report'!$A$100:$A$199,'C Report Grouper'!$D21,'C Report'!AA$100:AA$199)+SUMIF('C Report'!$A$300:$A$399,'C Report Grouper'!$D21,'C Report'!AA$300:AA$399),SUMIF('C Report'!$A$100:$A$199,'C Report Grouper'!$D21,'C Report'!AA$100:AA$199)) -> 0 | AD21: =IF($D$4="MAP+ADM Waivers",SUMIF('C Report'!$A$100:$A$199,'C Report Grouper'!$D21,'C Report'!AB$100:AB$199)+SUMIF('C Report'!$A$300:$A$399,'C Report Grouper'!$D21,'C Report'!AB$300:AB$399),SUMIF('C Report'!$A$100:$A$199,'C Report Grouper'!$D21,'C Report'!AB$100:AB$199)) -> 0 | AE21: =IF($D$4="MAP+ADM Waivers",SUMIF('C Report'!$A$100:$A$199,'C Report Grouper'!$D21,'C Report'!AC$100:AC$199)+SUMIF('C Report'!$A$300:$A$399,'C Report Grouper'!$D21,'C Report'!AC$300:AC$399),SUMIF('C Report'!$A$100:$A$199,'C Report Grouper'!$D21,'C Report'!AC$100:AC$199)) -> 0 | AF21: =IF($D$4="MAP+ADM Waivers",SUMIF('C Report'!$A$100:$A$199,'C Report Grouper'!$D21,'C Report'!AD$100:AD$199)+SUMIF('C Report'!$A$300:$A$399,'C Report Grouper'!$D21,'C Report'!AD$300:AD$399),SUMIF('C Report'!$A$100:$A$199,'C Report Grouper'!$D21,'C Report'!AD$100:AD$199)) -> 0 | AG21: =IF($D$4="MAP+ADM Waivers",SUMIF('C Report'!$A$100:$A$199,'C Report Grouper'!$D21,'C Report'!AE$100:AE$199)+SUMIF('C Report'!$A$300:$A$399,'C Report Grouper'!$D21,'C Report'!AE$300:AE$399),SUMIF('C Report'!$A$100:$A$199,'C Report Grouper'!$D21,'C Report'!AE$100:AE$199)) -> 0 | AH21: =IF($D$4="MAP+ADM Waivers",SUMIF('C Report'!$A$100:$A$199,'C Report Grouper'!$D21,'C Report'!AF$100:AF$199)+SUMIF('C Report'!$A$300:$A$399,'C Report Grouper'!$D21,'C Report'!AF$300:AF$399),SUMIF('C Report'!$A$100:$A$199,'C Report Grouper'!$D21,'C Report'!AF$100:AF$199)) -> 0
E22: =IF($D$4="MAP+ADM Waivers",SUMIF('C Report'!$A$100:$A$199,'C Report Grouper'!$D22,'C Report'!C$100:C$199)+SUMIF('C Report'!$A$300:$A$399,'C Report Grouper'!$D22,'C Report'!C$300:C$399),SUMIF('C Report'!$A$100:$A$199,'C Report Grouper'!$D22,'C Report'!C$100:C$199)) -> 0 | F22: =IF($D$4="MAP+ADM Waivers",SUMIF('C Report'!$A$100:$A$199,'C Report Grouper'!$D22,'C Report'!D$100:D$199)+SUMIF('C Report'!$A$300:$A$399,'C Report Grouper'!$D22,'C Report'!D$300:D$399),SUMIF('C Report'!$A$100:$A$199,'C Report Grouper'!$D22,'C Report'!D$100:D$199)) -> 0 | G22: =IF($D$4="MAP+ADM Waivers",SUMIF('C Report'!$A$100:$A$199,'C Report Grouper'!$D22,'C Report'!E$100:E$199)+SUMIF('C Report'!$A$300:$A$399,'C Report Grouper'!$D22,'C Report'!E$300:E$399),SUMIF('C Report'!$A$100:$A$199,'C Report Grouper'!$D22,'C Report'!E$100:E$199)) -> 0 | H22: =IF($D$4="MAP+ADM Waivers",SUMIF('C Report'!$A$100:$A$199,'C Report Grouper'!$D22,'C Report'!F$100:F$199)+SUMIF('C Report'!$A$300:$A$399,'C Report Grouper'!$D22,'C Report'!F$300:F$399),SUMIF('C Report'!$A$100:$A$199,'C Report Grouper'!$D22,'C Report'!F$100:F$199)) -> 0 | I22: =IF($D$4="MAP+ADM Waivers",SUMIF('C Report'!$A$100:$A$199,'C Report Grouper'!$D22,'C Report'!G$100:G$199)+SUMIF('C Report'!$A$300:$A$399,'C Report Grouper'!$D22,'C Report'!G$300:G$399),SUMIF('C Report'!$A$100:$A$199,'C Report Grouper'!$D22,'C Report'!G$100:G$199)) -> 0 | J22: =IF($D$4="MAP+ADM Waivers",SUMIF('C Report'!$A$100:$A$199,'C Report Grouper'!$D22,'C Report'!H$100:H$199)+SUMIF('C Report'!$A$300:$A$399,'C Report Grouper'!$D22,'C Report'!H$300:H$399),SUMIF('C Report'!$A$100:$A$199,'C Report Grouper'!$D22,'C Report'!H$100:H$199)) -> 0 | K22: =IF($D$4="MAP+ADM Waivers",SUMIF('C Report'!$A$100:$A$199,'C Report Grouper'!$D22,'C Report'!I$100:I$199)+SUMIF('C Report'!$A$300:$A$399,'C Report Grouper'!$D22,'C Report'!I$300:I$399),SUMIF('C Report'!$A$100:$A$199,'C Report Grouper'!$D22,'C Report'!I$100:I$199)) -> 0 | L22: =IF($D$4="MAP+ADM Waivers",SUMIF('C Report'!$A$100:$A$199,'C Report Grouper'!$D22,'C Report'!J$100:J$199)+SUMIF('C Report'!$A$300:$A$399,'C Report Grouper'!$D22,'C Report'!J$300:J$399),SUMIF('C Report'!$A$100:$A$199,'C Report Grouper'!$D22,'C Report'!J$100:J$199)) -> 0 | M22: =IF($D$4="MAP+ADM Waivers",SUMIF('C Report'!$A$100:$A$199,'C Report Grouper'!$D22,'C Report'!K$100:K$199)+SUMIF('C Report'!$A$300:$A$399,'C Report Grouper'!$D22,'C Report'!K$300:K$399),SUMIF('C Report'!$A$100:$A$199,'C Report Grouper'!$D22,'C Report'!K$100:K$199)) -> 0 | N22: =IF($D$4="MAP+ADM Waivers",SUMIF('C Report'!$A$100:$A$199,'C Report Grouper'!$D22,'C Report'!L$100:L$199)+SUMIF('C Report'!$A$300:$A$399,'C Report Grouper'!$D22,'C Report'!L$300:L$399),SUMIF('C Report'!$A$100:$A$199,'C Report Grouper'!$D22,'C Report'!L$100:L$199)) -> 0 | O22: =IF($D$4="MAP+ADM Waivers",SUMIF('C Report'!$A$100:$A$199,'C Report Grouper'!$D22,'C Report'!M$100:M$199)+SUMIF('C Report'!$A$300:$A$399,'C Report Grouper'!$D22,'C Report'!M$300:M$399),SUMIF('C Report'!$A$100:$A$199,'C Report Grouper'!$D22,'C Report'!M$100:M$199)) -> 0 | P22: =IF($D$4="MAP+ADM Waivers",SUMIF('C Report'!$A$100:$A$199,'C Report Grouper'!$D22,'C Report'!N$100:N$199)+SUMIF('C Report'!$A$300:$A$399,'C Report Grouper'!$D22,'C Report'!N$300:N$399),SUMIF('C Report'!$A$100:$A$199,'C Report Grouper'!$D22,'C Report'!N$100:N$199)) -> 0 | Q22: =IF($D$4="MAP+ADM Waivers",SUMIF('C Report'!$A$100:$A$199,'C Report Grouper'!$D22,'C Report'!O$100:O$199)+SUMIF('C Report'!$A$300:$A$399,'C Report Grouper'!$D22,'C Report'!O$300:O$399),SUMIF('C Report'!$A$100:$A$199,'C Report Grouper'!$D22,'C Report'!O$100:O$199)) -> 0 | R22: =IF($D$4="MAP+ADM Waivers",SUMIF('C Report'!$A$100:$A$199,'C Report Grouper'!$D22,'C Report'!P$100:P$199)+SUMIF('C Report'!$A$300:$A$399,'C Report Grouper'!$D22,'C Report'!P$300:P$399),SUMIF('C Report'!$A$100:$A$199,'C Report Grouper'!$D22,'C Report'!P$100:P$199)) -> 0 | S22: =IF($D$4="MAP+ADM Waivers",SUMIF('C Report'!$A$100:$A$199,'C Report Grouper'!$D22,'C Report'!Q$100:Q$199)+SUMIF('C Report'!$A$300:$A$399,'C Report Grouper'!$D22,'C Report'!Q$300:Q$399),SUMIF('C Report'!$A$100:$A$199,'C Report Grouper'!$D22,'C Report'!Q$100:Q$199)) -> 0 | T22: =IF($D$4="MAP+ADM Waivers",SUMIF('C Report'!$A$100:$A$199,'C Report Grouper'!$D22,'C Report'!R$100:R$199)+SUMIF('C Report'!$A$300:$A$399,'C Report Grouper'!$D22,'C Report'!R$300:R$399),SUMIF('C Report'!$A$100:$A$199,'C Report Grouper'!$D22,'C Report'!R$100:R$199)) -> 0 | U22: =IF($D$4="MAP+ADM Waivers",SUMIF('C Report'!$A$100:$A$199,'C Report Grouper'!$D22,'C Report'!S$100:S$199)+SUMIF('C Report'!$A$300:$A$399,'C Report Grouper'!$D22,'C Report'!S$300:S$399),SUMIF('C Report'!$A$100:$A$199,'C Report Grouper'!$D22,'C Report'!S$100:S$199)) -> 0 | V22: =IF($D$4="MAP+ADM Waivers",SUMIF('C Report'!$A$100:$A$199,'C Report Grouper'!$D22,'C Report'!T$100:T$199)+SUMIF('C Report'!$A$300:$A$399,'C Report Grouper'!$D22,'C Report'!T$300:T$399),SUMIF('C Report'!$A$100:$A$199,'C Report Grouper'!$D22,'C Report'!T$100:T$199)) -> 0 | W22: =IF($D$4="MAP+ADM Waivers",SUMIF('C Report'!$A$100:$A$199,'C Report Grouper'!$D22,'C Report'!U$100:U$199)+SUMIF('C Report'!$A$300:$A$399,'C Report Grouper'!$D22,'C Report'!U$300:U$399),SUMIF('C Report'!$A$100:$A$199,'C Report Grouper'!$D22,'C Report'!U$100:U$199)) -> 0 | X22: =IF($D$4="MAP+ADM Waivers",SUMIF('C Report'!$A$100:$A$199,'C Report Grouper'!$D22,'C Report'!V$100:V$199)+SUMIF('C Report'!$A$300:$A$399,'C Report Grouper'!$D22,'C Report'!V$300:V$399),SUMIF('C Report'!$A$100:$A$199,'C Report Grouper'!$D22,'C Report'!V$100:V$199)) -> 0 | Y22: =IF($D$4="MAP+ADM Waivers",SUMIF('C Report'!$A$100:$A$199,'C Report Grouper'!$D22,'C Report'!W$100:W$199)+SUMIF('C Report'!$A$300:$A$399,'C Report Grouper'!$D22,'C Report'!W$300:W$399),SUMIF('C Report'!$A$100:$A$199,'C Report Grouper'!$D22,'C Report'!W$100:W$199)) -> 0 | Z22: =IF($D$4="MAP+ADM Waivers",SUMIF('C Report'!$A$100:$A$199,'C Report Grouper'!$D22,'C Report'!X$100:X$199)+SUMIF('C Report'!$A$300:$A$399,'C Report Grouper'!$D22,'C Report'!X$300:X$399),SUMIF('C Report'!$A$100:$A$199,'C Report Grouper'!$D22,'C Report'!X$100:X$199)) -> 0 | AA22: =IF($D$4="MAP+ADM Waivers",SUMIF('C Report'!$A$100:$A$199,'C Report Grouper'!$D22,'C Report'!Y$100:Y$199)+SUMIF('C Report'!$A$300:$A$399,'C Report Grouper'!$D22,'C Report'!Y$300:Y$399),SUMIF('C Report'!$A$100:$A$199,'C Report Grouper'!$D22,'C Report'!Y$100:Y$199)) -> 0 | AB22: =IF($D$4="MAP+ADM Waivers",SUMIF('C Report'!$A$100:$A$199,'C Report Grouper'!$D22,'C Report'!Z$100:Z$199)+SUMIF('C Report'!$A$300:$A$399,'C Report Grouper'!$D22,'C Report'!Z$300:Z$399),SUMIF('C Report'!$A$100:$A$199,'C Report Grouper'!$D22,'C Report'!Z$100:Z$199)) -> 0 | AC22: =IF($D$4="MAP+ADM Waivers",SUMIF('C Report'!$A$100:$A$199,'C Report Grouper'!$D22,'C Report'!AA$100:AA$199)+SUMIF('C Report'!$A$300:$A$399,'C Report Grouper'!$D22,'C Report'!AA$300:AA$399),SUMIF('C Report'!$A$100:$A$199,'C Report Grouper'!$D22,'C Report'!AA$100:AA$199)) -> 0 | AD22: =IF($D$4="MAP+ADM Waivers",SUMIF('C Report'!$A$100:$A$199,'C Report Grouper'!$D22,'C Report'!AB$100:AB$199)+SUMIF('C Report'!$A$300:$A$399,'C Report Grouper'!$D22,'C Report'!AB$300:AB$399),SUMIF('C Report'!$A$100:$A$199,'C Report Grouper'!$D22,'C Report'!AB$100:AB$199)) -> 0 | AE22: =IF($D$4="MAP+ADM Waivers",SUMIF('C Report'!$A$100:$A$199,'C Report Grouper'!$D22,'C Report'!AC$100:AC$199)+SUMIF('C Report'!$A$300:$A$399,'C Report Grouper'!$D22,'C Report'!AC$300:AC$399),SUMIF('C Report'!$A$100:$A$199,'C Report Grouper'!$D22,'C Report'!AC$100:AC$199)) -> 0 | AF22: =IF($D$4="MAP+ADM Waivers",SUMIF('C Report'!$A$100:$A$199,'C Report Grouper'!$D22,'C Report'!AD$100:AD$199)+SUMIF('C Report'!$A$300:$A$399,'C Report Grouper'!$D22,'C Report'!AD$300:AD$399),SUMIF('C Report'!$A$100:$A$199,'C Report Grouper'!$D22,'C Report'!AD$100:AD$199)) -> 0 | AG22: =IF($D$4="MAP+ADM Waivers",SUMIF('C Report'!$A$100:$A$199,'C Report Grouper'!$D22,'C Report'!AE$100:AE$199)+SUMIF('C Report'!$A$300:$A$399,'C Report Grouper'!$D22,'C Report'!AE$300:AE$399),SUMIF('C Report'!$A$100:$A$199,'C Report Grouper'!$D22,'C Report'!AE$100:AE$199)) -> 0 | AH22: =IF($D$4="MAP+ADM Waivers",SUMIF('C Report'!$A$100:$A$199,'C Report Grouper'!$D22,'C Report'!AF$100:AF$199)+SUMIF('C Report'!$A$300:$A$399,'C Report Grouper'!$D22,'C Report'!AF$300:AF$399),SUMIF('C Report'!$A$100:$A$199,'C Report Grouper'!$D22,'C Report'!AF$100:AF$199)) -> 0
B23: Medicaid Aggregate - WW only | E23: =IF($D$4="MAP+ADM Waivers",SUMIF('C Report'!$A$100:$A$199,'C Report Grouper'!$D23,'C Report'!C$100:C$199)+SUMIF('C Report'!$A$300:$A$399,'C Report Grouper'!$D23,'C Report'!C$300:C$399),SUMIF('C Report'!$A$100:$A$199,'C Report Grouper'!$D23,'C Report'!C$100:C$199)) -> 0 | F23: =IF($D$4="MAP+ADM Waivers",SUMIF('C Report'!$A$100:$A$199,'C Report Grouper'!$D23,'C Report'!D$100:D$199)+SUMIF('C Report'!$A$300:$A$399,'C Report Grouper'!$D23,'C Report'!D$300:D$399),SUMIF('C Report'!$A$100:$A$199,'C Report Grouper'!$D23,'C Report'!D$100:D$199)) -> 0 | G23: =IF($D$4="MAP+ADM Waivers",SUMIF('C Report'!$A$100:$A$199,'C Report Grouper'!$D23,'C Report'!E$100:E$199)+SUMIF('C Report'!$A$300:$A$399,'C Report Grouper'!$D23,'C Report'!E$300:E$399),SUMIF('C Report'!$A$100:$A$199,'C Report Grouper'!$D23,'C Report'!E$100:E$199)) -> 0 | H23: =IF($D$4="MAP+ADM Waivers",SUMIF('C Report'!$A$100:$A$199,'C Report Grouper'!$D23,'C Report'!F$100:F$199)+SUMIF('C Report'!$A$300:$A$399,'C Report Grouper'!$D23,'C Report'!F$300:F$399),SUMIF('C Report'!$A$100:$A$199,'C Report Grouper'!$D23,'C Report'!F$100:F$199)) -> 0 | I23: =IF($D$4="MAP+ADM Waivers",SUMIF('C Report'!$A$100:$A$199,'C Report Grouper'!$D23,'C Report'!G$100:G$199)+SUMIF('C Report'!$A$300:$A$399,'C Report Grouper'!$D23,'C Report'!G$300:G$399),SUMIF('C Report'!$A$100:$A$199,'C Report Grouper'!$D23,'C Report'!G$100:G$199)) -> 0 | J23: =IF($D$4="MAP+ADM Waivers",SUMIF('C Report'!$A$100:$A$199,'C Report Grouper'!$D23,'C Report'!H$100:H$199)+SUMIF('C Report'!$A$300:$A$399,'C Report Grouper'!$D23,'C Report'!H$300:H$399),SUMIF('C Report'!$A$100:$A$199,'C Report Grouper'!$D23,'C Report'!H$100:H$199)) -> 0 | K23: =IF($D$4="MAP+ADM Waivers",SUMIF('C Report'!$A$100:$A$199,'C Report Grouper'!$D23,'C Report'!I$100:I$199)+SUMIF('C Report'!$A$300:$A$399,'C Report Grouper'!$D23,'C Report'!I$300:I$399),SUMIF('C Report'!$A$100:$A$199,'C Report Grouper'!$D23,'C Report'!I$100:I$199)) -> 0 | L23: =IF($D$4="MAP+ADM Waivers",SUMIF('C Report'!$A$100:$A$199,'C Report Grouper'!$D23,'C Report'!J$100:J$199)+SUMIF('C Report'!$A$300:$A$399,'C Report Grouper'!$D23,'C Report'!J$300:J$399),SUMIF('C Report'!$A$100:$A$199,'C Report Grouper'!$D23,'C Report'!J$100:J$199)) -> 0 | M23: =IF($D$4="MAP+ADM Waivers",SUMIF('C Report'!$A$100:$A$199,'C Report Grouper'!$D23,'C Report'!K$100:K$199)+SUMIF('C Report'!$A$300:$A$399,'C Report Grouper'!$D23,'C Report'!K$300:K$399),SUMIF('C Report'!$A$100:$A$199,'C Report Grouper'!$D23,'C Report'!K$100:K$199)) -> 0 | N23: =IF($D$4="MAP+ADM Waivers",SUMIF('C Report'!$A$100:$A$199,'C Report Grouper'!$D23,'C Report'!L$100:L$199)+SUMIF('C Report'!$A$300:$A$399,'C Report Grouper'!$D23,'C Report'!L$300:L$399),SUMIF('C Report'!$A$100:$A$199,'C Report Grouper'!$D23,'C Report'!L$100:L$199)) -> 0 | O23: =IF($D$4="MAP+ADM Waivers",SUMIF('C Report'!$A$100:$A$199,'C Report Grouper'!$D23,'C Report'!M$100:M$199)+SUMIF('C Report'!$A$300:$A$399,'C Report Grouper'!$D23,'C Report'!M$300:M$399),SUMIF('C Report'!$A$100:$A$199,'C Report Grouper'!$D23,'C Report'!M$100:M$199)) -> 0 | P23: =IF($D$4="MAP+ADM Waivers",SUMIF('C Report'!$A$100:$A$199,'C Report Grouper'!$D23,'C Report'!N$100:N$199)+SUMIF('C Report'!$A$300:$A$399,'C Report Grouper'!$D23,'C Report'!N$300:N$399),SUMIF('C Report'!$A$100:$A$199,'C Report Grouper'!$D23,'C Report'!N$100:N$199)) -> 0 | Q23: =IF($D$4="MAP+ADM Waivers",SUMIF('C Report'!$A$100:$A$199,'C Report Grouper'!$D23,'C Report'!O$100:O$199)+SUMIF('C Report'!$A$300:$A$399,'C Report Grouper'!$D23,'C Report'!O$300:O$399),SUMIF('C Report'!$A$100:$A$199,'C Report Grouper'!$D23,'C Report'!O$100:O$199)) -> 0 | R23: =IF($D$4="MAP+ADM Waivers",SUMIF('C Report'!$A$100:$A$199,'C Report Grouper'!$D23,'C Report'!P$100:P$199)+SUMIF('C Report'!$A$300:$A$399,'C Report Grouper'!$D23,'C Report'!P$300:P$399),SUMIF('C Report'!$A$100:$A$199,'C Report Grouper'!$D23,'C Report'!P$100:P$199)) -> 0 | S23: =IF($D$4="MAP+ADM Waivers",SUMIF('C Report'!$A$100:$A$199,'C Report Grouper'!$D23,'C Report'!Q$100:Q$199)+SUMIF('C Report'!$A$300:$A$399,'C Report Grouper'!$D23,'C Report'!Q$300:Q$399),SUMIF('C Report'!$A$100:$A$199,'C Report Grouper'!$D23,'C Report'!Q$100:Q$199)) -> 0 | T23: =IF($D$4="MAP+ADM Waivers",SUMIF('C Report'!$A$100:$A$199,'C Report Grouper'!$D23,'C Report'!R$100:R$199)+SUMIF('C Report'!$A$300:$A$399,'C Report Grouper'!$D23,'C Report'!R$300:R$399),SUMIF('C Report'!$A$100:$A$199,'C Report Grouper'!$D23,'C Report'!R$100:R$199)) -> 0 | U23: =IF($D$4="MAP+ADM Waivers",SUMIF('C Report'!$A$100:$A$199,'C Report Grouper'!$D23,'C Report'!S$100:S$199)+SUMIF('C Report'!$A$300:$A$399,'C Report Grouper'!$D23,'C Report'!S$300:S$399),SUMIF('C Report'!$A$100:$A$199,'C Report Grouper'!$D23,'C Report'!S$100:S$199)) -> 0 | V23: =IF($D$4="MAP+ADM Waivers",SUMIF('C Report'!$A$100:$A$199,'C Report Grouper'!$D23,'C Report'!T$100:T$199)+SUMIF('C Report'!$A$300:$A$399,'C Report Grouper'!$D23,'C Report'!T$300:T$399),SUMIF('C Report'!$A$100:$A$199,'C Report Grouper'!$D23,'C Report'!T$100:T$199)) -> 0 | W23: =IF($D$4="MAP+ADM Waivers",SUMIF('C Report'!$A$100:$A$199,'C Report Grouper'!$D23,'C Report'!U$100:U$199)+SUMIF('C Report'!$A$300:$A$399,'C Report Grouper'!$D23,'C Report'!U$300:U$399),SUMIF('C Report'!$A$100:$A$199,'C Report Grouper'!$D23,'C Report'!U$100:U$199)) -> 0 | X23: =IF($D$4="MAP+ADM Waivers",SUMIF('C Report'!$A$100:$A$199,'C Report Grouper'!$D23,'C Report'!V$100:V$199)+SUMIF('C Report'!$A$300:$A$399,'C Report Grouper'!$D23,'C Report'!V$300:V$399),SUMIF('C Report'!$A$100:$A$199,'C Report Grouper'!$D23,'C Report'!V$100:V$199)) -> 0 | Y23: =IF($D$4="MAP+ADM Waivers",SUMIF('C Report'!$A$100:$A$199,'C Report Grouper'!$D23,'C Report'!W$100:W$199)+SUMIF('C Report'!$A$300:$A$399,'C Report Grouper'!$D23,'C Report'!W$300:W$399),SUMIF('C Report'!$A$100:$A$199,'C Report Grouper'!$D23,'C Report'!W$100:W$199)) -> 0 | Z23: =IF($D$4="MAP+ADM Waivers",SUMIF('C Report'!$A$100:$A$199,'C Report Grouper'!$D23,'C Report'!X$100:X$199)+SUMIF('C Report'!$A$300:$A$399,'C Report Grouper'!$D23,'C Report'!X$300:X$399),SUMIF('C Report'!$A$100:$A$199,'C Report Grouper'!$D23,'C Report'!X$100:X$199)) -> 0 | AA23: =IF($D$4="MAP+ADM Waivers",SUMIF('C Report'!$A$100:$A$199,'C Report Grouper'!$D23,'C Report'!Y$100:Y$199)+SUMIF('C Report'!$A$300:$A$399,'C Report Grouper'!$D23,'C Report'!Y$300:Y$399),SUMIF('C Report'!$A$100:$A$199,'C Report Grouper'!$D23,'C Report'!Y$100:Y$199)) -> 0 | AB23: =IF($D$4="MAP+ADM Waivers",SUMIF('C Report'!$A$100:$A$199,'C Report Grouper'!$D23,'C Report'!Z$100:Z$199)+SUMIF('C Report'!$A$300:$A$399,'C Report Grouper'!$D23,'C Report'!Z$300:Z$399),SUMIF('C Report'!$A$100:$A$199,'C Report Grouper'!$D23,'C Report'!Z$100:Z$199)) -> 0 | AC23: =IF($D$4="MAP+ADM Waivers",SUMIF('C Report'!$A$100:$A$199,'C Report Grouper'!$D23,'C Report'!AA$100:AA$199)+SUMIF('C Report'!$A$300:$A$399,'C Report Grouper'!$D23,'C Report'!AA$300:AA$399),SUMIF('C Report'!$A$100:$A$199,'C Report Grouper'!$D23,'C Report'!AA$100:AA$199)) -> 0 | AD23: =IF($D$4="MAP+ADM Waivers",SUMIF('C Report'!$A$100:$A$199,'C Report Grouper'!$D23,'C Report'!AB$100:AB$199)+SUMIF('C Report'!$A$300:$A$399,'C Report Grouper'!$D23,'C Report'!AB$300:AB$399),SUMIF('C Report'!$A$100:$A$199,'C Report Grouper'!$D23,'C Report'!AB$100:AB$199)) -> 0 | AE23: =IF($D$4="MAP+ADM Waivers",SUMIF('C Report'!$A$100:$A$199,'C Report Grouper'!$D23,'C Report'!AC$100:AC$199)+SUMIF('C Report'!$A$300:$A$399,'C Report Grouper'!$D23,'C Report'!AC$300:AC$399),SUMIF('C Report'!$A$100:$A$199,'C Report Grouper'!$D23,'C Report'!AC$100:AC$199)) -> 0 | AF23: =IF($D$4="MAP+ADM Waivers",SUMIF('C Report'!$A$100:$A$199,'C Report Grouper'!$D23,'C Report'!AD$100:AD$199)+SUMIF('C Report'!$A$300:$A$399,'C Report Grouper'!$D23,'C Report'!AD$300:AD$399),SUMIF('C Report'!$A$100:$A$199,'C Report Grouper'!$D23,'C Report'!AD$100:AD$199)) -> 0 | AG23: =IF($D$4="MAP+ADM Waivers",SUMIF('C Report'!$A$100:$A$199,'C Report Grouper'!$D23,'C Report'!AE$100:AE$199)+SUMIF('C Report'!$A$300:$A$399,'C Report Grouper'!$D23,'C Report'!AE$300:AE$399),SUMIF('C Report'!$A$100:$A$199,'C Report Grouper'!$D23,'C Report'!AE$100:AE$199)) -> 0 | AH23: =IF($D$4="MAP+ADM Waivers",SUMIF('C Report'!$A$100:$A$199,'C Report Grouper'!$D23,'C Report'!AF$100:AF$199)+SUMIF('C Report'!$A$300:$A$399,'C Report Grouper'!$D23,'C Report'!AF$300:AF$399),SUMIF('C Report'!$A$100:$A$199,'C Report Grouper'!$D23,'C Report'!AF$100:AF$199)) -> 0
B24: =IFERROR(VLOOKUP(C24,'MEG Def'!$A$7:$B$40,2),"") ->  | E24: =IF($D$4="MAP+ADM Waivers",SUMIF('C Report'!$A$100:$A$199,'C Report Grouper'!$D24,'C Report'!C$100:C$199)+SUMIF('C Report'!$A$300:$A$399,'C Report Grouper'!$D24,'C Report'!C$300:C$399),SUMIF('C Report'!$A$100:$A$199,'C Report Grouper'!$D24,'C Report'!C$100:C$199)) -> 0 | F24: =IF($D$4="MAP+ADM Waivers",SUMIF('C Report'!$A$100:$A$199,'C Report Grouper'!$D24,'C Report'!D$100:D$199)+SUMIF('C Report'!$A$300:$A$399,'C Report Grouper'!$D24,'C Report'!D$300:D$399),SUMIF('C Report'!$A$100:$A$199,'C Report Grouper'!$D24,'C Report'!D$100:D$199)) -> 0 | G24: =IF($D$4="MAP+ADM Waivers",SUMIF('C Report'!$A$100:$A$199,'C Report Grouper'!$D24,'C Report'!E$100:E$199)+SUMIF('C Report'!$A$300:$A$399,'C Report Grouper'!$D24,'C Report'!E$300:E$399),SUMIF('C Report'!$A$100:$A$199,'C Report Grouper'!$D24,'C Report'!E$100:E$199)) -> 0 | H24: =IF($D$4="MAP+ADM Waivers",SUMIF('C Report'!$A$100:$A$199,'C Report Grouper'!$D24,'C Report'!F$100:F$199)+SUMIF('C Report'!$A$300:$A$399,'C Report Grouper'!$D24,'C Report'!F$300:F$399),SUMIF('C Report'!$A$100:$A$199,'C Report Grouper'!$D24,'C Report'!F$100:F$199)) -> 0 | I24: =IF($D$4="MAP+ADM Waivers",SUMIF('C Report'!$A$100:$A$199,'C Report Grouper'!$D24,'C Report'!G$100:G$199)+SUMIF('C Report'!$A$300:$A$399,'C Report Grouper'!$D24,'C Report'!G$300:G$399),SUMIF('C Report'!$A$100:$A$199,'C Report Grouper'!$D24,'C Report'!G$100:G$199)) -> 0 | J24: =IF($D$4="MAP+ADM Waivers",SUMIF('C Report'!$A$100:$A$199,'C Report Grouper'!$D24,'C Report'!H$100:H$199)+SUMIF('C Report'!$A$300:$A$399,'C Report Grouper'!$D24,'C Report'!H$300:H$399),SUMIF('C Report'!$A$100:$A$199,'C Report Grouper'!$D24,'C Report'!H$100:H$199)) -> 0 | K24: =IF($D$4="MAP+ADM Waivers",SUMIF('C Report'!$A$100:$A$199,'C Report Grouper'!$D24,'C Report'!I$100:I$199)+SUMIF('C Report'!$A$300:$A$399,'C Report Grouper'!$D24,'C Report'!I$300:I$399),SUMIF('C Report'!$A$100:$A$199,'C Report Grouper'!$D24,'C Report'!I$100:I$199)) -> 0 | L24: =IF($D$4="MAP+ADM Waivers",SUMIF('C Report'!$A$100:$A$199,'C Report Grouper'!$D24,'C Report'!J$100:J$199)+SUMIF('C Report'!$A$300:$A$399,'C Report Grouper'!$D24,'C Report'!J$300:J$399),SUMIF('C Report'!$A$100:$A$199,'C Report Grouper'!$D24,'C Report'!J$100:J$199)) -> 0 | M24: =IF($D$4="MAP+ADM Waivers",SUMIF('C Report'!$A$100:$A$199,'C Report Grouper'!$D24,'C Report'!K$100:K$199)+SUMIF('C Report'!$A$300:$A$399,'C Report Grouper'!$D24,'C Report'!K$300:K$399),SUMIF('C Report'!$A$100:$A$199,'C Report Grouper'!$D24,'C Report'!K$100:K$199)) -> 0 | N24: =IF($D$4="MAP+ADM Waivers",SUMIF('C Report'!$A$100:$A$199,'C Report Grouper'!$D24,'C Report'!L$100:L$199)+SUMIF('C Report'!$A$300:$A$399,'C Report Grouper'!$D24,'C Report'!L$300:L$399),SUMIF('C Report'!$A$100:$A$199,'C Report Grouper'!$D24,'C Report'!L$100:L$199)) -> 0 | O24: =IF($D$4="MAP+ADM Waivers",SUMIF('C Report'!$A$100:$A$199,'C Report Grouper'!$D24,'C Report'!M$100:M$199)+SUMIF('C Report'!$A$300:$A$399,'C Report Grouper'!$D24,'C Report'!M$300:M$399),SUMIF('C Report'!$A$100:$A$199,'C Report Grouper'!$D24,'C Report'!M$100:M$199)) -> 0 | P24: =IF($D$4="MAP+ADM Waivers",SUMIF('C Report'!$A$100:$A$199,'C Report Grouper'!$D24,'C Report'!N$100:N$199)+SUMIF('C Report'!$A$300:$A$399,'C Report Grouper'!$D24,'C Report'!N$300:N$399),SUMIF('C Report'!$A$100:$A$199,'C Report Grouper'!$D24,'C Report'!N$100:N$199)) -> 0 | Q24: =IF($D$4="MAP+ADM Waivers",SUMIF('C Report'!$A$100:$A$199,'C Report Grouper'!$D24,'C Report'!O$100:O$199)+SUMIF('C Report'!$A$300:$A$399,'C Report Grouper'!$D24,'C Report'!O$300:O$399),SUMIF('C Report'!$A$100:$A$199,'C Report Grouper'!$D24,'C Report'!O$100:O$199)) -> 0 | R24: =IF($D$4="MAP+ADM Waivers",SUMIF('C Report'!$A$100:$A$199,'C Report Grouper'!$D24,'C Report'!P$100:P$199)+SUMIF('C Report'!$A$300:$A$399,'C Report Grouper'!$D24,'C Report'!P$300:P$399),SUMIF('C Report'!$A$100:$A$199,'C Report Grouper'!$D24,'C Report'!P$100:P$199)) -> 0 | S24: =IF($D$4="MAP+ADM Waivers",SUMIF('C Report'!$A$100:$A$199,'C Report Grouper'!$D24,'C Report'!Q$100:Q$199)+SUMIF('C Report'!$A$300:$A$399,'C Report Grouper'!$D24,'C Report'!Q$300:Q$399),SUMIF('C Report'!$A$100:$A$199,'C Report Grouper'!$D24,'C Report'!Q$100:Q$199)) -> 0 | T24: =IF($D$4="MAP+ADM Waivers",SUMIF('C Report'!$A$100:$A$199,'C Report Grouper'!$D24,'C Report'!R$100:R$199)+SUMIF('C Report'!$A$300:$A$399,'C Report Grouper'!$D24,'C Report'!R$300:R$399),SUMIF('C Report'!$A$100:$A$199,'C Report Grouper'!$D24,'C Report'!R$100:R$199)) -> 0 | U24: =IF($D$4="MAP+ADM Waivers",SUMIF('C Report'!$A$100:$A$199,'C Report Grouper'!$D24,'C Report'!S$100:S$199)+SUMIF('C Report'!$A$300:$A$399,'C Report Grouper'!$D24,'C Report'!S$300:S$399),SUMIF('C Report'!$A$100:$A$199,'C Report Grouper'!$D24,'C Report'!S$100:S$199)) -> 0 | V24: =IF($D$4="MAP+ADM Waivers",SUMIF('C Report'!$A$100:$A$199,'C Report Grouper'!$D24,'C Report'!T$100:T$199)+SUMIF('C Report'!$A$300:$A$399,'C Report Grouper'!$D24,'C Report'!T$300:T$399),SUMIF('C Report'!$A$100:$A$199,'C Report Grouper'!$D24,'C Report'!T$100:T$199)) -> 0 | W24: =IF($D$4="MAP+ADM Waivers",SUMIF('C Report'!$A$100:$A$199,'C Report Grouper'!$D24,'C Report'!U$100:U$199)+SUMIF('C Report'!$A$300:$A$399,'C Report Grouper'!$D24,'C Report'!U$300:U$399),SUMIF('C Report'!$A$100:$A$199,'C Report Grouper'!$D24,'C Report'!U$100:U$199)) -> 0 | X24: =IF($D$4="MAP+ADM Waivers",SUMIF('C Report'!$A$100:$A$199,'C Report Grouper'!$D24,'C Report'!V$100:V$199)+SUMIF('C Report'!$A$300:$A$399,'C Report Grouper'!$D24,'C Report'!V$300:V$399),SUMIF('C Report'!$A$100:$A$199,'C Report Grouper'!$D24,'C Report'!V$100:V$199)) -> 0 | Y24: =IF($D$4="MAP+ADM Waivers",SUMIF('C Report'!$A$100:$A$199,'C Report Grouper'!$D24,'C Report'!W$100:W$199)+SUMIF('C Report'!$A$300:$A$399,'C Report Grouper'!$D24,'C Report'!W$300:W$399),SUMIF('C Report'!$A$100:$A$199,'C Report Grouper'!$D24,'C Report'!W$100:W$199)) -> 0 | Z24: =IF($D$4="MAP+ADM Waivers",SUMIF('C Report'!$A$100:$A$199,'C Report Grouper'!$D24,'C Report'!X$100:X$199)+SUMIF('C Report'!$A$300:$A$399,'C Report Grouper'!$D24,'C Report'!X$300:X$399),SUMIF('C Report'!$A$100:$A$199,'C Report Grouper'!$D24,'C Report'!X$100:X$199)) -> 0 | AA24: =IF($D$4="MAP+ADM Waivers",SUMIF('C Report'!$A$100:$A$199,'C Report Grouper'!$D24,'C Report'!Y$100:Y$199)+SUMIF('C Report'!$A$300:$A$399,'C Report Grouper'!$D24,'C Report'!Y$300:Y$399),SUMIF('C Report'!$A$100:$A$199,'C Report Grouper'!$D24,'C Report'!Y$100:Y$199)) -> 0 | AB24: =IF($D$4="MAP+ADM Waivers",SUMIF('C Report'!$A$100:$A$199,'C Report Grouper'!$D24,'C Report'!Z$100:Z$199)+SUMIF('C Report'!$A$300:$A$399,'C Report Grouper'!$D24,'C Report'!Z$300:Z$399),SUMIF('C Report'!$A$100:$A$199,'C Report Grouper'!$D24,'C Report'!Z$100:Z$199)) -> 0 | AC24: =IF($D$4="MAP+ADM Waivers",SUMIF('C Report'!$A$100:$A$199,'C Report Grouper'!$D24,'C Report'!AA$100:AA$199)+SUMIF('C Report'!$A$300:$A$399,'C Report Grouper'!$D24,'C Report'!AA$300:AA$399),SUMIF('C Report'!$A$100:$A$199,'C Report Grouper'!$D24,'C Report'!AA$100:AA$199)) -> 0 | AD24: =IF($D$4="MAP+ADM Waivers",SUMIF('C Report'!$A$100:$A$199,'C Report Grouper'!$D24,'C Report'!AB$100:AB$199)+SUMIF('C Report'!$A$300:$A$399,'C Report Grouper'!$D24,'C Report'!AB$300:AB$399),SUMIF('C Report'!$A$100:$A$199,'C Report Grouper'!$D24,'C Report'!AB$100:AB$199)) -> 0 | AE24: =IF($D$4="MAP+ADM Waivers",SUMIF('C Report'!$A$100:$A$199,'C Report Grouper'!$D24,'C Report'!AC$100:AC$199)+SUMIF('C Report'!$A$300:$A$399,'C Report Grouper'!$D24,'C Report'!AC$300:AC$399),SUMIF('C Report'!$A$100:$A$199,'C Report Grouper'!$D24,'C Report'!AC$100:AC$199)) -> 0 | AF24: =IF($D$4="MAP+ADM Waivers",SUMIF('C Report'!$A$100:$A$199,'C Report Grouper'!$D24,'C Report'!AD$100:AD$199)+SUMIF('C Report'!$A$300:$A$399,'C Report Grouper'!$D24,'C Report'!AD$300:AD$399),SUMIF('C Report'!$A$100:$A$199,'C Report Grouper'!$D24,'C Report'!AD$100:AD$199)) -> 0 | AG24: =IF($D$4="MAP+ADM Waivers",SUMIF('C Report'!$A$100:$A$199,'C Report Grouper'!$D24,'C Report'!AE$100:AE$199)+SUMIF('C Report'!$A$300:$A$399,'C Report Grouper'!$D24,'C Report'!AE$300:AE$399),SUMIF('C Report'!$A$100:$A$199,'C Report Grouper'!$D24,'C Report'!AE$100:AE$199)) -> 0 | AH24: =IF($D$4="MAP+ADM Waivers",SUMIF('C Report'!$A$100:$A$199,'C Report Grouper'!$D24,'C Report'!AF$100:AF$199)+SUMIF('C Report'!$A$300:$A$399,'C Report Grouper'!$D24,'C Report'!AF$300:AF$399),SUMIF('C Report'!$A$100:$A$199,'C Report Grouper'!$D24,'C Report'!AF$100:AF$199)) -> 0
B25: =IFERROR(VLOOKUP(C25,'MEG Def'!$A$7:$B$40,2),"") ->  | E25: =IF($D$4="MAP+ADM Waivers",SUMIF('C Report'!$A$100:$A$199,'C Report Grouper'!$D25,'C Report'!C$100:C$199)+SUMIF('C Report'!$A$300:$A$399,'C Report Grouper'!$D25,'C Report'!C$300:C$399),SUMIF('C Report'!$A$100:$A$199,'C Report Grouper'!$D25,'C Report'!C$100:C$199)) -> 0 | F25: =IF($D$4="MAP+ADM Waivers",SUMIF('C Report'!$A$100:$A$199,'C Report Grouper'!$D25,'C Report'!D$100:D$199)+SUMIF('C Report'!$A$300:$A$399,'C Report Grouper'!$D25,'C Report'!D$300:D$399),SUMIF('C Report'!$A$100:$A$199,'C Report Grouper'!$D25,'C Report'!D$100:D$199)) -> 0 | G25: =IF($D$4="MAP+ADM Waivers",SUMIF('C Report'!$A$100:$A$199,'C Report Grouper'!$D25,'C Report'!E$100:E$199)+SUMIF('C Report'!$A$300:$A$399,'C Report Grouper'!$D25,'C Report'!E$300:E$399),SUMIF('C Report'!$A$100:$A$199,'C Report Grouper'!$D25,'C Report'!E$100:E$199)) -> 0 | H25: =IF($D$4="MAP+ADM Waivers",SUMIF('C Report'!$A$100:$A$199,'C Report Grouper'!$D25,'C Report'!F$100:F$199)+SUMIF('C Report'!$A$300:$A$399,'C Report Grouper'!$D25,'C Report'!F$300:F$399),SUMIF('C Report'!$A$100:$A$199,'C Report Grouper'!$D25,'C Report'!F$100:F$199)) -> 0 | I25: =IF($D$4="MAP+ADM Waivers",SUMIF('C Report'!$A$100:$A$199,'C Report Grouper'!$D25,'C Report'!G$100:G$199)+SUMIF('C Report'!$A$300:$A$399,'C Report Grouper'!$D25,'C Report'!G$300:G$399),SUMIF('C Report'!$A$100:$A$199,'C Report Grouper'!$D25,'C Report'!G$100:G$199)) -> 0 | J25: =IF($D$4="MAP+ADM Waivers",SUMIF('C Report'!$A$100:$A$199,'C Report Grouper'!$D25,'C Report'!H$100:H$199)+SUMIF('C Report'!$A$300:$A$399,'C Report Grouper'!$D25,'C Report'!H$300:H$399),SUMIF('C Report'!$A$100:$A$199,'C Report Grouper'!$D25,'C Report'!H$100:H$199)) -> 0 | K25: =IF($D$4="MAP+ADM Waivers",SUMIF('C Report'!$A$100:$A$199,'C Report Grouper'!$D25,'C Report'!I$100:I$199)+SUMIF('C Report'!$A$300:$A$399,'C Report Grouper'!$D25,'C Report'!I$300:I$399),SUMIF('C Report'!$A$100:$A$199,'C Report Grouper'!$D25,'C Report'!I$100:I$199)) -> 0 | L25: =IF($D$4="MAP+ADM Waivers",SUMIF('C Report'!$A$100:$A$199,'C Report Grouper'!$D25,'C Report'!J$100:J$199)+SUMIF('C Report'!$A$300:$A$399,'C Report Grouper'!$D25,'C Report'!J$300:J$399),SUMIF('C Report'!$A$100:$A$199,'C Report Grouper'!$D25,'C Report'!J$100:J$199)) -> 0 | M25: =IF($D$4="MAP+ADM Waivers",SUMIF('C Report'!$A$100:$A$199,'C Report Grouper'!$D25,'C Report'!K$100:K$199)+SUMIF('C Report'!$A$300:$A$399,'C Report Grouper'!$D25,'C Report'!K$300:K$399),SUMIF('C Report'!$A$100:$A$199,'C Report Grouper'!$D25,'C Report'!K$100:K$199)) -> 0 | N25: =IF($D$4="MAP+ADM Waivers",SUMIF('C Report'!$A$100:$A$199,'C Report Grouper'!$D25,'C Report'!L$100:L$199)+SUMIF('C Report'!$A$300:$A$399,'C Report Grouper'!$D25,'C Report'!L$300:L$399),SUMIF('C Report'!$A$100:$A$199,'C Report Grouper'!$D25,'C Report'!L$100:L$199)) -> 0 | O25: =IF($D$4="MAP+ADM Waivers",SUMIF('C Report'!$A$100:$A$199,'C Report Grouper'!$D25,'C Report'!M$100:M$199)+SUMIF('C Report'!$A$300:$A$399,'C Report Grouper'!$D25,'C Report'!M$300:M$399),SUMIF('C Report'!$A$100:$A$199,'C Report Grouper'!$D25,'C Report'!M$100:M$199)) -> 0 | P25: =IF($D$4="MAP+ADM Waivers",SUMIF('C Report'!$A$100:$A$199,'C Report Grouper'!$D25,'C Report'!N$100:N$199)+SUMIF('C Report'!$A$300:$A$399,'C Report Grouper'!$D25,'C Report'!N$300:N$399),SUMIF('C Report'!$A$100:$A$199,'C Report Grouper'!$D25,'C Report'!N$100:N$199)) -> 0 | Q25: =IF($D$4="MAP+ADM Waivers",SUMIF('C Report'!$A$100:$A$199,'C Report Grouper'!$D25,'C Report'!O$100:O$199)+SUMIF('C Report'!$A$300:$A$399,'C Report Grouper'!$D25,'C Report'!O$300:O$399),SUMIF('C Report'!$A$100:$A$199,'C Report Grouper'!$D25,'C Report'!O$100:O$199)) -> 0 | R25: =IF($D$4="MAP+ADM Waivers",SUMIF('C Report'!$A$100:$A$199,'C Report Grouper'!$D25,'C Report'!P$100:P$199)+SUMIF('C Report'!$A$300:$A$399,'C Report Grouper'!$D25,'C Report'!P$300:P$399),SUMIF('C Report'!$A$100:$A$199,'C Report Grouper'!$D25,'C Report'!P$100:P$199)) -> 0 | S25: =IF($D$4="MAP+ADM Waivers",SUMIF('C Report'!$A$100:$A$199,'C Report Grouper'!$D25,'C Report'!Q$100:Q$199)+SUMIF('C Report'!$A$300:$A$399,'C Report Grouper'!$D25,'C Report'!Q$300:Q$399),SUMIF('C Report'!$A$100:$A$199,'C Report Grouper'!$D25,'C Report'!Q$100:Q$199)) -> 0 | T25: =IF($D$4="MAP+ADM Waivers",SUMIF('C Report'!$A$100:$A$199,'C Report Grouper'!$D25,'C Report'!R$100:R$199)+SUMIF('C Report'!$A$300:$A$399,'C Report Grouper'!$D25,'C Report'!R$300:R$399),SUMIF('C Report'!$A$100:$A$199,'C Report Grouper'!$D25,'C Report'!R$100:R$199)) -> 0 | U25: =IF($D$4="MAP+ADM Waivers",SUMIF('C Report'!$A$100:$A$199,'C Report Grouper'!$D25,'C Report'!S$100:S$199)+SUMIF('C Report'!$A$300:$A$399,'C Report Grouper'!$D25,'C Report'!S$300:S$399),SUMIF('C Report'!$A$100:$A$199,'C Report Grouper'!$D25,'C Report'!S$100:S$199)) -> 0 | V25: =IF($D$4="MAP+ADM Waivers",SUMIF('C Report'!$A$100:$A$199,'C Report Grouper'!$D25,'C Report'!T$100:T$199)+SUMIF('C Report'!$A$300:$A$399,'C Report Grouper'!$D25,'C Report'!T$300:T$399),SUMIF('C Report'!$A$100:$A$199,'C Report Grouper'!$D25,'C Report'!T$100:T$199)) -> 0 | W25: =IF($D$4="MAP+ADM Waivers",SUMIF('C Report'!$A$100:$A$199,'C Report Grouper'!$D25,'C Report'!U$100:U$199)+SUMIF('C Report'!$A$300:$A$399,'C Report Grouper'!$D25,'C Report'!U$300:U$399),SUMIF('C Report'!$A$100:$A$199,'C Report Grouper'!$D25,'C Report'!U$100:U$199)) -> 0 | X25: =IF($D$4="MAP+ADM Waivers",SUMIF('C Report'!$A$100:$A$199,'C Report Grouper'!$D25,'C Report'!V$100:V$199)+SUMIF('C Report'!$A$300:$A$399,'C Report Grouper'!$D25,'C Report'!V$300:V$399),SUMIF('C Report'!$A$100:$A$199,'C Report Grouper'!$D25,'C Report'!V$100:V$199)) -> 0 | Y25: =IF($D$4="MAP+ADM Waivers",SUMIF('C Report'!$A$100:$A$199,'C Report Grouper'!$D25,'C Report'!W$100:W$199)+SUMIF('C Report'!$A$300:$A$399,'C Report Grouper'!$D25,'C Report'!W$300:W$399),SUMIF('C Report'!$A$100:$A$199,'C Report Grouper'!$D25,'C Report'!W$100:W$199)) -> 0 | Z25: =IF($D$4="MAP+ADM Waivers",SUMIF('C Report'!$A$100:$A$199,'C Report Grouper'!$D25,'C Report'!X$100:X$199)+SUMIF('C Report'!$A$300:$A$399,'C Report Grouper'!$D25,'C Report'!X$300:X$399),SUMIF('C Report'!$A$100:$A$199,'C Report Grouper'!$D25,'C Report'!X$100:X$199)) -> 0 | AA25: =IF($D$4="MAP+ADM Waivers",SUMIF('C Report'!$A$100:$A$199,'C Report Grouper'!$D25,'C Report'!Y$100:Y$199)+SUMIF('C Report'!$A$300:$A$399,'C Report Grouper'!$D25,'C Report'!Y$300:Y$399),SUMIF('C Report'!$A$100:$A$199,'C Report Grouper'!$D25,'C Report'!Y$100:Y$199)) -> 0 | AB25: =IF($D$4="MAP+ADM Waivers",SUMIF('C Report'!$A$100:$A$199,'C Report Grouper'!$D25,'C Report'!Z$100:Z$199)+SUMIF('C Report'!$A$300:$A$399,'C Report Grouper'!$D25,'C Report'!Z$300:Z$399),SUMIF('C Report'!$A$100:$A$199,'C Report Grouper'!$D25,'C Report'!Z$100:Z$199)) -> 0 | AC25: =IF($D$4="MAP+ADM Waivers",SUMIF('C Report'!$A$100:$A$199,'C Report Grouper'!$D25,'C Report'!AA$100:AA$199)+SUMIF('C Report'!$A$300:$A$399,'C Report Grouper'!$D25,'C Report'!AA$300:AA$399),SUMIF('C Report'!$A$100:$A$199,'C Report Grouper'!$D25,'C Report'!AA$100:AA$199)) -> 0 | AD25: =IF($D$4="MAP+ADM Waivers",SUMIF('C Report'!$A$100:$A$199,'C Report Grouper'!$D25,'C Report'!AB$100:AB$199)+SUMIF('C Report'!$A$300:$A$399,'C Report Grouper'!$D25,'C Report'!AB$300:AB$399),SUMIF('C Report'!$A$100:$A$199,'C Report Grouper'!$D25,'C Report'!AB$100:AB$199)) -> 0 | AE25: =IF($D$4="MAP+ADM Waivers",SUMIF('C Report'!$A$100:$A$199,'C Report Grouper'!$D25,'C Report'!AC$100:AC$199)+SUMIF('C Report'!$A$300:$A$399,'C Report Grouper'!$D25,'C Report'!AC$300:AC$399),SUMIF('C Report'!$A$100:$A$199,'C Report Grouper'!$D25,'C Report'!AC$100:AC$199)) -> 0 | AF25: =IF($D$4="MAP+ADM Waivers",SUMIF('C Report'!$A$100:$A$199,'C Report Grouper'!$D25,'C Report'!AD$100:AD$199)+SUMIF('C Report'!$A$300:$A$399,'C Report Grouper'!$D25,'C Report'!AD$300:AD$399),SUMIF('C Report'!$A$100:$A$199,'C Report Grouper'!$D25,'C Report'!AD$100:AD$199)) -> 0 | AG25: =IF($D$4="MAP+ADM Waivers",SUMIF('C Report'!$A$100:$A$199,'C Report Grouper'!$D25,'C Report'!AE$100:AE$199)+SUMIF('C Report'!$A$300:$A$399,'C Report Grouper'!$D25,'C Report'!AE$300:AE$399),SUMIF('C Report'!$A$100:$A$199,'C Report Grouper'!$D25,'C Report'!AE$100:AE$199)) -> 0 | AH25: =IF($D$4="MAP+ADM Waivers",SUMIF('C Report'!$A$100:$A$199,'C Report Grouper'!$D25,'C Report'!AF$100:AF$199)+SUMIF('C Report'!$A$300:$A$399,'C Report Grouper'!$D25,'C Report'!AF$300:AF$399),SUMIF('C Report'!$A$100:$A$199,'C Report Grouper'!$D25,'C Report'!AF$100:AF$199)) -> 0
B26: =IFERROR(VLOOKUP(C26,'MEG Def'!$A$7:$B$40,2),"") ->  | E26: =IF($D$4="MAP+ADM Waivers",SUMIF('C Report'!$A$100:$A$199,'C Report Grouper'!$D26,'C Report'!C$100:C$199)+SUMIF('C Report'!$A$300:$A$399,'C Report Grouper'!$D26,'C Report'!C$300:C$399),SUMIF('C Report'!$A$100:$A$199,'C Report Grouper'!$D26,'C Report'!C$100:C$199)) -> 0 | F26: =IF($D$4="MAP+ADM Waivers",SUMIF('C Report'!$A$100:$A$199,'C Report Grouper'!$D26,'C Report'!D$100:D$199)+SUMIF('C Report'!$A$300:$A$399,'C Report Grouper'!$D26,'C Report'!D$300:D$399),SUMIF('C Report'!$A$100:$A$199,'C Report Grouper'!$D26,'C Report'!D$100:D$199)) -> 0 | G26: =IF($D$4="MAP+ADM Waivers",SUMIF('C Report'!$A$100:$A$199,'C Report Grouper'!$D26,'C Report'!E$100:E$199)+SUMIF('C Report'!$A$300:$A$399,'C Report Grouper'!$D26,'C Report'!E$300:E$399),SUMIF('C Report'!$A$100:$A$199,'C Report Grouper'!$D26,'C Report'!E$100:E$199)) -> 0 | H26: =IF($D$4="MAP+ADM Waivers",SUMIF('C Report'!$A$100:$A$199,'C Report Grouper'!$D26,'C Report'!F$100:F$199)+SUMIF('C Report'!$A$300:$A$399,'C Report Grouper'!$D26,'C Report'!F$300:F$399),SUMIF('C Report'!$A$100:$A$199,'C Report Grouper'!$D26,'C Report'!F$100:F$199)) -> 0 | I26: =IF($D$4="MAP+ADM Waivers",SUMIF('C Report'!$A$100:$A$199,'C Report Grouper'!$D26,'C Report'!G$100:G$199)+SUMIF('C Report'!$A$300:$A$399,'C Report Grouper'!$D26,'C Report'!G$300:G$399),SUMIF('C Report'!$A$100:$A$199,'C Report Grouper'!$D26,'C Report'!G$100:G$199)) -> 0 | J26: =IF($D$4="MAP+ADM Waivers",SUMIF('C Report'!$A$100:$A$199,'C Report Grouper'!$D26,'C Report'!H$100:H$199)+SUMIF('C Report'!$A$300:$A$399,'C Report Grouper'!$D26,'C Report'!H$300:H$399),SUMIF('C Report'!$A$100:$A$199,'C Report Grouper'!$D26,'C Report'!H$100:H$199)) -> 0 | K26: =IF($D$4="MAP+ADM Waivers",SUMIF('C Report'!$A$100:$A$199,'C Report Grouper'!$D26,'C Report'!I$100:I$199)+SUMIF('C Report'!$A$300:$A$399,'C Report Grouper'!$D26,'C Report'!I$300:I$399),SUMIF('C Report'!$A$100:$A$199,'C Report Grouper'!$D26,'C Report'!I$100:I$199)) -> 0 | L26: =IF($D$4="MAP+ADM Waivers",SUMIF('C Report'!$A$100:$A$199,'C Report Grouper'!$D26,'C Report'!J$100:J$199)+SUMIF('C Report'!$A$300:$A$399,'C Report Grouper'!$D26,'C Report'!J$300:J$399),SUMIF('C Report'!$A$100:$A$199,'C Report Grouper'!$D26,'C Report'!J$100:J$199)) -> 0 | M26: =IF($D$4="MAP+ADM Waivers",SUMIF('C Report'!$A$100:$A$199,'C Report Grouper'!$D26,'C Report'!K$100:K$199)+SUMIF('C Report'!$A$300:$A$399,'C Report Grouper'!$D26,'C Report'!K$300:K$399),SUMIF('C Report'!$A$100:$A$199,'C Report Grouper'!$D26,'C Report'!K$100:K$199)) -> 0 | N26: =IF($D$4="MAP+ADM Waivers",SUMIF('C Report'!$A$100:$A$199,'C Report Grouper'!$D26,'C Report'!L$100:L$199)+SUMIF('C Report'!$A$300:$A$399,'C Report Grouper'!$D26,'C Report'!L$300:L$399),SUMIF('C Report'!$A$100:$A$199,'C Report Grouper'!$D26,'C Report'!L$100:L$199)) -> 0 | O26: =IF($D$4="MAP+ADM Waivers",SUMIF('C Report'!$A$100:$A$199,'C Report Grouper'!$D26,'C Report'!M$100:M$199)+SUMIF('C Report'!$A$300:$A$399,'C Report Grouper'!$D26,'C Report'!M$300:M$399),SUMIF('C Report'!$A$100:$A$199,'C Report Grouper'!$D26,'C Report'!M$100:M$199)) -> 0 | P26: =IF($D$4="MAP+ADM Waivers",SUMIF('C Report'!$A$100:$A$199,'C Report Grouper'!$D26,'C Report'!N$100:N$199)+SUMIF('C Report'!$A$300:$A$399,'C Report Grouper'!$D26,'C Report'!N$300:N$399),SUMIF('C Report'!$A$100:$A$199,'C Report Grouper'!$D26,'C Report'!N$100:N$199)) -> 0 | Q26: =IF($D$4="MAP+ADM Waivers",SUMIF('C Report'!$A$100:$A$199,'C Report Grouper'!$D26,'C Report'!O$100:O$199)+SUMIF('C Report'!$A$300:$A$399,'C Report Grouper'!$D26,'C Report'!O$300:O$399),SUMIF('C Report'!$A$100:$A$199,'C Report Grouper'!$D26,'C Report'!O$100:O$199)) -> 0 | R26: =IF($D$4="MAP+ADM Waivers",SUMIF('C Report'!$A$100:$A$199,'C Report Grouper'!$D26,'C Report'!P$100:P$199)+SUMIF('C Report'!$A$300:$A$399,'C Report Grouper'!$D26,'C Report'!P$300:P$399),SUMIF('C Report'!$A$100:$A$199,'C Report Grouper'!$D26,'C Report'!P$100:P$199)) -> 0 | S26: =IF($D$4="MAP+ADM Waivers",SUMIF('C Report'!$A$100:$A$199,'C Report Grouper'!$D26,'C Report'!Q$100:Q$199)+SUMIF('C Report'!$A$300:$A$399,'C Report Grouper'!$D26,'C Report'!Q$300:Q$399),SUMIF('C Report'!$A$100:$A$199,'C Report Grouper'!$D26,'C Report'!Q$100:Q$199)) -> 0 | T26: =IF($D$4="MAP+ADM Waivers",SUMIF('C Report'!$A$100:$A$199,'C Report Grouper'!$D26,'C Report'!R$100:R$199)+SUMIF('C Report'!$A$300:$A$399,'C Report Grouper'!$D26,'C Report'!R$300:R$399),SUMIF('C Report'!$A$100:$A$199,'C Report Grouper'!$D26,'C Report'!R$100:R$199)) -> 0 | U26: =IF($D$4="MAP+ADM Waivers",SUMIF('C Report'!$A$100:$A$199,'C Report Grouper'!$D26,'C Report'!S$100:S$199)+SUMIF('C Report'!$A$300:$A$399,'C Report Grouper'!$D26,'C Report'!S$300:S$399),SUMIF('C Report'!$A$100:$A$199,'C Report Grouper'!$D26,'C Report'!S$100:S$199)) -> 0 | V26: =IF($D$4="MAP+ADM Waivers",SUMIF('C Report'!$A$100:$A$199,'C Report Grouper'!$D26,'C Report'!T$100:T$199)+SUMIF('C Report'!$A$300:$A$399,'C Report Grouper'!$D26,'C Report'!T$300:T$399),SUMIF('C Report'!$A$100:$A$199,'C Report Grouper'!$D26,'C Report'!T$100:T$199)) -> 0 | W26: =IF($D$4="MAP+ADM Waivers",SUMIF('C Report'!$A$100:$A$199,'C Report Grouper'!$D26,'C Report'!U$100:U$199)+SUMIF('C Report'!$A$300:$A$399,'C Report Grouper'!$D26,'C Report'!U$300:U$399),SUMIF('C Report'!$A$100:$A$199,'C Report Grouper'!$D26,'C Report'!U$100:U$199)) -> 0 | X26: =IF($D$4="MAP+ADM Waivers",SUMIF('C Report'!$A$100:$A$199,'C Report Grouper'!$D26,'C Report'!V$100:V$199)+SUMIF('C Report'!$A$300:$A$399,'C Report Grouper'!$D26,'C Report'!V$300:V$399),SUMIF('C Report'!$A$100:$A$199,'C Report Grouper'!$D26,'C Report'!V$100:V$199)) -> 0 | Y26: =IF($D$4="MAP+ADM Waivers",SUMIF('C Report'!$A$100:$A$199,'C Report Grouper'!$D26,'C Report'!W$100:W$199)+SUMIF('C Report'!$A$300:$A$399,'C Report Grouper'!$D26,'C Report'!W$300:W$399),SUMIF('C Report'!$A$100:$A$199,'C Report Grouper'!$D26,'C Report'!W$100:W$199)) -> 0 | Z26: =IF($D$4="MAP+ADM Waivers",SUMIF('C Report'!$A$100:$A$199,'C Report Grouper'!$D26,'C Report'!X$100:X$199)+SUMIF('C Report'!$A$300:$A$399,'C Report Grouper'!$D26,'C Report'!X$300:X$399),SUMIF('C Report'!$A$100:$A$199,'C Report Grouper'!$D26,'C Report'!X$100:X$199)) -> 0 | AA26: =IF($D$4="MAP+ADM Waivers",SUMIF('C Report'!$A$100:$A$199,'C Report Grouper'!$D26,'C Report'!Y$100:Y$199)+SUMIF('C Report'!$A$300:$A$399,'C Report Grouper'!$D26,'C Report'!Y$300:Y$399),SUMIF('C Report'!$A$100:$A$199,'C Report Grouper'!$D26,'C Report'!Y$100:Y$199)) -> 0 | AB26: =IF($D$4="MAP+ADM Waivers",SUMIF('C Report'!$A$100:$A$199,'C Report Grouper'!$D26,'C Report'!Z$100:Z$199)+SUMIF('C Report'!$A$300:$A$399,'C Report Grouper'!$D26,'C Report'!Z$300:Z$399),SUMIF('C Report'!$A$100:$A$199,'C Report Grouper'!$D26,'C Report'!Z$100:Z$199)) -> 0 | AC26: =IF($D$4="MAP+ADM Waivers",SUMIF('C Report'!$A$100:$A$199,'C Report Grouper'!$D26,'C Report'!AA$100:AA$199)+SUMIF('C Report'!$A$300:$A$399,'C Report Grouper'!$D26,'C Report'!AA$300:AA$399),SUMIF('C Report'!$A$100:$A$199,'C Report Grouper'!$D26,'C Report'!AA$100:AA$199)) -> 0 | AD26: =IF($D$4="MAP+ADM Waivers",SUMIF('C Report'!$A$100:$A$199,'C Report Grouper'!$D26,'C Report'!AB$100:AB$199)+SUMIF('C Report'!$A$300:$A$399,'C Report Grouper'!$D26,'C Report'!AB$300:AB$399),SUMIF('C Report'!$A$100:$A$199,'C Report Grouper'!$D26,'C Report'!AB$100:AB$199)) -> 0 | AE26: =IF($D$4="MAP+ADM Waivers",SUMIF('C Report'!$A$100:$A$199,'C Report Grouper'!$D26,'C Report'!AC$100:AC$199)+SUMIF('C Report'!$A$300:$A$399,'C Report Grouper'!$D26,'C Report'!AC$300:AC$399),SUMIF('C Report'!$A$100:$A$199,'C Report Grouper'!$D26,'C Report'!AC$100:AC$199)) -> 0 | AF26: =IF($D$4="MAP+ADM Waivers",SUMIF('C Report'!$A$100:$A$199,'C Report Grouper'!$D26,'C Report'!AD$100:AD$199)+SUMIF('C Report'!$A$300:$A$399,'C Report Grouper'!$D26,'C Report'!AD$300:AD$399),SUMIF('C Report'!$A$100:$A$199,'C Report Grouper'!$D26,'C Report'!AD$100:AD$199)) -> 0 | AG26: =IF($D$4="MAP+ADM Waivers",SUMIF('C Report'!$A$100:$A$199,'C Report Grouper'!$D26,'C Report'!AE$100:AE$199)+SUMIF('C Report'!$A$300:$A$399,'C Report Grouper'!$D26,'C Report'!AE$300:AE$399),SUMIF('C Report'!$A$100:$A$199,'C Report Grouper'!$D26,'C Report'!AE$100:AE$199)) -> 0 | AH26: =IF($D$4="MAP+ADM Waivers",SUMIF('C Report'!$A$100:$A$199,'C Report Grouper'!$D26,'C Report'!AF$100:AF$199)+SUMIF('C Report'!$A$300:$A$399,'C Report Grouper'!$D26,'C Report'!AF$300:AF$399),SUMIF('C Report'!$A$100:$A$199,'C Report Grouper'!$D26,'C Report'!AF$100:AF$199)) -> 0
B27: =IFERROR(VLOOKUP(C27,'MEG Def'!$A$7:$B$40,2),"") ->  | E27: =IF($D$4="MAP+ADM Waivers",SUMIF('C Report'!$A$100:$A$199,'C Report Grouper'!$D27,'C Report'!C$100:C$199)+SUMIF('C Report'!$A$300:$A$399,'C Report Grouper'!$D27,'C Report'!C$300:C$399),SUMIF('C Report'!$A$100:$A$199,'C Report Grouper'!$D27,'C Report'!C$100:C$199)) -> 0 | F27: =IF($D$4="MAP+ADM Waivers",SUMIF('C Report'!$A$100:$A$199,'C Report Grouper'!$D27,'C Report'!D$100:D$199)+SUMIF('C Report'!$A$300:$A$399,'C Report Grouper'!$D27,'C Report'!D$300:D$399),SUMIF('C Report'!$A$100:$A$199,'C Report Grouper'!$D27,'C Report'!D$100:D$199)) -> 0 | G27: =IF($D$4="MAP+ADM Waivers",SUMIF('C Report'!$A$100:$A$199,'C Report Grouper'!$D27,'C Report'!E$100:E$199)+SUMIF('C Report'!$A$300:$A$399,'C Report Grouper'!$D27,'C Report'!E$300:E$399),SUMIF('C Report'!$A$100:$A$199,'C Report Grouper'!$D27,'C Report'!E$100:E$199)) -> 0 | H27: =IF($D$4="MAP+ADM Waivers",SUMIF('C Report'!$A$100:$A$199,'C Report Grouper'!$D27,'C Report'!F$100:F$199)+SUMIF('C Report'!$A$300:$A$399,'C Report Grouper'!$D27,'C Report'!F$300:F$399),SUMIF('C Report'!$A$100:$A$199,'C Report Grouper'!$D27,'C Report'!F$100:F$199)) -> 0 | I27: =IF($D$4="MAP+ADM Waivers",SUMIF('C Report'!$A$100:$A$199,'C Report Grouper'!$D27,'C Report'!G$100:G$199)+SUMIF('C Report'!$A$300:$A$399,'C Report Grouper'!$D27,'C Report'!G$300:G$399),SUMIF('C Report'!$A$100:$A$199,'C Report Grouper'!$D27,'C Report'!G$100:G$199)) -> 0 | J27: =IF($D$4="MAP+ADM Waivers",SUMIF('C Report'!$A$100:$A$199,'C Report Grouper'!$D27,'C Report'!H$100:H$199)+SUMIF('C Report'!$A$300:$A$399,'C Report Grouper'!$D27,'C Report'!H$300:H$399),SUMIF('C Report'!$A$100:$A$199,'C Report Grouper'!$D27,'C Report'!H$100:H$199)) -> 0 | K27: =IF($D$4="MAP+ADM Waivers",SUMIF('C Report'!$A$100:$A$199,'C Report Grouper'!$D27,'C Report'!I$100:I$199)+SUMIF('C Report'!$A$300:$A$399,'C Report Grouper'!$D27,'C Report'!I$300:I$399),SUMIF('C Report'!$A$100:$A$199,'C Report Grouper'!$D27,'C Report'!I$100:I$199)) -> 0 | L27: =IF($D$4="MAP+ADM Waivers",SUMIF('C Report'!$A$100:$A$199,'C Report Grouper'!$D27,'C Report'!J$100:J$199)+SUMIF('C Report'!$A$300:$A$399,'C Report Grouper'!$D27,'C Report'!J$300:J$399),SUMIF('C Report'!$A$100:$A$199,'C Report Grouper'!$D27,'C Report'!J$100:J$199)) -> 0 | M27: =IF($D$4="MAP+ADM Waivers",SUMIF('C Report'!$A$100:$A$199,'C Report Grouper'!$D27,'C Report'!K$100:K$199)+SUMIF('C Report'!$A$300:$A$399,'C Report Grouper'!$D27,'C Report'!K$300:K$399),SUMIF('C Report'!$A$100:$A$199,'C Report Grouper'!$D27,'C Report'!K$100:K$199)) -> 0 | N27: =IF($D$4="MAP+ADM Waivers",SUMIF('C Report'!$A$100:$A$199,'C Report Grouper'!$D27,'C Report'!L$100:L$199)+SUMIF('C Report'!$A$300:$A$399,'C Report Grouper'!$D27,'C Report'!L$300:L$399),SUMIF('C Report'!$A$100:$A$199,'C Report Grouper'!$D27,'C Report'!L$100:L$199)) -> 0 | O27: =IF($D$4="MAP+ADM Waivers",SUMIF('C Report'!$A$100:$A$199,'C Report Grouper'!$D27,'C Report'!M$100:M$199)+SUMIF('C Report'!$A$300:$A$399,'C Report Grouper'!$D27,'C Report'!M$300:M$399),SUMIF('C Report'!$A$100:$A$199,'C Report Grouper'!$D27,'C Report'!M$100:M$199)) -> 0 | P27: =IF($D$4="MAP+ADM Waivers",SUMIF('C Report'!$A$100:$A$199,'C Report Grouper'!$D27,'C Report'!N$100:N$199)+SUMIF('C Report'!$A$300:$A$399,'C Report Grouper'!$D27,'C Report'!N$300:N$399),SUMIF('C Report'!$A$100:$A$199,'C Report Grouper'!$D27,'C Report'!N$100:N$199)) -> 0 | Q27: =IF($D$4="MAP+ADM Waivers",SUMIF('C Report'!$A$100:$A$199,'C Report Grouper'!$D27,'C Report'!O$100:O$199)+SUMIF('C Report'!$A$300:$A$399,'C Report Grouper'!$D27,'C Report'!O$300:O$399),SUMIF('C Report'!$A$100:$A$199,'C Report Grouper'!$D27,'C Report'!O$100:O$199)) -> 0 | R27: =IF($D$4="MAP+ADM Waivers",SUMIF('C Report'!$A$100:$A$199,'C Report Grouper'!$D27,'C Report'!P$100:P$199)+SUMIF('C Report'!$A$300:$A$399,'C Report Grouper'!$D27,'C Report'!P$300:P$399),SUMIF('C Report'!$A$100:$A$199,'C Report Grouper'!$D27,'C Report'!P$100:P$199)) -> 0 | S27: =IF($D$4="MAP+ADM Waivers",SUMIF('C Report'!$A$100:$A$199,'C Report Grouper'!$D27,'C Report'!Q$100:Q$199)+SUMIF('C Report'!$A$300:$A$399,'C Report Grouper'!$D27,'C Report'!Q$300:Q$399),SUMIF('C Report'!$A$100:$A$199,'C Report Grouper'!$D27,'C Report'!Q$100:Q$199)) -> 0 | T27: =IF($D$4="MAP+ADM Waivers",SUMIF('C Report'!$A$100:$A$199,'C Report Grouper'!$D27,'C Report'!R$100:R$199)+SUMIF('C Report'!$A$300:$A$399,'C Report Grouper'!$D27,'C Report'!R$300:R$399),SUMIF('C Report'!$A$100:$A$199,'C Report Grouper'!$D27,'C Report'!R$100:R$199)) -> 0 | U27: =IF($D$4="MAP+ADM Waivers",SUMIF('C Report'!$A$100:$A$199,'C Report Grouper'!$D27,'C Report'!S$100:S$199)+SUMIF('C Report'!$A$300:$A$399,'C Report Grouper'!$D27,'C Report'!S$300:S$399),SUMIF('C Report'!$A$100:$A$199,'C Report Grouper'!$D27,'C Report'!S$100:S$199)) -> 0 | V27: =IF($D$4="MAP+ADM Waivers",SUMIF('C Report'!$A$100:$A$199,'C Report Grouper'!$D27,'C Report'!T$100:T$199)+SUMIF('C Report'!$A$300:$A$399,'C Report Grouper'!$D27,'C Report'!T$300:T$399),SUMIF('C Report'!$A$100:$A$199,'C Report Grouper'!$D27,'C Report'!T$100:T$199)) -> 0 | W27: =IF($D$4="MAP+ADM Waivers",SUMIF('C Report'!$A$100:$A$199,'C Report Grouper'!$D27,'C Report'!U$100:U$199)+SUMIF('C Report'!$A$300:$A$399,'C Report Grouper'!$D27,'C Report'!U$300:U$399),SUMIF('C Report'!$A$100:$A$199,'C Report Grouper'!$D27,'C Report'!U$100:U$199)) -> 0 | X27: =IF($D$4="MAP+ADM Waivers",SUMIF('C Report'!$A$100:$A$199,'C Report Grouper'!$D27,'C Report'!V$100:V$199)+SUMIF('C Report'!$A$300:$A$399,'C Report Grouper'!$D27,'C Report'!V$300:V$399),SUMIF('C Report'!$A$100:$A$199,'C Report Grouper'!$D27,'C Report'!V$100:V$199)) -> 0 | Y27: =IF($D$4="MAP+ADM Waivers",SUMIF('C Report'!$A$100:$A$199,'C Report Grouper'!$D27,'C Report'!W$100:W$199)+SUMIF('C Report'!$A$300:$A$399,'C Report Grouper'!$D27,'C Report'!W$300:W$399),SUMIF('C Report'!$A$100:$A$199,'C Report Grouper'!$D27,'C Report'!W$100:W$199)) -> 0 | Z27: =IF($D$4="MAP+ADM Waivers",SUMIF('C Report'!$A$100:$A$199,'C Report Grouper'!$D27,'C Report'!X$100:X$199)+SUMIF('C Report'!$A$300:$A$399,'C Report Grouper'!$D27,'C Report'!X$300:X$399),SUMIF('C Report'!$A$100:$A$199,'C Report Grouper'!$D27,'C Report'!X$100:X$199)) -> 0 | AA27: =IF($D$4="MAP+ADM Waivers",SUMIF('C Report'!$A$100:$A$199,'C Report Grouper'!$D27,'C Report'!Y$100:Y$199)+SUMIF('C Report'!$A$300:$A$399,'C Report Grouper'!$D27,'C Report'!Y$300:Y$399),SUMIF('C Report'!$A$100:$A$199,'C Report Grouper'!$D27,'C Report'!Y$100:Y$199)) -> 0 | AB27: =IF($D$4="MAP+ADM Waivers",SUMIF('C Report'!$A$100:$A$199,'C Report Grouper'!$D27,'C Report'!Z$100:Z$199)+SUMIF('C Report'!$A$300:$A$399,'C Report Grouper'!$D27,'C Report'!Z$300:Z$399),SUMIF('C Report'!$A$100:$A$199,'C Report Grouper'!$D27,'C Report'!Z$100:Z$199)) -> 0 | AC27: =IF($D$4="MAP+ADM Waivers",SUMIF('C Report'!$A$100:$A$199,'C Report Grouper'!$D27,'C Report'!AA$100:AA$199)+SUMIF('C Report'!$A$300:$A$399,'C Report Grouper'!$D27,'C Report'!AA$300:AA$399),SUMIF('C Report'!$A$100:$A$199,'C Report Grouper'!$D27,'C Report'!AA$100:AA$199)) -> 0 | AD27: =IF($D$4="MAP+ADM Waivers",SUMIF('C Report'!$A$100:$A$199,'C Report Grouper'!$D27,'C Report'!AB$100:AB$199)+SUMIF('C Report'!$A$300:$A$399,'C Report Grouper'!$D27,'C Report'!AB$300:AB$399),SUMIF('C Report'!$A$100:$A$199,'C Report Grouper'!$D27,'C Report'!AB$100:AB$199)) -> 0 | AE27: =IF($D$4="MAP+ADM Waivers",SUMIF('C Report'!$A$100:$A$199,'C Report Grouper'!$D27,'C Report'!AC$100:AC$199)+SUMIF('C Report'!$A$300:$A$399,'C Report Grouper'!$D27,'C Report'!AC$300:AC$399),SUMIF('C Report'!$A$100:$A$199,'C Report Grouper'!$D27,'C Report'!AC$100:AC$199)) -> 0 | AF27: =IF($D$4="MAP+ADM Waivers",SUMIF('C Report'!$A$100:$A$199,'C Report Grouper'!$D27,'C Report'!AD$100:AD$199)+SUMIF('C Report'!$A$300:$A$399,'C Report Grouper'!$D27,'C Report'!AD$300:AD$399),SUMIF('C Report'!$A$100:$A$199,'C Report Grouper'!$D27,'C Report'!AD$100:AD$199)) -> 0 | AG27: =IF($D$4="MAP+ADM Waivers",SUMIF('C Report'!$A$100:$A$199,'C Report Grouper'!$D27,'C Report'!AE$100:AE$199)+SUMIF('C Report'!$A$300:$A$399,'C Report Grouper'!$D27,'C Report'!AE$300:AE$399),SUMIF('C Report'!$A$100:$A$199,'C Report Grouper'!$D27,'C Report'!AE$100:AE$199)) -> 0 | AH27: =IF($D$4="MAP+ADM Waivers",SUMIF('C Report'!$A$100:$A$199,'C Report Grouper'!$D27,'C Report'!AF$100:AF$199)+SUMIF('C Report'!$A$300:$A$399,'C Report Grouper'!$D27,'C Report'!AF$300:AF$399),SUMIF('C Report'!$A$100:$A$199,'C Report Grouper'!$D27,'C Report'!AF$100:AF$199)) -> 0
B28: =IFERROR(VLOOKUP(C28,'MEG Def'!$A$7:$B$40,2),"") ->  | E28: =IF($D$4="MAP+ADM Waivers",SUMIF('C Report'!$A$100:$A$199,'C Report Grouper'!$D28,'C Report'!C$100:C$199)+SUMIF('C Report'!$A$300:$A$399,'C Report Grouper'!$D28,'C Report'!C$300:C$399),SUMIF('C Report'!$A$100:$A$199,'C Report Grouper'!$D28,'C Report'!C$100:C$199)) -> 0 | F28: =IF($D$4="MAP+ADM Waivers",SUMIF('C Report'!$A$100:$A$199,'C Report Grouper'!$D28,'C Report'!D$100:D$199)+SUMIF('C Report'!$A$300:$A$399,'C Report Grouper'!$D28,'C Report'!D$300:D$399),SUMIF('C Report'!$A$100:$A$199,'C Report Grouper'!$D28,'C Report'!D$100:D$199)) -> 0 | G28: =IF($D$4="MAP+ADM Waivers",SUMIF('C Report'!$A$100:$A$199,'C Report Grouper'!$D28,'C Report'!E$100:E$199)+SUMIF('C Report'!$A$300:$A$399,'C Report Grouper'!$D28,'C Report'!E$300:E$399),SUMIF('C Report'!$A$100:$A$199,'C Report Grouper'!$D28,'C Report'!E$100:E$199)) -> 0 | H28: =IF($D$4="MAP+ADM Waivers",SUMIF('C Report'!$A$100:$A$199,'C Report Grouper'!$D28,'C Report'!F$100:F$199)+SUMIF('C Report'!$A$300:$A$399,'C Report Grouper'!$D28,'C Report'!F$300:F$399),SUMIF('C Report'!$A$100:$A$199,'C Report Grouper'!$D28,'C Report'!F$100:F$199)) -> 0 | I28: =IF($D$4="MAP+ADM Waivers",SUMIF('C Report'!$A$100:$A$199,'C Report Grouper'!$D28,'C Report'!G$100:G$199)+SUMIF('C Report'!$A$300:$A$399,'C Report Grouper'!$D28,'C Report'!G$300:G$399),SUMIF('C Report'!$A$100:$A$199,'C Report Grouper'!$D28,'C Report'!G$100:G$199)) -> 0 | J28: =IF($D$4="MAP+ADM Waivers",SUMIF('C Report'!$A$100:$A$199,'C Report Grouper'!$D28,'C Report'!H$100:H$199)+SUMIF('C Report'!$A$300:$A$399,'C Report Grouper'!$D28,'C Report'!H$300:H$399),SUMIF('C Report'!$A$100:$A$199,'C Report Grouper'!$D28,'C Report'!H$100:H$199)) -> 0 | K28: =IF($D$4="MAP+ADM Waivers",SUMIF('C Report'!$A$100:$A$199,'C Report Grouper'!$D28,'C Report'!I$100:I$199)+SUMIF('C Report'!$A$300:$A$399,'C Report Grouper'!$D28,'C Report'!I$300:I$399),SUMIF('C Report'!$A$100:$A$199,'C Report Grouper'!$D28,'C Report'!I$100:I$199)) -> 0 | L28: =IF($D$4="MAP+ADM Waivers",SUMIF('C Report'!$A$100:$A$199,'C Report Grouper'!$D28,'C Report'!J$100:J$199)+SUMIF('C Report'!$A$300:$A$399,'C Report Grouper'!$D28,'C Report'!J$300:J$399),SUMIF('C Report'!$A$100:$A$199,'C Report Grouper'!$D28,'C Report'!J$100:J$199)) -> 0 | M28: =IF($D$4="MAP+ADM Waivers",SUMIF('C Report'!$A$100:$A$199,'C Report Grouper'!$D28,'C Report'!K$100:K$199)+SUMIF('C Report'!$A$300:$A$399,'C Report Grouper'!$D28,'C Report'!K$300:K$399),SUMIF('C Report'!$A$100:$A$199,'C Report Grouper'!$D28,'C Report'!K$100:K$199)) -> 0 | N28: =IF($D$4="MAP+ADM Waivers",SUMIF('C Report'!$A$100:$A$199,'C Report Grouper'!$D28,'C Report'!L$100:L$199)+SUMIF('C Report'!$A$300:$A$399,'C Report Grouper'!$D28,'C Report'!L$300:L$399),SUMIF('C Report'!$A$100:$A$199,'C Report Grouper'!$D28,'C Report'!L$100:L$199)) -> 0 | O28: =IF($D$4="MAP+ADM Waivers",SUMIF('C Report'!$A$100:$A$199,'C Report Grouper'!$D28,'C Report'!M$100:M$199)+SUMIF('C Report'!$A$300:$A$399,'C Report Grouper'!$D28,'C Report'!M$300:M$399),SUMIF('C Report'!$A$100:$A$199,'C Report Grouper'!$D28,'C Report'!M$100:M$199)) -> 0 | P28: =IF($D$4="MAP+ADM Waivers",SUMIF('C Report'!$A$100:$A$199,'C Report Grouper'!$D28,'C Report'!N$100:N$199)+SUMIF('C Report'!$A$300:$A$399,'C Report Grouper'!$D28,'C Report'!N$300:N$399),SUMIF('C Report'!$A$100:$A$199,'C Report Grouper'!$D28,'C Report'!N$100:N$199)) -> 0 | Q28: =IF($D$4="MAP+ADM Waivers",SUMIF('C Report'!$A$100:$A$199,'C Report Grouper'!$D28,'C Report'!O$100:O$199)+SUMIF('C Report'!$A$300:$A$399,'C Report Grouper'!$D28,'C Report'!O$300:O$399),SUMIF('C Report'!$A$100:$A$199,'C Report Grouper'!$D28,'C Report'!O$100:O$199)) -> 0 | R28: =IF($D$4="MAP+ADM Waivers",SUMIF('C Report'!$A$100:$A$199,'C Report Grouper'!$D28,'C Report'!P$100:P$199)+SUMIF('C Report'!$A$300:$A$399,'C Report Grouper'!$D28,'C Report'!P$300:P$399),SUMIF('C Report'!$A$100:$A$199,'C Report Grouper'!$D28,'C Report'!P$100:P$199)) -> 0 | S28: =IF($D$4="MAP+ADM Waivers",SUMIF('C Report'!$A$100:$A$199,'C Report Grouper'!$D28,'C Report'!Q$100:Q$199)+SUMIF('C Report'!$A$300:$A$399,'C Report Grouper'!$D28,'C Report'!Q$300:Q$399),SUMIF('C Report'!$A$100:$A$199,'C Report Grouper'!$D28,'C Report'!Q$100:Q$199)) -> 0 | T28: =IF($D$4="MAP+ADM Waivers",SUMIF('C Report'!$A$100:$A$199,'C Report Grouper'!$D28,'C Report'!R$100:R$199)+SUMIF('C Report'!$A$300:$A$399,'C Report Grouper'!$D28,'C Report'!R$300:R$399),SUMIF('C Report'!$A$100:$A$199,'C Report Grouper'!$D28,'C Report'!R$100:R$199)) -> 0 | U28: =IF($D$4="MAP+ADM Waivers",SUMIF('C Report'!$A$100:$A$199,'C Report Grouper'!$D28,'C Report'!S$100:S$199)+SUMIF('C Report'!$A$300:$A$399,'C Report Grouper'!$D28,'C Report'!S$300:S$399),SUMIF('C Report'!$A$100:$A$199,'C Report Grouper'!$D28,'C Report'!S$100:S$199)) -> 0 | V28: =IF($D$4="MAP+ADM Waivers",SUMIF('C Report'!$A$100:$A$199,'C Report Grouper'!$D28,'C Report'!T$100:T$199)+SUMIF('C Report'!$A$300:$A$399,'C Report Grouper'!$D28,'C Report'!T$300:T$399),SUMIF('C Report'!$A$100:$A$199,'C Report Grouper'!$D28,'C Report'!T$100:T$199)) -> 0 | W28: =IF($D$4="MAP+ADM Waivers",SUMIF('C Report'!$A$100:$A$199,'C Report Grouper'!$D28,'C Report'!U$100:U$199)+SUMIF('C Report'!$A$300:$A$399,'C Report Grouper'!$D28,'C Report'!U$300:U$399),SUMIF('C Report'!$A$100:$A$199,'C Report Grouper'!$D28,'C Report'!U$100:U$199)) -> 0 | X28: =IF($D$4="MAP+ADM Waivers",SUMIF('C Report'!$A$100:$A$199,'C Report Grouper'!$D28,'C Report'!V$100:V$199)+SUMIF('C Report'!$A$300:$A$399,'C Report Grouper'!$D28,'C Report'!V$300:V$399),SUMIF('C Report'!$A$100:$A$199,'C Report Grouper'!$D28,'C Report'!V$100:V$199)) -> 0 | Y28: =IF($D$4="MAP+ADM Waivers",SUMIF('C Report'!$A$100:$A$199,'C Report Grouper'!$D28,'C Report'!W$100:W$199)+SUMIF('C Report'!$A$300:$A$399,'C Report Grouper'!$D28,'C Report'!W$300:W$399),SUMIF('C Report'!$A$100:$A$199,'C Report Grouper'!$D28,'C Report'!W$100:W$199)) -> 0 | Z28: =IF($D$4="MAP+ADM Waivers",SUMIF('C Report'!$A$100:$A$199,'C Report Grouper'!$D28,'C Report'!X$100:X$199)+SUMIF('C Report'!$A$300:$A$399,'C Report Grouper'!$D28,'C Report'!X$300:X$399),SUMIF('C Report'!$A$100:$A$199,'C Report Grouper'!$D28,'C Report'!X$100:X$199)) -> 0 | AA28: =IF($D$4="MAP+ADM Waivers",SUMIF('C Report'!$A$100:$A$199,'C Report Grouper'!$D28,'C Report'!Y$100:Y$199)+SUMIF('C Report'!$A$300:$A$399,'C Report Grouper'!$D28,'C Report'!Y$300:Y$399),SUMIF('C Report'!$A$100:$A$199,'C Report Grouper'!$D28,'C Report'!Y$100:Y$199)) -> 0 | AB28: =IF($D$4="MAP+ADM Waivers",SUMIF('C Report'!$A$100:$A$199,'C Report Grouper'!$D28,'C Report'!Z$100:Z$199)+SUMIF('C Report'!$A$300:$A$399,'C Report Grouper'!$D28,'C Report'!Z$300:Z$399),SUMIF('C Report'!$A$100:$A$199,'C Report Grouper'!$D28,'C Report'!Z$100:Z$199)) -> 0 | AC28: =IF($D$4="MAP+ADM Waivers",SUMIF('C Report'!$A$100:$A$199,'C Report Grouper'!$D28,'C Report'!AA$100:AA$199)+SUMIF('C Report'!$A$300:$A$399,'C Report Grouper'!$D28,'C Report'!AA$300:AA$399),SUMIF('C Report'!$A$100:$A$199,'C Report Grouper'!$D28,'C Report'!AA$100:AA$199)) -> 0 | AD28: =IF($D$4="MAP+ADM Waivers",SUMIF('C Report'!$A$100:$A$199,'C Report Grouper'!$D28,'C Report'!AB$100:AB$199)+SUMIF('C Report'!$A$300:$A$399,'C Report Grouper'!$D28,'C Report'!AB$300:AB$399),SUMIF('C Report'!$A$100:$A$199,'C Report Grouper'!$D28,'C Report'!AB$100:AB$199)) -> 0 | AE28: =IF($D$4="MAP+ADM Waivers",SUMIF('C Report'!$A$100:$A$199,'C Report Grouper'!$D28,'C Report'!AC$100:AC$199)+SUMIF('C Report'!$A$300:$A$399,'C Report Grouper'!$D28,'C Report'!AC$300:AC$399),SUMIF('C Report'!$A$100:$A$199,'C Report Grouper'!$D28,'C Report'!AC$100:AC$199)) -> 0 | AF28: =IF($D$4="MAP+ADM Waivers",SUMIF('C Report'!$A$100:$A$199,'C Report Grouper'!$D28,'C Report'!AD$100:AD$199)+SUMIF('C Report'!$A$300:$A$399,'C Report Grouper'!$D28,'C Report'!AD$300:AD$399),SUMIF('C Report'!$A$100:$A$199,'C Report Grouper'!$D28,'C Report'!AD$100:AD$199)) -> 0 | AG28: =IF($D$4="MAP+ADM Waivers",SUMIF('C Report'!$A$100:$A$199,'C Report Grouper'!$D28,'C Report'!AE$100:AE$199)+SUMIF('C Report'!$A$300:$A$399,'C Report Grouper'!$D28,'C Report'!AE$300:AE$399),SUMIF('C Report'!$A$100:$A$199,'C Report Grouper'!$D28,'C Report'!AE$100:AE$199)) -> 0 | AH28: =IF($D$4="MAP+ADM Waivers",SUMIF('C Report'!$A$100:$A$199,'C Report Grouper'!$D28,'C Report'!AF$100:AF$199)+SUMIF('C Report'!$A$300:$A$399,'C Report Grouper'!$D28,'C Report'!AF$300:AF$399),SUMIF('C Report'!$A$100:$A$199,'C Report Grouper'!$D28,'C Report'!AF$100:AF$199)) -> 0
E29: =IF($D$4="MAP+ADM Waivers",SUMIF('C Report'!$A$100:$A$199,'C Report Grouper'!$D29,'C Report'!C$100:C$199)+SUMIF('C Report'!$A$300:$A$399,'C Report Grouper'!$D29,'C Report'!C$300:C$399),SUMIF('C Report'!$A$100:$A$199,'C Report Grouper'!$D29,'C Report'!C$100:C$199)) -> 0 | F29: =IF($D$4="MAP+ADM Waivers",SUMIF('C Report'!$A$100:$A$199,'C Report Grouper'!$D29,'C Report'!D$100:D$199)+SUMIF('C Report'!$A$300:$A$399,'C Report Grouper'!$D29,'C Report'!D$300:D$399),SUMIF('C Report'!$A$100:$A$199,'C Report Grouper'!$D29,'C Report'!D$100:D$199)) -> 0 | G29: =IF($D$4="MAP+ADM Waivers",SUMIF('C Report'!$A$100:$A$199,'C Report Grouper'!$D29,'C Report'!E$100:E$199)+SUMIF('C Report'!$A$300:$A$399,'C Report Grouper'!$D29,'C Report'!E$300:E$399),SUMIF('C Report'!$A$100:$A$199,'C Report Grouper'!$D29,'C Report'!E$100:E$199)) -> 0 | H29: =IF($D$4="MAP+ADM Waivers",SUMIF('C Report'!$A$100:$A$199,'C Report Grouper'!$D29,'C Report'!F$100:F$199)+SUMIF('C Report'!$A$300:$A$399,'C Report Grouper'!$D29,'C Report'!F$300:F$399),SUMIF('C Report'!$A$100:$A$199,'C Report Grouper'!$D29,'C Report'!F$100:F$199)) -> 0 | I29: =IF($D$4="MAP+ADM Waivers",SUMIF('C Report'!$A$100:$A$199,'C Report Grouper'!$D29,'C Report'!G$100:G$199)+SUMIF('C Report'!$A$300:$A$399,'C Report Grouper'!$D29,'C Report'!G$300:G$399),SUMIF('C Report'!$A$100:$A$199,'C Report Grouper'!$D29,'C Report'!G$100:G$199)) -> 0 | J29: =IF($D$4="MAP+ADM Waivers",SUMIF('C Report'!$A$100:$A$199,'C Report Grouper'!$D29,'C Report'!H$100:H$199)+SUMIF('C Report'!$A$300:$A$399,'C Report Grouper'!$D29,'C Report'!H$300:H$399),SUMIF('C Report'!$A$100:$A$199,'C Report Grouper'!$D29,'C Report'!H$100:H$199)) -> 0 | K29: =IF($D$4="MAP+ADM Waivers",SUMIF('C Report'!$A$100:$A$199,'C Report Grouper'!$D29,'C Report'!I$100:I$199)+SUMIF('C Report'!$A$300:$A$399,'C Report Grouper'!$D29,'C Report'!I$300:I$399),SUMIF('C Report'!$A$100:$A$199,'C Report Grouper'!$D29,'C Report'!I$100:I$199)) -> 0 | L29: =IF($D$4="MAP+ADM Waivers",SUMIF('C Report'!$A$100:$A$199,'C Report Grouper'!$D29,'C Report'!J$100:J$199)+SUMIF('C Report'!$A$300:$A$399,'C Report Grouper'!$D29,'C Report'!J$300:J$399),SUMIF('C Report'!$A$100:$A$199,'C Report Grouper'!$D29,'C Report'!J$100:J$199)) -> 0 | M29: =IF($D$4="MAP+ADM Waivers",SUMIF('C Report'!$A$100:$A$199,'C Report Grouper'!$D29,'C Report'!K$100:K$199)+SUMIF('C Report'!$A$300:$A$399,'C Report Grouper'!$D29,'C Report'!K$300:K$399),SUMIF('C Report'!$A$100:$A$199,'C Report Grouper'!$D29,'C Report'!K$100:K$199)) -> 0 | N29: =IF($D$4="MAP+ADM Waivers",SUMIF('C Report'!$A$100:$A$199,'C Report Grouper'!$D29,'C Report'!L$100:L$199)+SUMIF('C Report'!$A$300:$A$399,'C Report Grouper'!$D29,'C Report'!L$300:L$399),SUMIF('C Report'!$A$100:$A$199,'C Report Grouper'!$D29,'C Report'!L$100:L$199)) -> 0 | O29: =IF($D$4="MAP+ADM Waivers",SUMIF('C Report'!$A$100:$A$199,'C Report Grouper'!$D29,'C Report'!M$100:M$199)+SUMIF('C Report'!$A$300:$A$399,'C Report Grouper'!$D29,'C Report'!M$300:M$399),SUMIF('C Report'!$A$100:$A$199,'C Report Grouper'!$D29,'C Report'!M$100:M$199)) -> 0 | P29: =IF($D$4="MAP+ADM Waivers",SUMIF('C Report'!$A$100:$A$199,'C Report Grouper'!$D29,'C Report'!N$100:N$199)+SUMIF('C Report'!$A$300:$A$399,'C Report Grouper'!$D29,'C Report'!N$300:N$399),SUMIF('C Report'!$A$100:$A$199,'C Report Grouper'!$D29,'C Report'!N$100:N$199)) -> 0 | Q29: =IF($D$4="MAP+ADM Waivers",SUMIF('C Report'!$A$100:$A$199,'C Report Grouper'!$D29,'C Report'!O$100:O$199)+SUMIF('C Report'!$A$300:$A$399,'C Report Grouper'!$D29,'C Report'!O$300:O$399),SUMIF('C Report'!$A$100:$A$199,'C Report Grouper'!$D29,'C Report'!O$100:O$199)) -> 0 | R29: =IF($D$4="MAP+ADM Waivers",SUMIF('C Report'!$A$100:$A$199,'C Report Grouper'!$D29,'C Report'!P$100:P$199)+SUMIF('C Report'!$A$300:$A$399,'C Report Grouper'!$D29,'C Report'!P$300:P$399),SUMIF('C Report'!$A$100:$A$199,'C Report Grouper'!$D29,'C Report'!P$100:P$199)) -> 0 | S29: =IF($D$4="MAP+ADM Waivers",SUMIF('C Report'!$A$100:$A$199,'C Report Grouper'!$D29,'C Report'!Q$100:Q$199)+SUMIF('C Report'!$A$300:$A$399,'C Report Grouper'!$D29,'C Report'!Q$300:Q$399),SUMIF('C Report'!$A$100:$A$199,'C Report Grouper'!$D29,'C Report'!Q$100:Q$199)) -> 0 | T29: =IF($D$4="MAP+ADM Waivers",SUMIF('C Report'!$A$100:$A$199,'C Report Grouper'!$D29,'C Report'!R$100:R$199)+SUMIF('C Report'!$A$300:$A$399,'C Report Grouper'!$D29,'C Report'!R$300:R$399),SUMIF('C Report'!$A$100:$A$199,'C Report Grouper'!$D29,'C Report'!R$100:R$199)) -> 0 | U29: =IF($D$4="MAP+ADM Waivers",SUMIF('C Report'!$A$100:$A$199,'C Report Grouper'!$D29,'C Report'!S$100:S$199)+SUMIF('C Report'!$A$300:$A$399,'C Report Grouper'!$D29,'C Report'!S$300:S$399),SUMIF('C Report'!$A$100:$A$199,'C Report Grouper'!$D29,'C Report'!S$100:S$199)) -> 0 | V29: =IF($D$4="MAP+ADM Waivers",SUMIF('C Report'!$A$100:$A$199,'C Report Grouper'!$D29,'C Report'!T$100:T$199)+SUMIF('C Report'!$A$300:$A$399,'C Report Grouper'!$D29,'C Report'!T$300:T$399),SUMIF('C Report'!$A$100:$A$199,'C Report Grouper'!$D29,'C Report'!T$100:T$199)) -> 0 | W29: =IF($D$4="MAP+ADM Waivers",SUMIF('C Report'!$A$100:$A$199,'C Report Grouper'!$D29,'C Report'!U$100:U$199)+SUMIF('C Report'!$A$300:$A$399,'C Report Grouper'!$D29,'C Report'!U$300:U$399),SUMIF('C Report'!$A$100:$A$199,'C Report Grouper'!$D29,'C Report'!U$100:U$199)) -> 0 | X29: =IF($D$4="MAP+ADM Waivers",SUMIF('C Report'!$A$100:$A$199,'C Report Grouper'!$D29,'C Report'!V$100:V$199)+SUMIF('C Report'!$A$300:$A$399,'C Report Grouper'!$D29,'C Report'!V$300:V$399),SUMIF('C Report'!$A$100:$A$199,'C Report Grouper'!$D29,'C Report'!V$100:V$199)) -> 0 | Y29: =IF($D$4="MAP+ADM Waivers",SUMIF('C Report'!$A$100:$A$199,'C Report Grouper'!$D29,'C Report'!W$100:W$199)+SUMIF('C Report'!$A$300:$A$399,'C Report Grouper'!$D29,'C Report'!W$300:W$399),SUMIF('C Report'!$A$100:$A$199,'C Report Grouper'!$D29,'C Report'!W$100:W$199)) -> 0 | Z29: =IF($D$4="MAP+ADM Waivers",SUMIF('C Report'!$A$100:$A$199,'C Report Grouper'!$D29,'C Report'!X$100:X$199)+SUMIF('C Report'!$A$300:$A$399,'C Report Grouper'!$D29,'C Report'!X$300:X$399),SUMIF('C Report'!$A$100:$A$199,'C Report Grouper'!$D29,'C Report'!X$100:X$199)) -> 0 | AA29: =IF($D$4="MAP+ADM Waivers",SUMIF('C Report'!$A$100:$A$199,'C Report Grouper'!$D29,'C Report'!Y$100:Y$199)+SUMIF('C Report'!$A$300:$A$399,'C Report Grouper'!$D29,'C Report'!Y$300:Y$399),SUMIF('C Report'!$A$100:$A$199,'C Report Grouper'!$D29,'C Report'!Y$100:Y$199)) -> 0 | AB29: =IF($D$4="MAP+ADM Waivers",SUMIF('C Report'!$A$100:$A$199,'C Report Grouper'!$D29,'C Report'!Z$100:Z$199)+SUMIF('C Report'!$A$300:$A$399,'C Report Grouper'!$D29,'C Report'!Z$300:Z$399),SUMIF('C Report'!$A$100:$A$199,'C Report Grouper'!$D29,'C Report'!Z$100:Z$199)) -> 0 | AC29: =IF($D$4="MAP+ADM Waivers",SUMIF('C Report'!$A$100:$A$199,'C Report Grouper'!$D29,'C Report'!AA$100:AA$199)+SUMIF('C Report'!$A$300:$A$399,'C Report Grouper'!$D29,'C Report'!AA$300:AA$399),SUMIF('C Report'!$A$100:$A$199,'C Report Grouper'!$D29,'C Report'!AA$100:AA$199)) -> 0 | AD29: =IF($D$4="MAP+ADM Waivers",SUMIF('C Report'!$A$100:$A$199,'C Report Grouper'!$D29,'C Report'!AB$100:AB$199)+SUMIF('C Report'!$A$300:$A$399,'C Report Grouper'!$D29,'C Report'!AB$300:AB$399),SUMIF('C Report'!$A$100:$A$199,'C Report Grouper'!$D29,'C Report'!AB$100:AB$199)) -> 0 | AE29: =IF($D$4="MAP+ADM Waivers",SUMIF('C Report'!$A$100:$A$199,'C Report Grouper'!$D29,'C Report'!AC$100:AC$199)+SUMIF('C Report'!$A$300:$A$399,'C Report Grouper'!$D29,'C Report'!AC$300:AC$399),SUMIF('C Report'!$A$100:$A$199,'C Report Grouper'!$D29,'C Report'!AC$100:AC$199)) -> 0 | AF29: =IF($D$4="MAP+ADM Waivers",SUMIF('C Report'!$A$100:$A$199,'C Report Grouper'!$D29,'C Report'!AD$100:AD$199)+SUMIF('C Report'!$A$300:$A$399,'C Report Grouper'!$D29,'C Report'!AD$300:AD$399),SUMIF('C Report'!$A$100:$A$199,'C Report Grouper'!$D29,'C Report'!AD$100:AD$199)) -> 0 | AG29: =IF($D$4="MAP+ADM Waivers",SUMIF('C Report'!$A$100:$A$199,'C Report Grouper'!$D29,'C Report'!AE$100:AE$199)+SUMIF('C Report'!$A$300:$A$399,'C Report Grouper'!$D29,'C Report'!AE$300:AE$399),SUMIF('C Report'!$A$100:$A$199,'C Report Grouper'!$D29,'C Report'!AE$100:AE$199)) -> 0 | AH29: =IF($D$4="MAP+ADM Waivers",SUMIF('C Report'!$A$100:$A$199,'C Report Grouper'!$D29,'C Report'!AF$100:AF$199)+SUMIF('C Report'!$A$300:$A$399,'C Report Grouper'!$D29,'C Report'!AF$300:AF$399),SUMIF('C Report'!$A$100:$A$199,'C Report Grouper'!$D29,'C Report'!AF$100:AF$199)) -> 0
B30: Hypothetical 1 Per Capita | E30: =IF($D$4="MAP+ADM Waivers",SUMIF('C Report'!$A$100:$A$199,'C Report Grouper'!$D30,'C Report'!C$100:C$199)+SUMIF('C Report'!$A$300:$A$399,'C Report Grouper'!$D30,'C Report'!C$300:C$399),SUMIF('C Report'!$A$100:$A$199,'C Report Grouper'!$D30,'C Report'!C$100:C$199)) -> 0 | F30: =IF($D$4="MAP+ADM Waivers",SUMIF('C Report'!$A$100:$A$199,'C Report Grouper'!$D30,'C Report'!D$100:D$199)+SUMIF('C Report'!$A$300:$A$399,'C Report Grouper'!$D30,'C Report'!D$300:D$399),SUMIF('C Report'!$A$100:$A$199,'C Report Grouper'!$D30,'C Report'!D$100:D$199)) -> 0 | G30: =IF($D$4="MAP+ADM Waivers",SUMIF('C Report'!$A$100:$A$199,'C Report Grouper'!$D30,'C Report'!E$100:E$199)+SUMIF('C Report'!$A$300:$A$399,'C Report Grouper'!$D30,'C Report'!E$300:E$399),SUMIF('C Report'!$A$100:$A$199,'C Report Grouper'!$D30,'C Report'!E$100:E$199)) -> 0 | H30: =IF($D$4="MAP+ADM Waivers",SUMIF('C Report'!$A$100:$A$199,'C Report Grouper'!$D30,'C Report'!F$100:F$199)+SUMIF('C Report'!$A$300:$A$399,'C Report Grouper'!$D30,'C Report'!F$300:F$399),SUMIF('C Report'!$A$100:$A$199,'C Report Grouper'!$D30,'C Report'!F$100:F$199)) -> 0 | I30: =IF($D$4="MAP+ADM Waivers",SUMIF('C Report'!$A$100:$A$199,'C Report Grouper'!$D30,'C Report'!G$100:G$199)+SUMIF('C Report'!$A$300:$A$399,'C Report Grouper'!$D30,'C Report'!G$300:G$399),SUMIF('C Report'!$A$100:$A$199,'C Report Grouper'!$D30,'C Report'!G$100:G$199)) -> 0 | J30: =IF($D$4="MAP+ADM Waivers",SUMIF('C Report'!$A$100:$A$199,'C Report Grouper'!$D30,'C Report'!H$100:H$199)+SUMIF('C Report'!$A$300:$A$399,'C Report Grouper'!$D30,'C Report'!H$300:H$399),SUMIF('C Report'!$A$100:$A$199,'C Report Grouper'!$D30,'C Report'!H$100:H$199)) -> 0 | K30: =IF($D$4="MAP+ADM Waivers",SUMIF('C Report'!$A$100:$A$199,'C Report Grouper'!$D30,'C Report'!I$100:I$199)+SUMIF('C Report'!$A$300:$A$399,'C Report Grouper'!$D30,'C Report'!I$300:I$399),SUMIF('C Report'!$A$100:$A$199,'C Report Grouper'!$D30,'C Report'!I$100:I$199)) -> 0 | L30: =IF($D$4="MAP+ADM Waivers",SUMIF('C Report'!$A$100:$A$199,'C Report Grouper'!$D30,'C Report'!J$100:J$199)+SUMIF('C Report'!$A$300:$A$399,'C Report Grouper'!$D30,'C Report'!J$300:J$399),SUMIF('C Report'!$A$100:$A$199,'C Report Grouper'!$D30,'C Report'!J$100:J$199)) -> 0 | M30: =IF($D$4="MAP+ADM Waivers",SUMIF('C Report'!$A$100:$A$199,'C Report Grouper'!$D30,'C Report'!K$100:K$199)+SUMIF('C Report'!$A$300:$A$399,'C Report Grouper'!$D30,'C Report'!K$300:K$399),SUMIF('C Report'!$A$100:$A$199,'C Report Grouper'!$D30,'C Report'!K$100:K$199)) -> 0 | N30: =IF($D$4="MAP+ADM Waivers",SUMIF('C Report'!$A$100:$A$199,'C Report Grouper'!$D30,'C Report'!L$100:L$199)+SUMIF('C Report'!$A$300:$A$399,'C Report Grouper'!$D30,'C Report'!L$300:L$399),SUMIF('C Report'!$A$100:$A$199,'C Report Grouper'!$D30,'C Report'!L$100:L$199)) -> 0 | O30: =IF($D$4="MAP+ADM Waivers",SUMIF('C Report'!$A$100:$A$199,'C Report Grouper'!$D30,'C Report'!M$100:M$199)+SUMIF('C Report'!$A$300:$A$399,'C Report Grouper'!$D30,'C Report'!M$300:M$399),SUMIF('C Report'!$A$100:$A$199,'C Report Grouper'!$D30,'C Report'!M$100:M$199)) -> 0 | P30: =IF($D$4="MAP+ADM Waivers",SUMIF('C Report'!$A$100:$A$199,'C Report Grouper'!$D30,'C Report'!N$100:N$199)+SUMIF('C Report'!$A$300:$A$399,'C Report Grouper'!$D30,'C Report'!N$300:N$399),SUMIF('C Report'!$A$100:$A$199,'C Report Grouper'!$D30,'C Report'!N$100:N$199)) -> 0 | Q30: =IF($D$4="MAP+ADM Waivers",SUMIF('C Report'!$A$100:$A$199,'C Report Grouper'!$D30,'C Report'!O$100:O$199)+SUMIF('C Report'!$A$300:$A$399,'C Report Grouper'!$D30,'C Report'!O$300:O$399),SUMIF('C Report'!$A$100:$A$199,'C Report Grouper'!$D30,'C Report'!O$100:O$199)) -> 0 | R30: =IF($D$4="MAP+ADM Waivers",SUMIF('C Report'!$A$100:$A$199,'C Report Grouper'!$D30,'C Report'!P$100:P$199)+SUMIF('C Report'!$A$300:$A$399,'C Report Grouper'!$D30,'C Report'!P$300:P$399),SUMIF('C Report'!$A$100:$A$199,'C Report Grouper'!$D30,'C Report'!P$100:P$199)) -> 0 | S30: =IF($D$4="MAP+ADM Waivers",SUMIF('C Report'!$A$100:$A$199,'C Report Grouper'!$D30,'C Report'!Q$100:Q$199)+SUMIF('C Report'!$A$300:$A$399,'C Report Grouper'!$D30,'C Report'!Q$300:Q$399),SUMIF('C Report'!$A$100:$A$199,'C Report Grouper'!$D30,'C Report'!Q$100:Q$199)) -> 0 | T30: =IF($D$4="MAP+ADM Waivers",SUMIF('C Report'!$A$100:$A$199,'C Report Grouper'!$D30,'C Report'!R$100:R$199)+SUMIF('C Report'!$A$300:$A$399,'C Report Grouper'!$D30,'C Report'!R$300:R$399),SUMIF('C Report'!$A$100:$A$199,'C Report Grouper'!$D30,'C Report'!R$100:R$199)) -> 0 | U30: =IF($D$4="MAP+ADM Waivers",SUMIF('C Report'!$A$100:$A$199,'C Report Grouper'!$D30,'C Report'!S$100:S$199)+SUMIF('C Report'!$A$300:$A$399,'C Report Grouper'!$D30,'C Report'!S$300:S$399),SUMIF('C Report'!$A$100:$A$199,'C Report Grouper'!$D30,'C Report'!S$100:S$199)) -> 0 | V30: =IF($D$4="MAP+ADM Waivers",SUMIF('C Report'!$A$100:$A$199,'C Report Grouper'!$D30,'C Report'!T$100:T$199)+SUMIF('C Report'!$A$300:$A$399,'C Report Grouper'!$D30,'C Report'!T$300:T$399),SUMIF('C Report'!$A$100:$A$199,'C Report Grouper'!$D30,'C Report'!T$100:T$199)) -> 0 | W30: =IF($D$4="MAP+ADM Waivers",SUMIF('C Report'!$A$100:$A$199,'C Report Grouper'!$D30,'C Report'!U$100:U$199)+SUMIF('C Report'!$A$300:$A$399,'C Report Grouper'!$D30,'C Report'!U$300:U$399),SUMIF('C Report'!$A$100:$A$199,'C Report Grouper'!$D30,'C Report'!U$100:U$199)) -> 0 | X30: =IF($D$4="MAP+ADM Waivers",SUMIF('C Report'!$A$100:$A$199,'C Report Grouper'!$D30,'C Report'!V$100:V$199)+SUMIF('C Report'!$A$300:$A$399,'C Report Grouper'!$D30,'C Report'!V$300:V$399),SUMIF('C Report'!$A$100:$A$199,'C Report Grouper'!$D30,'C Report'!V$100:V$199)) -> 0 | Y30: =IF($D$4="MAP+ADM Waivers",SUMIF('C Report'!$A$100:$A$199,'C Report Grouper'!$D30,'C Report'!W$100:W$199)+SUMIF('C Report'!$A$300:$A$399,'C Report Grouper'!$D30,'C Report'!W$300:W$399),SUMIF('C Report'!$A$100:$A$199,'C Report Grouper'!$D30,'C Report'!W$100:W$199)) -> 0 | Z30: =IF($D$4="MAP+ADM Waivers",SUMIF('C Report'!$A$100:$A$199,'C Report Grouper'!$D30,'C Report'!X$100:X$199)+SUMIF('C Report'!$A$300:$A$399,'C Report Grouper'!$D30,'C Report'!X$300:X$399),SUMIF('C Report'!$A$100:$A$199,'C Report Grouper'!$D30,'C Report'!X$100:X$199)) -> 0 | AA30: =IF($D$4="MAP+ADM Waivers",SUMIF('C Report'!$A$100:$A$199,'C Report Grouper'!$D30,'C Report'!Y$100:Y$199)+SUMIF('C Report'!$A$300:$A$399,'C Report Grouper'!$D30,'C Report'!Y$300:Y$399),SUMIF('C Report'!$A$100:$A$199,'C Report Grouper'!$D30,'C Report'!Y$100:Y$199)) -> 0 | AB30: =IF($D$4="MAP+ADM Waivers",SUMIF('C Report'!$A$100:$A$199,'C Report Grouper'!$D30,'C Report'!Z$100:Z$199)+SUMIF('C Report'!$A$300:$A$399,'C Report Grouper'!$D30,'C Report'!Z$300:Z$399),SUMIF('C Report'!$A$100:$A$199,'C Report Grouper'!$D30,'C Report'!Z$100:Z$199)) -> 0 | AC30: =IF($D$4="MAP+ADM Waivers",SUMIF('C Report'!$A$100:$A$199,'C Report Grouper'!$D30,'C Report'!AA$100:AA$199)+SUMIF('C Report'!$A$300:$A$399,'C Report Grouper'!$D30,'C Report'!AA$300:AA$399),SUMIF('C Report'!$A$100:$A$199,'C Report Grouper'!$D30,'C Report'!AA$100:AA$199)) -> 0 | AD30: =IF($D$4="MAP+ADM Waivers",SUMIF('C Report'!$A$100:$A$199,'C Report Grouper'!$D30,'C Report'!AB$100:AB$199)+SUMIF('C Report'!$A$300:$A$399,'C Report Grouper'!$D30,'C Report'!AB$300:AB$399),SUMIF('C Report'!$A$100:$A$199,'C Report Grouper'!$D30,'C Report'!AB$100:AB$199)) -> 0 | AE30: =IF($D$4="MAP+ADM Waivers",SUMIF('C Report'!$A$100:$A$199,'C Report Grouper'!$D30,'C Report'!AC$100:AC$199)+SUMIF('C Report'!$A$300:$A$399,'C Report Grouper'!$D30,'C Report'!AC$300:AC$399),SUMIF('C Report'!$A$100:$A$199,'C Report Grouper'!$D30,'C Report'!AC$100:AC$199)) -> 0 | AF30: =IF($D$4="MAP+ADM Waivers",SUMIF('C Report'!$A$100:$A$199,'C Report Grouper'!$D30,'C Report'!AD$100:AD$199)+SUMIF('C Report'!$A$300:$A$399,'C Report Grouper'!$D30,'C Report'!AD$300:AD$399),SUMIF('C Report'!$A$100:$A$199,'C Report Grouper'!$D30,'C Report'!AD$100:AD$199)) -> 0 | AG30: =IF($D$4="MAP+ADM Waivers",SUMIF('C Report'!$A$100:$A$199,'C Report Grouper'!$D30,'C Report'!AE$100:AE$199)+SUMIF('C Report'!$A$300:$A$399,'C Report Grouper'!$D30,'C Report'!AE$300:AE$399),SUMIF('C Report'!$A$100:$A$199,'C Report Grouper'!$D30,'C Report'!AE$100:AE$199)) -> 0 | AH30: =IF($D$4="MAP+ADM Waivers",SUMIF('C Report'!$A$100:$A$199,'C Report Grouper'!$D30,'C Report'!AF$100:AF$199)+SUMIF('C Report'!$A$300:$A$399,'C Report Grouper'!$D30,'C Report'!AF$300:AF$399),SUMIF('C Report'!$A$100:$A$199,'C Report Grouper'!$D30,'C Report'!AF$100:AF$199)) -> 0
B31: =IFERROR(VLOOKUP(C31,'MEG Def'!$A$42:$B$46,2),"") -> SUD IMD TANF | C31: 1 | D31: Former Foster Care Youth / SUD IMD TANF | E31: =IF($D$4="MAP+ADM Waivers",SUMIF('C Report'!$A$100:$A$199,'C Report Grouper'!$D31,'C Report'!C$100:C$199)+SUMIF('C Report'!$A$300:$A$399,'C Report Grouper'!$D31,'C Report'!C$300:C$399),SUMIF('C Report'!$A$100:$A$199,'C Report Grouper'!$D31,'C Report'!C$100:C$199)) -> 1580 | F31: =IF($D$4="MAP+ADM Waivers",SUMIF('C Report'!$A$100:$A$199,'C Report Grouper'!$D31,'C Report'!D$100:D$199)+SUMIF('C Report'!$A$300:$A$399,'C Report Grouper'!$D31,'C Report'!D$300:D$399),SUMIF('C Report'!$A$100:$A$199,'C Report Grouper'!$D31,'C Report'!D$100:D$199)) -> 248175 | G31: =IF($D$4="MAP+ADM Waivers",SUMIF('C Report'!$A$100:$A$199,'C Report Grouper'!$D31,'C Report'!E$100:E$199)+SUMIF('C Report'!$A$300:$A$399,'C Report Grouper'!$D31,'C Report'!E$300:E$399),SUMIF('C Report'!$A$100:$A$199,'C Report Grouper'!$D31,'C Report'!E$100:E$199)) -> 0 | H31: =IF($D$4="MAP+ADM Waivers",SUMIF('C Report'!$A$100:$A$199,'C Report Grouper'!$D31,'C Report'!F$100:F$199)+SUMIF('C Report'!$A$300:$A$399,'C Report Grouper'!$D31,'C Report'!F$300:F$399),SUMIF('C Report'!$A$100:$A$199,'C Report Grouper'!$D31,'C Report'!F$100:F$199)) -> 0 | I31: =IF($D$4="MAP+ADM Waivers",SUMIF('C Report'!$A$100:$A$199,'C Report Grouper'!$D31,'C Report'!G$100:G$199)+SUMIF('C Report'!$A$300:$A$399,'C Report Grouper'!$D31,'C Report'!G$300:G$399),SUMIF('C Report'!$A$100:$A$199,'C Report Grouper'!$D31,'C Report'!G$100:G$199)) -> 0 | J31: =IF($D$4="MAP+ADM Waivers",SUMIF('C Report'!$A$100:$A$199,'C Report Grouper'!$D31,'C Report'!H$100:H$199)+SUMIF('C Report'!$A$300:$A$399,'C Report Grouper'!$D31,'C Report'!H$300:H$399),SUMIF('C Report'!$A$100:$A$199,'C Report Grouper'!$D31,'C Report'!H$100:H$199)) -> 0 | K31: =IF($D$4="MAP+ADM Waivers",SUMIF('C Report'!$A$100:$A$199,'C Report Grouper'!$D31,'C Report'!I$100:I$199)+SUMIF('C Report'!$A$300:$A$399,'C Report Grouper'!$D31,'C Report'!I$300:I$399),SUMIF('C Report'!$A$100:$A$199,'C Report Grouper'!$D31,'C Report'!I$100:I$199)) -> 0 | L31: =IF($D$4="MAP+ADM Waivers",SUMIF('C Report'!$A$100:$A$199,'C Report Grouper'!$D31,'C Report'!J$100:J$199)+SUMIF('C Report'!$A$300:$A$399,'C Report Grouper'!$D31,'C Report'!J$300:J$399),SUMIF('C Report'!$A$100:$A$199,'C Report Grouper'!$D31,'C Report'!J$100:J$199)) -> 0 | M31: =IF($D$4="MAP+ADM Waivers",SUMIF('C Report'!$A$100:$A$199,'C Report Grouper'!$D31,'C Report'!K$100:K$199)+SUMIF('C Report'!$A$300:$A$399,'C Report Grouper'!$D31,'C Report'!K$300:K$399),SUMIF('C Report'!$A$100:$A$199,'C Report Grouper'!$D31,'C Report'!K$100:K$199)) -> 0 | N31: =IF($D$4="MAP+ADM Waivers",SUMIF('C Report'!$A$100:$A$199,'C Report Grouper'!$D31,'C Report'!L$100:L$199)+SUMIF('C Report'!$A$300:$A$399,'C Report Grouper'!$D31,'C Report'!L$300:L$399),SUMIF('C Report'!$A$100:$A$199,'C Report Grouper'!$D31,'C Report'!L$100:L$199)) -> 0 | O31: =IF($D$4="MAP+ADM Waivers",SUMIF('C Report'!$A$100:$A$199,'C Report Grouper'!$D31,'C Report'!M$100:M$199)+SUMIF('C Report'!$A$300:$A$399,'C Report Grouper'!$D31,'C Report'!M$300:M$399),SUMIF('C Report'!$A$100:$A$199,'C Report Grouper'!$D31,'C Report'!M$100:M$199)) -> 0 | P31: =IF($D$4="MAP+ADM Waivers",SUMIF('C Report'!$A$100:$A$199,'C Report Grouper'!$D31,'C Report'!N$100:N$199)+SUMIF('C Report'!$A$300:$A$399,'C Report Grouper'!$D31,'C Report'!N$300:N$399),SUMIF('C Report'!$A$100:$A$199,'C Report Grouper'!$D31,'C Report'!N$100:N$199)) -> 0 | Q31: =IF($D$4="MAP+ADM Waivers",SUMIF('C Report'!$A$100:$A$199,'C Report Grouper'!$D31,'C Report'!O$100:O$199)+SUMIF('C Report'!$A$300:$A$399,'C Report Grouper'!$D31,'C Report'!O$300:O$399),SUMIF('C Report'!$A$100:$A$199,'C Report Grouper'!$D31,'C Report'!O$100:O$199)) -> 0 | R31: =IF($D$4="MAP+ADM Waivers",SUMIF('C Report'!$A$100:$A$199,'C Report Grouper'!$D31,'C Report'!P$100:P$199)+SUMIF('C Report'!$A$300:$A$399,'C Report Grouper'!$D31,'C Report'!P$300:P$399),SUMIF('C Report'!$A$100:$A$199,'C Report Grouper'!$D31,'C Report'!P$100:P$199)) -> 0 | S31: =IF($D$4="MAP+ADM Waivers",SUMIF('C Report'!$A$100:$A$199,'C Report Grouper'!$D31,'C Report'!Q$100:Q$199)+SUMIF('C Report'!$A$300:$A$399,'C Report Grouper'!$D31,'C Report'!Q$300:Q$399),SUMIF('C Report'!$A$100:$A$199,'C Report Grouper'!$D31,'C Report'!Q$100:Q$199)) -> 0 | T31: =IF($D$4="MAP+ADM Waivers",SUMIF('C Report'!$A$100:$A$199,'C Report Grouper'!$D31,'C Report'!R$100:R$199)+SUMIF('C Report'!$A$300:$A$399,'C Report Grouper'!$D31,'C Report'!R$300:R$399),SUMIF('C Report'!$A$100:$A$199,'C Report Grouper'!$D31,'C Report'!R$100:R$199)) -> 0 | U31: =IF($D$4="MAP+ADM Waivers",SUMIF('C Report'!$A$100:$A$199,'C Report Grouper'!$D31,'C Report'!S$100:S$199)+SUMIF('C Report'!$A$300:$A$399,'C Report Grouper'!$D31,'C Report'!S$300:S$399),SUMIF('C Report'!$A$100:$A$199,'C Report Grouper'!$D31,'C Report'!S$100:S$199)) -> 0 | V31: =IF($D$4="MAP+ADM Waivers",SUMIF('C Report'!$A$100:$A$199,'C Report Grouper'!$D31,'C Report'!T$100:T$199)+SUMIF('C Report'!$A$300:$A$399,'C Report Grouper'!$D31,'C Report'!T$300:T$399),SUMIF('C Report'!$A$100:$A$199,'C Report Grouper'!$D31,'C Report'!T$100:T$199)) -> 0 | W31: =IF($D$4="MAP+ADM Waivers",SUMIF('C Report'!$A$100:$A$199,'C Report Grouper'!$D31,'C Report'!U$100:U$199)+SUMIF('C Report'!$A$300:$A$399,'C Report Grouper'!$D31,'C Report'!U$300:U$399),SUMIF('C Report'!$A$100:$A$199,'C Report Grouper'!$D31,'C Report'!U$100:U$199)) -> 0 | X31: =IF($D$4="MAP+ADM Waivers",SUMIF('C Report'!$A$100:$A$199,'C Report Grouper'!$D31,'C Report'!V$100:V$199)+SUMIF('C Report'!$A$300:$A$399,'C Report Grouper'!$D31,'C Report'!V$300:V$399),SUMIF('C Report'!$A$100:$A$199,'C Report Grouper'!$D31,'C Report'!V$100:V$199)) -> 0 | Y31: =IF($D$4="MAP+ADM Waivers",SUMIF('C Report'!$A$100:$A$199,'C Report Grouper'!$D31,'C Report'!W$100:W$199)+SUMIF('C Report'!$A$300:$A$399,'C Report Grouper'!$D31,'C Report'!W$300:W$399),SUMIF('C Report'!$A$100:$A$199,'C Report Grouper'!$D31,'C Report'!W$100:W$199)) -> 0 | Z31: =IF($D$4="MAP+ADM Waivers",SUMIF('C Report'!$A$100:$A$199,'C Report Grouper'!$D31,'C Report'!X$100:X$199)+SUMIF('C Report'!$A$300:$A$399,'C Report Grouper'!$D31,'C Report'!X$300:X$399),SUMIF('C Report'!$A$100:$A$199,'C Report Grouper'!$D31,'C Report'!X$100:X$199)) -> 0 | AA31: =IF($D$4="MAP+ADM Waivers",SUMIF('C Report'!$A$100:$A$199,'C Report Grouper'!$D31,'C Report'!Y$100:Y$199)+SUMIF('C Report'!$A$300:$A$399,'C Report Grouper'!$D31,'C Report'!Y$300:Y$399),SUMIF('C Report'!$A$100:$A$199,'C Report Grouper'!$D31,'C Report'!Y$100:Y$199)) -> 0 | AB31: =IF($D$4="MAP+ADM Waivers",SUMIF('C Report'!$A$100:$A$199,'C Report Grouper'!$D31,'C Report'!Z$100:Z$199)+SUMIF('C Report'!$A$300:$A$399,'C Report Grouper'!$D31,'C Report'!Z$300:Z$399),SUMIF('C Report'!$A$100:$A$199,'C Report Grouper'!$D31,'C Report'!Z$100:Z$199)) -> 0 | AC31: =IF($D$4="MAP+ADM Waivers",SUMIF('C Report'!$A$100:$A$199,'C Report Grouper'!$D31,'C Report'!AA$100:AA$199)+SUMIF('C Report'!$A$300:$A$399,'C Report Grouper'!$D31,'C Report'!AA$300:AA$399),SUMIF('C Report'!$A$100:$A$199,'C Report Grouper'!$D31,'C Report'!AA$100:AA$199)) -> 0 | AD31: =IF($D$4="MAP+ADM Waivers",SUMIF('C Report'!$A$100:$A$199,'C Report Grouper'!$D31,'C Report'!AB$100:AB$199)+SUMIF('C Report'!$A$300:$A$399,'C Report Grouper'!$D31,'C Report'!AB$300:AB$399),SUMIF('C Report'!$A$100:$A$199,'C Report Grouper'!$D31,'C Report'!AB$100:AB$199)) -> 0 | AE31: =IF($D$4="MAP+ADM Waivers",SUMIF('C Report'!$A$100:$A$199,'C Report Grouper'!$D31,'C Report'!AC$100:AC$199)+SUMIF('C Report'!$A$300:$A$399,'C Report Grouper'!$D31,'C Report'!AC$300:AC$399),SUMIF('C Report'!$A$100:$A$199,'C Report Grouper'!$D31,'C Report'!AC$100:AC$199)) -> 0 | AF31: =IF($D$4="MAP+ADM Waivers",SUMIF('C Report'!$A$100:$A$199,'C Report Grouper'!$D31,'C Report'!AD$100:AD$199)+SUMIF('C Report'!$A$300:$A$399,'C Report Grouper'!$D31,'C Report'!AD$300:AD$399),SUMIF('C Report'!$A$100:$A$199,'C Report Grouper'!$D31,'C Report'!AD$100:AD$199)) -> 0 | AG31: =IF($D$4="MAP+ADM Waivers",SUMIF('C Report'!$A$100:$A$199,'C Report Grouper'!$D31,'C Report'!AE$100:AE$199)+SUMIF('C Report'!$A$300:$A$399,'C Report Grouper'!$D31,'C Report'!AE$300:AE$399),SUMIF('C Report'!$A$100:$A$199,'C Report Grouper'!$D31,'C Report'!AE$100:AE$199)) -> 0 | AH31: =IF($D$4="MAP+ADM Waivers",SUMIF('C Report'!$A$100:$A$199,'C Report Grouper'!$D31,'C Report'!AF$100:AF$199)+SUMIF('C Report'!$A$300:$A$399,'C Report Grouper'!$D31,'C Report'!AF$300:AF$399),SUMIF('C Report'!$A$100:$A$199,'C Report Grouper'!$D31,'C Report'!AF$100:AF$199)) -> 0
B32: =IFERROR(VLOOKUP(C32,'MEG Def'!$A$42:$B$46,2),"") -> SUD IMD TANF | C32: 1 | D32: SUD IMD TANF | E32: =IF($D$4="MAP+ADM Waivers",SUMIF('C Report'!$A$100:$A$199,'C Report Grouper'!$D32,'C Report'!C$100:C$199)+SUMIF('C Report'!$A$300:$A$399,'C Report Grouper'!$D32,'C Report'!C$300:C$399),SUMIF('C Report'!$A$100:$A$199,'C Report Grouper'!$D32,'C Report'!C$100:C$199)) -> 1250975 | F32: =IF($D$4="MAP+ADM Waivers",SUMIF('C Report'!$A$100:$A$199,'C Report Grouper'!$D32,'C Report'!D$100:D$199)+SUMIF('C Report'!$A$300:$A$399,'C Report Grouper'!$D32,'C Report'!D$300:D$399),SUMIF('C Report'!$A$100:$A$199,'C Report Grouper'!$D32,'C Report'!D$100:D$199)) -> 5936439 | G32: =IF($D$4="MAP+ADM Waivers",SUMIF('C Report'!$A$100:$A$199,'C Report Grouper'!$D32,'C Report'!E$100:E$199)+SUMIF('C Report'!$A$300:$A$399,'C Report Grouper'!$D32,'C Report'!E$300:E$399),SUMIF('C Report'!$A$100:$A$199,'C Report Grouper'!$D32,'C Report'!E$100:E$199)) -> 3755678 | H32: =IF($D$4="MAP+ADM Waivers",SUMIF('C Report'!$A$100:$A$199,'C Report Grouper'!$D32,'C Report'!F$100:F$199)+SUMIF('C Report'!$A$300:$A$399,'C Report Grouper'!$D32,'C Report'!F$300:F$399),SUMIF('C Report'!$A$100:$A$199,'C Report Grouper'!$D32,'C Report'!F$100:F$199)) -> 3719558 | I32: =IF($D$4="MAP+ADM Waivers",SUMIF('C Report'!$A$100:$A$199,'C Report Grouper'!$D32,'C Report'!G$100:G$199)+SUMIF('C Report'!$A$300:$A$399,'C Report Grouper'!$D32,'C Report'!G$300:G$399),SUMIF('C Report'!$A$100:$A$199,'C Report Grouper'!$D32,'C Report'!G$100:G$199)) -> 796459 | J32: =IF($D$4="MAP+ADM Waivers",SUMIF('C Report'!$A$100:$A$199,'C Report Grouper'!$D32,'C Report'!H$100:H$199)+SUMIF('C Report'!$A$300:$A$399,'C Report Grouper'!$D32,'C Report'!H$300:H$399),SUMIF('C Report'!$A$100:$A$199,'C Report Grouper'!$D32,'C Report'!H$100:H$199)) -> 2403466 | K32: =IF($D$4="MAP+ADM Waivers",SUMIF('C Report'!$A$100:$A$199,'C Report Grouper'!$D32,'C Report'!I$100:I$199)+SUMIF('C Report'!$A$300:$A$399,'C Report Grouper'!$D32,'C Report'!I$300:I$399),SUMIF('C Report'!$A$100:$A$199,'C Report Grouper'!$D32,'C Report'!I$100:I$199)) -> 0 | L32: =IF($D$4="MAP+ADM Waivers",SUMIF('C Report'!$A$100:$A$199,'C Report Grouper'!$D32,'C Report'!J$100:J$199)+SUMIF('C Report'!$A$300:$A$399,'C Report Grouper'!$D32,'C Report'!J$300:J$399),SUMIF('C Report'!$A$100:$A$199,'C Report Grouper'!$D32,'C Report'!J$100:J$199)) -> 0 | M32: =IF($D$4="MAP+ADM Waivers",SUMIF('C Report'!$A$100:$A$199,'C Report Grouper'!$D32,'C Report'!K$100:K$199)+SUMIF('C Report'!$A$300:$A$399,'C Report Grouper'!$D32,'C Report'!K$300:K$399),SUMIF('C Report'!$A$100:$A$199,'C Report Grouper'!$D32,'C Report'!K$100:K$199)) -> 0 | N32: =IF($D$4="MAP+ADM Waivers",SUMIF('C Report'!$A$100:$A$199,'C Report Grouper'!$D32,'C Report'!L$100:L$199)+SUMIF('C Report'!$A$300:$A$399,'C Report Grouper'!$D32,'C Report'!L$300:L$399),SUMIF('C Report'!$A$100:$A$199,'C Report Grouper'!$D32,'C Report'!L$100:L$199)) -> 0 | O32: =IF($D$4="MAP+ADM Waivers",SUMIF('C Report'!$A$100:$A$199,'C Report Grouper'!$D32,'C Report'!M$100:M$199)+SUMIF('C Report'!$A$300:$A$399,'C Report Grouper'!$D32,'C Report'!M$300:M$399),SUMIF('C Report'!$A$100:$A$199,'C Report Grouper'!$D32,'C Report'!M$100:M$199)) -> 0 | P32: =IF($D$4="MAP+ADM Waivers",SUMIF('C Report'!$A$100:$A$199,'C Report Grouper'!$D32,'C Report'!N$100:N$199)+SUMIF('C Report'!$A$300:$A$399,'C Report Grouper'!$D32,'C Report'!N$300:N$399),SUMIF('C Report'!$A$100:$A$199,'C Report Grouper'!$D32,'C Report'!N$100:N$199)) -> 0 | Q32: =IF($D$4="MAP+ADM Waivers",SUMIF('C Report'!$A$100:$A$199,'C Report Grouper'!$D32,'C Report'!O$100:O$199)+SUMIF('C Report'!$A$300:$A$399,'C Report Grouper'!$D32,'C Report'!O$300:O$399),SUMIF('C Report'!$A$100:$A$199,'C Report Grouper'!$D32,'C Report'!O$100:O$199)) -> 0 | R32: =IF($D$4="MAP+ADM Waivers",SUMIF('C Report'!$A$100:$A$199,'C Report Grouper'!$D32,'C Report'!P$100:P$199)+SUMIF('C Report'!$A$300:$A$399,'C Report Grouper'!$D32,'C Report'!P$300:P$399),SUMIF('C Report'!$A$100:$A$199,'C Report Grouper'!$D32,'C Report'!P$100:P$199)) -> 0 | S32: =IF($D$4="MAP+ADM Waivers",SUMIF('C Report'!$A$100:$A$199,'C Report Grouper'!$D32,'C Report'!Q$100:Q$199)+SUMIF('C Report'!$A$300:$A$399,'C Report Grouper'!$D32,'C Report'!Q$300:Q$399),SUMIF('C Report'!$A$100:$A$199,'C Report Grouper'!$D32,'C Report'!Q$100:Q$199)) -> 0 | T32: =IF($D$4="MAP+ADM Waivers",SUMIF('C Report'!$A$100:$A$199,'C Report Grouper'!$D32,'C Report'!R$100:R$199)+SUMIF('C Report'!$A$300:$A$399,'C Report Grouper'!$D32,'C Report'!R$300:R$399),SUMIF('C Report'!$A$100:$A$199,'C Report Grouper'!$D32,'C Report'!R$100:R$199)) -> 0 | U32: =IF($D$4="MAP+ADM Waivers",SUMIF('C Report'!$A$100:$A$199,'C Report Grouper'!$D32,'C Report'!S$100:S$199)+SUMIF('C Report'!$A$300:$A$399,'C Report Grouper'!$D32,'C Report'!S$300:S$399),SUMIF('C Report'!$A$100:$A$199,'C Report Grouper'!$D32,'C Report'!S$100:S$199)) -> 0 | V32: =IF($D$4="MAP+ADM Waivers",SUMIF('C Report'!$A$100:$A$199,'C Report Grouper'!$D32,'C Report'!T$100:T$199)+SUMIF('C Report'!$A$300:$A$399,'C Report Grouper'!$D32,'C Report'!T$300:T$399),SUMIF('C Report'!$A$100:$A$199,'C Report Grouper'!$D32,'C Report'!T$100:T$199)) -> 0 | W32: =IF($D$4="MAP+ADM Waivers",SUMIF('C Report'!$A$100:$A$199,'C Report Grouper'!$D32,'C Report'!U$100:U$199)+SUMIF('C Report'!$A$300:$A$399,'C Report Grouper'!$D32,'C Report'!U$300:U$399),SUMIF('C Report'!$A$100:$A$199,'C Report Grouper'!$D32,'C Report'!U$100:U$199)) -> 0 | X32: =IF($D$4="MAP+ADM Waivers",SUMIF('C Report'!$A$100:$A$199,'C Report Grouper'!$D32,'C Report'!V$100:V$199)+SUMIF('C Report'!$A$300:$A$399,'C Report Grouper'!$D32,'C Report'!V$300:V$399),SUMIF('C Report'!$A$100:$A$199,'C Report Grouper'!$D32,'C Report'!V$100:V$199)) -> 0 | Y32: =IF($D$4="MAP+ADM Waivers",SUMIF('C Report'!$A$100:$A$199,'C Report Grouper'!$D32,'C Report'!W$100:W$199)+SUMIF('C Report'!$A$300:$A$399,'C Report Grouper'!$D32,'C Report'!W$300:W$399),SUMIF('C Report'!$A$100:$A$199,'C Report Grouper'!$D32,'C Report'!W$100:W$199)) -> 0 | Z32: =IF($D$4="MAP+ADM Waivers",SUMIF('C Report'!$A$100:$A$199,'C Report Grouper'!$D32,'C Report'!X$100:X$199)+SUMIF('C Report'!$A$300:$A$399,'C Report Grouper'!$D32,'C Report'!X$300:X$399),SUMIF('C Report'!$A$100:$A$199,'C Report Grouper'!$D32,'C Report'!X$100:X$199)) -> 0 | AA32: =IF($D$4="MAP+ADM Waivers",SUMIF('C Report'!$A$100:$A$199,'C Report Grouper'!$D32,'C Report'!Y$100:Y$199)+SUMIF('C Report'!$A$300:$A$399,'C Report Grouper'!$D32,'C Report'!Y$300:Y$399),SUMIF('C Report'!$A$100:$A$199,'C Report Grouper'!$D32,'C Report'!Y$100:Y$199)) -> 0 | AB32: =IF($D$4="MAP+ADM Waivers",SUMIF('C Report'!$A$100:$A$199,'C Report Grouper'!$D32,'C Report'!Z$100:Z$199)+SUMIF('C Report'!$A$300:$A$399,'C Report Grouper'!$D32,'C Report'!Z$300:Z$399),SUMIF('C Report'!$A$100:$A$199,'C Report Grouper'!$D32,'C Report'!Z$100:Z$199)) -> 0 | AC32: =IF($D$4="MAP+ADM Waivers",SUMIF('C Report'!$A$100:$A$199,'C Report Grouper'!$D32,'C Report'!AA$100:AA$199)+SUMIF('C Report'!$A$300:$A$399,'C Report Grouper'!$D32,'C Report'!AA$300:AA$399),SUMIF('C Report'!$A$100:$A$199,'C Report Grouper'!$D32,'C Report'!AA$100:AA$199)) -> 0 | AD32: =IF($D$4="MAP+ADM Waivers",SUMIF('C Report'!$A$100:$A$199,'C Report Grouper'!$D32,'C Report'!AB$100:AB$199)+SUMIF('C Report'!$A$300:$A$399,'C Report Grouper'!$D32,'C Report'!AB$300:AB$399),SUMIF('C Report'!$A$100:$A$199,'C Report Grouper'!$D32,'C Report'!AB$100:AB$199)) -> 0 | AE32: =IF($D$4="MAP+ADM Waivers",SUMIF('C Report'!$A$100:$A$199,'C Report Grouper'!$D32,'C Report'!AC$100:AC$199)+SUMIF('C Report'!$A$300:$A$399,'C Report Grouper'!$D32,'C Report'!AC$300:AC$399),SUMIF('C Report'!$A$100:$A$199,'C Report Grouper'!$D32,'C Report'!AC$100:AC$199)) -> 0 | AF32: =IF($D$4="MAP+ADM Waivers",SUMIF('C Report'!$A$100:$A$199,'C Report Grouper'!$D32,'C Report'!AD$100:AD$199)+SUMIF('C Report'!$A$300:$A$399,'C Report Grouper'!$D32,'C Report'!AD$300:AD$399),SUMIF('C Report'!$A$100:$A$199,'C Report Grouper'!$D32,'C Report'!AD$100:AD$199)) -> 0 | AG32: =IF($D$4="MAP+ADM Waivers",SUMIF('C Report'!$A$100:$A$199,'C Report Grouper'!$D32,'C Report'!AE$100:AE$199)+SUMIF('C Report'!$A$300:$A$399,'C Report Grouper'!$D32,'C Report'!AE$300:AE$399),SUMIF('C Report'!$A$100:$A$199,'C Report Grouper'!$D32,'C Report'!AE$100:AE$199)) -> 0 | AH32: =IF($D$4="MAP+ADM Waivers",SUMIF('C Report'!$A$100:$A$199,'C Report Grouper'!$D32,'C Report'!AF$100:AF$199)+SUMIF('C Report'!$A$300:$A$399,'C Report Grouper'!$D32,'C Report'!AF$300:AF$399),SUMIF('C Report'!$A$100:$A$199,'C Report Grouper'!$D32,'C Report'!AF$100:AF$199)) -> 0
B33: =IFERROR(VLOOKUP(C33,'MEG Def'!$A$42:$B$46,2),"") -> SUD IMD SSI Duals – NFCE | C33: 2 | D33: SUD IMD SSI Duals - NFCE | E33: =IF($D$4="MAP+ADM Waivers",SUMIF('C Report'!$A$100:$A$199,'C Report Grouper'!$D33,'C Report'!C$100:C$199)+SUMIF('C Report'!$A$300:$A$399,'C Report Grouper'!$D33,'C Report'!C$300:C$399),SUMIF('C Report'!$A$100:$A$199,'C Report Grouper'!$D33,'C Report'!C$100:C$199)) -> 0 | F33: =IF($D$4="MAP+ADM Waivers",SUMIF('C Report'!$A$100:$A$199,'C Report Grouper'!$D33,'C Report'!D$100:D$199)+SUMIF('C Report'!$A$300:$A$399,'C Report Grouper'!$D33,'C Report'!D$300:D$399),SUMIF('C Report'!$A$100:$A$199,'C Report Grouper'!$D33,'C Report'!D$100:D$199)) -> 0 | G33: =IF($D$4="MAP+ADM Waivers",SUMIF('C Report'!$A$100:$A$199,'C Report Grouper'!$D33,'C Report'!E$100:E$199)+SUMIF('C Report'!$A$300:$A$399,'C Report Grouper'!$D33,'C Report'!E$300:E$399),SUMIF('C Report'!$A$100:$A$199,'C Report Grouper'!$D33,'C Report'!E$100:E$199)) -> 0 | H33: =IF($D$4="MAP+ADM Waivers",SUMIF('C Report'!$A$100:$A$199,'C Report Grouper'!$D33,'C Report'!F$100:F$199)+SUMIF('C Report'!$A$300:$A$399,'C Report Grouper'!$D33,'C Report'!F$300:F$399),SUMIF('C Report'!$A$100:$A$199,'C Report Grouper'!$D33,'C Report'!F$100:F$199)) -> 0 | I33: =IF($D$4="MAP+ADM Waivers",SUMIF('C Report'!$A$100:$A$199,'C Report Grouper'!$D33,'C Report'!G$100:G$199)+SUMIF('C Report'!$A$300:$A$399,'C Report Grouper'!$D33,'C Report'!G$300:G$399),SUMIF('C Report'!$A$100:$A$199,'C Report Grouper'!$D33,'C Report'!G$100:G$199)) -> 0 | J33: =IF($D$4="MAP+ADM Waivers",SUMIF('C Report'!$A$100:$A$199,'C Report Grouper'!$D33,'C Report'!H$100:H$199)+SUMIF('C Report'!$A$300:$A$399,'C Report Grouper'!$D33,'C Report'!H$300:H$399),SUMIF('C Report'!$A$100:$A$199,'C Report Grouper'!$D33,'C Report'!H$100:H$199)) -> 1088126 | K33: =IF($D$4="MAP+ADM Waivers",SUMIF('C Report'!$A$100:$A$199,'C Report Grouper'!$D33,'C Report'!I$100:I$199)+SUMIF('C Report'!$A$300:$A$399,'C Report Grouper'!$D33,'C Report'!I$300:I$399),SUMIF('C Report'!$A$100:$A$199,'C Report Grouper'!$D33,'C Report'!I$100:I$199)) -> 0 | L33: =IF($D$4="MAP+ADM Waivers",SUMIF('C Report'!$A$100:$A$199,'C Report Grouper'!$D33,'C Report'!J$100:J$199)+SUMIF('C Report'!$A$300:$A$399,'C Report Grouper'!$D33,'C Report'!J$300:J$399),SUMIF('C Report'!$A$100:$A$199,'C Report Grouper'!$D33,'C Report'!J$100:J$199)) -> 0 | M33: =IF($D$4="MAP+ADM Waivers",SUMIF('C Report'!$A$100:$A$199,'C Report Grouper'!$D33,'C Report'!K$100:K$199)+SUMIF('C Report'!$A$300:$A$399,'C Report Grouper'!$D33,'C Report'!K$300:K$399),SUMIF('C Report'!$A$100:$A$199,'C Report Grouper'!$D33,'C Report'!K$100:K$199)) -> 0 | N33: =IF($D$4="MAP+ADM Waivers",SUMIF('C Report'!$A$100:$A$199,'C Report Grouper'!$D33,'C Report'!L$100:L$199)+SUMIF('C Report'!$A$300:$A$399,'C Report Grouper'!$D33,'C Report'!L$300:L$399),SUMIF('C Report'!$A$100:$A$199,'C Report Grouper'!$D33,'C Report'!L$100:L$199)) -> 0 | O33: =IF($D$4="MAP+ADM Waivers",SUMIF('C Report'!$A$100:$A$199,'C Report Grouper'!$D33,'C Report'!M$100:M$199)+SUMIF('C Report'!$A$300:$A$399,'C Report Grouper'!$D33,'C Report'!M$300:M$399),SUMIF('C Report'!$A$100:$A$199,'C Report Grouper'!$D33,'C Report'!M$100:M$199)) -> 0 | P33: =IF($D$4="MAP+ADM Waivers",SUMIF('C Report'!$A$100:$A$199,'C Report Grouper'!$D33,'C Report'!N$100:N$199)+SUMIF('C Report'!$A$300:$A$399,'C Report Grouper'!$D33,'C Report'!N$300:N$399),SUMIF('C Report'!$A$100:$A$199,'C Report Grouper'!$D33,'C Report'!N$100:N$199)) -> 0 | Q33: =IF($D$4="MAP+ADM Waivers",SUMIF('C Report'!$A$100:$A$199,'C Report Grouper'!$D33,'C Report'!O$100:O$199)+SUMIF('C Report'!$A$300:$A$399,'C Report Grouper'!$D33,'C Report'!O$300:O$399),SUMIF('C Report'!$A$100:$A$199,'C Report Grouper'!$D33,'C Report'!O$100:O$199)) -> 0 | R33: =IF($D$4="MAP+ADM Waivers",SUMIF('C Report'!$A$100:$A$199,'C Report Grouper'!$D33,'C Report'!P$100:P$199)+SUMIF('C Report'!$A$300:$A$399,'C Report Grouper'!$D33,'C Report'!P$300:P$399),SUMIF('C Report'!$A$100:$A$199,'C Report Grouper'!$D33,'C Report'!P$100:P$199)) -> 0 | S33: =IF($D$4="MAP+ADM Waivers",SUMIF('C Report'!$A$100:$A$199,'C Report Grouper'!$D33,'C Report'!Q$100:Q$199)+SUMIF('C Report'!$A$300:$A$399,'C Report Grouper'!$D33,'C Report'!Q$300:Q$399),SUMIF('C Report'!$A$100:$A$199,'C Report Grouper'!$D33,'C Report'!Q$100:Q$199)) -> 0 | T33: =IF($D$4="MAP+ADM Waivers",SUMIF('C Report'!$A$100:$A$199,'C Report Grouper'!$D33,'C Report'!R$100:R$199)+SUMIF('C Report'!$A$300:$A$399,'C Report Grouper'!$D33,'C Report'!R$300:R$399),SUMIF('C Report'!$A$100:$A$199,'C Report Grouper'!$D33,'C Report'!R$100:R$199)) -> 0 | U33: =IF($D$4="MAP+ADM Waivers",SUMIF('C Report'!$A$100:$A$199,'C Report Grouper'!$D33,'C Report'!S$100:S$199)+SUMIF('C Report'!$A$300:$A$399,'C Report Grouper'!$D33,'C Report'!S$300:S$399),SUMIF('C Report'!$A$100:$A$199,'C Report Grouper'!$D33,'C Report'!S$100:S$199)) -> 0 | V33: =IF($D$4="MAP+ADM Waivers",SUMIF('C Report'!$A$100:$A$199,'C Report Grouper'!$D33,'C Report'!T$100:T$199)+SUMIF('C Report'!$A$300:$A$399,'C Report Grouper'!$D33,'C Report'!T$300:T$399),SUMIF('C Report'!$A$100:$A$199,'C Report Grouper'!$D33,'C Report'!T$100:T$199)) -> 0 | W33: =IF($D$4="MAP+ADM Waivers",SUMIF('C Report'!$A$100:$A$199,'C Report Grouper'!$D33,'C Report'!U$100:U$199)+SUMIF('C Report'!$A$300:$A$399,'C Report Grouper'!$D33,'C Report'!U$300:U$399),SUMIF('C Report'!$A$100:$A$199,'C Report Grouper'!$D33,'C Report'!U$100:U$199)) -> 0 | X33: =IF($D$4="MAP+ADM Waivers",SUMIF('C Report'!$A$100:$A$199,'C Report Grouper'!$D33,'C Report'!V$100:V$199)+SUMIF('C Report'!$A$300:$A$399,'C Report Grouper'!$D33,'C Report'!V$300:V$399),SUMIF('C Report'!$A$100:$A$199,'C Report Grouper'!$D33,'C Report'!V$100:V$199)) -> 0 | Y33: =IF($D$4="MAP+ADM Waivers",SUMIF('C Report'!$A$100:$A$199,'C Report Grouper'!$D33,'C Report'!W$100:W$199)+SUMIF('C Report'!$A$300:$A$399,'C Report Grouper'!$D33,'C Report'!W$300:W$399),SUMIF('C Report'!$A$100:$A$199,'C Report Grouper'!$D33,'C Report'!W$100:W$199)) -> 0 | Z33: =IF($D$4="MAP+ADM Waivers",SUMIF('C Report'!$A$100:$A$199,'C Report Grouper'!$D33,'C Report'!X$100:X$199)+SUMIF('C Report'!$A$300:$A$399,'C Report Grouper'!$D33,'C Report'!X$300:X$399),SUMIF('C Report'!$A$100:$A$199,'C Report Grouper'!$D33,'C Report'!X$100:X$199)) -> 0 | AA33: =IF($D$4="MAP+ADM Waivers",SUMIF('C Report'!$A$100:$A$199,'C Report Grouper'!$D33,'C Report'!Y$100:Y$199)+SUMIF('C Report'!$A$300:$A$399,'C Report Grouper'!$D33,'C Report'!Y$300:Y$399),SUMIF('C Report'!$A$100:$A$199,'C Report Grouper'!$D33,'C Report'!Y$100:Y$199)) -> 0 | AB33: =IF($D$4="MAP+ADM Waivers",SUMIF('C Report'!$A$100:$A$199,'C Report Grouper'!$D33,'C Report'!Z$100:Z$199)+SUMIF('C Report'!$A$300:$A$399,'C Report Grouper'!$D33,'C Report'!Z$300:Z$399),SUMIF('C Report'!$A$100:$A$199,'C Report Grouper'!$D33,'C Report'!Z$100:Z$199)) -> 0 | AC33: =IF($D$4="MAP+ADM Waivers",SUMIF('C Report'!$A$100:$A$199,'C Report Grouper'!$D33,'C Report'!AA$100:AA$199)+SUMIF('C Report'!$A$300:$A$399,'C Report Grouper'!$D33,'C Report'!AA$300:AA$399),SUMIF('C Report'!$A$100:$A$199,'C Report Grouper'!$D33,'C Report'!AA$100:AA$199)) -> 0 | AD33: =IF($D$4="MAP+ADM Waivers",SUMIF('C Report'!$A$100:$A$199,'C Report Grouper'!$D33,'C Report'!AB$100:AB$199)+SUMIF('C Report'!$A$300:$A$399,'C Report Grouper'!$D33,'C Report'!AB$300:AB$399),SUMIF('C Report'!$A$100:$A$199,'C Report Grouper'!$D33,'C Report'!AB$100:AB$199)) -> 0 | AE33: =IF($D$4="MAP+ADM Waivers",SUMIF('C Report'!$A$100:$A$199,'C Report Grouper'!$D33,'C Report'!AC$100:AC$199)+SUMIF('C Report'!$A$300:$A$399,'C Report Grouper'!$D33,'C Report'!AC$300:AC$399),SUMIF('C Report'!$A$100:$A$199,'C Report Grouper'!$D33,'C Report'!AC$100:AC$199)) -> 0 | AF33: =IF($D$4="MAP+ADM Waivers",SUMIF('C Report'!$A$100:$A$199,'C Report Grouper'!$D33,'C Report'!AD$100:AD$199)+SUMIF('C Report'!$A$300:$A$399,'C Report Grouper'!$D33,'C Report'!AD$300:AD$399),SUMIF('C Report'!$A$100:$A$199,'C Report Grouper'!$D33,'C Report'!AD$100:AD$199)) -> 0 | AG33: =IF($D$4="MAP+ADM Waivers",SUMIF('C Report'!$A$100:$A$199,'C Report Grouper'!$D33,'C Report'!AE$100:AE$199)+SUMIF('C Report'!$A$300:$A$399,'C Report Grouper'!$D33,'C Report'!AE$300:AE$399),SUMIF('C Report'!$A$100:$A$199,'C Report Grouper'!$D33,'C Report'!AE$100:AE$199)) -> 0 | AH33: =IF($D$4="MAP+ADM Waivers",SUMIF('C Report'!$A$100:$A$199,'C Report Grouper'!$D33,'C Report'!AF$100:AF$199)+SUMIF('C Report'!$A$300:$A$399,'C Report Grouper'!$D33,'C Report'!AF$300:AF$399),SUMIF('C Report'!$A$100:$A$199,'C Report Grouper'!$D33,'C Report'!AF$100:AF$199)) -> 0
B34: =IFERROR(VLOOKUP(C34,'MEG Def'!$A$42:$B$46,2),"") -> SUD IMD SSI Duals – NFI | C34: 3 | D34: SUD IMD SSI Duals - NFI | E34: =IF($D$4="MAP+ADM Waivers",SUMIF('C Report'!$A$100:$A$199,'C Report Grouper'!$D34,'C Report'!C$100:C$199)+SUMIF('C Report'!$A$300:$A$399,'C Report Grouper'!$D34,'C Report'!C$300:C$399),SUMIF('C Report'!$A$100:$A$199,'C Report Grouper'!$D34,'C Report'!C$100:C$199)) -> 0 | F34: =IF($D$4="MAP+ADM Waivers",SUMIF('C Report'!$A$100:$A$199,'C Report Grouper'!$D34,'C Report'!D$100:D$199)+SUMIF('C Report'!$A$300:$A$399,'C Report Grouper'!$D34,'C Report'!D$300:D$399),SUMIF('C Report'!$A$100:$A$199,'C Report Grouper'!$D34,'C Report'!D$100:D$199)) -> 0 | G34: =IF($D$4="MAP+ADM Waivers",SUMIF('C Report'!$A$100:$A$199,'C Report Grouper'!$D34,'C Report'!E$100:E$199)+SUMIF('C Report'!$A$300:$A$399,'C Report Grouper'!$D34,'C Report'!E$300:E$399),SUMIF('C Report'!$A$100:$A$199,'C Report Grouper'!$D34,'C Report'!E$100:E$199)) -> 0 | H34: =IF($D$4="MAP+ADM Waivers",SUMIF('C Report'!$A$100:$A$199,'C Report Grouper'!$D34,'C Report'!F$100:F$199)+SUMIF('C Report'!$A$300:$A$399,'C Report Grouper'!$D34,'C Report'!F$300:F$399),SUMIF('C Report'!$A$100:$A$199,'C Report Grouper'!$D34,'C Report'!F$100:F$199)) -> 0 | I34: =IF($D$4="MAP+ADM Waivers",SUMIF('C Report'!$A$100:$A$199,'C Report Grouper'!$D34,'C Report'!G$100:G$199)+SUMIF('C Report'!$A$300:$A$399,'C Report Grouper'!$D34,'C Report'!G$300:G$399),SUMIF('C Report'!$A$100:$A$199,'C Report Grouper'!$D34,'C Report'!G$100:G$199)) -> 0 | J34: =IF($D$4="MAP+ADM Waivers",SUMIF('C Report'!$A$100:$A$199,'C Report Grouper'!$D34,'C Report'!H$100:H$199)+SUMIF('C Report'!$A$300:$A$399,'C Report Grouper'!$D34,'C Report'!H$300:H$399),SUMIF('C Report'!$A$100:$A$199,'C Report Grouper'!$D34,'C Report'!H$100:H$199)) -> 666724 | K34: =IF($D$4="MAP+ADM Waivers",SUMIF('C Report'!$A$100:$A$199,'C Report Grouper'!$D34,'C Report'!I$100:I$199)+SUMIF('C Report'!$A$300:$A$399,'C Report Grouper'!$D34,'C Report'!I$300:I$399),SUMIF('C Report'!$A$100:$A$199,'C Report Grouper'!$D34,'C Report'!I$100:I$199)) -> 0 | L34: =IF($D$4="MAP+ADM Waivers",SUMIF('C Report'!$A$100:$A$199,'C Report Grouper'!$D34,'C Report'!J$100:J$199)+SUMIF('C Report'!$A$300:$A$399,'C Report Grouper'!$D34,'C Report'!J$300:J$399),SUMIF('C Report'!$A$100:$A$199,'C Report Grouper'!$D34,'C Report'!J$100:J$199)) -> 0 | M34: =IF($D$4="MAP+ADM Waivers",SUMIF('C Report'!$A$100:$A$199,'C Report Grouper'!$D34,'C Report'!K$100:K$199)+SUMIF('C Report'!$A$300:$A$399,'C Report Grouper'!$D34,'C Report'!K$300:K$399),SUMIF('C Report'!$A$100:$A$199,'C Report Grouper'!$D34,'C Report'!K$100:K$199)) -> 0 | N34: =IF($D$4="MAP+ADM Waivers",SUMIF('C Report'!$A$100:$A$199,'C Report Grouper'!$D34,'C Report'!L$100:L$199)+SUMIF('C Report'!$A$300:$A$399,'C Report Grouper'!$D34,'C Report'!L$300:L$399),SUMIF('C Report'!$A$100:$A$199,'C Report Grouper'!$D34,'C Report'!L$100:L$199)) -> 0 | O34: =IF($D$4="MAP+ADM Waivers",SUMIF('C Report'!$A$100:$A$199,'C Report Grouper'!$D34,'C Report'!M$100:M$199)+SUMIF('C Report'!$A$300:$A$399,'C Report Grouper'!$D34,'C Report'!M$300:M$399),SUMIF('C Report'!$A$100:$A$199,'C Report Grouper'!$D34,'C Report'!M$100:M$199)) -> 0 | P34: =IF($D$4="MAP+ADM Waivers",SUMIF('C Report'!$A$100:$A$199,'C Report Grouper'!$D34,'C Report'!N$100:N$199)+SUMIF('C Report'!$A$300:$A$399,'C Report Grouper'!$D34,'C Report'!N$300:N$399),SUMIF('C Report'!$A$100:$A$199,'C Report Grouper'!$D34,'C Report'!N$100:N$199)) -> 0 | Q34: =IF($D$4="MAP+ADM Waivers",SUMIF('C Report'!$A$100:$A$199,'C Report Grouper'!$D34,'C Report'!O$100:O$199)+SUMIF('C Report'!$A$300:$A$399,'C Report Grouper'!$D34,'C Report'!O$300:O$399),SUMIF('C Report'!$A$100:$A$199,'C Report Grouper'!$D34,'C Report'!O$100:O$199)) -> 0 | R34: =IF($D$4="MAP+ADM Waivers",SUMIF('C Report'!$A$100:$A$199,'C Report Grouper'!$D34,'C Report'!P$100:P$199)+SUMIF('C Report'!$A$300:$A$399,'C Report Grouper'!$D34,'C Report'!P$300:P$399),SUMIF('C Report'!$A$100:$A$199,'C Report Grouper'!$D34,'C Report'!P$100:P$199)) -> 0 | S34: =IF($D$4="MAP+ADM Waivers",SUMIF('C Report'!$A$100:$A$199,'C Report Grouper'!$D34,'C Report'!Q$100:Q$199)+SUMIF('C Report'!$A$300:$A$399,'C Report Grouper'!$D34,'C Report'!Q$300:Q$399),SUMIF('C Report'!$A$100:$A$199,'C Report Grouper'!$D34,'C Report'!Q$100:Q$199)) -> 0 | T34: =IF($D$4="MAP+ADM Waivers",SUMIF('C Report'!$A$100:$A$199,'C Report Grouper'!$D34,'C Report'!R$100:R$199)+SUMIF('C Report'!$A$300:$A$399,'C Report Grouper'!$D34,'C Report'!R$300:R$399),SUMIF('C Report'!$A$100:$A$199,'C Report Grouper'!$D34,'C Report'!R$100:R$199)) -> 0 | U34: =IF($D$4="MAP+ADM Waivers",SUMIF('C Report'!$A$100:$A$199,'C Report Grouper'!$D34,'C Report'!S$100:S$199)+SUMIF('C Report'!$A$300:$A$399,'C Report Grouper'!$D34,'C Report'!S$300:S$399),SUMIF('C Report'!$A$100:$A$199,'C Report Grouper'!$D34,'C Report'!S$100:S$199)) -> 0 | V34: =IF($D$4="MAP+ADM Waivers",SUMIF('C Report'!$A$100:$A$199,'C Report Grouper'!$D34,'C Report'!T$100:T$199)+SUMIF('C Report'!$A$300:$A$399,'C Report Grouper'!$D34,'C Report'!T$300:T$399),SUMIF('C Report'!$A$100:$A$199,'C Report Grouper'!$D34,'C Report'!T$100:T$199)) -> 0 | W34: =IF($D$4="MAP+ADM Waivers",SUMIF('C Report'!$A$100:$A$199,'C Report Grouper'!$D34,'C Report'!U$100:U$199)+SUMIF('C Report'!$A$300:$A$399,'C Report Grouper'!$D34,'C Report'!U$300:U$399),SUMIF('C Report'!$A$100:$A$199,'C Report Grouper'!$D34,'C Report'!U$100:U$199)) -> 0 | X34: =IF($D$4="MAP+ADM Waivers",SUMIF('C Report'!$A$100:$A$199,'C Report Grouper'!$D34,'C Report'!V$100:V$199)+SUMIF('C Report'!$A$300:$A$399,'C Report Grouper'!$D34,'C Report'!V$300:V$399),SUMIF('C Report'!$A$100:$A$199,'C Report Grouper'!$D34,'C Report'!V$100:V$199)) -> 0 | Y34: =IF($D$4="MAP+ADM Waivers",SUMIF('C Report'!$A$100:$A$199,'C Report Grouper'!$D34,'C Report'!W$100:W$199)+SUMIF('C Report'!$A$300:$A$399,'C Report Grouper'!$D34,'C Report'!W$300:W$399),SUMIF('C Report'!$A$100:$A$199,'C Report Grouper'!$D34,'C Report'!W$100:W$199)) -> 0 | Z34: =IF($D$4="MAP+ADM Waivers",SUMIF('C Report'!$A$100:$A$199,'C Report Grouper'!$D34,'C Report'!X$100:X$199)+SUMIF('C Report'!$A$300:$A$399,'C Report Grouper'!$D34,'C Report'!X$300:X$399),SUMIF('C Report'!$A$100:$A$199,'C Report Grouper'!$D34,'C Report'!X$100:X$199)) -> 0 | AA34: =IF($D$4="MAP+ADM Waivers",SUMIF('C Report'!$A$100:$A$199,'C Report Grouper'!$D34,'C Report'!Y$100:Y$199)+SUMIF('C Report'!$A$300:$A$399,'C Report Grouper'!$D34,'C Report'!Y$300:Y$399),SUMIF('C Report'!$A$100:$A$199,'C Report Grouper'!$D34,'C Report'!Y$100:Y$199)) -> 0 | AB34: =IF($D$4="MAP+ADM Waivers",SUMIF('C Report'!$A$100:$A$199,'C Report Grouper'!$D34,'C Report'!Z$100:Z$199)+SUMIF('C Report'!$A$300:$A$399,'C Report Grouper'!$D34,'C Report'!Z$300:Z$399),SUMIF('C Report'!$A$100:$A$199,'C Report Grouper'!$D34,'C Report'!Z$100:Z$199)) -> 0 | AC34: =IF($D$4="MAP+ADM Waivers",SUMIF('C Report'!$A$100:$A$199,'C Report Grouper'!$D34,'C Report'!AA$100:AA$199)+SUMIF('C Report'!$A$300:$A$399,'C Report Grouper'!$D34,'C Report'!AA$300:AA$399),SUMIF('C Report'!$A$100:$A$199,'C Report Grouper'!$D34,'C Report'!AA$100:AA$199)) -> 0 | AD34: =IF($D$4="MAP+ADM Waivers",SUMIF('C Report'!$A$100:$A$199,'C Report Grouper'!$D34,'C Report'!AB$100:AB$199)+SUMIF('C Report'!$A$300:$A$399,'C Report Grouper'!$D34,'C Report'!AB$300:AB$399),SUMIF('C Report'!$A$100:$A$199,'C Report Grouper'!$D34,'C Report'!AB$100:AB$199)) -> 0 | AE34: =IF($D$4="MAP+ADM Waivers",SUMIF('C Report'!$A$100:$A$199,'C Report Grouper'!$D34,'C Report'!AC$100:AC$199)+SUMIF('C Report'!$A$300:$A$399,'C Report Grouper'!$D34,'C Report'!AC$300:AC$399),SUMIF('C Report'!$A$100:$A$199,'C Report Grouper'!$D34,'C Report'!AC$100:AC$199)) -> 0 | AF34: =IF($D$4="MAP+ADM Waivers",SUMIF('C Report'!$A$100:$A$199,'C Report Grouper'!$D34,'C Report'!AD$100:AD$199)+SUMIF('C Report'!$A$300:$A$399,'C Report Grouper'!$D34,'C Report'!AD$300:AD$399),SUMIF('C Report'!$A$100:$A$199,'C Report Grouper'!$D34,'C Report'!AD$100:AD$199)) -> 0 | AG34: =IF($D$4="MAP+ADM Waivers",SUMIF('C Report'!$A$100:$A$199,'C Report Grouper'!$D34,'C Report'!AE$100:AE$199)+SUMIF('C Report'!$A$300:$A$399,'C Report Grouper'!$D34,'C Report'!AE$300:AE$399),SUMIF('C Report'!$A$100:$A$199,'C Report Grouper'!$D34,'C Report'!AE$100:AE$199)) -> 0 | AH34: =IF($D$4="MAP+ADM Waivers",SUMIF('C Report'!$A$100:$A$199,'C Report Grouper'!$D34,'C Report'!AF$100:AF$199)+SUMIF('C Report'!$A$300:$A$399,'C Report Grouper'!$D34,'C Report'!AF$300:AF$399),SUMIF('C Report'!$A$100:$A$199,'C Report Grouper'!$D34,'C Report'!AF$100:AF$199)) -> 0
B35: =IFERROR(VLOOKUP(C35,'MEG Def'!$A$42:$B$46,2),"") -> SUD IMD SSI NON-Duals | C35: 4 | D35: SUD IMD SSI Non-Duals | E35: =IF($D$4="MAP+ADM Waivers",SUMIF('C Report'!$A$100:$A$199,'C Report Grouper'!$D35,'C Report'!C$100:C$199)+SUMIF('C Report'!$A$300:$A$399,'C Report Grouper'!$D35,'C Report'!C$300:C$399),SUMIF('C Report'!$A$100:$A$199,'C Report Grouper'!$D35,'C Report'!C$100:C$199)) -> 5368743 | F35: =IF($D$4="MAP+ADM Waivers",SUMIF('C Report'!$A$100:$A$199,'C Report Grouper'!$D35,'C Report'!D$100:D$199)+SUMIF('C Report'!$A$300:$A$399,'C Report Grouper'!$D35,'C Report'!D$300:D$399),SUMIF('C Report'!$A$100:$A$199,'C Report Grouper'!$D35,'C Report'!D$100:D$199)) -> 24344293 | G35: =IF($D$4="MAP+ADM Waivers",SUMIF('C Report'!$A$100:$A$199,'C Report Grouper'!$D35,'C Report'!E$100:E$199)+SUMIF('C Report'!$A$300:$A$399,'C Report Grouper'!$D35,'C Report'!E$300:E$399),SUMIF('C Report'!$A$100:$A$199,'C Report Grouper'!$D35,'C Report'!E$100:E$199)) -> 15919919 | H35: =IF($D$4="MAP+ADM Waivers",SUMIF('C Report'!$A$100:$A$199,'C Report Grouper'!$D35,'C Report'!F$100:F$199)+SUMIF('C Report'!$A$300:$A$399,'C Report Grouper'!$D35,'C Report'!F$300:F$399),SUMIF('C Report'!$A$100:$A$199,'C Report Grouper'!$D35,'C Report'!F$100:F$199)) -> 16708470 | I35: =IF($D$4="MAP+ADM Waivers",SUMIF('C Report'!$A$100:$A$199,'C Report Grouper'!$D35,'C Report'!G$100:G$199)+SUMIF('C Report'!$A$300:$A$399,'C Report Grouper'!$D35,'C Report'!G$300:G$399),SUMIF('C Report'!$A$100:$A$199,'C Report Grouper'!$D35,'C Report'!G$100:G$199)) -> 3538611 | J35: =IF($D$4="MAP+ADM Waivers",SUMIF('C Report'!$A$100:$A$199,'C Report Grouper'!$D35,'C Report'!H$100:H$199)+SUMIF('C Report'!$A$300:$A$399,'C Report Grouper'!$D35,'C Report'!H$300:H$399),SUMIF('C Report'!$A$100:$A$199,'C Report Grouper'!$D35,'C Report'!H$100:H$199)) -> 12088353 | K35: =IF($D$4="MAP+ADM Waivers",SUMIF('C Report'!$A$100:$A$199,'C Report Grouper'!$D35,'C Report'!I$100:I$199)+SUMIF('C Report'!$A$300:$A$399,'C Report Grouper'!$D35,'C Report'!I$300:I$399),SUMIF('C Report'!$A$100:$A$199,'C Report Grouper'!$D35,'C Report'!I$100:I$199)) -> 0 | L35: =IF($D$4="MAP+ADM Waivers",SUMIF('C Report'!$A$100:$A$199,'C Report Grouper'!$D35,'C Report'!J$100:J$199)+SUMIF('C Report'!$A$300:$A$399,'C Report Grouper'!$D35,'C Report'!J$300:J$399),SUMIF('C Report'!$A$100:$A$199,'C Report Grouper'!$D35,'C Report'!J$100:J$199)) -> 0 | M35: =IF($D$4="MAP+ADM Waivers",SUMIF('C Report'!$A$100:$A$199,'C Report Grouper'!$D35,'C Report'!K$100:K$199)+SUMIF('C Report'!$A$300:$A$399,'C Report Grouper'!$D35,'C Report'!K$300:K$399),SUMIF('C Report'!$A$100:$A$199,'C Report Grouper'!$D35,'C Report'!K$100:K$199)) -> 0 | N35: =IF($D$4="MAP+ADM Waivers",SUMIF('C Report'!$A$100:$A$199,'C Report Grouper'!$D35,'C Report'!L$100:L$199)+SUMIF('C Report'!$A$300:$A$399,'C Report Grouper'!$D35,'C Report'!L$300:L$399),SUMIF('C Report'!$A$100:$A$199,'C Report Grouper'!$D35,'C Report'!L$100:L$199)) -> 0 | O35: =IF($D$4="MAP+ADM Waivers",SUMIF('C Report'!$A$100:$A$199,'C Report Grouper'!$D35,'C Report'!M$100:M$199)+SUMIF('C Report'!$A$300:$A$399,'C Report Grouper'!$D35,'C Report'!M$300:M$399),SUMIF('C Report'!$A$100:$A$199,'C Report Grouper'!$D35,'C Report'!M$100:M$199)) -> 0 | P35: =IF($D$4="MAP+ADM Waivers",SUMIF('C Report'!$A$100:$A$199,'C Report Grouper'!$D35,'C Report'!N$100:N$199)+SUMIF('C Report'!$A$300:$A$399,'C Report Grouper'!$D35,'C Report'!N$300:N$399),SUMIF('C Report'!$A$100:$A$199,'C Report Grouper'!$D35,'C Report'!N$100:N$199)) -> 0 | Q35: =IF($D$4="MAP+ADM Waivers",SUMIF('C Report'!$A$100:$A$199,'C Report Grouper'!$D35,'C Report'!O$100:O$199)+SUMIF('C Report'!$A$300:$A$399,'C Report Grouper'!$D35,'C Report'!O$300:O$399),SUMIF('C Report'!$A$100:$A$199,'C Report Grouper'!$D35,'C Report'!O$100:O$199)) -> 0 | R35: =IF($D$4="MAP+ADM Waivers",SUMIF('C Report'!$A$100:$A$199,'C Report Grouper'!$D35,'C Report'!P$100:P$199)+SUMIF('C Report'!$A$300:$A$399,'C Report Grouper'!$D35,'C Report'!P$300:P$399),SUMIF('C Report'!$A$100:$A$199,'C Report Grouper'!$D35,'C Report'!P$100:P$199)) -> 0 | S35: =IF($D$4="MAP+ADM Waivers",SUMIF('C Report'!$A$100:$A$199,'C Report Grouper'!$D35,'C Report'!Q$100:Q$199)+SUMIF('C Report'!$A$300:$A$399,'C Report Grouper'!$D35,'C Report'!Q$300:Q$399),SUMIF('C Report'!$A$100:$A$199,'C Report Grouper'!$D35,'C Report'!Q$100:Q$199)) -> 0 | T35: =IF($D$4="MAP+ADM Waivers",SUMIF('C Report'!$A$100:$A$199,'C Report Grouper'!$D35,'C Report'!R$100:R$199)+SUMIF('C Report'!$A$300:$A$399,'C Report Grouper'!$D35,'C Report'!R$300:R$399),SUMIF('C Report'!$A$100:$A$199,'C Report Grouper'!$D35,'C Report'!R$100:R$199)) -> 0 | U35: =IF($D$4="MAP+ADM Waivers",SUMIF('C Report'!$A$100:$A$199,'C Report Grouper'!$D35,'C Report'!S$100:S$199)+SUMIF('C Report'!$A$300:$A$399,'C Report Grouper'!$D35,'C Report'!S$300:S$399),SUMIF('C Report'!$A$100:$A$199,'C Report Grouper'!$D35,'C Report'!S$100:S$199)) -> 0 | V35: =IF($D$4="MAP+ADM Waivers",SUMIF('C Report'!$A$100:$A$199,'C Report Grouper'!$D35,'C Report'!T$100:T$199)+SUMIF('C Report'!$A$300:$A$399,'C Report Grouper'!$D35,'C Report'!T$300:T$399),SUMIF('C Report'!$A$100:$A$199,'C Report Grouper'!$D35,'C Report'!T$100:T$199)) -> 0 | W35: =IF($D$4="MAP+ADM Waivers",SUMIF('C Report'!$A$100:$A$199,'C Report Grouper'!$D35,'C Report'!U$100:U$199)+SUMIF('C Report'!$A$300:$A$399,'C Report Grouper'!$D35,'C Report'!U$300:U$399),SUMIF('C Report'!$A$100:$A$199,'C Report Grouper'!$D35,'C Report'!U$100:U$199)) -> 0 | X35: =IF($D$4="MAP+ADM Waivers",SUMIF('C Report'!$A$100:$A$199,'C Report Grouper'!$D35,'C Report'!V$100:V$199)+SUMIF('C Report'!$A$300:$A$399,'C Report Grouper'!$D35,'C Report'!V$300:V$399),SUMIF('C Report'!$A$100:$A$199,'C Report Grouper'!$D35,'C Report'!V$100:V$199)) -> 0 | Y35: =IF($D$4="MAP+ADM Waivers",SUMIF('C Report'!$A$100:$A$199,'C Report Grouper'!$D35,'C Report'!W$100:W$199)+SUMIF('C Report'!$A$300:$A$399,'C Report Grouper'!$D35,'C Report'!W$300:W$399),SUMIF('C Report'!$A$100:$A$199,'C Report Grouper'!$D35,'C Report'!W$100:W$199)) -> 0 | Z35: =IF($D$4="MAP+ADM Waivers",SUMIF('C Report'!$A$100:$A$199,'C Report Grouper'!$D35,'C Report'!X$100:X$199)+SUMIF('C Report'!$A$300:$A$399,'C Report Grouper'!$D35,'C Report'!X$300:X$399),SUMIF('C Report'!$A$100:$A$199,'C Report Grouper'!$D35,'C Report'!X$100:X$199)) -> 0 | AA35: =IF($D$4="MAP+ADM Waivers",SUMIF('C Report'!$A$100:$A$199,'C Report Grouper'!$D35,'C Report'!Y$100:Y$199)+SUMIF('C Report'!$A$300:$A$399,'C Report Grouper'!$D35,'C Report'!Y$300:Y$399),SUMIF('C Report'!$A$100:$A$199,'C Report Grouper'!$D35,'C Report'!Y$100:Y$199)) -> 0 | AB35: =IF($D$4="MAP+ADM Waivers",SUMIF('C Report'!$A$100:$A$199,'C Report Grouper'!$D35,'C Report'!Z$100:Z$199)+SUMIF('C Report'!$A$300:$A$399,'C Report Grouper'!$D35,'C Report'!Z$300:Z$399),SUMIF('C Report'!$A$100:$A$199,'C Report Grouper'!$D35,'C Report'!Z$100:Z$199)) -> 0 | AC35: =IF($D$4="MAP+ADM Waivers",SUMIF('C Report'!$A$100:$A$199,'C Report Grouper'!$D35,'C Report'!AA$100:AA$199)+SUMIF('C Report'!$A$300:$A$399,'C Report Grouper'!$D35,'C Report'!AA$300:AA$399),SUMIF('C Report'!$A$100:$A$199,'C Report Grouper'!$D35,'C Report'!AA$100:AA$199)) -> 0 | AD35: =IF($D$4="MAP+ADM Waivers",SUMIF('C Report'!$A$100:$A$199,'C Report Grouper'!$D35,'C Report'!AB$100:AB$199)+SUMIF('C Report'!$A$300:$A$399,'C Report Grouper'!$D35,'C Report'!AB$300:AB$399),SUMIF('C Report'!$A$100:$A$199,'C Report Grouper'!$D35,'C Report'!AB$100:AB$199)) -> 0 | AE35: =IF($D$4="MAP+ADM Waivers",SUMIF('C Report'!$A$100:$A$199,'C Report Grouper'!$D35,'C Report'!AC$100:AC$199)+SUMIF('C Report'!$A$300:$A$399,'C Report Grouper'!$D35,'C Report'!AC$300:AC$399),SUMIF('C Report'!$A$100:$A$199,'C Report Grouper'!$D35,'C Report'!AC$100:AC$199)) -> 0 | AF35: =IF($D$4="MAP+ADM Waivers",SUMIF('C Report'!$A$100:$A$199,'C Report Grouper'!$D35,'C Report'!AD$100:AD$199)+SUMIF('C Report'!$A$300:$A$399,'C Report Grouper'!$D35,'C Report'!AD$300:AD$399),SUMIF('C Report'!$A$100:$A$199,'C Report Grouper'!$D35,'C Report'!AD$100:AD$199)) -> 0 | AG35: =IF($D$4="MAP+ADM Waivers",SUMIF('C Report'!$A$100:$A$199,'C Report Grouper'!$D35,'C Report'!AE$100:AE$199)+SUMIF('C Report'!$A$300:$A$399,'C Report Grouper'!$D35,'C Report'!AE$300:AE$399),SUMIF('C Report'!$A$100:$A$199,'C Report Grouper'!$D35,'C Report'!AE$100:AE$199)) -> 0 | AH35: =IF($D$4="MAP+ADM Waivers",SUMIF('C Report'!$A$100:$A$199,'C Report Grouper'!$D35,'C Report'!AF$100:AF$199)+SUMIF('C Report'!$A$300:$A$399,'C Report Grouper'!$D35,'C Report'!AF$300:AF$399),SUMIF('C Report'!$A$100:$A$199,'C Report Grouper'!$D35,'C Report'!AF$100:AF$199)) -> 0
B36: =IFERROR(VLOOKUP(C36,'MEG Def'!$A$42:$B$46,2),"") -> SUD IMD HCE | C36: 5 | D36: SUD IMD HCE | E36: =IF($D$4="MAP+ADM Waivers",SUMIF('C Report'!$A$100:$A$199,'C Report Grouper'!$D36,'C Report'!C$100:C$199)+SUMIF('C Report'!$A$300:$A$399,'C Report Grouper'!$D36,'C Report'!C$300:C$399),SUMIF('C Report'!$A$100:$A$199,'C Report Grouper'!$D36,'C Report'!C$100:C$199)) -> 5273657 | F36: =IF($D$4="MAP+ADM Waivers",SUMIF('C Report'!$A$100:$A$199,'C Report Grouper'!$D36,'C Report'!D$100:D$199)+SUMIF('C Report'!$A$300:$A$399,'C Report Grouper'!$D36,'C Report'!D$300:D$399),SUMIF('C Report'!$A$100:$A$199,'C Report Grouper'!$D36,'C Report'!D$100:D$199)) -> 64607175 | G36: =IF($D$4="MAP+ADM Waivers",SUMIF('C Report'!$A$100:$A$199,'C Report Grouper'!$D36,'C Report'!E$100:E$199)+SUMIF('C Report'!$A$300:$A$399,'C Report Grouper'!$D36,'C Report'!E$300:E$399),SUMIF('C Report'!$A$100:$A$199,'C Report Grouper'!$D36,'C Report'!E$100:E$199)) -> 36591764 | H36: =IF($D$4="MAP+ADM Waivers",SUMIF('C Report'!$A$100:$A$199,'C Report Grouper'!$D36,'C Report'!F$100:F$199)+SUMIF('C Report'!$A$300:$A$399,'C Report Grouper'!$D36,'C Report'!F$300:F$399),SUMIF('C Report'!$A$100:$A$199,'C Report Grouper'!$D36,'C Report'!F$100:F$199)) -> 38416814 | I36: =IF($D$4="MAP+ADM Waivers",SUMIF('C Report'!$A$100:$A$199,'C Report Grouper'!$D36,'C Report'!G$100:G$199)+SUMIF('C Report'!$A$300:$A$399,'C Report Grouper'!$D36,'C Report'!G$300:G$399),SUMIF('C Report'!$A$100:$A$199,'C Report Grouper'!$D36,'C Report'!G$100:G$199)) -> 8492294 | J36: =IF($D$4="MAP+ADM Waivers",SUMIF('C Report'!$A$100:$A$199,'C Report Grouper'!$D36,'C Report'!H$100:H$199)+SUMIF('C Report'!$A$300:$A$399,'C Report Grouper'!$D36,'C Report'!H$300:H$399),SUMIF('C Report'!$A$100:$A$199,'C Report Grouper'!$D36,'C Report'!H$100:H$199)) -> 27239297 | K36: =IF($D$4="MAP+ADM Waivers",SUMIF('C Report'!$A$100:$A$199,'C Report Grouper'!$D36,'C Report'!I$100:I$199)+SUMIF('C Report'!$A$300:$A$399,'C Report Grouper'!$D36,'C Report'!I$300:I$399),SUMIF('C Report'!$A$100:$A$199,'C Report Grouper'!$D36,'C Report'!I$100:I$199)) -> 0 | L36: =IF($D$4="MAP+ADM Waivers",SUMIF('C Report'!$A$100:$A$199,'C Report Grouper'!$D36,'C Report'!J$100:J$199)+SUMIF('C Report'!$A$300:$A$399,'C Report Grouper'!$D36,'C Report'!J$300:J$399),SUMIF('C Report'!$A$100:$A$199,'C Report Grouper'!$D36,'C Report'!J$100:J$199)) -> 0 | M36: =IF($D$4="MAP+ADM Waivers",SUMIF('C Report'!$A$100:$A$199,'C Report Grouper'!$D36,'C Report'!K$100:K$199)+SUMIF('C Report'!$A$300:$A$399,'C Report Grouper'!$D36,'C Report'!K$300:K$399),SUMIF('C Report'!$A$100:$A$199,'C Report Grouper'!$D36,'C Report'!K$100:K$199)) -> 0 | N36: =IF($D$4="MAP+ADM Waivers",SUMIF('C Report'!$A$100:$A$199,'C Report Grouper'!$D36,'C Report'!L$100:L$199)+SUMIF('C Report'!$A$300:$A$399,'C Report Grouper'!$D36,'C Report'!L$300:L$399),SUMIF('C Report'!$A$100:$A$199,'C Report Grouper'!$D36,'C Report'!L$100:L$199)) -> 0 | O36: =IF($D$4="MAP+ADM Waivers",SUMIF('C Report'!$A$100:$A$199,'C Report Grouper'!$D36,'C Report'!M$100:M$199)+SUMIF('C Report'!$A$300:$A$399,'C Report Grouper'!$D36,'C Report'!M$300:M$399),SUMIF('C Report'!$A$100:$A$199,'C Report Grouper'!$D36,'C Report'!M$100:M$199)) -> 0 | P36: =IF($D$4="MAP+ADM Waivers",SUMIF('C Report'!$A$100:$A$199,'C Report Grouper'!$D36,'C Report'!N$100:N$199)+SUMIF('C Report'!$A$300:$A$399,'C Report Grouper'!$D36,'C Report'!N$300:N$399),SUMIF('C Report'!$A$100:$A$199,'C Report Grouper'!$D36,'C Report'!N$100:N$199)) -> 0 | Q36: =IF($D$4="MAP+ADM Waivers",SUMIF('C Report'!$A$100:$A$199,'C Report Grouper'!$D36,'C Report'!O$100:O$199)+SUMIF('C Report'!$A$300:$A$399,'C Report Grouper'!$D36,'C Report'!O$300:O$399),SUMIF('C Report'!$A$100:$A$199,'C Report Grouper'!$D36,'C Report'!O$100:O$199)) -> 0 | R36: =IF($D$4="MAP+ADM Waivers",SUMIF('C Report'!$A$100:$A$199,'C Report Grouper'!$D36,'C Report'!P$100:P$199)+SUMIF('C Report'!$A$300:$A$399,'C Report Grouper'!$D36,'C Report'!P$300:P$399),SUMIF('C Report'!$A$100:$A$199,'C Report Grouper'!$D36,'C Report'!P$100:P$199)) -> 0 | S36: =IF($D$4="MAP+ADM Waivers",SUMIF('C Report'!$A$100:$A$199,'C Report Grouper'!$D36,'C Report'!Q$100:Q$199)+SUMIF('C Report'!$A$300:$A$399,'C Report Grouper'!$D36,'C Report'!Q$300:Q$399),SUMIF('C Report'!$A$100:$A$199,'C Report Grouper'!$D36,'C Report'!Q$100:Q$199)) -> 0 | T36: =IF($D$4="MAP+ADM Waivers",SUMIF('C Report'!$A$100:$A$199,'C Report Grouper'!$D36,'C Report'!R$100:R$199)+SUMIF('C Report'!$A$300:$A$399,'C Report Grouper'!$D36,'C Report'!R$300:R$399),SUMIF('C Report'!$A$100:$A$199,'C Report Grouper'!$D36,'C Report'!R$100:R$199)) -> 0 | U36: =IF($D$4="MAP+ADM Waivers",SUMIF('C Report'!$A$100:$A$199,'C Report Grouper'!$D36,'C Report'!S$100:S$199)+SUMIF('C Report'!$A$300:$A$399,'C Report Grouper'!$D36,'C Report'!S$300:S$399),SUMIF('C Report'!$A$100:$A$199,'C Report Grouper'!$D36,'C Report'!S$100:S$199)) -> 0 | V36: =IF($D$4="MAP+ADM Waivers",SUMIF('C Report'!$A$100:$A$199,'C Report Grouper'!$D36,'C Report'!T$100:T$199)+SUMIF('C Report'!$A$300:$A$399,'C Report Grouper'!$D36,'C Report'!T$300:T$399),SUMIF('C Report'!$A$100:$A$199,'C Report Grouper'!$D36,'C Report'!T$100:T$199)) -> 0 | W36: =IF($D$4="MAP+ADM Waivers",SUMIF('C Report'!$A$100:$A$199,'C Report Grouper'!$D36,'C Report'!U$100:U$199)+SUMIF('C Report'!$A$300:$A$399,'C Report Grouper'!$D36,'C Report'!U$300:U$399),SUMIF('C Report'!$A$100:$A$199,'C Report Grouper'!$D36,'C Report'!U$100:U$199)) -> 0 | X36: =IF($D$4="MAP+ADM Waivers",SUMIF('C Report'!$A$100:$A$199,'C Report Grouper'!$D36,'C Report'!V$100:V$199)+SUMIF('C Report'!$A$300:$A$399,'C Report Grouper'!$D36,'C Report'!V$300:V$399),SUMIF('C Report'!$A$100:$A$199,'C Report Grouper'!$D36,'C Report'!V$100:V$199)) -> 0 | Y36: =IF($D$4="MAP+ADM Waivers",SUMIF('C Report'!$A$100:$A$199,'C Report Grouper'!$D36,'C Report'!W$100:W$199)+SUMIF('C Report'!$A$300:$A$399,'C Report Grouper'!$D36,'C Report'!W$300:W$399),SUMIF('C Report'!$A$100:$A$199,'C Report Grouper'!$D36,'C Report'!W$100:W$199)) -> 0 | Z36: =IF($D$4="MAP+ADM Waivers",SUMIF('C Report'!$A$100:$A$199,'C Report Grouper'!$D36,'C Report'!X$100:X$199)+SUMIF('C Report'!$A$300:$A$399,'C Report Grouper'!$D36,'C Report'!X$300:X$399),SUMIF('C Report'!$A$100:$A$199,'C Report Grouper'!$D36,'C Report'!X$100:X$199)) -> 0 | AA36: =IF($D$4="MAP+ADM Waivers",SUMIF('C Report'!$A$100:$A$199,'C Report Grouper'!$D36,'C Report'!Y$100:Y$199)+SUMIF('C Report'!$A$300:$A$399,'C Report Grouper'!$D36,'C Report'!Y$300:Y$399),SUMIF('C Report'!$A$100:$A$199,'C Report Grouper'!$D36,'C Report'!Y$100:Y$199)) -> 0 | AB36: =IF($D$4="MAP+ADM Waivers",SUMIF('C Report'!$A$100:$A$199,'C Report Grouper'!$D36,'C Report'!Z$100:Z$199)+SUMIF('C Report'!$A$300:$A$399,'C Report Grouper'!$D36,'C Report'!Z$300:Z$399),SUMIF('C Report'!$A$100:$A$199,'C Report Grouper'!$D36,'C Report'!Z$100:Z$199)) -> 0 | AC36: =IF($D$4="MAP+ADM Waivers",SUMIF('C Report'!$A$100:$A$199,'C Report Grouper'!$D36,'C Report'!AA$100:AA$199)+SUMIF('C Report'!$A$300:$A$399,'C Report Grouper'!$D36,'C Report'!AA$300:AA$399),SUMIF('C Report'!$A$100:$A$199,'C Report Grouper'!$D36,'C Report'!AA$100:AA$199)) -> 0 | AD36: =IF($D$4="MAP+ADM Waivers",SUMIF('C Report'!$A$100:$A$199,'C Report Grouper'!$D36,'C Report'!AB$100:AB$199)+SUMIF('C Report'!$A$300:$A$399,'C Report Grouper'!$D36,'C Report'!AB$300:AB$399),SUMIF('C Report'!$A$100:$A$199,'C Report Grouper'!$D36,'C Report'!AB$100:AB$199)) -> 0 | AE36: =IF($D$4="MAP+ADM Waivers",SUMIF('C Report'!$A$100:$A$199,'C Report Grouper'!$D36,'C Report'!AC$100:AC$199)+SUMIF('C Report'!$A$300:$A$399,'C Report Grouper'!$D36,'C Report'!AC$300:AC$399),SUMIF('C Report'!$A$100:$A$199,'C Report Grouper'!$D36,'C Report'!AC$100:AC$199)) -> 0 | AF36: =IF($D$4="MAP+ADM Waivers",SUMIF('C Report'!$A$100:$A$199,'C Report Grouper'!$D36,'C Report'!AD$100:AD$199)+SUMIF('C Report'!$A$300:$A$399,'C Report Grouper'!$D36,'C Report'!AD$300:AD$399),SUMIF('C Report'!$A$100:$A$199,'C Report Grouper'!$D36,'C Report'!AD$100:AD$199)) -> 0 | AG36: =IF($D$4="MAP+ADM Waivers",SUMIF('C Report'!$A$100:$A$199,'C Report Grouper'!$D36,'C Report'!AE$100:AE$199)+SUMIF('C Report'!$A$300:$A$399,'C Report Grouper'!$D36,'C Report'!AE$300:AE$399),SUMIF('C Report'!$A$100:$A$199,'C Report Grouper'!$D36,'C Report'!AE$100:AE$199)) -> 0 | AH36: =IF($D$4="MAP+ADM Waivers",SUMIF('C Report'!$A$100:$A$199,'C Report Grouper'!$D36,'C Report'!AF$100:AF$199)+SUMIF('C Report'!$A$300:$A$399,'C Report Grouper'!$D36,'C Report'!AF$300:AF$399),SUMIF('C Report'!$A$100:$A$199,'C Report Grouper'!$D36,'C Report'!AF$100:AF$199)) -> 0
B38: Hypothetical 1 Aggregate | E38: =IF($D$4="MAP+ADM Waivers",SUMIF('C Report'!$A$100:$A$199,'C Report Grouper'!$D38,'C Report'!C$100:C$199)+SUMIF('C Report'!$A$300:$A$399,'C Report Grouper'!$D38,'C Report'!C$300:C$399),SUMIF('C Report'!$A$100:$A$199,'C Report Grouper'!$D38,'C Report'!C$100:C$199)) -> 0 | F38: =IF($D$4="MAP+ADM Waivers",SUMIF('C Report'!$A$100:$A$199,'C Report Grouper'!$D38,'C Report'!D$100:D$199)+SUMIF('C Report'!$A$300:$A$399,'C Report Grouper'!$D38,'C Report'!D$300:D$399),SUMIF('C Report'!$A$100:$A$199,'C Report Grouper'!$D38,'C Report'!D$100:D$199)) -> 0 | G38: =IF($D$4="MAP+ADM Waivers",SUMIF('C Report'!$A$100:$A$199,'C Report Grouper'!$D38,'C Report'!E$100:E$199)+SUMIF('C Report'!$A$300:$A$399,'C Report Grouper'!$D38,'C Report'!E$300:E$399),SUMIF('C Report'!$A$100:$A$199,'C Report Grouper'!$D38,'C Report'!E$100:E$199)) -> 0 | H38: =IF($D$4="MAP+ADM Waivers",SUMIF('C Report'!$A$100:$A$199,'C Report Grouper'!$D38,'C Report'!F$100:F$199)+SUMIF('C Report'!$A$300:$A$399,'C Report Grouper'!$D38,'C Report'!F$300:F$399),SUMIF('C Report'!$A$100:$A$199,'C Report Grouper'!$D38,'C Report'!F$100:F$199)) -> 0 | I38: =IF($D$4="MAP+ADM Waivers",SUMIF('C Report'!$A$100:$A$199,'C Report Grouper'!$D38,'C Report'!G$100:G$199)+SUMIF('C Report'!$A$300:$A$399,'C Report Grouper'!$D38,'C Report'!G$300:G$399),SUMIF('C Report'!$A$100:$A$199,'C Report Grouper'!$D38,'C Report'!G$100:G$199)) -> 0 | J38: =IF($D$4="MAP+ADM Waivers",SUMIF('C Report'!$A$100:$A$199,'C Report Grouper'!$D38,'C Report'!H$100:H$199)+SUMIF('C Report'!$A$300:$A$399,'C Report Grouper'!$D38,'C Report'!H$300:H$399),SUMIF('C Report'!$A$100:$A$199,'C Report Grouper'!$D38,'C Report'!H$100:H$199)) -> 0 | K38: =IF($D$4="MAP+ADM Waivers",SUMIF('C Report'!$A$100:$A$199,'C Report Grouper'!$D38,'C Report'!I$100:I$199)+SUMIF('C Report'!$A$300:$A$399,'C Report Grouper'!$D38,'C Report'!I$300:I$399),SUMIF('C Report'!$A$100:$A$199,'C Report Grouper'!$D38,'C Report'!I$100:I$199)) -> 0 | L38: =IF($D$4="MAP+ADM Waivers",SUMIF('C Report'!$A$100:$A$199,'C Report Grouper'!$D38,'C Report'!J$100:J$199)+SUMIF('C Report'!$A$300:$A$399,'C Report Grouper'!$D38,'C Report'!J$300:J$399),SUMIF('C Report'!$A$100:$A$199,'C Report Grouper'!$D38,'C Report'!J$100:J$199)) -> 0 | M38: =IF($D$4="MAP+ADM Waivers",SUMIF('C Report'!$A$100:$A$199,'C Report Grouper'!$D38,'C Report'!K$100:K$199)+SUMIF('C Report'!$A$300:$A$399,'C Report Grouper'!$D38,'C Report'!K$300:K$399),SUMIF('C Report'!$A$100:$A$199,'C Report Grouper'!$D38,'C Report'!K$100:K$199)) -> 0 | N38: =IF($D$4="MAP+ADM Waivers",SUMIF('C Report'!$A$100:$A$199,'C Report Grouper'!$D38,'C Report'!L$100:L$199)+SUMIF('C Report'!$A$300:$A$399,'C Report Grouper'!$D38,'C Report'!L$300:L$399),SUMIF('C Report'!$A$100:$A$199,'C Report Grouper'!$D38,'C Report'!L$100:L$199)) -> 0 | O38: =IF($D$4="MAP+ADM Waivers",SUMIF('C Report'!$A$100:$A$199,'C Report Grouper'!$D38,'C Report'!M$100:M$199)+SUMIF('C Report'!$A$300:$A$399,'C Report Grouper'!$D38,'C Report'!M$300:M$399),SUMIF('C Report'!$A$100:$A$199,'C Report Grouper'!$D38,'C Report'!M$100:M$199)) -> 0 | P38: =IF($D$4="MAP+ADM Waivers",SUMIF('C Report'!$A$100:$A$199,'C Report Grouper'!$D38,'C Report'!N$100:N$199)+SUMIF('C Report'!$A$300:$A$399,'C Report Grouper'!$D38,'C Report'!N$300:N$399),SUMIF('C Report'!$A$100:$A$199,'C Report Grouper'!$D38,'C Report'!N$100:N$199)) -> 0 | Q38: =IF($D$4="MAP+ADM Waivers",SUMIF('C Report'!$A$100:$A$199,'C Report Grouper'!$D38,'C Report'!O$100:O$199)+SUMIF('C Report'!$A$300:$A$399,'C Report Grouper'!$D38,'C Report'!O$300:O$399),SUMIF('C Report'!$A$100:$A$199,'C Report Grouper'!$D38,'C Report'!O$100:O$199)) -> 0 | R38: =IF($D$4="MAP+ADM Waivers",SUMIF('C Report'!$A$100:$A$199,'C Report Grouper'!$D38,'C Report'!P$100:P$199)+SUMIF('C Report'!$A$300:$A$399,'C Report Grouper'!$D38,'C Report'!P$300:P$399),SUMIF('C Report'!$A$100:$A$199,'C Report Grouper'!$D38,'C Report'!P$100:P$199)) -> 0 | S38: =IF($D$4="MAP+ADM Waivers",SUMIF('C Report'!$A$100:$A$199,'C Report Grouper'!$D38,'C Report'!Q$100:Q$199)+SUMIF('C Report'!$A$300:$A$399,'C Report Grouper'!$D38,'C Report'!Q$300:Q$399),SUMIF('C Report'!$A$100:$A$199,'C Report Grouper'!$D38,'C Report'!Q$100:Q$199)) -> 0 | T38: =IF($D$4="MAP+ADM Waivers",SUMIF('C Report'!$A$100:$A$199,'C Report Grouper'!$D38,'C Report'!R$100:R$199)+SUMIF('C Report'!$A$300:$A$399,'C Report Grouper'!$D38,'C Report'!R$300:R$399),SUMIF('C Report'!$A$100:$A$199,'C Report Grouper'!$D38,'C Report'!R$100:R$199)) -> 0 | U38: =IF($D$4="MAP+ADM Waivers",SUMIF('C Report'!$A$100:$A$199,'C Report Grouper'!$D38,'C Report'!S$100:S$199)+SUMIF('C Report'!$A$300:$A$399,'C Report Grouper'!$D38,'C Report'!S$300:S$399),SUMIF('C Report'!$A$100:$A$199,'C Report Grouper'!$D38,'C Report'!S$100:S$199)) -> 0 | V38: =IF($D$4="MAP+ADM Waivers",SUMIF('C Report'!$A$100:$A$199,'C Report Grouper'!$D38,'C Report'!T$100:T$199)+SUMIF('C Report'!$A$300:$A$399,'C Report Grouper'!$D38,'C Report'!T$300:T$399),SUMIF('C Report'!$A$100:$A$199,'C Report Grouper'!$D38,'C Report'!T$100:T$199)) -> 0 | W38: =IF($D$4="MAP+ADM Waivers",SUMIF('C Report'!$A$100:$A$199,'C Report Grouper'!$D38,'C Report'!U$100:U$199)+SUMIF('C Report'!$A$300:$A$399,'C Report Grouper'!$D38,'C Report'!U$300:U$399),SUMIF('C Report'!$A$100:$A$199,'C Report Grouper'!$D38,'C Report'!U$100:U$199)) -> 0 | X38: =IF($D$4="MAP+ADM Waivers",SUMIF('C Report'!$A$100:$A$199,'C Report Grouper'!$D38,'C Report'!V$100:V$199)+SUMIF('C Report'!$A$300:$A$399,'C Report Grouper'!$D38,'C Report'!V$300:V$399),SUMIF('C Report'!$A$100:$A$199,'C Report Grouper'!$D38,'C Report'!V$100:V$199)) -> 0 | Y38: =IF($D$4="MAP+ADM Waivers",SUMIF('C Report'!$A$100:$A$199,'C Report Grouper'!$D38,'C Report'!W$100:W$199)+SUMIF('C Report'!$A$300:$A$399,'C Report Grouper'!$D38,'C Report'!W$300:W$399),SUMIF('C Report'!$A$100:$A$199,'C Report Grouper'!$D38,'C Report'!W$100:W$199)) -> 0 | Z38: =IF($D$4="MAP+ADM Waivers",SUMIF('C Report'!$A$100:$A$199,'C Report Grouper'!$D38,'C Report'!X$100:X$199)+SUMIF('C Report'!$A$300:$A$399,'C Report Grouper'!$D38,'C Report'!X$300:X$399),SUMIF('C Report'!$A$100:$A$199,'C Report Grouper'!$D38,'C Report'!X$100:X$199)) -> 0 | AA38: =IF($D$4="MAP+ADM Waivers",SUMIF('C Report'!$A$100:$A$199,'C Report Grouper'!$D38,'C Report'!Y$100:Y$199)+SUMIF('C Report'!$A$300:$A$399,'C Report Grouper'!$D38,'C Report'!Y$300:Y$399),SUMIF('C Report'!$A$100:$A$199,'C Report Grouper'!$D38,'C Report'!Y$100:Y$199)) -> 0 | AB38: =IF($D$4="MAP+ADM Waivers",SUMIF('C Report'!$A$100:$A$199,'C Report Grouper'!$D38,'C Report'!Z$100:Z$199)+SUMIF('C Report'!$A$300:$A$399,'C Report Grouper'!$D38,'C Report'!Z$300:Z$399),SUMIF('C Report'!$A$100:$A$199,'C Report Grouper'!$D38,'C Report'!Z$100:Z$199)) -> 0 | AC38: =IF($D$4="MAP+ADM Waivers",SUMIF('C Report'!$A$100:$A$199,'C Report Grouper'!$D38,'C Report'!AA$100:AA$199)+SUMIF('C Report'!$A$300:$A$399,'C Report Grouper'!$D38,'C Report'!AA$300:AA$399),SUMIF('C Report'!$A$100:$A$199,'C Report Grouper'!$D38,'C Report'!AA$100:AA$199)) -> 0 | AD38: =IF($D$4="MAP+ADM Waivers",SUMIF('C Report'!$A$100:$A$199,'C Report Grouper'!$D38,'C Report'!AB$100:AB$199)+SUMIF('C Report'!$A$300:$A$399,'C Report Grouper'!$D38,'C Report'!AB$300:AB$399),SUMIF('C Report'!$A$100:$A$199,'C Report Grouper'!$D38,'C Report'!AB$100:AB$199)) -> 0 | AE38: =IF($D$4="MAP+ADM Waivers",SUMIF('C Report'!$A$100:$A$199,'C Report Grouper'!$D38,'C Report'!AC$100:AC$199)+SUMIF('C Report'!$A$300:$A$399,'C Report Grouper'!$D38,'C Report'!AC$300:AC$399),SUMIF('C Report'!$A$100:$A$199,'C Report Grouper'!$D38,'C Report'!AC$100:AC$199)) -> 0 | AF38: =IF($D$4="MAP+ADM Waivers",SUMIF('C Report'!$A$100:$A$199,'C Report Grouper'!$D38,'C Report'!AD$100:AD$199)+SUMIF('C Report'!$A$300:$A$399,'C Report Grouper'!$D38,'C Report'!AD$300:AD$399),SUMIF('C Report'!$A$100:$A$199,'C Report Grouper'!$D38,'C Report'!AD$100:AD$199)) -> 0 | AG38: =IF($D$4="MAP+ADM Waivers",SUMIF('C Report'!$A$100:$A$199,'C Report Grouper'!$D38,'C Report'!AE$100:AE$199)+SUMIF('C Report'!$A$300:$A$399,'C Report Grouper'!$D38,'C Report'!AE$300:AE$399),SUMIF('C Report'!$A$100:$A$199,'C Report Grouper'!$D38,'C Report'!AE$100:AE$199)) -> 0 | AH38: =IF($D$4="MAP+ADM Waivers",SUMIF('C Report'!$A$100:$A$199,'C Report Grouper'!$D38,'C Report'!AF$100:AF$199)+SUMIF('C Report'!$A$300:$A$399,'C Report Grouper'!$D38,'C Report'!AF$300:AF$399),SUMIF('C Report'!$A$100:$A$199,'C Report Grouper'!$D38,'C Report'!AF$100:AF$199)) -> 0
B39: =IFERROR(VLOOKUP(C39,'MEG Def'!$A$48:$B$51,2),"") ->  | E39: =IF($D$4="MAP+ADM Waivers",SUMIF('C Report'!$A$100:$A$199,'C Report Grouper'!$D39,'C Report'!C$100:C$199)+SUMIF('C Report'!$A$300:$A$399,'C Report Grouper'!$D39,'C Report'!C$300:C$399),SUMIF('C Report'!$A$100:$A$199,'C Report Grouper'!$D39,'C Report'!C$100:C$199)) -> 0 | F39: =IF($D$4="MAP+ADM Waivers",SUMIF('C Report'!$A$100:$A$199,'C Report Grouper'!$D39,'C Report'!D$100:D$199)+SUMIF('C Report'!$A$300:$A$399,'C Report Grouper'!$D39,'C Report'!D$300:D$399),SUMIF('C Report'!$A$100:$A$199,'C Report Grouper'!$D39,'C Report'!D$100:D$199)) -> 0 | G39: =IF($D$4="MAP+ADM Waivers",SUMIF('C Report'!$A$100:$A$199,'C Report Grouper'!$D39,'C Report'!E$100:E$199)+SUMIF('C Report'!$A$300:$A$399,'C Report Grouper'!$D39,'C Report'!E$300:E$399),SUMIF('C Report'!$A$100:$A$199,'C Report Grouper'!$D39,'C Report'!E$100:E$199)) -> 0 | H39: =IF($D$4="MAP+ADM Waivers",SUMIF('C Report'!$A$100:$A$199,'C Report Grouper'!$D39,'C Report'!F$100:F$199)+SUMIF('C Report'!$A$300:$A$399,'C Report Grouper'!$D39,'C Report'!F$300:F$399),SUMIF('C Report'!$A$100:$A$199,'C Report Grouper'!$D39,'C Report'!F$100:F$199)) -> 0 | I39: =IF($D$4="MAP+ADM Waivers",SUMIF('C Report'!$A$100:$A$199,'C Report Grouper'!$D39,'C Report'!G$100:G$199)+SUMIF('C Report'!$A$300:$A$399,'C Report Grouper'!$D39,'C Report'!G$300:G$399),SUMIF('C Report'!$A$100:$A$199,'C Report Grouper'!$D39,'C Report'!G$100:G$199)) -> 0 | J39: =IF($D$4="MAP+ADM Waivers",SUMIF('C Report'!$A$100:$A$199,'C Report Grouper'!$D39,'C Report'!H$100:H$199)+SUMIF('C Report'!$A$300:$A$399,'C Report Grouper'!$D39,'C Report'!H$300:H$399),SUMIF('C Report'!$A$100:$A$199,'C Report Grouper'!$D39,'C Report'!H$100:H$199)) -> 0 | K39: =IF($D$4="MAP+ADM Waivers",SUMIF('C Report'!$A$100:$A$199,'C Report Grouper'!$D39,'C Report'!I$100:I$199)+SUMIF('C Report'!$A$300:$A$399,'C Report Grouper'!$D39,'C Report'!I$300:I$399),SUMIF('C Report'!$A$100:$A$199,'C Report Grouper'!$D39,'C Report'!I$100:I$199)) -> 0 | L39: =IF($D$4="MAP+ADM Waivers",SUMIF('C Report'!$A$100:$A$199,'C Report Grouper'!$D39,'C Report'!J$100:J$199)+SUMIF('C Report'!$A$300:$A$399,'C Report Grouper'!$D39,'C Report'!J$300:J$399),SUMIF('C Report'!$A$100:$A$199,'C Report Grouper'!$D39,'C Report'!J$100:J$199)) -> 0 | M39: =IF($D$4="MAP+ADM Waivers",SUMIF('C Report'!$A$100:$A$199,'C Report Grouper'!$D39,'C Report'!K$100:K$199)+SUMIF('C Report'!$A$300:$A$399,'C Report Grouper'!$D39,'C Report'!K$300:K$399),SUMIF('C Report'!$A$100:$A$199,'C Report Grouper'!$D39,'C Report'!K$100:K$199)) -> 0 | N39: =IF($D$4="MAP+ADM Waivers",SUMIF('C Report'!$A$100:$A$199,'C Report Grouper'!$D39,'C Report'!L$100:L$199)+SUMIF('C Report'!$A$300:$A$399,'C Report Grouper'!$D39,'C Report'!L$300:L$399),SUMIF('C Report'!$A$100:$A$199,'C Report Grouper'!$D39,'C Report'!L$100:L$199)) -> 0 | O39: =IF($D$4="MAP+ADM Waivers",SUMIF('C Report'!$A$100:$A$199,'C Report Grouper'!$D39,'C Report'!M$100:M$199)+SUMIF('C Report'!$A$300:$A$399,'C Report Grouper'!$D39,'C Report'!M$300:M$399),SUMIF('C Report'!$A$100:$A$199,'C Report Grouper'!$D39,'C Report'!M$100:M$199)) -> 0 | P39: =IF($D$4="MAP+ADM Waivers",SUMIF('C Report'!$A$100:$A$199,'C Report Grouper'!$D39,'C Report'!N$100:N$199)+SUMIF('C Report'!$A$300:$A$399,'C Report Grouper'!$D39,'C Report'!N$300:N$399),SUMIF('C Report'!$A$100:$A$199,'C Report Grouper'!$D39,'C Report'!N$100:N$199)) -> 0 | Q39: =IF($D$4="MAP+ADM Waivers",SUMIF('C Report'!$A$100:$A$199,'C Report Grouper'!$D39,'C Report'!O$100:O$199)+SUMIF('C Report'!$A$300:$A$399,'C Report Grouper'!$D39,'C Report'!O$300:O$399),SUMIF('C Report'!$A$100:$A$199,'C Report Grouper'!$D39,'C Report'!O$100:O$199)) -> 0 | R39: =IF($D$4="MAP+ADM Waivers",SUMIF('C Report'!$A$100:$A$199,'C Report Grouper'!$D39,'C Report'!P$100:P$199)+SUMIF('C Report'!$A$300:$A$399,'C Report Grouper'!$D39,'C Report'!P$300:P$399),SUMIF('C Report'!$A$100:$A$199,'C Report Grouper'!$D39,'C Report'!P$100:P$199)) -> 0 | S39: =IF($D$4="MAP+ADM Waivers",SUMIF('C Report'!$A$100:$A$199,'C Report Grouper'!$D39,'C Report'!Q$100:Q$199)+SUMIF('C Report'!$A$300:$A$399,'C Report Grouper'!$D39,'C Report'!Q$300:Q$399),SUMIF('C Report'!$A$100:$A$199,'C Report Grouper'!$D39,'C Report'!Q$100:Q$199)) -> 0 | T39: =IF($D$4="MAP+ADM Waivers",SUMIF('C Report'!$A$100:$A$199,'C Report Grouper'!$D39,'C Report'!R$100:R$199)+SUMIF('C Report'!$A$300:$A$399,'C Report Grouper'!$D39,'C Report'!R$300:R$399),SUMIF('C Report'!$A$100:$A$199,'C Report Grouper'!$D39,'C Report'!R$100:R$199)) -> 0 | U39: =IF($D$4="MAP+ADM Waivers",SUMIF('C Report'!$A$100:$A$199,'C Report Grouper'!$D39,'C Report'!S$100:S$199)+SUMIF('C Report'!$A$300:$A$399,'C Report Grouper'!$D39,'C Report'!S$300:S$399),SUMIF('C Report'!$A$100:$A$199,'C Report Grouper'!$D39,'C Report'!S$100:S$199)) -> 0 | V39: =IF($D$4="MAP+ADM Waivers",SUMIF('C Report'!$A$100:$A$199,'C Report Grouper'!$D39,'C Report'!T$100:T$199)+SUMIF('C Report'!$A$300:$A$399,'C Report Grouper'!$D39,'C Report'!T$300:T$399),SUMIF('C Report'!$A$100:$A$199,'C Report Grouper'!$D39,'C Report'!T$100:T$199)) -> 0 | W39: =IF($D$4="MAP+ADM Waivers",SUMIF('C Report'!$A$100:$A$199,'C Report Grouper'!$D39,'C Report'!U$100:U$199)+SUMIF('C Report'!$A$300:$A$399,'C Report Grouper'!$D39,'C Report'!U$300:U$399),SUMIF('C Report'!$A$100:$A$199,'C Report Grouper'!$D39,'C Report'!U$100:U$199)) -> 0 | X39: =IF($D$4="MAP+ADM Waivers",SUMIF('C Report'!$A$100:$A$199,'C Report Grouper'!$D39,'C Report'!V$100:V$199)+SUMIF('C Report'!$A$300:$A$399,'C Report Grouper'!$D39,'C Report'!V$300:V$399),SUMIF('C Report'!$A$100:$A$199,'C Report Grouper'!$D39,'C Report'!V$100:V$199)) -> 0 | Y39: =IF($D$4="MAP+ADM Waivers",SUMIF('C Report'!$A$100:$A$199,'C Report Grouper'!$D39,'C Report'!W$100:W$199)+SUMIF('C Report'!$A$300:$A$399,'C Report Grouper'!$D39,'C Report'!W$300:W$399),SUMIF('C Report'!$A$100:$A$199,'C Report Grouper'!$D39,'C Report'!W$100:W$199)) -> 0 | Z39: =IF($D$4="MAP+ADM Waivers",SUMIF('C Report'!$A$100:$A$199,'C Report Grouper'!$D39,'C Report'!X$100:X$199)+SUMIF('C Report'!$A$300:$A$399,'C Report Grouper'!$D39,'C Report'!X$300:X$399),SUMIF('C Report'!$A$100:$A$199,'C Report Grouper'!$D39,'C Report'!X$100:X$199)) -> 0 | AA39: =IF($D$4="MAP+ADM Waivers",SUMIF('C Report'!$A$100:$A$199,'C Report Grouper'!$D39,'C Report'!Y$100:Y$199)+SUMIF('C Report'!$A$300:$A$399,'C Report Grouper'!$D39,'C Report'!Y$300:Y$399),SUMIF('C Report'!$A$100:$A$199,'C Report Grouper'!$D39,'C Report'!Y$100:Y$199)) -> 0 | AB39: =IF($D$4="MAP+ADM Waivers",SUMIF('C Report'!$A$100:$A$199,'C Report Grouper'!$D39,'C Report'!Z$100:Z$199)+SUMIF('C Report'!$A$300:$A$399,'C Report Grouper'!$D39,'C Report'!Z$300:Z$399),SUMIF('C Report'!$A$100:$A$199,'C Report Grouper'!$D39,'C Report'!Z$100:Z$199)) -> 0 | AC39: =IF($D$4="MAP+ADM Waivers",SUMIF('C Report'!$A$100:$A$199,'C Report Grouper'!$D39,'C Report'!AA$100:AA$199)+SUMIF('C Report'!$A$300:$A$399,'C Report Grouper'!$D39,'C Report'!AA$300:AA$399),SUMIF('C Report'!$A$100:$A$199,'C Report Grouper'!$D39,'C Report'!AA$100:AA$199)) -> 0 | AD39: =IF($D$4="MAP+ADM Waivers",SUMIF('C Report'!$A$100:$A$199,'C Report Grouper'!$D39,'C Report'!AB$100:AB$199)+SUMIF('C Report'!$A$300:$A$399,'C Report Grouper'!$D39,'C Report'!AB$300:AB$399),SUMIF('C Report'!$A$100:$A$199,'C Report Grouper'!$D39,'C Report'!AB$100:AB$199)) -> 0 | AE39: =IF($D$4="MAP+ADM Waivers",SUMIF('C Report'!$A$100:$A$199,'C Report Grouper'!$D39,'C Report'!AC$100:AC$199)+SUMIF('C Report'!$A$300:$A$399,'C Report Grouper'!$D39,'C Report'!AC$300:AC$399),SUMIF('C Report'!$A$100:$A$199,'C Report Grouper'!$D39,'C Report'!AC$100:AC$199)) -> 0 | AF39: =IF($D$4="MAP+ADM Waivers",SUMIF('C Report'!$A$100:$A$199,'C Report Grouper'!$D39,'C Report'!AD$100:AD$199)+SUMIF('C Report'!$A$300:$A$399,'C Report Grouper'!$D39,'C Report'!AD$300:AD$399),SUMIF('C Report'!$A$100:$A$199,'C Report Grouper'!$D39,'C Report'!AD$100:AD$199)) -> 0 | AG39: =IF($D$4="MAP+ADM Waivers",SUMIF('C Report'!$A$100:$A$199,'C Report Grouper'!$D39,'C Report'!AE$100:AE$199)+SUMIF('C Report'!$A$300:$A$399,'C Report Grouper'!$D39,'C Report'!AE$300:AE$399),SUMIF('C Report'!$A$100:$A$199,'C Report Grouper'!$D39,'C Report'!AE$100:AE$199)) -> 0 | AH39: =IF($D$4="MAP+ADM Waivers",SUMIF('C Report'!$A$100:$A$199,'C Report Grouper'!$D39,'C Report'!AF$100:AF$199)+SUMIF('C Report'!$A$300:$A$399,'C Report Grouper'!$D39,'C Report'!AF$300:AF$399),SUMIF('C Report'!$A$100:$A$199,'C Report Grouper'!$D39,'C Report'!AF$100:AF$199)) -> 0
